Workbook

Sheet Deckblatt

Sheet Verzeichnis
A1: Tabellen - und Abbildungsverzeichnis
A3: =#REF! ->  | B3: ='A1'!A1 -> Abbildung 1: Durchschnittliche jährliche Veränderungsrate für Einnahmen, Aufwendungen und Jahresüberschuss je Inhaber in ausgewählten Fachgebieten im Zeitraum 2009 bis 2011
A4: ='A2'!_Ref378178800 -> Abbildung 2: Verteilung der Wochenarbeitszeit von Inhabern und angestellten Ärzten im Jahr 2011 | B4: ='A2'!_Ref378178800 -> Abbildung 2: Verteilung der Wochenarbeitszeit von Inhabern und angestellten Ärzten im Jahr 2011
A5: ='A3'!_Ref350339890 -> Abbildung 3: Persönliche Bewertung der Situation als Vertragsarzt insgesamt differenziert nach Fachgebiet | B5: ='A3'!_Ref350339890 -> Abbildung 3: Persönliche Bewertung der Situation als Vertragsarzt insgesamt differenziert nach Fachgebiet
A6: ='A4'!_Ref374438578 -> Abbildung 4: Persönliche Bewertung der Situation der Praxis hinsichtlich … | B6: ='A4'!_Ref374438578 -> Abbildung 4: Persönliche Bewertung der Situation der Praxis hinsichtlich …
A7: =[0]!_Ref374460833 ->  | B7: ='A5'!A1 -> Abbildung 5: Mittelwertveränderung der Beiträge zwischen 2009 und 2013 in Prozent
B8: ='A6'!A1 -> Abbildung 6: Verteilung der relativen Beitragsveränderung in der Gynäkologie
B9: ='A7'!A1 -> Abbildung 7: Verteilung der relativen Beitragsänderungen in der Chirurgie und Orthopädie (mit Unfallchirurgie)
B10: ='A8'!A1 -> Abbildung 8: Mittlere absolute Beitragsänderung in Euro nach Fachgebiet
B11: ='A9'!A1 -> Abbildung 9: Streuung der absoluten Beitragsänderung
B12: ='A10'!_Ref420083429 -> Abbildung 10: Streuung der absoluten Beitragsänderungen differenziert nach Tarifart
B13: ='A11'!A1 -> Abbildung 11: Mittlere absolute Beitragshöhe 2013 in Euro nach Fachgebiet
B14: ='A12'!A1 -> Abbildung 12: Verteilung der Beitragshöhe nach Tarifart in den Jahren 2009 und 2013
B15: ='A13'!A1 -> Abbildung 13: Beitragsänderung von 2009 zu 2013 nach Schadensmeldung
B16: ='A14'!A1 -> Abbildung 14: Beitragshöhe und Deckungssumme in 2013
B17: ='A15'!A1 -> Abbildung 15: Deckungssummen in den Jahren 2009 und 2013
B18: ='A16'!A1 -> Abbildung 16: Anteil der mitversicherten angestellten Ärzte im Vergleich 2009 und 2013
B19: ='A17'!A1 -> Abbildung 17: Anteil von Ärzten mit Schadensmeldungen und Tarifart im Jahr 2013
B20: ='A18'!_Ref420678918 -> Abbildung 18: Untersuchte Zusammenhänge
B21: ='A19'!A1 -> Abbildung 19: Datenschutzkonzept im Zi-Praxis-Panel – Schematische Darstellung
A22: =[0]!_Ref378590583 ->  | B22: ='T1'!_Ref378590583 -> Tabelle 1: Einnahmen, Aufwendungen und Jahresüberschuss je Inhaber in Tausend Euro in den Jahren 2009 bis 2011
A23: ='T2'!_Ref350852204 -> Tabelle 2: Aufwendungen nach Art je Inhaber in Tausend Euro in den Jahren 2009 bis 2011 | B23: ='T2'!_Ref350852204 -> Tabelle 2: Aufwendungen nach Art je Inhaber in Tausend Euro in den Jahren 2009 bis 2011
A24: =[0]!_Ref351368248 ->  | B24: ='T3'!_Ref351368248 -> Tabelle 3: Einnahmen nach Art in Tausend Euro je Inhaber in den Jahren 2009 bis 2011
A25: =[0]!_Ref376961356 ->  | B25: ='T4'!_Ref378597072 -> Tabelle 4: Einnahmen, Aufwendungen und Jahresüberschuss in Tausend Euro je Inhaber in Einzel- und Gemeinschaftspraxen in den Jahren 2009 bis 2011
A26: =[0]!_Ref378597072 ->  | B26: ='T5'!_Ref375059409 -> Tabelle 5: Beispielrechnung – Jahresüberschuss und Nettoeinkommen je Inhaber im Jahr 2011 (Mittelwert und Median)
A27: =[0]!_Ref375059409 ->  | B27: ='T6'!_Ref376949193 -> Tabelle 6: Einnahmen, Aufwendungen und Jahresüberschuss in Tausend Euro je Inhaber in Einzel- und Gemeinschaftspraxen nach Versorgungsbereich für das Jahr 2011
A28: =[0]!_Ref376949193 ->  | B28: ='T7'!_Ref378583053 -> Tabelle 7: Aufwendungen nach Art in Tausend Euro je Inhaber in Einzel- und Gemeinschaftspraxen in den Jahren 2009 bis 2011
A29: =[0]!_Ref378583053 ->  | B29: ='T8'!_Ref377474706 -> Tabelle 8: Jahresüberschuss je Inhaber, je Inhaberarbeitsstunde und durchschnittliche Jahresarbeitszeit im Jahr 2011
A30: ='T8'!_Ref377474706 -> Tabelle 8: Jahresüberschuss je Inhaber, je Inhaberarbeitsstunde und durchschnittliche Jahresarbeitszeit im Jahr 2011 | B30: ='T9'!_Ref377474705 -> Tabelle 9: Wirtschaftslage in Praxen mit operativem und konservativem Schwerpunkt im Jahr 2011
A31: =[0]!_Ref377474705 ->  | B31: ='T10'!_Ref378597467 -> Tabelle 10: Einnahmen, Aufwendungen und Jahresüberschuss je Inhaberstunde und Jahresarbeitszeit der Inhaber in Praxen mit operativem und konservativem Schwerpunkt im Jahr 2011
A32: =[0]!_Ref378597467 ->  | B32: ='T11'!_Ref378178960 -> Tabelle 11: Wochenarbeitsstunden der Inhaber je Inhaber differenziert nach Regionstyp, Fachbereich und Organisationsform im Jahr 2011
A33: =[0]!_Ref378856946 ->  | B33: ='T12'!A1 -> Tabelle 12: Investitionen in Tausend Euro je Praxis differenziert nach Fachbereich und für alle Praxen in den Jahren 2009 bis 2012
A34: =[0]!_Ref379796998 ->  | B34: ='T13'!A1 -> Tabelle 13: Investitionen in Tausend Euro je Praxis, je Inhaber und je Arzt differenziert nach Fachbereich und Organisationsform in den Jahren 2009 bis 2011
A35: ='T11'!_Ref378178960 -> Tabelle 11: Wochenarbeitsstunden der Inhaber je Inhaber differenziert nach Regionstyp, Fachbereich und Organisationsform im Jahr 2011 | B35: ='T14'!A1 -> Tabelle 14: Patientenzahlen nach Fachgebiet und Patientengruppen im 4. Quartal 2011
A36: ='T12'!A1 -> Tabelle 12: Investitionen in Tausend Euro je Praxis differenziert nach Fachbereich und für alle Praxen in den Jahren 2009 bis 2012 | B36: ='T15'!A1 -> Tabelle 15: Jahresüberschuss und Jahresarbeitszeit je Inhaber inkl. Praxismanagement differenziert nach Inhabergeschlecht
A37: =[0]!_Ref378864776 ->  | B37: ='T16'!A1 -> Tabelle 16: Jahresarbeitszeit angestellter Ärzte und Inhaber ohne Praxismanagement je Patient
A38: =[0]!_Ref378938812 ->  | B38: ='T17'!A1 -> Tabelle 17: Behandelte Patienten je Inhaber
A39: =[0]!_Ref378938844 ->  | B39: ='T18'!A1 -> Tabelle 18: Einnahmen, Aufwendungen und Jahresüberschuss je Patient
A40: =[0]!_Ref375321467 ->  | B40: ='T19'!A1 -> Tabelle 19: Relative Veränderungrate der Beitragshöhe in Prozent in der Zeit von 2009 bis 2013
A41: ='T14'!A1 -> Tabelle 14: Patientenzahlen nach Fachgebiet und Patientengruppen im 4. Quartal 2011 | B41: ='T20'!A1 -> Tabelle 20: Absolute Veränderung der Beitragshöhe in Euro
A42: =[0]!_Ref377118279 ->  | B42: ='T21'!A1 -> Tabelle 21: Absolute Beitragsveränderung in Euro nach Fachgebiet und Tarifart
A43: =#REF! ->  | B43: ='T22'!A1 -> Tabelle 22: Absolute Beitragshöhe in Euro im Jahr 2013
A44: =#REF! ->  | B44: ='T23'!A1 -> Tabelle 23: Absolute Beitragshöhe in Euro im Jahr 2013 nach Fachgebiet und Tarifart
A45: =#REF! ->  | B45: ='T24'!A1 -> Tabelle 24: Anteil der Inhaber mit mitversicherten angestellte Ärzten
A46: =#REF! ->  | B46: ='T25'!A1 -> Tabelle 25: Schadensmeldungen im Zeitraum 2009 bis 2013 nach Tarifart
A47: =[0]!_Ref379211202 ->  | B47: ='T26'!_Ref350347740 -> Tabelle 26: Teilnehmerzahl, gewichtete Teilnehmerzahl und Grundgesamtheit nach Regionstyp und KV-Bereich im Berichtsjahr 2011
A48: =[0]!_Ref350347740 -> Tabelle 26: Teilnehmerzahl, gewichtete Teilnehmerzahl und Grundgesamtheit nach Regionstyp und KV-Bereich im Berichtsjahr 2011 | B48: ='T27'!_Ref378077900 -> Tabelle 27: Kennzahlenvergleich für das Zi-Praxis-Panel mit dem Honorarbericht der KBV im 4. Quartal 2011 – Abweichungen in Prozent
A49: =[0]!_Ref378077900 ->  | B49: ='T28'!A1 -> Tabelle 28: Jahresüberschuss je Inhaber in Tausend Euro nach ZiPP und KSE
A50: =[0]!_Ref378082548 ->  | B50: ='T29'!A1 -> Tabelle 29: Internistische Schwerpunkte im Bundesarztregister und der Ziehungsgesamtheit der KSE
A51: =#REF! ->  | B51: ='T30'!A1 -> Tabelle 30: Praxen des neurologisch-psychiatrischen Bereichs
A52: =#REF! ->  | B52: ='T31'!_Ref378082548 -> Tabelle 31: Einteilung der Fachgebiete nach Anzahl der KV-Honorarklassen und Regionstypen für das Gewichtungsschema der Fachgebiete
A53: ='T32'!A1 -> Tabelle 32: Teilnehmer 2013 nach Erstteilnahme nach Regionstyp, Organisationsform und Fachgebiet | B53: ='T32'!_Ref374695162 -> Tabelle 32: Teilnehmer 2013 nach Erstteilnahme nach Regionstyp, Organisationsform und Fachgebiet
A54: =#REF! ->  | B54: ='T33'!A1 -> Tabelle 33: Fachgebiete, Fachbereiche und ausgeschlossene Fachgebiete
A55: =#REF! ->  | B55: ='T34'!A1 -> Tabelle 34: Praxiseinnahmen je Praxis und je Inhaber nach Fachgebiet im Jahr 2011
A56: =#REF! ->  | B56: ='T35'!A1 -> Tabelle 35: Praxisaufwendungen nach fünf Aufwandsarten und Jahresüberschuss je Praxis und je Inhaber nach Fachgebiet im Jahr 2011
A57: =#REF! ->  | B57: ='T36'!A1 -> Tabelle 36: Praxiseinnahmen je Praxis und je Inhaber nach Fachgebiet und Größenklasse der Praxiseinnahmen im Jahr 2011
A58: =#REF! ->  | B58: ='T37'!A1 -> Tabelle 37: Praxisaufwendungen und Jahresüberschuss je Praxis und je Inhaber nach Fachgebiet und Größenklasse der Praxiseinnahmen im Jahr 2011
A59: =#REF! ->  | B59: ='T38'!A1 -> Tabelle 38: Praxiseinnahmen je Praxis und je Inhaber nach Fachgebiet und Organisationsform im Jahr 2011
A60: =#REF! ->  | B60: ='T39'!A1 -> Tabelle 39: Praxisaufwendungen (Teil I) je Praxis und je Inhaber nach Fachgebiet und Organisationsform im Jahr 2011
A61: =#REF! ->  | B61: ='T40'!A1 -> Tabelle 40: Praxisaufwendungen (Teil II) und Jahresüberschuss je Praxis und je Inhaber nach Fachgebiet und Organisationsform im Jahr 2011
A62: =#REF! ->  | B62: ='T41'!A1 -> Tabelle 41: Praxiseinnahmen je Praxis und je Inhaber nach Fachgebiet und Organisationsform im Jahr 2010
A63: =#REF! ->  | B63: ='T42'!A1 -> Tabelle 42: Praxisaufwendungen (Teil I) je Praxis und je Inhaber nach Fachgebiet und Organisationsform im Jahr 2010
A64: =#REF! ->  | B64: ='T43'!A1 -> Tabelle 43: Praxisaufwendungen (Teil II) und Jahresüberschuss je Praxis und je Praxisinhaber nach Fachgebiet und Organisationsform im Jahr 2010
A65: =#REF! ->  | B65: ='T44'!A1 -> Tabelle 44: Praxiseinnahmen je Praxis und je Inhaber nach Fachgebiet und Organisationsform im Jahr 2009
A66: =#REF! ->  | B66: ='T45'!A1 -> Tabelle 45: Praxisaufwendungen (Teil I) je Praxis und je Inhaber nach Fachgebiet und Organisationsform im Jahr 2009
A67: =#REF! ->  | B67: ='T46'!A1 -> Tabelle 46: Praxisaufwendungen (Teil II) und Jahresüberschuss je Praxis und je Inhaber nach Fachgebiet und Organisationsform im Jahr 2009
A68: =#REF! ->  | B68: ='T47'!_Ref378174621 -> Tabelle 47: Praxiseinnahmen in Tausend Euro je Inhaber – Mittelwert und Quartile nach Fachgebiet im Jahr 2011
A69: =#REF! ->  | B69: ='T48'!_Ref378174621 -> Tabelle 48: Praxisaufwendungen in Tausend Euro je Inhaber – Mittelwert und Quartile nach Fachgebiet im Jahr 2011
A70: =#REF! ->  | B70: ='T49'!_Ref378174621 -> Tabelle 49: Jahresüberschuss in Tausend Euro je Inhaber – Mittelwert und Quartile nach Fachgebiet im Jahr 2011
A71: ='T50'!A1 -> Tabelle 50: Wochenarbeitsstunden der Inhaber je Inhaber nach Tätigkeiten und Fachgebieten im Jahr 2011 | B71: ='T50'!A1 -> Tabelle 50: Wochenarbeitsstunden der Inhaber je Inhaber nach Tätigkeiten und Fachgebieten im Jahr 2011
A72: ='T52'!#REF! ->  | B72: ='T51'!A1 -> Tabelle 51: Wochenarbeitsstunden der Inhaber und angestellten Ärzte je Inhaber nach Tätigkeiten und Fachgebieten im Jahr 2011
A73: =#REF! ->  | B73: ='T52'!A1 -> Tabelle 52: Abwesenheitstage der Inhaber anfgrund von Urlaub, Fortbildung und Krankheit nach Fachgebiet im Jahr 2011
A74: =#REF! ->  | B74: ='T53'!A1 -> Tabelle 53: Verteilung der Praxen nach KV-Honorarklassen 2011 in der Grundgesamtheit und den ZiPP-Analysefällen
A75: =#REF! ->  | B75: ='T54'!A1 -> Tabelle 54: Verteilung der Praxen nach KV-Honorarklassen 2011 in den Fachgebietn Psychiatrie, Psychosomatische Medizin und Psychotherapie sowie Psychotherapie.
A76: ='T53'!#REF! ->  | B76: ='T55'!A1 -> Tabelle 55: Kennzahlen zur Leistungsstruktur, zum Leistungsumfang und zum Honorarumsatz – Zi-Praxis-Panel im Vergleich zum Honorarbericht der KBV im 1. Quartal 2011
A77: ='T54'!#REF! ->  | B77: ='T56'!A1 -> Tabelle 56: Kennzahlen zur Leistungsstruktur, zum Leistungsumfang und zum Honorarumsatz – Zi-Praxis-Panel im Vergleich zum Honorarbericht der KBV im 2. Quartal 2011
A78: =#REF! ->  | B78: ='T57'!A1 -> Tabelle 57: Kennzahlen zur Leistungsstruktur, zum Leistungsumfang und zum Honorarumsatz – Zi-Praxis-Panel im Vergleich zum Honorarbericht der KBV im 3. Quartal 2011
A79: =#REF! ->  | B79: ='T58'!A1 -> Tabelle 58: Kennzahlen zur Leistungsstruktur, zum Leistungsumfang und zum Honorarumsatz – Zi-Praxis-Panel im Vergleich zum Honorarbericht der KBV im 4. Quartal 2011
A80: =#REF! ->  | B80: ='T59'!A1 -> Tabelle 59: Honorarklassenbildung und -besetzung für die Abrechnungsfachgebiete im Gewichtungsverfahren
A81: =#REF! ->  | B81: ='T60'!A1 -> Tabelle 60: Relative Standardfehler der Einnahmen, Aufwendungen und des Jahresüberschusses je Praxis in den Jahren 2009, 2010 und 2011

Sheet A1
A1: Abbildung 1: Durchschnittliche jährliche Veränderungsrate für Einnahmen, Aufwendungen und Jahresüberschuss je Inhaber in ausgewählten Fachgebieten im Zeitraum 2009 bis 2011
A35: Hinweis: Die dargestellte Veränderungsrate entspricht dem geometrischen Mittel der Veränderungsraten von 2010 zu 2009 und 2011 zu 2010 für die am stärksten im ZiPP vertretenen Fachgebiete. Grundlage der Berechnungen sind Tabelle 21 bis Tabelle 33.
A36: Quelle: Zi-Praxis-Panel 2013.

Sheet A2
A1: Abbildung 2: Verteilung der Wochenarbeitszeit von Inhabern und angestellten Ärzten im Jahr 2011
A26: Hinweis: Insgesamt konnten die Arbeitszeitangaben von 5.835 Praxisinhabern und 457 angestellten Ärzten ausgewertet werden. Ungewichtete Ergebnisse.
A27: Quelle: Zi-Praxis-Panel 2013.

Sheet A3
A1: Abbildung 3: Persönliche Bewertung der Situation als Vertragsarzt insgesamt differenziert nach Fachgebiet
A35: Hinweis: Gewichtete Ergebnisse; n = 4.451; sortiert nach Anteil sehr gut und Anteil gut.
A36: Quelle: Zi-Praxis-Panel 2013.

Sheet A4
A1: Abbildung 4: Persönliche Bewertung der Situation der Praxis hinsichtlich …
A22: Hinweis: Gewichtete Ergebnisse; n = 4.451.
A23: Quelle: Zi-Praxis-Panel 2013.

Sheet A5
A1: Abbildung 5: Mittelwertveränderung der Beiträge zwischen 2009 und 2013 in Prozent
A24: Quelle: Zi-Praxis-Panel, Sondererhebung 2014.

Sheet A6
A1: Abbildung 6: Verteilung der relativen Beitragsveränderung in der Gynäkologie
A17: Quelle: Zi-Praxis-Panel, Sondererhebung 2014.

Sheet A7
A1: Abbildung 7: Verteilung der relativen Beitragsänderungen in der Chirurgie und Orthopädie (mit Unfallchirurgie)
A17: Quelle: Zi-Praxis-Panel, Sondererhebung 2014.

Sheet A8
A1: Abbildung 8: Mittlere absolute Beitragsänderung in Euro nach Fachgebiet
A30: Quelle: Zi-Praxis-Panel, Sondererhebung 2014.

Sheet A9
A1: Abbildung 9: Streuung der absoluten Beitragsänderung
A26: Hinweis: Darstellung begrenzt auf -3.000/+3.000 Euro.
A27: Quelle: Zi-Praxis-Panel, Sondererhebung 2014.

Sheet A10
A1: Abbildung 10: Streuung der absoluten Beitragsänderungen differenziert nach Tarifart
A23: Quelle: Zi-Praxis-Panel, Sondererhebung 2014.

Sheet A11
A1: Abbildung 11: Mittlere absolute Beitragshöhe 2013 in Euro nach Fachgebiet
A20: Quelle: Zi-Praxis-Panel, Sondererhebung 2014.

Sheet A12
A1: Abbildung 12: Verteilung der Beitragshöhe nach Tarifart in den Jahren 2009 und 2013
A21: Quelle: Zi-Praxis-Panel, Sondererhebung 2014.

Sheet A13
A1: Abbildung 13: Beitragsänderung von 2009 zu 2013 nach Schadensmeldung
A25: Quelle: Zi-Praxis-Panel, Sondererhebung 2014.

Sheet A14
A1: Abbildung 14: Beitragshöhe und Deckungssumme in 2013
A26: Quelle: Zi-Praxis-Panel, Sondererhebung 2014.

Sheet A15
A1: Abbildung 15: Deckungssummen in den Jahren 2009 und 2013
A27: Quelle: Zi-Praxis-Panel, Sondererhebung 2014.

Sheet A16
A1: Abbildung 16: Anteil der mitversicherten angestellten Ärzte im Vergleich 2009 und 2013
A22: Quelle: Zi-Praxis-Panel, Sondererhebung 2014.

Sheet A17
A1: Abbildung 17: Anteil von Ärzten mit Schadensmeldungen und Tarifart im Jahr 2013
A27: Quelle: Zi-Praxis-Panel, Sondererhebung 2014.

Sheet A18
A1: Abbildung 18: Untersuchte Zusammenhänge

Sheet A19
A1: Abbildung 19: Datenschutzkonzept im Zi-Praxis-Panel – Schematische Darstellung
A21: Quelle: Eigene Darstellung.

Sheet T1
A1: Tabelle 1: Einnahmen, Aufwendungen und Jahresüberschuss je Inhaber in Tausend Euro in den Jahren 2009 bis 2011
A2: Gesamt | B2: 2009 | C2: 2010 | D2: 2011 | F2: 2011 zu 2009 | G2: durchschn. je Jahr
A3: Gesamteinnahmen | B3: 270324.8719 | C3: 276103.0111 | D3: 281483.8127
C4: 5778.139199 | D4: 5380.801574 | F4: 11158.94077 | G4: 5579.470387
C5: 0.02137479677 | D5: 0.01948838426 | F5: 0.04127974128 | G5: 0.0204311546
A6: Gesamtaufwendungen | B6: 129817.8645 | C6: 132959.1315 | D6: 136350.3456
C7: 3141.266979 | D7: 3391.214148 | F7: 6532.481126 | G7: 3266.240563
C8: 0.02419749386 | D8: 0.02550568818 | F8: 0.05032035577 | G8: 0.02485138228
A9: Jahresüberschuss | B9: 140507.0074 | C9: 143143.8796 | D9: 145133.467
C10: 2636.872221 | D10: 1989.587426 | F10: 4626.459647 | G10: 2313.229823
A11: nominal | C11: 0.01876683782 | D11: 0.01389921408 | F11: 0.03292689619 | G11: 0.01633011182
A12: Verbraucherpreisindex | B12: 100 | C12: 101.1 | D12: 103.2 | F12: 3.2 | G12: 1.6
A13: real | C13: 0.007682332168 | D13: -0.006732455978 | F13: 0.0008981552269 | G13: 0.0004489768234
A14: Hinweis: Angaben in Tausend Euro sowie Veränderung zum Vorjahr in Tausend Euro und in Prozent.
A15: Quelle: Zi-Praxis-Panel 2013, Statistisches Bundesamt 2015c.

Sheet T2
A1: Tabelle 2: Aufwendungen nach Art je Inhaber in Tausend Euro in den Jahren 2009 bis 2011
A2: Gesamt | C2: 2009 | D2: 2010 | E2: 2011 | G2: 2011 zu 2009 | H2: durchschn. je Jahr
A3: Gesamtaufwendungen | C3: 129817.8645 | D3: 132959.1315 | E3: 136350.3456
D4: 3141.266979 | E4: 3391.214148 | G4: 6532.481126 | H4: 3266.240563
D5: 0.02419749386 | E5: 0.02550568818 | G5: 0.05032035577 | H5: 0.02485138228
A6: darunter für … | B6: Personal | C6: 59717.74582 | D6: 62049.58929 | E6: 64754.39353
D7: 2331.84347 | E7: 2704.804246 | G7: 5036.647717 | H7: 2518.323858
D8: 0.03904774767 | E8: 0.04359100966 | G8: 0.08434088808 | H8: 0.04131690089
B9: Material und Labor | C9: 7585.191867 | D9: 7720.94616 | E9: 8192.221279
D10: 135.7542932 | E10: 471.2751188 | G10: 607.029412 | H10: 303.514706
D11: 0.01789727875 | E11: 0.06103851899 | G11: 0.08002822113 | H11: 0.03924406235
B12: Miete einschl. Nk. | C12: 15864.65722 | D12: 16081.24766 | E12: 16435.10146
B13: für Praxisräume | D13: 216.5904431 | E13: 353.8537975 | G13: 570.4442406 | H13: 285.2221203
D14: 0.0136523872 | E14: 0.02200412586 | G14: 0.03595692191 | H14: 0.01781969027
B15: Versicherungen, Beiträge | C15: 6397.175337 | D15: 6630.11961 | E15: 6846.208844
B16: und Gebühren | D16: 232.9442731 | E16: 216.089234 | G16: 449.0335071 | H16: 224.5167535
D17: 0.03641361396 | E17: 0.03259205666 | G17: 0.07019246519 | H17: 0.03450107065
B18: Abschreibungen | C18: 10118.65925 | D18: 10301.40135 | E18: 9980.590725
D19: 182.7421049 | E19: -320.8106282 | G19: -138.0685233 | H19: -69.03426166
D20: 0.01805991292 | E20: -0.03114242589 | G20: -0.01364494247 | H20: -0.006845904439
B21: Leasing und Mieten von | C21: 2298.968271 | D21: 2265.447575 | E21: 2122.392302
B22: Geräten | D22: -33.52069673 | E22: -143.055273 | G22: -176.5759698 | H22: -88.28798488
D23: -0.01458075657 | E23: -0.06314658287 | G23: -0.07680661449 | H23: -0.03917047011
B24: Fremdkapitalzinsen | C24: 4257.347549 | D24: 3857.82383 | E24: 3485.156287
D25: -399.5237187 | E25: -372.6675436 | G25: -772.1912623 | H25: -386.0956312
D26: -0.09384334122 | E26: -0.09660045662 | G26: -0.1813784882 | H26: -0.09522294913
B27: Wartung und Instand- | C27: 3772.209365 | D27: 3676.570194 | E27: 3738.953446
B28: haltung | D28: -95.63917088 | E28: 62.38325192 | G28: -33.25591895 | H28: -16.62795948
D29: -0.02535362214 | E29: 0.01696778482 | G29: -0.008816032127 | H29: -0.004417774429
B30: Nutzung externer | C30: 1072.615889 | D30: 1059.622633 | E30: 1072.070738
B31: Infrastruktur | D31: -12.99325619 | E31: 12.44810534 | G31: -0.5451508571 | H31: -0.2725754286
D32: -0.01211361525 | E32: 0.01174767785 | G32: -0.0005082442491 | H32: -0.0002541544218
A33: Hinweis: Angaben in Tausend Euro sowie Veränderung zum Vorjahr in Tausend Euro und in Prozent. Die Berechnung der Veränderungsraten erfolgte auf Basis der ungerundeten Angaben in Kapitel 8.
A34: Quelle: Zi-Praxis-Panel 2013.

Sheet T3
A1: Tabelle 3: Einnahmen nach Art in Tausend Euro je Inhaber in den Jahren 2009 bis 2011
A2: Gesamt | C2: 2009 | D2: 2010 | E2: 2011 | G2: 2011 zu 2009 | H2: durchschn. je Jahr
A3: Gesamteinnahmen | C3: 270324.8719 | D3: 276103.0111 | E3: 281483.8127
D4: 5778.139199 | E4: 5380.801574 | G4: 11158.94077 | H4: 5579.470387
D5: 0.02137479677 | E5: 0.01948838426 | G5: 0.04127974128 | H5: 0.0204311546
A6: davon aus … | B6: GKV | C6: 197945.1343 | D6: 201664.3001 | E6: 205738.7241
B7: - Anteil an Gesamteinnahmen | C7: 0.7322490636 | D7: 0.7303951496 | E7: 0.7309078349
B8: - Veränderung zum Vorjahr in Tsd. € | D8: 3719.165766 | E8: 4074.423989 | G8: 7793.589754 | H8: 3896.794877
B9: - Veränderung zum Vorjahr in % | D9: 0.01878887187 | E9: 0.02020399241 | G9: 0.03937247451 | H9: 0.01949618661
B10: Privat | C10: 56824.92979 | D10: 58032.59184 | E10: 58956.61284
B11: - Anteil an Gesamteinnahmen | C11: 0.2102097724 | D11: 0.210184567 | E11: 0.20944939
B12: - Veränderung zum Vorjahr in Tsd. € | D12: 1207.662056 | E12: 924.0210002 | G12: 2131.683056 | H12: 1065.841528
B13: - Veränderung zum Vorjahr in % | D13: 0.02125232816 | E13: 0.01592244928 | G13: 0.03751316656 | H13: 0.01858390256
B14: BG/Unfall | C14: 2438.127585 | D14: 2672.916617 | E14: 2671.247166
B15: - Anteil an Gesamteinnahmen | C15: 0.009019249942 | D15: 0.009680867322 | E15: 0.009489878445
B16: - Veränderung zum Vorjahr in Tsd. € | D16: 234.7890323 | E16: -1.669451009 | G16: 233.1195813 | H16: 116.5597907
B17: - Veränderung zum Vorjahr in % | D17: 0.09629891142 | E17: -0.0006245802799 | G17: 0.09561418473 | H17: 0.0467159045
B18: Sonstige | C18: 13116.44934 | D18: 13732.78181 | E18: 14117.15499
B19: - Anteil an Gesamteinnahmen | C19: 0.04852106005 | D19: 0.04973789224 | E19: 0.05015263526
B20: - Veränderung zum Vorjahr in Tsd. € | D20: 616.3324713 | E20: 384.3731738 | G20: 1000.705645 | H20: 500.3528226
B21: - Veränderung zum Vorjahr in % | D21: 0.04698927699 | E21: 0.02798946194 | G21: 0.07629394351 | H21: 0.03744587498
A22: Hinweis: Angaben in Tausend Euro sowie Veränderung zum Vorjahr in Tausend Euro und in Prozent. Die Berechnung der Veränderungsraten erfolgte auf Basis der ungerundeten Angaben in Kapitel 8.
A23: Quelle: Zi-Praxis-Panel 2013.

Sheet T4
A1: Tabelle 4: Einnahmen, Aufwendungen und Jahresüberschuss in Tausend Euro je Inhaber in Einzel- und Gemeinschaftspraxen in den Jahren 2009 bis 2011
A2: Einzelpraxen | C2: 2009 | D2: 2010 | E2: 2011 | G2: 2011 zu 2009 | H2: durchschn. je Jahr
A3: Gesamteinnahmen | C3: 248879.2171 | D3: 254306.6421 | E3: 259537.3126
D4: 5427.424977 | E4: 5230.670522 | G4: 10658.0955 | H4: 5329.047749
D5: 0.02180746564 | E5: 0.02056835983 | G5: 0.04282436927 | H5: 0.0211877248
A6: darunter aus … | B6: GKV-Praxis | C6: 185477.6441 | D6: 189461.7007 | E6: 193852.0256
D7: 3984.056586 | E7: 4390.324924 | G7: 8374.38151 | H7: 4187.190755
D8: 0.02147998269 | E8: 0.0231726249 | G8: 0.04515035518 | H8: 0.02232595349
A9: Gesamtaufwendungen | C9: 117590.4538 | D9: 120529.915 | E9: 124196.3891
D10: 2939.461122 | E10: 3666.474155 | G10: 6605.935277 | H10: 3302.967638
D11: 0.02499744687 | E11: 0.03041961953 | G11: 0.05617747922 | H11: 0.02770495728
A12: Jahresüberschuss | C12: 131288.7633 | D12: 133776.7272 | E12: 135340.9235
D13: 2487.963855 | E13: 1564.196367 | G13: 4052.160222 | H13: 2026.080111
D14: 0.01895031831 | E14: 0.01169258959 | G14: 0.03086448619 | H14: 0.01531496896
A15: Gemeinschaftspraxen | C15: 2009 | D15: 2010 | E15: 2011 | G15: 2011 zu 2009 | H15: durchschn. je Jahr
A16: Gesamteinnahmen | C16: 306858.6673 | D16: 312750.1606 | E16: 318006.8774
D17: 5891.493288 | E17: 5256.716786 | G17: 11148.21007 | H17: 5574.105037
D18: 0.01919937064 | E18: 0.01680803865 | G18: 0.03633011305 | H18: 0.01800300248
A19: darunter aus … | B19: GKV-Praxis | C19: 219184.1565 | D19: 222181.0423 | E19: 225520.4048
D20: 2996.885845 | E20: 3339.362482 | G20: 6336.248327 | H20: 3168.124164
D21: 0.01367291274 | E21: 0.01502991636 | G21: 0.02890833183 | H21: 0.01435118762
A22: Gesamtaufwendungen | C22: 150647.8986 | D22: 153856.8946 | E22: 156576.7936
D23: 3208.996021 | E23: 2719.898953 | G23: 5928.894974 | H23: 2964.447487
D24: 0.02130129959 | E24: 0.017678109 | G24: 0.03935597529 | H24: 0.01948809473
A25: Jahresüberschuss | C25: 156210.7687 | D25: 158893.266 | E25: 161430.0838
D26: 2682.497267 | E26: 2536.817833 | G26: 5219.3151 | H26: 2609.65755
D27: 0.01717229413 | E27: 0.01596554654 | G27: 0.03341200573 | H27: 0.01656874127
A28: Hinweis: Angaben in Tausend Euro sowie Veränderung zum Vorjahr in Tausend Euro und in Prozent. Die Berechnung der Veränderungsraten erfolgte auf Basis der ungerundeten Angaben in Kapitel 8.
A29: Quelle: Zi-Praxis-Panel 2013.

Sheet T5
A1: Tabelle 5: Beispielrechnung – Jahresüberschuss und Nettoeinkommen je Inhaber im Jahr 2011 (Mittelwert und Median)
B2: Mittelwert | C2: Median
A3: Jahresüberschuss | B3: 145133 | C3: 127603
A4: - Ärztliche Altersvorsorge* | B4: 19297 | C4: 19297
A5: - Kranken- und Pflegeversicherung** | B5: 8411 | C5: 8411
A6: - Einkommensteuer*** | B6: 45949 | C6: 38182
A7: Verfügbares Nettoeinkommen im Jahr | B7: =B3-B4-B5-B6 -> 71476 | C7: =C3-C4-C5-C6 -> 61713
A8: Monatlich verfügbares Nettoeinkommen | B8: =B7/12 -> 5956.333333 | C8: =C7/12 -> 5142.75
A9: Nettostundensatz**** | B9: =B7/2346 -> 30.46717818 | C9: =C7/2346 -> 26.3056266
A10: * Allgemeine Versorgungsabgabe eines voll zahlenden Mitglieds; 19.297 Euro/Jahr, Ärzteversorgung Aktuell 2013; Ärzteversorgung Niedersachsen, S. 9.
A11: ** Beiträge zu Kranken- und Pflegeversicherung als freiwillig gesetzlich Versicherter (kinderlos).
A12: *** Steuerklasse 1; abzugsfähige Vorsorgeaufwendungen 70% der Versorgungswerkbei- träge plus Kranken- und Pflegeversicherungsbeiträge (inkl. Soli.).
A13: **** Bei 46 Arbeitswochen pro Jahr und einer Wochenarbeitszeit von 51 Stunden (siehe Tabelle 50).
A14: Quelle: Eigene Berechnung basierend auf Zi-Praxis-Panel 2013.

Sheet T6
A1: Tabelle 6: Einnahmen, Aufwendungen und Jahresüberschuss in Tausend Euro je Inhaber in Einzel- und Gemeinschaftspraxen nach Versorgungsbereich für das Jahr 2011
C2: Hausärztliche Versorgung | E2: Fachärztliche Versorgung | G2: Psychotherapeutische und psychosomatische Versorgung
C4: EP | D4: GP | E4: EP | F4: GP | G4: EP | H4: GP
A5: Gesamteinnahmen | C5: 286115.1615 | D5: 238045.1595 | E5: 347866.9977 | F5: 414146.6512 | G5: 100191.7824 | H5: 71228.04307
A6: darunter aus GKV | C6: 233974.4358 | D6: 194436.4896 | E6: 233060.1802 | F6: 260961.5278 | G6: 79066.85709 | H6: 55072.37059
A7: Gesamtaufwendungen | C7: 136201.4931 | D7: 103271.5467 | E7: 180708.849 | F7: 219815.3214 | G7: 29790.78266 | H7: 24453.94886
A8: davon für … | B8: Personal | C8: 69750.59953 | D8: 59860.86658 | E8: 80154.07084 | F8: 101326.4455 | G8: 4084.030253 | H8: 4671.392028
B9: Material und Labor | C9: 5319.839572 | D9: 4140.271985 | E9: 11642.21584 | F9: 20195.31287 | G9: 240.2829443 | H9: 83.65819014
B10: Miete für Praxisräume | C10: 15975.30716 | D10: 10598.37952 | E10: 23741.33018 | F10: 23069.44214 | G10: 7216.330418 | H10: 7415.976544
B11: Abschreibungen | C11: 8412.241942 | D11: 5167.723844 | E11: 14156.11058 | F11: 19638.95756 | G11: 2624.032183 | H11: 1939.801243
B12: Sonstige | C12: 36743.50487 | D12: 23504.30482 | E12: 51015.12157 | F12: 55585.16335 | G12: 15626.10687 | H12: 10343.12086
A13: Jahresüberschuss | C13: 149913.6684 | D13: 134773.6128 | E13: 167158.1487 | F13: 194331.3298 | G13: 70400.99973 | H13: 46774.09421
A14: Praxen | C14: 605 | D14: 214 | E14: 2021 | F14: 543 | G14: 705 | H14: 12
A15: Hinweis: EP=Einzelpraxen; GP=Gemeinschaftspraxen; zur Definition der Versorgungsbereiche siehe Tabelle 33, Seite 111; ohne übergreifend tätige Praxen.
A16: Quelle: Zi-Praxis-Panel 2013.

Sheet T7
A1: Tabelle 7: Aufwendungen nach Art in Tausend Euro je Inhaber in Einzel- und Gemeinschaftspraxen in den Jahren 2009 bis 2011
C2: Einzelpraxen | G2: Gemeinschaftspraxen
C3: 2009 | D3: 2010 | E3: 2011 | G3: 2009 | H3: 2010 | I3: 2011
A4: Gesamtaufwendungen | C4: 117590.4538 | D4: 120529.915 | E4: 124196.3891 | F4: 0 | G4: 150647.8986 | H4: 153856.8946 | I4: 156576.7936
D5: 2939.461122 | E5: 3666.474155 | F5: -124196.3891 | H5: 3208.996021 | I5: 2719.898953
D6: 0.02499744687 | E6: 0.03041961953 | F6: -1 | H6: 0.02130129959 | I6: 0.017678109
A7: darunter für … | B7: Personal | C7: 51805.60523 | D7: 53830.05084 | E7: 56500.31529 | F7: 0 | G7: 73196.49148 | H7: 75869.44411 | I7: 78490.7175
D8: 2024.445611 | E8: 2670.264451 | F8: -56500.31529 | H8: 2672.952626 | I8: 2621.273394
D9: 0.03907773304 | E9: 0.04960546032 | F9: -1 | H9: 0.03651749656 | I9: 0.03454979043
B10: Material und Labor | C10: 5833.365033 | D10: 5901.880515 | E10: 6177.982367 | F10: 0 | G10: 10569.52058 | H10: 10779.41754 | I10: 11544.29009
D11: 68.51548214 | E11: 276.1018519 | F11: -6177.982367 | H11: 209.8969625 | I11: 764.872547
D12: 0.0117454474 | E12: 0.04678201315 | F12: -1 | H12: 0.01985870229 | I12: 0.07095676034
B13: Miete einschl. Nk. | C13: 15761.82604 | D13: 15893.46823 | E13: 16387.70109 | F13: 0 | G13: 16039.8355 | H13: 16396.96908 | I13: 16513.9845
B14: für Praxisräume | D14: 131.6421906 | E14: 494.2328558 | F14: -16387.70109 | H14: 357.1335829 | I14: 117.0154137
D15: 0.008351963168 | E15: 0.03109660198 | F15: -1 | H15: 0.02226541431 | I15: 0.007136405093
B16: Versicherungen, Beiträge | C16: 6238.953534 | D16: 6521.747575 | E16: 6727.672797 | F16: 0 | G16: 6666.71446 | H16: 6812.330058 | I16: 7043.47491
B17: und Gebühren | D17: 282.7940414 | E17: 205.9252216 | F17: -6727.672797 | H17: 145.6155979 | I17: 231.1448516
D18: 0.04532715941 | E18: 0.03157515976 | F18: -1 | H18: 0.0218421831 | I18: 0.03393036592
B19: Abschreibungen | C19: 9126.358663 | D19: 9264.03092 | E19: 8891.772367 | F19: 0 | G19: 11809.09524 | H19: 12045.57578 | I19: 11792.58732
D20: 137.6722574 | E20: -372.2585528 | F20: -8891.772367 | H20: 236.4805432 | I20: -252.9884585
D21: 0.01508512458 | E21: -0.04018321571 | F21: -1 | H21: 0.02002528885 | I21: -0.02100260404
B22: Leasing und Mieten von | C22: 1466.922377 | D22: 1498.047476 | E22: 1765.342296 | F22: 0 | G22: 3716.402007 | H22: 3555.709554 | I22: 2716.59003
B23: Geräten | D23: 31.12509938 | E23: 267.2948202 | F23: -1765.342296 | H23: -160.692453 | I23: -839.1195237
D24: 0.02121795937 | E24: 0.1784288045 | F24: -1 | H24: -0.04323871657 | I24: -0.2359921448
B25: Fremdkapitalzinsen | C25: 4495.773398 | D25: 4064.794005 | E25: 3836.438361 | F25: 0 | G25: 3851.176636 | H25: 3509.836193 | I25: 2900.557471
D26: -430.9793924 | E26: -228.3556446 | F26: -3836.438361 | H26: -341.3404429 | I26: -609.278722
D27: -0.09586323737 | E27: -0.0561788972 | F27: -1 | H27: -0.08863276739 | I27: -0.1735917828
B28: Wartung und Instand- | C28: 2616.727313 | D28: 2682.729702 | E28: 2698.707879 | F28: 0 | G28: 5740.633525 | H28: 5347.555907 | I28: 5470.115871
B29: haltung | D29: 66.00238867 | E29: 15.97817753 | F29: -2698.707879 | H29: -393.0776179 | I29: 122.5599637
D30: 0.0252232582 | E30: 0.005955940146 | F30: -1 | H30: -0.06847286387 | I30: 0.02291887468
B31: Nutzung externer | C31: 784.1120973 | D31: 805.0208768 | E31: 845.1336771 | F31: 0 | G31: 1564.0972 | H31: 1487.695246 | I31: 1449.736287
B32: Infrastruktur | D32: 20.90877947 | E32: 40.11280033 | F32: -845.1336771 | H32: -76.40195393 | I32: -37.95895922
D33: 0.02666554889 | E33: 0.04982827338 | F33: -1 | H33: -0.04884731839 | I33: -0.02551527896
A34: Hinweis: Angaben in Tausend Euro sowie Veränderung zum Vorjahr in Tausend Euro und in Prozent. Die Berechnung der Veränderungsraten erfolgte auf Basis der ungerundeten Angaben in Kapitel 8.
A35: Quelle: Zi-Praxis-Panel 2013.

Sheet T8
A1: Tabelle 8: Jahresüberschuss je Inhaber, je Inhaberarbeitsstunde und durchschnittliche Jahresarbeitszeit im Jahr 2011
A2: Fachbereich | B2: Praxen | C2: Jahresüberschuss | F2: Stunden je Inhaber pro Jahr | H2: relativer Standardfehler je Inhaber | I2: relativer Standardfehler je Std. in Euro | J2: relativer Standardfehler Stunden pro Jahr
C3: je Inhaber | D3: je Stunde | E3: Vergleichswert
C4: in Tsd. Euro | D4: in Euro | E4: in Tsd. Euro
A5: Gesamt | B5: 4063 | C5: 143882.922 | D5: 61.97814044 | E5: 143882.922 | F5: 2321.510793 | H5: 0.009925255722 | I5: 0.008958495142 | J5: 0.003806170516
A6: Hausärztlicher Bereich | B6: 813 | C6: 142124.7603 | D6: 58.94298145 | E6: 136836.7676 | F6: 2411.224488 | H6: 0.01562046717 | I6: 0.01459101574 | J6: 0.007638200839
A7: Fachärztlicher Bereich I | B7: 1249 | C7: 157231.6284 | D7: 68.94028867 | E7: 160045.6242 | F7: 2280.692922 | H7: 0.01718936789 | I7: 0.01635175415 | J7: 0.006520435182
A8: Fachärztlicher Bereich II | B8: 640 | C8: 198836.2789 | D8: 79.02192446 | E8: 183450.2505 | F8: 2516.216611 | H8: 0.02582177004 | I8: 0.02530638 | J8: 0.008158895823
A9: Internistischer Bereich | B9: 196 | C9: 245844.2344 | D9: 94.74018427 | E9: 219940.3603 | F9: 2594.930929 | H9: 0.03680929166 | I9: 0.03836385252 | J9: 0.01359034132
A10: Neurologisch-psychiatrischer Bereich | B10: 438 | C10: 153609.8746 | D10: 64.56230656 | E10: 149882.0915 | F10: 2379.250105 | H10: 0.0217245637 | I10: 0.02029971287 | J10: 0.009295772211
A11: Übergreifend tätige Praxen | B11: 50 | C11: 176486.5351 | D11: 71.31453138 | E11: 165557.4543 | F11: 2474.7626 | H11: 0.1074438528 | I11: 0.09110953667 | J11: 0.02752551514
A12: Psychotherapeutischer und | B12: 677 | C12: 69553.80723 | D12: 36.22906121 | E12: 84106.15662 | F12: 1919.834655 | H12: 0.01538503517 | I12: 0.01317711125 | J12: 0.01150785091
A13: psychosomatischer Bereich
A14: Hinweis: Der Vergleichswert ist das Produkt aus dem durchschnittlichen Überschuss je Stunde eines Fachbereichs mit der durchschnittlichen Jahresarbeitsstundenzahl je Inhaber Gesamt.
A15: Quelle: Zi-Praxis-Panel 2013.

Sheet T9
A1: Tabelle 9: Wirtschaftslage in Praxen mit operativem und konservativem Schwerpunkt im Jahr 2011
A2: Fachgebiet und Art der Tätigkeit | B2: Praxen | C2: Einnahmen | D2: Aufwendungen | E2: Jahresüberschuss | G2: relativer Standardfehler für Einnahmen | H2: relativer Standardfehler für Aufwendung | I2: relativer Standradfehler für Jahresüberschuss
C3: in Tsd. Euro je Inhaber
A4: Augenheilkunde | B4: 220 | C4: 393.4102919 | D4: 200.5668526 | E4: 192.8434393
A5: - konservativ | B5: 82 | C5: 226.0349587 | D5: 112.2718378 | E5: 113.7631209 | G5: 0.05378307471 | H5: 0.06347479663 | I5: 0.04988935587
A6: - kleiner Operateur | B6: 91 | C6: 353.203216 | D6: 164.5112897 | E6: 188.6919264 | G6: 0.0358227609 | H6: 0.04591390614 | I6: 0.04167045323
A7: - mittlerer Operateur | B7: 15 | C7: 742.6655157 | D7: 375.5123506 | E7: 367.1531652 | G7: 0.05253916865 | H7: 0.05362276511 | I7: 0.06247964944
A8: - großer Operateur | B8: 31 | C8: 514.3946593 | D8: 301.557928 | E8: 212.8367313 | G8: 0.1879544956 | H8: 0.2126940609 | I8: 0.1742593253
A9: Dermatologie | B9: 198 | C9: 338.6327511 | D9: 180.2526092 | E9: 158.3801419 | G9: 0.1336851556 | H9: 0.161566676 | I9: 0.1002600831
A10: - konservativ | B10: 20 | C10: 195.0062143 | D10: 117.8091577 | E10: 77.19705659 | G10: 0.04050748586 | H10: 0.05129881459 | I10: 0.03960039467
A11: - kleiner Operateur | B11: 126 | C11: 307.2394515 | D11: 161.3698395 | E11: 145.869612 | G11: 0.08380673577 | H11: 0.09659507045 | I11: 0.1232877601
A12: - mittlerer Operateur | B12: 52 | C12: 442.3397468 | D12: 235.8319914 | E12: 206.5077553 | G12: 0.04892909106 | H12: 0.06408217794 | I12: 0.04438420374
A13: Gynäkologie | B13: 432 | C13: 292.842249 | D13: 147.751422 | E13: 145.090827 | G13: 0.06733237377 | H13: 0.09002236142 | I13: 0.06777511986
A14: - konservativ | B14: 326 | C14: 264.1966851 | D14: 133.1804589 | E14: 131.0162262 | G14: 0.02720180141 | H14: 0.0355927461 | I14: 0.026949314
A15: - kleiner Operateur | B15: 68 | C15: 321.6370459 | D15: 155.1600297 | E15: 166.4770162 | G15: 0.02552326666 | H15: 0.03046506947 | I15: 0.02987338694
A16: - mittlerer Operateur | B16: 16 | C16: 403.6462035 | D16: 207.587741 | E16: 196.0584625 | G16: 0.05266734298 | H16: 0.05787619423 | I16: 0.06403313058
A17: - großer Operateur | B17: 78 | C17: 435.4506603 | D17: 237.2067953 | E17: 198.243865 | G17: 0.2486359475 | H17: 0.3767868253 | I17: 0.1337683506
A18: HNO-Heilkunde | B18: 297 | C18: 290.5259157 | D18: 143.3252408 | E18: 147.2006749 | G18: 0.1152982488 | H18: 0.1554965144 | I18: 0.1102355861
A19: - konservativ | B19: 140 | C19: 248.6574237 | D19: 130.8044417 | E19: 117.8529821 | G19: 0.02697239035 | H19: 0.02715843212 | I19: 0.03561867632
A20: - kleiner Operateur | B20: 37 | C20: 276.0299172 | D20: 140.62539 | E20: 135.4045272 | G20: 0.03506292014 | H20: 0.03838551705 | I20: 0.04100822701
A21: - mittlerer Operateur | B21: 42 | C21: 291.3103821 | D21: 148.1713246 | E21: 143.1390575 | G21: 0.05886767091 | H21: 0.0664772153 | I21: 0.07557539844
A22: - großer Operateur | B22: 78 | C22: 345.9262996 | D22: 157.779279 | E22: 188.1470205 | G22: 0.07081682349 | H22: 0.05718514329 | I22: 0.107175853
A23: Orthopädie | B23: 266 | C23: 381.4334179 | D23: 200.0783838 | E23: 181.3550341 | G23: 0.05234118704 | H23: 0.05702209009 | I23: 0.0669530004
A24: - konservativ | B24: 177 | C24: 351.1684882 | D24: 185.8403846 | E24: 165.3281036 | G24: 0.02579428933 | H24: 0.03056875605 | I24: 0.0329007228
A25: - kleiner Operateur | B25: 25 | C25: 371.9228896 | D25: 197.7880159 | E25: 174.1348737 | G25: 0.03481371336 | H25: 0.03608999649 | I25: 0.04617207311
A26: - mittlerer Operateur | B26: 25 | C26: 392.3142807 | D26: 212.1622055 | E26: 180.1520752 | G26: 0.06653987006 | H26: 0.06779545955 | I26: 0.1043886663
A27: - großer Operateur | B27: 39 | C27: 451.9300036 | D27: 229.6195207 | E27: 222.310483 | G27: 0.06283921341 | H27: 0.08331334438 | I27: 0.06643882843
A28: Urologie | B28: 142 | C28: 354.1921902 | D28: 177.6985488 | E28: 176.4936414 | G28: 0.05688836057 | H28: 0.08963455541 | I28: 0.06597252773
A29: - konservativ | B29: 45 | C29: 287.2843198 | D29: 153.9743035 | E29: 133.3100164 | G29: 0.03466321463 | H29: 0.03419226413 | I29: 0.04791873001
A30: - kleiner Operateur | B30: 42 | C30: 334.0978879 | D30: 166.9210006 | E30: 167.1768873 | G30: 0.04825694371 | H30: 0.04768603668 | I30: 0.07466940326
A31: - mittlerer Operateur | B31: 42 | C31: 399.3036253 | D31: 187.8806037 | E31: 211.4230216 | G31: 0.05347974008 | H31: 0.07426766243 | I31: 0.0738475895
A32: - großer Operateur | B32: 12 | C32: 413.8722423 | D32: 218.2819284 | E32: 195.5903139 | G32: 0.07088457474 | H32: 0.06290537163 | I32: 0.09275841213
A33: Hinweis: Für einige Teilnehmer waren keine Abrechnungsdaten verfügbar. Diese Praxen konnten nicht eindeutig den Gruppen der operativ oder konservativ tätigen Praxen zugeordnet werden. | G33: 0.08719850226 | H33: 0.08852404312 | I33: 0.1214268908
A34: Quelle: Zi-Praxis-Panel 2013.

Sheet T10
A1: Tabelle 10: Einnahmen, Aufwendungen und Jahresüberschuss je Inhaberstunde und Jahresarbeitszeit der Inhaber in Praxen mit operativem und konservativem Schwerpunkt im Jahr 2011
A2: Fachgebiet und Art der Tätigkeit | B2: Praxen | C2: Einnahmen | D2: Aufwen- dungen | E2: Jahresüber-schuss | F2: Jahresarbeitszeit in Stunden | I2: relativer Standardfehler Einnahmen | J2: relativer Standardfehler Aufwendung | K2: relativer Standardfehler JÜ | L2: relativer Std.fehler Jahresarbeitszeit je Praxis | M2: relativer Std.fehler Jahresarbeitszeit je Inhaber
C4: je Inhaberstunde in Euro | F4: je Praxis | G4: je Inhaber
A5: Augenheilkunde | B5: 204 | C5: 162.3988696 | D5: 81.12570225 | E5: 81.27316737 | F5: 2624.763998 | G5: 2184.360419 | I5: 0.04703606264 | J5: 0.05369944516 | K5: 0.04652859466 | L5: 0.02579696103 | M5: 0.01481093197
A6: - konservativ | B6: 75 | C6: 111.1600545 | D6: 55.14904264 | E6: 56.01101187 | F6: 2105.949138 | G6: 2025.890993 | I6: 0.03697411428 | J6: 0.04855611249 | K6: 0.04336649509 | L6: 0.02762712595 | M6: 0.02615542591
A7: - kleiner Operateur | B7: 87 | C7: 162.0003026 | D7: 75.9088608 | E7: 86.09144183 | F7: 2746.287835 | G7: 2227.491702 | I7: 0.05217369613 | J7: 0.05339989956 | K7: 0.062317165 | L7: 0.03827489525 | M7: 0.02221745399
A8: - mittlerer Operateur | B8: 14 | C8: 274.0795388 | D8: 145.0201532 | E8: 129.0593856 | F8: 2839.57881 | G8: 2228.775686 | I8: 0.2235831921 | J8: 0.2525374562 | K8: 0.2059473763 | L8: 0.09758700786 | M8: 0.04151199443
A9: - großer Operateur | B9: 27 | C9: 177.6964059 | D9: 96.78930834 | E9: 80.90709754 | F9: 3271.738208 | G9: 2300.12649 | I9: 0.1140096311 | J9: 0.1274346448 | K9: 0.1052986915 | L9: 0.06712351734 | M9: 0.04052085712
A10: Dermatologie | B10: 179 | C10: 146.4301321 | D10: 77.39609891 | E10: 69.03403317 | F10: 2821.420926 | G10: 2290.733946 | I10: 0.03888119944 | J10: 0.04955448477 | K10: 0.04023344816 | L10: 0.03469789096 | M10: 0.0151647259
A11: - konservativ | B11: 19 | C11: 79.52372728 | D11: 47.22286856 | E11: 32.30085872 | F11: 2524.921185 | G11: 2524.921185 | I11: 0.1084125435 | J11: 0.1354430374 | K11: 0.1216366288 | L11: 0.04850096912 | M11: 0.04850096912
A12: - kleiner Operateur | B12: 113 | C12: 135.6613264 | D12: 70.33982877 | E12: 65.32149759 | F12: 2606.082214 | G12: 2193.471385 | I12: 0.05026195526 | J12: 0.06347779925 | K12: 0.04962965861 | L12: 0.03537702013 | M12: 0.01763678818
A13: - mittlerer Operateur | B13: 47 | C13: 186.9992277 | D13: 99.61404997 | E13: 87.38517774 | F13: 3461.154426 | G13: 2409.877065 | I13: 0.0552258482 | J13: 0.08152109913 | K13: 0.06037172255 | L13: 0.08040266389 | M13: 0.03003421576
A14: Gynäkologie | B14: 398 | C14: 131.8232238 | D14: 65.81135761 | E14: 66.01186615 | F14: 2699.169718 | G14: 2233.333043 | I14: 0.02534362885 | J14: 0.03304850001 | K14: 0.02683918708 | L14: 0.02123064959 | M14: 0.0121045632
A15: - konservativ | B15: 302 | C15: 122.9802224 | D15: 61.71728917 | E15: 61.26293319 | F15: 2492.748017 | G15: 2185.017731 | I15: 0.0235361188 | J15: 0.02855486343 | K15: 0.02905301972 | L15: 0.01968839941 | M15: 0.01327364373
A16: - kleiner Operateur | B16: 62 | C16: 149.3437927 | D16: 70.80865978 | E16: 78.5351329 | F16: 2920.702857 | G16: 2187.675516 | I16: 0.0586653387 | J16: 0.06374085151 | K16: 0.07112159526 | L16: 0.05190109951 | M16: 0.02410822988
A17: - mittlerer Operateur | B17: 15 | C17: 150.2825174 | D17: 77.29918087 | E17: 72.98333652 | F17: 4327.27153 | G17: 2693.244207 | I17: 0.253344199 | J17: 0.3787167175 | K17: 0.1470020175 | L17: 0.145585479 | M17: 0.0703949035
A18: - großer Operateur | B18: 73 | C18: 160.8105457 | D18: 84.05800557 | E18: 76.7525401 | F18: 3858.141097 | G18: 2525.567594 | I18: 0.1120014283 | J18: 0.1530490456 | K18: 0.1182306209 | L18: 0.09031622105 | M18: 0.07052089659
A19: HNO-Heilkunde | B19: 278 | C19: 120.2281624 | D19: 58.70822184 | E19: 61.51994051 | F19: 3052.290124 | G19: 2363.505902 | I19: 0.02525508442 | J19: 0.02421620443 | K19: 0.03513458793 | L19: 0.03360665809 | M19: 0.0138282799
A20: - konservativ | B20: 132 | C20: 104.5903255 | D20: 54.12504636 | E20: 50.46527911 | F20: 2459.152301 | G20: 2175.606896 | I20: 0.03148602463 | J20: 0.03361935406 | K20: 0.0414243441 | L20: 0.03249885892 | M20: 0.02053275255
A21: - kleiner Operateur | B21: 35 | C21: 108.5476642 | D21: 53.04533315 | E21: 55.50233107 | F21: 3023.353602 | G21: 2496.162552 | I21: 0.06374436237 | J21: 0.07320195045 | K21: 0.07404570478 | L21: 0.07257317378 | M21: 0.03733931569
A22: - mittlerer Operateur | B22: 38 | C22: 123.3141618 | D22: 61.63758653 | E22: 61.6765753 | F22: 2878.341765 | G22: 2450.09816 | I22: 0.07687525639 | J22: 0.0530930339 | K22: 0.1171791209 | L22: 0.05668426391 | M22: 0.03422131898
A23: - großer Operateur | B23: 73 | C23: 138.6605235 | D23: 64.14919354 | E23: 74.51132998 | F23: 4158.413825 | G23: 2509.960175 | I23: 0.04732452561 | J23: 0.04834265759 | K23: 0.0658637144 | L23: 0.06999414721 | M23: 0.02474078203
A24: Orthopädie | B24: 250 | C24: 152.7842225 | D24: 81.66304325 | E24: 71.1211792 | F24: 3214.360252 | G24: 2464.681992 | I24: 0.0275139637 | J24: 0.03199595535 | K24: 0.03543211924 | L24: 0.02886184197 | M24: 0.012997431
A25: - konservativ | B25: 171 | C25: 138.4084065 | D25: 73.59734525 | E25: 64.81106123 | F25: 2911.832147 | G25: 2445.087698 | I25: 0.03261819869 | J25: 0.03298760089 | K25: 0.04665655667 | L25: 0.02614542304 | M25: 0.01637444486
A26: - kleiner Operateur | B26: 24 | C26: 138.2422115 | D26: 73.72202459 | E26: 64.52018688 | F26: 3032.498894 | G26: 2689.482347 | I26: 0.07058231051 | J26: 0.07183726338 | K26: 0.1085951384 | L26: 0.06226086059 | M26: 0.03751629584
A27: - mittlerer Operateur | B27: 23 | C27: 156.1167355 | D27: 84.25977415 | E27: 71.85696138 | F27: 3680.363548 | G27: 2523.041081 | I27: 0.06611934275 | J27: 0.0845714639 | K27: 0.07443558123 | L27: 0.07608096381 | M27: 0.03951759994
A28: - großer Operateur | B28: 32 | C28: 204.1433517 | D28: 109.9485338 | E28: 94.19481789 | F28: 4525.662015 | G28: 2401.219208 | I28: 0.06959049869 | J28: 0.1000407807 | K28: 0.07993283121 | L28: 0.1037319845 | M28: 0.03369654413
A29: Urologie | B29: 130 | C29: 143.7312607 | D29: 71.55937238 | E29: 72.17188836 | F29: 3313.416705 | G29: 2544.082557 | I29: 0.0356041613 | J29: 0.03737522872 | K29: 0.04819141131 | L29: 0.04537646829 | M29: 0.01879167803
A30: - konservativ | B30: 43 | C30: 120.6116645 | D30: 63.25137496 | E30: 57.36028951 | F30: 2609.420123 | G30: 2397.340047 | I30: 0.05396033961 | J30: 0.05190241028 | K30: 0.0769059546 | L30: 0.04786660915 | M30: 0.03623996063
A31: - kleiner Operateur | B31: 37 | C31: 138.8963196 | D31: 69.07913495 | E31: 69.81718466 | F31: 2920.297961 | G31: 2575.818953 | I31: 0.0622434545 | J31: 0.09126479099 | K31: 0.07996994285 | L31: 0.05344865241 | M31: 0.03114289692
A32: - mittlerer Operateur | B32: 39 | C32: 156.3694996 | D32: 73.24915036 | E32: 83.12034928 | F32: 4132.560039 | G32: 2638.480516 | I32: 0.0660202329 | J32: 0.06129614363 | K32: 0.08760631972 | L32: 0.08899616977 | M32: 0.03399530508
A33: - großer Operateur | B33: 10 | C33: 174.9098825 | D33: 92.47992929 | E33: 82.42995316 | F33: 4384.874166 | G33: 2480.016876 | I33: 0.1212903795 | J33: 0.1134477924 | K33: 0.168179413 | L33: 0.1626627255 | M33: 0.06608145725
A34: Quelle: Zi-Praxis-Panel 2013.

Sheet T11
A1: Tabelle 11: Wochenarbeitsstunden der Inhaber je Inhaber differenziert nach Regionstyp, Fachbereich und Organisationsform im Jahr 2011
A2: Regionstyp, Organisationsform, Fachgebiet | B2: Praxen | C2: Wochen-arbeitszeit in Std. | D2: Praxis- management in Std. | E2: Ärztliche Tätigkeiten in Std. | F2: davon für… | J2: relativer Standardfehler für Wochenarbeitszeit
F3: Arbeit mit Patienten | G3: Arbeit ohne Patienten | H3: Notdienste
A5: Gesamt | B5: 3910 | C5: 50.94038585 | D5: 4.462911786 | E5: 46.47747406 | F5: 36.36051368 | G5: 8.12473522 | H5: 1.992225162 | J5: 0.003681338308
A6: Regionstyp
A7: Stadt | B7: 1421 | C7: 48.71636342 | D7: 4.595060885 | E7: 44.12130253 | F7: 34.76721433 | G7: 8.294536509 | H7: 1.059551689 | J7: 0.006219377233
A8: Land | B8: 840 | C8: 54.08857477 | D8: 4.135652234 | E8: 49.95292253 | F8: 37.92440279 | G8: 8.360103487 | H8: 3.668416253 | J8: 0.007532025031
A9: Umland | B9: 1649 | C9: 51.70659289 | D9: 4.470974814 | E9: 47.23561808 | F9: 37.17374762 | G9: 7.884389808 | H9: 2.177480651 | J9: 0.005521538191
A10: Fachbereich
A11: Hausärztlicher Bereich | B11: 795 | C11: 52.60849271 | D11: 4.207597659 | E11: 48.40089505 | F11: 37.87771683 | G11: 7.645333963 | H11: 2.877844256 | J11: 0.007487764576
A12: Fachärztlicher Bereich I | B12: 1200 | C12: 49.37229325 | D12: 4.544093266 | E12: 44.82819999 | F12: 36.30363243 | G12: 6.494713788 | H12: 2.029853775 | J12: 0.00648643524
A13: Fachärztlicher Bereich II | B13: 619 | C13: 54.70710008 | D13: 4.942093681 | E13: 49.7650064 | F13: 38.46697077 | G13: 9.279608838 | H13: 2.018426789 | J13: 0.008028630807
A14: Internistischer Bereich | B14: 192 | C14: 56.73328965 | D14: 3.972755894 | E14: 52.76053376 | F14: 40.92029944 | G14: 10.53833691 | H14: 1.301897405 | J14: 0.01321171621
A15: Neurologisch-psychiatrischer Bereich | B15: 427 | C15: 52.58253863 | D15: 3.918598763 | E15: 48.66393987 | F15: 38.1123167 | G15: 9.659843589 | H15: 0.8917795812 | J15: 0.009223946935
A16: Psychotherapeutischer und psychosomatischer Bereich | B16: 630 | C16: 43.89866642 | D16: 4.96157709 | E16: 38.93708933 | F16: 29.29562839 | G16: 9.384187547 | H16: 0.2572733895 | J16: 0.01088984393
A17: Übergreifend tätige Praxen | B17: 47 | C17: 54.12603768 | D17: 4.902649784 | E17: 49.22338789 | F17: 39.22576632 | G17: 8.364579234 | H17: 1.63304234 | J17: 0.0290361333
A18: Organisationsform
A19: Einzelpraxis | B19: 3218 | C19: 51.67128926 | D19: 4.530201303 | E19: 47.14108796 | F19: 36.4767188 | G19: 8.534970305 | H19: 2.129398856 | J19: 0.004075801232
A20: Gemeinschaftspraxis | B20: 692 | C20: 49.6012773 | D20: 4.339628783 | E20: 45.26164852 | F20: 36.14761103 | G20: 7.373132075 | H20: 1.740905411 | J20: 0.008579562814
A21: Hinweis: Gewichtete Ergebnisse.
A22: Quelle: Zi-Praxis-Panel 2013.

Sheet T12
A1: Tabelle 12: Investitionen in Tausend Euro je Praxis differenziert nach Fachbereich und für alle Praxen in den Jahren 2009 bis 2012
A2: Fachbereich | C2: Investitionen in Tsd. Euro | M2: relativer Standardfehler Investition 2009 | N2: relativer Standardfehler Investition 2010 | O2: relativer Standardfehler Investition 2011 | P2: relativer Standardfehler Investition 2012
B3: Praxen | C3: Mittelwert | H3: Median
C4: 2009 | D4: 2010 | E4: 2011 | F4: 2012 | H4: 2009 | I4: 2010 | J4: 2011 | K4: 2012
A5: Gesamt | B5: 4182 | C5: 13749.50756 | D5: 13069.27704 | E5: 12261.16701 | F5: 13208.82292 | H5: 2465 | I5: 2660 | J5: 2963 | K5: 1962 | M5: 0.08754774407 | N5: 0.07396314676 | O5: 0.06346435125 | P5: 0.08423465961
C6: (77,8) | D6: (62,5) | E6: (50,3) | F6: (72)
A7: Hausärztlicher Bereich | B7: 822 | C7: 9422.356384 | D7: 9405.294928 | E7: 9436.720396 | F7: 11176.37323 | H7: 2659 | I7: 3156 | J7: 3535 | K7: 2752 | M7: 0.07590467549 | N7: 0.07320839658 | O7: 0.06272431549 | P7: 0.1050790234
C8: (20,5) | D8: (19,7) | E8: (17) | F8: (33,7)
A9: Fachärztlicher Bereich I | B9: 1305 | C9: 18235.37617 | D9: 16636.61643 | E9: 16579.05744 | F9: 12085.35696 | H9: 3991 | I9: 4024 | J9: 4787 | K9: 2876 | M9: 0.07606325662 | N9: 0.07127082606 | O9: 0.07396556344 | P9: 0.05936357276
C10: (50,1) | D10: (42,8) | E10: (44,3) | F10: (25,9)
A11: Fachärztlicher Bereich II | B11: 658 | C11: 51497.58673 | D11: 41875.77555 | E11: 38144.05813 | F11: 50158.94883 | H11: 5721 | I11: 5660 | J11: 6621 | K11: 5086 | M11: 0.1903524935 | N11: 0.1731691303 | O11: 0.1549101573 | P11: 0.1784281151
C12: (251,5) | D12: (186) | E12: (151,6) | F12: (229,6)
A13: Internistischer Bereich | B13: 202 | C13: 19815.24275 | D13: 29629.98999 | E13: 17317.97761 | F13: 23342.47257 | H13: 6551 | I13: 9117 | J13: 7487 | K13: 6688 | M13: 0.1193523594 | N13: 0.2247861177 | O13: 0.1006417826 | P13: 0.1398817338
C14: (33,6) | D14: (94,7) | E14: (24,8) | F14: (46,4)
A15: Neurologisch-psychiatrischer Bereich | B15: 469 | C15: 9675.733146 | D15: 8439.675107 | E15: 8228.382098 | F15: 6413.915302 | H15: 2215 | I15: 2376 | J15: 2503 | K15: 1844 | M15: 0.1188063666 | N15: 0.09548001265 | O15: 0.1043210399 | P15: 0.107172036
C16: (24,9) | D16: (17,5) | E16: (18,6) | F16: (14,9)
A17: Psychotherapeutischer und psychosomatischer Bereich | B17: 673 | C17: 2753.883001 | D17: 2530.604346 | E17: 3441.130465 | F17: 2694.838734 | H17: 930 | I17: 952 | J17: 985 | K17: 0 | M17: 0.1067220173 | N17: 0.07723071841 | O17: 0.1288260429 | P17: 0.1202722832
C18: (7,6) | D18: (5,1) | E18: (11,5) | F18: (8,4)
A19: Übergreifend tätige Praxen | B19: 53 | C19: 20838.54139 | D19: 26945.69293 | E19: 17083.63729 | F19: 20134.12826 | H19: 9339 | I19: 5334 | J19: 4546 | K19: 10798 | M19: 0.1916445965 | N19: 0.3446704299 | O19: 0.3078476689 | P19: 0.2148047224
C20: (29,1) | D20: (67,6) | E20: (38,3) | F20: (31,5)
A21: Hinweis: Standardabweichungen in Klammern. Für die Analysen zur Investitionstätigkeit können Angaben von 4.182 Praxen ausgewertet werden, die in den Jahren 2009 bis 2012 durchgängig Angaben zur Höhe der Investitionen getätigt haben.
A22: Quelle: Zi-Praxis-Panel 2013.

Sheet T13
A1: Tabelle 13: Investitionen in Tausend Euro je Praxis, je Inhaber und je Arzt differenziert nach Fachbereich und Organisationsform in den Jahren 2009 bis 2011
A2: Fachbereich und Organisationsform | B2: Praxen | C2: Investitionen in Tsd. Euro | O2: relativer Standardfehler Investitionen je Praxis 2009 | P2: relativer Standardfehler Investitionen je Praxis 2010 | Q2: relativer Standardfehler Investitionen je Praxis 2011
C3: je Praxis | G3: je Inhaber | K3: je Arzt
C4: 2009 | D4: 2010 | E4: 2011 | G4: 2009 | H4: 2010 | I4: 2011 | K4: 2009 | L4: 2010 | M4: 2011
A5: Gesamt | B5: 4182 | C5: 13749.50756 | D5: 13069.27704 | E5: 12261.16701 | G5: 10823.85236 | H5: 10284.12278 | I5: 9621.293571 | K5: 10770.05604 | L5: 10089.85437 | M5: 9044.45701 | O5: 0.08754774407 | P5: 0.07396314676 | Q5: 0.06346435125
A6: -Einzelpraxis | B6: 3336 | C6: 10052.92848 | D6: 8852.397686 | E6: 9146.806634 | G6: 9634.408795 | H6: 8726.498451 | I6: 9145.366245 | K6: 9859.520474 | L6: 8602.647017 | M6: 8646.62715 | O6: 0.07275157338 | P6: 0.04790797443 | Q6: 0.05208909743
A7: -Gemeinschaftspraxis | B7: 846 | C7: 27328.06363 | D7: 28559.03978 | E7: 23701.07296 | G7: 12739.0501 | H7: 12792.15149 | I7: 10387.61404 | K7: 12214.43145 | L7: 12448.99972 | M7: 9675.531395 | O7: 0.1846837388 | P7: 0.1511644057 | Q7: 0.1368046866
A8: Hausärztlicher Bereich | B8: 822 | C8: 9422.356384 | D8: 9405.294928 | E8: 9436.720396 | G8: 7350.471955 | H8: 7295.380663 | I8: 7296.52191 | K8: 6944.259864 | L8: 6905.833747 | M8: 6878.347044 | O8: 0.07590467549 | P8: 0.07320839658 | Q8: 0.06272431549
A9: -Einzelpraxis | B9: 607 | C9: 9384.144818 | D9: 8404.836777 | E9: 8259.857037 | G9: 9377.132126 | H9: 8403.04669 | I9: 8259.857037 | K9: 8802.183956 | L9: 7958.28902 | M9: 7774.399472 | O9: 0.0941928578 | P9: 0.0914645846 | Q9: 0.06809845759
A10: -Gemeinschaftspraxis | B10: 215 | C10: 9534.633585 | D10: 12344.94524 | E10: 12894.70286 | G10: 4587.380021 | H10: 5785.219706 | I10: 5983.137674 | K10: 4401.902096 | L10: 5465.668429 | M10: 5652.201227 | O10: 0.1161954808 | P10: 0.1199260031 | Q10: 0.1247149071
A11: Fachärztlicher Bereich I | B11: 1305 | C11: 18235.37617 | D11: 16636.61643 | E11: 16579.05744 | G11: 14553.43286 | H11: 12878.81362 | I11: 12778.55312 | K11: 14387.52963 | L11: 12126.35606 | M11: 11893.76145 | O11: 0.07606325662 | P11: 0.07127082606 | Q11: 0.07396556344
A12: -Einzelpraxis | B12: 1038 | C12: 14024.32134 | D12: 12874.74627 | E12: 13587.70225 | G12: 13981.57029 | H12: 12872.36257 | I12: 13587.70225 | K12: 14331.59627 | L12: 12160.8727 | M12: 12578.17542 | O12: 0.0810516884 | P12: 0.06319809111 | Q12: 0.07100870871
A13: -Gemeinschaftspraxis | B13: 267 | C13: 33246.76648 | D13: 30046.77221 | E13: 27242.51402 | G13: 15418.09895 | H13: 12888.56773 | I13: 11555.10565 | K13: 14473.272 | L13: 12073.4442 | M13: 10844.59716 | O13: 0.147385658 | P13: 0.1539402178 | Q13: 0.1648396921
A14: Fachärztlicher Bereich II | B14: 658 | C14: 51497.58673 | D14: 41875.77555 | E14: 38144.05813 | G14: 32853.21434 | H14: 27937.69808 | I14: 25881.42571 | K14: 33086.87759 | L14: 28572.21378 | M14: 23216.69506 | O14: 0.1903524935 | P14: 0.1731691303 | Q14: 0.1549101573
A15: -Einzelpraxis | B15: 466 | C15: 25836.81993 | D15: 19789.6442 | E15: 21877.34358 | G15: 20199.53127 | H15: 18105.1722 | I15: 21829.55305 | K15: 23889.11921 | L15: 19682.58974 | M15: 19966.19093 | O15: 0.2342225672 | P15: 0.1384016662 | Q15: 0.1611170282
A16: -Gemeinschaftspraxis | B16: 192 | C16: 109073.7726 | D16: 91431.39537 | E16: 74642.39769 | G16: 44090.99357 | H16: 36669.99796 | I16: 29479.90769 | K16: 40963.65234 | L16: 36185.1085 | M16: 26000.36123 | O16: 0.2668293201 | P16: 0.2511200996 | Q16: 0.2364997008
A17: Internistischer Bereich | B17: 202 | C17: 19815.24275 | D17: 29629.98999 | E17: 17317.97761 | G17: 14687.61712 | H17: 22031.63362 | I17: 12879.11176 | K17: 13878.07504 | L17: 20415.13658 | M17: 11849.40474 | O17: 0.1193523594 | P17: 0.2247861177 | Q17: 0.1006417826
A18: -Einzelpraxis | B18: 171 | C18: 19933.57486 | D18: 18354.82549 | E18: 14968.4709 | G18: 19839.1792 | H18: 18237.1975 | I18: 14968.4709 | K18: 19038.18499 | L18: 17335.19534 | M18: 14013.80143 | O18: 0.1397845341 | P18: 0.1269147309 | Q18: 0.09853884001
A19: -Gemeinschaftspraxis | B19: 31 | C19: 19441.36542 | D19: 65254.54055 | E19: 24741.38333 | G19: 7999.358648 | H19: 26957.93929 | I19: 10166.50271 | K19: 10850.32463 | L19: 16620.45433 | M19: 7456.08802 | O19: 0.2112178684 | P19: 0.5044216092 | Q19: 0.2659291872
A20: Neurologisch-psychiatrischer Bereich | B20: 469 | C20: 9675.733146 | D20: 8439.675107 | E20: 8228.382098 | G20: 7273.111674 | H20: 6373.566883 | I20: 6122.651173 | K20: 7545.677895 | L20: 6317.999208 | M20: 5623.077751 | O20: 0.1188063666 | P20: 0.09548001265 | Q20: 0.1043210399
A21: -Einzelpraxis | B21: 374 | C21: 7587.432295 | D21: 6315.037669 | E21: 6602.71834 | G21: 7581.652224 | H21: 6315.037669 | I21: 6602.71834 | K21: 8439.37825 | L21: 6633.962332 | M21: 6054.468271 | O21: 0.1285772702 | P21: 0.09835892206 | Q21: 0.1352687201
A22: -Gemeinschaftspraxis | B22: 95 | C22: 16592.63066 | D22: 15476.92714 | E22: 13612.92695 | G22: 6861.544799 | H22: 6451.639881 | I22: 5482.282369 | K22: 6349.180002 | L22: 5894.983585 | M22: 5045.526398 | O22: 0.2349584013 | P22: 0.1848442555 | Q22: 0.1631657889
A23: Psychotherapeutischer und psychosomatischer Bereich | B23: 673 | C23: 2753.883001 | D23: 2530.604346 | E23: 3441.130465 | G23: 2685.971215 | H23: 2466.806817 | I23: 3356.270899 | K23: 2654.290936 | L23: 2446.382934 | M23: 3317.622386 | O23: 0.1067220173 | P23: 0.07723071841 | Q23: 0.1288260429
A24: -Einzelpraxis | B24: 661 | C24: 2746.649528 | D24: 2508.557852 | E24: 3376.938976 | G24: 2746.649528 | H24: 2507.093764 | I24: 3376.938976 | K24: 2712.611049 | L24: 2485.135434 | M24: 3336.059473 | O24: 0.1092597764 | P24: 0.07942266685 | Q24: 0.1320078573
A25: -Gemeinschaftspraxis | B25: 12 | C25: 3032.73977 | D25: 3380.516184 | E25: 5915.769146 | G25: 1516.369885 | H25: 1690.258092 | I25: 2957.884573 | K25: 1516.369885 | L25: 1690.258092 | M25: 2957.884573 | O25: 0.2048619354 | P25: 0.1887510149 | Q25: 0.6460971362
A26: Übergreifend tätige Praxen | B26: 53 | C26: 20838.54139 | D26: 26945.69293 | E26: 17083.63729 | G26: 12973.60486 | H26: 13808.63361 | I26: 7759.787505 | K26: 12206.95347 | L26: 12783.04275 | M26: 7111.320954 | O26: 0.1916445965 | P26: 0.3446704299 | Q26: 0.3078476689
A27: -Einzelpraxis | B27: 19 | C27: 10850.32463 | D27: 16620.45433 | E27: 7456.08802 | G27: 10850.32463 | H27: 16620.45433 | I27: 7456.08802 | K27: 9401.163056 | L27: 12073.89881 | M27: 5368.072438 | O27: 0.5260582428 | P27: 0.5219331824 | Q27: 0.3779736633
A28: -Gemeinschaftspraxis | B28: 34 | C28: 22497.00145 | D28: 28660.11265 | E28: 18682.21153 | G28: 13120.43653 | H28: 13614.18714 | I28: 7780.789303 | K28: 12458.68346 | L28: 12846.66575 | M28: 7267.721776 | O28: 0.2256408977 | P28: 0.4288200657 | Q28: 0.3768116164
A29: Hinweis: Nicht enthalten sind Investitionen je Arzt und je Inhaber für das Jahr 2012, da für 2012 die Zahl der Inhaber und angestellten Ärzte nicht vorliegt. Die Anzahl der Praxen ist für das Jahr 2011 angegeben. Durch Organisationsformwechsel kann die Aufteilung auf Einzel- und Gemeinschaftspraxen zwischen den Berichtsjahren abweichen.
A30: Quelle: Zi-Praxis-Panel 2013.

Sheet T14
A1: Tabelle 14: Patientenzahlen nach Fachgebiet und Patientengruppen im 4. Quartal 2011
A2: Fachgebiet | B2: Praxen | C2: Patientenzahl | G2: Patientenanteile | L2: relativer Standardfehler je Praxis
C3: MW je Praxis | D3: MW je Arzt | E3: MW je Inhaber | G3: GKV | H3: BG/Unfall | I3: Privat | J3: Kranken- haus
A4: Gesamt | B4: 4232 | C4: 1238.163007 | D4: 912.1673135 | E4: 971.8905447 | G4: 0.8781475995 | H4: 0.01336907368 | I4: 0.1017531107 | J4: 0.006730216095 | L4: 0.01321705019
A5: Allgemeinmedizin und Innere Medizin (hausärztlich) | B5: 467 | C5: 1353.823557 | D5: 977.5685079 | E5: 1035.466154 | G5: 0.9015641865 | H5: 0.01156550632 | I5: 0.08600252451 | J5: 0.000867782708 | L5: 0.02177764261
A6: Anästhesiologie | B6: 87 | C6: 544.7638442 | D6: 344.5560265 | E6: 369.0893288 | G6: 0.8228462574 | H6: 0.01204963417 | I6: 0.1545860253 | J6: 0.01051808312 | L6: 0.132400794
A7: Augenheilkunde | B7: 220 | C7: 2373.809561 | D7: 1819.220278 | E7: 1954.484429 | G7: 0.8288467018 | H7: 0.01724268039 | I7: 0.1499829251 | J7: 0.003927692777 | L7: 0.03225947074
A8: Chirurgie | B8: 193 | C8: 1429.592571 | D8: 1015.21091 | E8: 1066.378244 | G8: 0.8000626148 | H8: 0.1179220533 | I8: 0.07289741713 | J8: 0.009117914733 | L8: 0.03536310372
A9: Dermatologie | B9: 208 | C9: 2369.811063 | D9: 1681.194478 | E9: 1862.572494 | G9: 0.8320632282 | H9: 0.009639706007 | I9: 0.154002643 | J9: 0.004294422711 | L9: 0.03523287341
A10: Gynäkologie | B10: 428 | C10: 1493.165775 | D10: 1103.450133 | E10: 1194.518464 | G10: 0.8659770935 | H10: 0.0005154522966 | I10: 0.1305063567 | J10: 0.003001097527 | L10: 0.02423781647
A11: Hals-Nasen-Ohren-Heilkunde | B11: 318 | C11: 1976.205389 | D11: 1400.015605 | E11: 1439.644797 | G11: 0.8723732145 | H11: 0.006746713001 | I11: 0.1073884915 | J11: 0.01349158108 | L11: 0.03491180658
A12: Innere Medizin - Gastroenterologie | B12: 42 | C12: 1136.594322 | D12: 915.9305603 | E12: 952.8399184 | G12: 0.8823248782 | H12: 0.001213722349 | I12: 0.1063266127 | J12: 0.01013478668 | L12: 0.05018626077
A13: Innere Medizin - Kardiologie | B13: 30 | C13: 1678.86042 | D13: 1234.454883 | E13: 1385.796003 | G13: 0.9405198384 | H13: 0.001610292394 | I13: 0.05648869878 | J13: 0.001381170377 | L13: 0.0913601252
A14: Innere Medizin - Pneumologie | B14: 42 | C14: 1772.30699 | D14: 1274.715564 | E14: 1385.323885 | G14: 0.9097274886 | H14: 0.01409238471 | I14: 0.07426077106 | J14: 0.001919355678 | L14: 0.07333187083
A15: Innere Medizin - ohne bzw. mit mehreren Schwerpunkten | B15: 41 | C15: 1771.138922 | D15: 1147.677432 | E15: 1222.314337 | G15: 0.8967258668 | H15: 0.001646083863 | I15: 0.09412217477 | J15: 0.007505874572 | L15: 0.126736966
A16: Innere Medizin - sonstige Fachgebiete | B16: 52 | C16: 1328.934993 | D16: 783.1186627 | E16: 882.4175709 | G16: 0.8769558819 | H16: 0.004617660173 | I16: 0.09931906187 | J16: 0.01910739604 | L16: 0.07133563057
A17: Kinder- und Jugendmedizin | B17: 357 | C17: 1601.43739 | D17: 1108.51981 | E17: 1230.898668 | G17: 0.8759796217 | H17: 0.01423144827 | I17: 0.1051397348 | J17: 0.004649195235 | L17: 0.02371073706
A18: Kinder- und Jugendpsychiatrie und -psychotherapie | B18: 113 | C18: 377.5171158 | D18: 311.7400263 | E18: 328.9204574 | G18: 0.9319485137 | H18: 0.000248339749 | I18: 0.0668417497 | J18: 0.0009613968894 | L18: 0.06869024122
A19: Nervenheilkunde | B19: 137 | C19: 1197.658699 | D19: 1040.075517 | E19: 1045.561949 | G19: 0.928407972 | H19: 0.007367776828 | I19: 0.04660485904 | J19: 0.01761939218 | L19: 0.04043351427
A20: Neurologie | B20: 38 | C20: 1174.952121 | D20: 1034.589978 | E20: 1092.242316 | G20: 0.9049396298 | H20: 0.005306423323 | I20: 0.0636740253 | J20: 0.02607992157 | L20: 0.05367303724
A21: Neurologie, Nervenheilkunde, Psychiatrie | B21: 82 | C21: 2086.625491 | D21: 877.3316779 | E21: 1034.085441 | G21: 0.8850277224 | H21: 0.009143762999 | I21: 0.07856892053 | J21: 0.02725959407 | L21: 0.0652443061
A22: Nuklearmedizin | B22: 11 | C22: 2437.752067 | D22: 1422.56701 | E22: 1551.067987 | G22: 0.8513773609 | H22: 0.009425730524 | I22: 0.09528987626 | J22: 0.04390703232 | L22: 0.2049742829
A23: Orthopädie | B23: 272 | C23: 1974.401971 | D23: 1344.143325 | E23: 1439.756074 | G23: 0.8778989643 | H23: 0.01512646048 | I23: 0.1040846851 | J23: 0.002889890063 | L23: 0.03519340289
A24: Physikalische und rehabilitative Medizin | B24: 35 | C24: 881.4338861 | D24: 801.6753674 | E24: 826.6078549 | G24: 0.8729058562 | H24: 0.005199860597 | I24: 0.1215303412 | J24: 0.0003639420056 | L24: 0.07764313911
A25: Psychiatrie | B25: 108 | C25: 517.6063404 | D25: 441.1231127 | E25: 463.2325702 | G25: 0.9283143103 | H25: 0.003698656642 | I25: 0.06334546816 | J25: 0.004641564871 | L25: 0.08616988337
A26: Psychosomatische Medizin und Psychotherapie | B26: 328 | C26: 61.48628828 | D26: 60.48341863 | E26: 60.48341863 | G26: 0.8385300857 | H26: 0.001646115278 | I26: 0.1475235261 | J26: 0.01230027293 | L26: 0.04391777308
A27: Psychotherapie | B27: 393 | C27: 58.04872238 | D27: 55.821995 | E27: 56.77262346 | G27: 0.89190403 | H27: 0.002732396221 | I27: 0.1043032526 | J27: 0.001060321208 | L27: 0.0282403915
A28: Radiologie | B28: 28 | C28: 5008.330879 | D28: 1640.309821 | E28: 2248.076084 | G28: 0.8126084455 | H28: 0.0235563869 | I28: 0.08476189227 | J28: 0.07907327534 | L28: 0.09769399286
A29: Urologie | B29: 155 | C29: 1866.129307 | D29: 1267.788201 | E29: 1326.43219 | G29: 0.8382041055 | H29: 0.008818601312 | I29: 0.1437536057 | J29: 0.009223687488 | L29: 0.03970286158
A30: Übergreifend tätige Praxen | B30: 47 | C30: 2073.444778 | D30: 841.1007247 | E30: 939.6933192 | G30: 0.8877685496 | H30: 0.01493766933 | I30: 0.09375362909 | J30: 0.003540152001 | L30: 0.07904966746
A31: Hinweis: MW bezeichnet das arithmetische Mittel; gewichtete Ergebnisse.
A32: Quelle: Zi-Praxis-Panel 2013.

Sheet T15
A1: Tabelle 15: Jahresüberschuss und Jahresarbeitszeit je Inhaber inkl. Praxismanagement differenziert nach Inhabergeschlecht
A2: Fachbereich | B2: Praxen | C2: Jahresüberschuss… | F2: Jahres- arbeitszeit
C3: in Tsd. € | E3: in €
C4: je Praxis | D4: je Inhaber | E4: je Std. | F4: in Std.
A5: Gesamt | B5: 3963 | C5: 179976.8491 | D5: 143917.6754 | E5: 61.61404806 | F5: 2335.793214
A6: weiblich | B6: 1415 | C6: 112470.8234 | D6: 104648.9311 | E6: 49.46602553 | F6: 2115.571849
A7: männlich | B7: 2236 | C7: 195249.837 | D7: 168763.6758 | E7: 66.96535857 | F7: 2520.16385
A8: gemischt | B8: 312 | C8: 327129.6255 | D8: 142516.4924 | E8: 64.33117481 | F8: 2215.356595
A9: Hausärztlicher Bereich | B9: 780 | C9: 184647.1782 | D9: 143475.4592 | E9: 59.1868205 | F9: 2424.111618
A10: weiblich | B10: 228 | C10: 131535.6182 | D10: 119946.994 | E10: 50.99909649 | F10: 2351.94351
A11: männlich | B11: 445 | C11: 182335.879 | D11: 162608.1981 | E11: 62.45572155 | F11: 2603.575686
A12: gemischt | B12: 107 | C12: 281730.567 | D12: 127530.3894 | E12: 59.27550998 | F12: 2151.485317
A13: Fachärztlicher Bereich I | B13: 1217 | C13: 195093.1624 | D13: 155161.3174 | E13: 67.62859964 | F13: 2294.3151
A14: weiblich | B14: 532 | C14: 148770.6135 | D14: 132325.5463 | E14: 61.21879183 | F14: 2161.518421
A15: männlich | B15: 586 | C15: 203207.3312 | D15: 174242.5622 | E15: 71.4095136 | F15: 2440.046899
A16: gemischt | B16: 99 | C16: 373626.2905 | D16: 160727.6736 | E16: 71.68335997 | F16: 2242.189451
A17: Fachärztlicher Bereich II | B17: 622 | C17: 282185.1383 | D17: 197364.1525 | E17: 78.04153762 | F17: 2528.962889
A18: weiblich | B18: 57 | C18: 187977.6782 | D18: 170938.357 | E18: 71.22417257 | F18: 2400.004813
A19: männlich | B19: 528 | C19: 262838.2075 | D19: 198551.1488 | E19: 77.26161653 | F19: 2569.854964
A20: gemischt | B20: 37 | C20: 592912.2721 | D20: 204491.5038 | E20: 85.06529323 | F20: 2403.935801
A21: Internistischer Bereich | B21: 189 | C21: 315948.4863 | D21: 247222.4501 | E21: 94.83833944 | F21: 2606.777508
A22: weiblich | B22: 25 | C22: 176532.8942 | D22: 176532.8942 | E22: 70.29215891 | F22: 2511.416592
A23: männlich | B23: 152 | C23: 317084.4805 | D23: 265605.8576 | E23: 98.72153163 | F23: 2690.455195
A24: gemischt | B24: 12 | C24: 456617.6385 | D24: 193407.9225 | E24: 85.66168605 | F24: 2257.811297
A25: Neurologisch-psychiatrischer Bereich | B25: 426 | C25: 197178.5442 | D25: 153231.7169 | E25: 64.09433074 | F25: 2390.721848
A26: weiblich | B26: 163 | C26: 129503.7511 | D26: 121937.9784 | E26: 53.60786963 | F26: 2274.628319
A27: männlich | B27: 228 | C27: 201609.3475 | D27: 170450.9484 | E27: 68.66634647 | F27: 2482.30694
A28: gemischt | B28: 35 | C28: 406691.7376 | D28: 157934.0514 | E28: 67.35912052 | F28: 2344.657267
A29: Übergreifend tätige Praxen | B29: 46 | C29: 375446.566 | D29: 178040.8035 | E29: 71.81975376 | F29: 2478.994903
A30: weiblich | B30: 9 | C30: 195157.9708 | D30: 124595.1588 | E30: 51.12243153 | F30: 2437.191563
A31: männlich | B31: 23 | C31: 501823.4256 | D31: 240821.9428 | E31: 93.44293901 | F31: 2577.208565
A32: gemischt | B32: 14 | C32: 308943.255 | D32: 133723.1901 | E32: 55.70808403 | F32: 2400.427019
A33: Psychotherapeutischer und psychosomatischer Bereich | B33: 683 | C33: 70748.7542 | D33: 69458.82653 | E33: 35.72547965 | F33: 1944.23776
A34: weiblich | B34: 401 | C34: 63417.86666 | D34: 62234.70944 | E34: 34.41115611 | F34: 1808.562004
A35: männlich | B35: 274 | C35: 82577.17527 | D35: 82577.17527 | E35: 37.85796253 | F35: 2181.236647
A36: gemischt | B36: 8 | C36: 115285.4108 | D36: 60642.81103 | E36: 29.97536415 | F36: 2023.088384
A37: Hinweis: Eigene Berechnungen basierend auf Zi-Praxis-Panel 2013. Gewichtete Ergebnisse. Quelle: Zi-Praxis-Panel 2013.

Sheet T16
A1: Tabelle 16: Jahresarbeitszeit angestellter Ärzte und Inhaber ohne Praxismanagement je Patient
B2: Praxen | C2: Minuten je Patient
A3: Gesamt | B3: 3959 | C3: 33.07424643
A4: weiblich | B4: 1414 | C4: 38.29196549
A5: männlich | B5: 2233 | C5: 31.10981783
A6: gemischt | B6: 312 | C6: 32.45611834
A7: Hausärztlicher Bereich | B7: 780 | C7: 31.88011138
A8: weiblich | B8: 228 | C8: 32.98226175
A9: männlich | B9: 445 | C9: 30.66500466
A10: gemischt | B10: 107 | C10: 33.87066952
A11: Fachärztlicher Bereich I | B11: 1216 | C11: 22.73434996
A12: weiblich | B12: 531 | C12: 21.57008618
A13: männlich | B13: 586 | C13: 22.80442121
A14: gemischt | B14: 99 | C14: 25.49963224
A15: Fachärztlicher Bereich II | B15: 620 | C15: 24.40179536
A16: weiblich | B16: 57 | C16: 22.3300348
A17: männlich | B17: 526 | C17: 24.23438109
A18: gemischt | B18: 37 | C18: 25.64524839
A19: Internistischer Bereich | B19: 189 | C19: 33.57988884
A20: weiblich | B20: 25 | C20: 32.47317711
A21: männlich | B21: 152 | C21: 31.92209192
A22: gemischt | B22: 12 | C22: 49.66030261
A23: Neurologisch-psychiatrischer Bereich | B23: 425 | C23: 40.42324619
A24: weiblich | B24: 163 | C24: 48.90466987
A25: männlich | B25: 227 | C25: 38.01617277
A26: gemischt | B26: 35 | C26: 37.54983084
A27: Übergreifend tätige Praxen | B27: 46 | C27: 36.54753018
A28: weiblich | B28: 9 | C28: 44.72030398
A29: männlich | B29: 23 | C29: 33.07840173
A30: gemischt | B30: 14 | C30: 39.47054127
A31: Psychotherapeutischer und psychosomatischer Bereich | B31: 683 | C31: 437.1511265
A32: weiblich | B32: 401 | C32: 444.6925456
A33: männlich | B33: 274 | C33: 425.180788
A34: gemischt | B34: 8 | C34: 478.2333109
A35: Hinweis: Eigene Berechnungen basierend auf Zi-Praxis-Panel 2013. Gewichtete Ergebnisse. Quelle: Zi-Praxis-Panel 2013.

Sheet T17
A1: Tabelle 17: Behandelte Patienten je Inhaber
B2: Praxen | C2: Gewichtet | D2: Patienten darunter privat
D3: je Inhaber | E3: Anzahl | F3: Anteil
A4: Gesamt | B4: 3963 | C4: 3963 | D4: 988.4283391 | E4: 102.3927999 | F4: 0.1035915259
A5: weiblich | B5: 1415 | C5: 1412.870857 | D5: 762.6654382 | E5: 81.69235019 | F5: 0.1071142681
A6: männlich | B6: 2236 | C6: 2122.245497 | D6: 1138.241279 | E6: 109.5778912 | F6: 0.09626947582
A7: gemischt | B7: 312 | C7: 427.8836461 | D7: 964.6124349 | E7: 116.4348077 | F7: 0.1207063101
A8: Hausärztlicher Bereich | B8: 780 | C8: 1660.518752 | D8: 1071.959493 | E8: 94.34088512 | F8: 0.08800788253
A9: weiblich | B9: 228 | C9: 438.6570164 | D9: 1001.572782 | E9: 78.60902903 | F9: 0.07848558828
A10: männlich | B10: 445 | C10: 959.0524545 | D10: 1198.571534 | E10: 100.3212497 | F10: 0.0837006777
A11: gemischt | B11: 107 | C11: 262.809281 | D11: 895.7549682 | E11: 96.29807288 | F11: 0.1075049275
A12: Fachärztlicher Bereich I | B12: 1217 | C12: 729.0656743 | D12: 1404.515711 | E12: 191.7969863 | F12: 0.1365573805
A13: weiblich | B13: 532 | C13: 325.0823053 | D13: 1392.723213 | E13: 205.0344822 | F13: 0.1472183994
A14: männlich | B14: 586 | C14: 334.8557801 | D14: 1491.954411 | E14: 189.6332395 | F14: 0.1271039102
A15: gemischt | B15: 99 | C15: 69.12758889 | D15: 1218.841812 | E15: 166.9478741 | F15: 0.1369725525
A16: Fachärztlicher Bereich II | B16: 622 | C16: 325.0921785 | D16: 1486.499896 | E16: 167.0725294 | F16: 0.1123932332
A17: weiblich | B17: 57 | C17: 33.25610053 | D17: 1744.123201 | E17: 114.4634219 | F17: 0.06562805986
A18: männlich | B18: 528 | C18: 265.2386985 | D18: 1480.027408 | E18: 156.309668 | F18: 0.1056126847
A19: gemischt | B19: 37 | C19: 26.59737954 | D19: 1438.023114 | E19: 241.0245172 | F19: 0.1676082358
A20: Internistischer Bereich | B20: 189 | C20: 163.7241509 | D20: 1138.907686 | E20: 97.72563696 | F20: 0.0858064601
A21: weiblich | B21: 25 | C21: 15.62190255 | D21: 1107.579068 | E21: 69.21453888 | F21: 0.06249173615
A22: männlich | B22: 152 | C22: 133.6992669 | D22: 1248.440998 | E22: 104.5113454 | F22: 0.08371348384
A23: gemischt | B23: 12 | C23: 14.40298151 | D23: 639.160025 | E23: 78.972439 | F23: 0.1235565991
A24: Neurologisch-psychiatrischer Bereich | B24: 426 | C24: 188.5422018 | D24: 836.6416461 | E24: 53.29586192 | F24: 0.06370213838
A25: weiblich | B25: 163 | C25: 68.55334609 | D25: 638.8923626 | E25: 30.7663645 | F25: 0.04815578696
A26: männlich | B26: 228 | C26: 99.95941046 | D26: 936.0714686 | E26: 59.17099197 | F26: 0.06321204518
A27: gemischt | B27: 35 | C27: 20.02944524 | D27: 887.8601419 | E27: 71.63092247 | F27: 0.08067815986
A28: Übergreifend tätige Praxen | B28: 46 | C28: 66.84146334 | D28: 995.9224331 | E28: 95.29060725 | F28: 0.09568075192
A29: weiblich | B29: 9 | C29: 9.402161083 | D29: 764.579011 | E29: 53.17062403 | F29: 0.06954235372
A30: männlich | B30: 23 | C30: 28.59291432 | D30: 1232.593549 | E30: 101.8881928 | F30: 0.08266163074
A31: gemischt | B31: 14 | C31: 28.84638793 | D31: 835.4542859 | E31: 98.69979511 | F31: 0.1181390733
A32: Psychotherapeutischer und psychosomatischer Bereich | B32: 683 | C32: 829.2155792 | D32: 58.2138499 | E32: 6.581611289 | F32: 0.1130591998
A33: weiblich | B33: 401 | C33: 522.2980252 | D33: 53.38893935 | E33: 5.649745681 | F33: 0.1058223997
A34: männlich | B34: 274 | C34: 300.8469719 | D34: 66.8440914 | E34: 8.229495467 | F34: 0.1231147779
A35: gemischt | B35: 8 | C35: 6.070582041 | D35: 55.75020594 | E35: 6.59925158 | F35: 0.1183717884
A36: Hinweis: Eigene Berechnungen basierend auf Zi-Praxis-Panel 2013. Gewichtete Ergebnisse. Quelle: Zi-Praxis-Panel 2013.

Sheet T18
A1: Tabelle 18: Einnahmen, Aufwendungen und Jahresüberschuss je Patient
B2: Praxen | C2: Einnahmen | E2: Aufwen-dungen | F2: Jahres- überschuss | G2: Patienten
C3: je Pat. | D3: je GKV-Pat. | E3: je Pat. | F3: je Pat. | G3: je Inhaber
A4: Gesamt | B4: 3963 | C4: 70.69662627 | D4: 59.13531348 | E4: 34.29599163 | F4: 36.40063464 | G4: 988.4283391
A5: weiblich | B5: 1415 | C5: 64.29831662 | D5: 56.08080015 | E5: 29.99463448 | F5: 34.30368214 | G5: 762.6654382
A6: männlich | B6: 2236 | C6: 72.7227688 | D6: 60.57937705 | E6: 35.65600646 | F6: 37.06676234 | G6: 1138.241279
A7: gemischt | B7: 312 | C7: 72.41912354 | D7: 58.58031595 | E7: 35.48291807 | F7: 36.93620547 | G7: 964.6124349
A8: Hausärztlicher Bereich | B8: 780 | C8: 62.26570273 | D8: 56.73750202 | E8: 28.80467641 | F8: 33.46102633 | G8: 1071.959493
A9: weiblich | B9: 228 | C9: 58.16418279 | D9: 53.96552086 | E9: 28.22452285 | F9: 29.93965994 | G9: 1001.572782
A10: männlich | B10: 445 | C10: 63.68182235 | D10: 57.70811149 | E10: 29.76473994 | F10: 33.91708242 | G10: 1198.571534
A11: gemischt | B11: 107 | C11: 62.55563584 | D11: 56.92709469 | E11: 26.96264614 | F11: 35.59298969 | G11: 895.7549682
A12: Fachärztlicher Bereich I | B12: 1217 | C12: 54.76069958 | D12: 41.34615636 | E12: 27.14240451 | F12: 27.61829508 | G12: 1404.515711
A13: weiblich | B13: 532 | C13: 47.72794024 | D13: 36.94195085 | E13: 23.9749172 | F13: 23.75302304 | G13: 1392.723213
A14: männlich | B14: 586 | C14: 58.70331608 | D14: 43.55481209 | E14: 29.50628417 | F14: 29.19703191 | G14: 1491.954411
A15: gemischt | B15: 99 | C15: 61.30962563 | D15: 46.11845778 | E15: 28.34232996 | F15: 32.96729567 | G15: 1218.841812
A16: Fachärztlicher Bereich II | B16: 622 | C16: 82.24350923 | D16: 57.45215836 | E16: 49.05074666 | F16: 33.19276257 | G16: 1486.499896
A17: weiblich | B17: 57 | C17: 62.30972851 | D17: 49.60453249 | E17: 37.80768116 | F17: 24.50204734 | G17: 1744.123201
A18: männlich | B18: 528 | C18: 77.42787062 | D18: 56.50136807 | E18: 43.88944631 | F18: 33.53842431 | G18: 1480.027408
A19: gemischt | B19: 37 | C19: 113.7455809 | D19: 65.17654296 | E19: 78.19477818 | F19: 35.55080268 | G19: 1438.023114
A20: Internistischer Bereich | B20: 189 | C20: 111.8219413 | D20: 93.91536131 | E20: 57.55449427 | F20: 54.26744701 | G20: 1138.907686
A21: weiblich | B21: 25 | C21: 80.77347596 | D21: 69.25675302 | E21: 40.92690896 | F21: 39.846567 | G21: 1107.579068
A22: männlich | B22: 152 | C22: 110.8000922 | D22: 93.35320919 | E22: 57.61258511 | F22: 53.18750704 | G22: 1248.440998
A23: gemischt | B23: 12 | C23: 145.9083893 | D23: 120.4474461 | E23: 70.25913287 | F23: 75.64925643 | G23: 639.160025
A24: Neurologisch-psychiatrischer Bereich | B24: 426 | C24: 77.82626534 | D24: 66.3480148 | E24: 32.03852648 | F24: 45.78773886 | G24: 836.6416461
A25: weiblich | B25: 163 | C25: 81.12723007 | D25: 71.78249538 | E25: 33.41262839 | F25: 47.71460168 | G25: 638.8923626
A26: männlich | B26: 228 | C26: 78.10500095 | D26: 66.81105272 | E26: 32.58204836 | F26: 45.5229526 | G26: 936.0714686
A27: gemischt | B27: 35 | C27: 73.79958605 | D27: 59.28160864 | E27: 29.32916668 | F27: 44.47041937 | G27: 887.8601419
A28: Übergreifend tätige Praxen | B28: 46 | C28: 93.02324012 | D28: 80.56311719 | E28: 48.33080283 | F28: 44.69243729 | G28: 995.9224331
A29: weiblich | B29: 9 | C29: 102.3436282 | D29: 100.2672859 | E29: 61.60383646 | F29: 40.73979177 | G29: 764.579011
A30: männlich | B30: 23 | C30: 99.01677239 | D30: 82.32827831 | E30: 50.17221553 | F30: 48.84455686 | G30: 1232.593549
A31: gemischt | B31: 14 | C31: 83.23285249 | D31: 74.17168423 | E31: 43.21773967 | F31: 40.01511283 | G31: 835.4542859
A32: Psychotherapeutischer und psychosomatischer Bereich | B32: 683 | C32: 423.9037011 | D32: 380.7723101 | E32: 125.6120289 | F32: 298.2916722 | G32: 58.2138499
A33: weiblich | B33: 401 | C33: 416.9480266 | D33: 377.3205637 | E33: 125.5266658 | F33: 291.4213609 | G33: 53.38893935
A34: männlich | B34: 274 | C34: 433.8530054 | D34: 385.114056 | E34: 125.0105425 | F34: 308.8424629 | G34: 66.8440914
A35: gemischt | B35: 8 | C35: 420.1221356 | D35: 401.6377727 | E35: 148.1822835 | F35: 271.9398521 | G35: 55.75020594
A36: Hinweis: Eigene Berechnungen basierend auf Zi-Praxis-Panel 2013. Gewichtete Ergebnisse. Quelle: Zi-Praxis-Panel 2013.

Sheet T19
A1: Tabelle 19: Relative Veränderungrate der Beitragshöhe in Prozent in der Zeit von 2009 bis 2013
A2: Fachgebiet | B2: Anzahl der Teilnehmer | C2: Veränderung der Mittelwerte | D2: Perzentil | I2: Standard- abweichung
D3: 0.05 | E3: 0.25 | F3: 0.5 | G3: 0.75 | H3: 0.95
A4: Allgemeinmedizin und Innere Medizin (hausärztlich) | B4: 138 | C4: 0.09074128177 | D4: -0.3818181818 | E4: 0 | F4: 0.1045927303 | G4: 0.237745098 | H4: 0.5895765472 | I4: 0.2744316832
A5: Kinder und Jugendmedizin | B5: 118 | C5: 0.1540684213 | D5: -0.2710280374 | E5: 0.02666666667 | F5: 0.1569220199 | G5: 0.2274143302 | H5: 0.7777777778 | I5: 0.3123286059
A6: Anästhesiologie | B6: 86 | C6: 0.1310251245 | D6: -0.2299723757 | E6: 0.04992358635 | F6: 0.1114790237 | G6: 0.2681564246 | H6: 0.6335214937 | I6: 0.2467969417
A7: Augenheilkunde | B7: 141 | C7: 0.1444327343 | D7: -0.2929171669 | E7: 0.01666666667 | F7: 0.1551724138 | G7: 0.3674121406 | H7: 1.122033898 | I7: 0.4217612085
A8: Chirurgie (mit Unfallchirurgie) | B8: 130 | C8: 0.1789654522 | D8: -0.245758604 | E8: 0 | F8: 0.1329743551 | G8: 0.2464123206 | H8: 0.732012513 | I8: 0.3338168942
A9: Dermatologie | B9: 114 | C9: 0.1693758403 | D9: -0.3330638642 | E9: 0.02888583219 | F9: 0.1568819343 | G9: 0.2828947368 | H9: 0.968 | I9: 0.366275411
A10: Gynäkologie | B10: 400 | C10: 0.1762799623 | D10: -0.1875619612 | E10: 0.04990638151 | F10: 0.1550839666 | G10: 0.3049584957 | H10: 0.7495030113 | I10: 0.2971950078
A11: Hals-Nasen-Ohren-Heilkunde | B11: 172 | C11: 0.05259438724 | D11: -0.40625 | E11: 0 | F11: 0.1389723753 | G11: 0.2138414979 | H11: 0.5419222904 | I11: 0.2956870966
A12: Orthopädie | B12: 123 | C12: 0.1943958431 | D12: -0.2894203486 | E12: 0.05699481865 | F12: 0.1584015407 | G12: 0.3495663776 | H12: 0.9692044482 | I12: 0.3505284529
A13: Orthopädie (mit Unfallchirurgie) | B13: 31 | C13: 0.2180441015 | D13: -0.2212953876 | E13: 0 | F13: 0.2 | G13: 0.3388484447 | H13: 0.7224880383 | I13: 0.263368665
A14: Radiologie | B14: 12 | C14: 0.2988093296 | D14: -0.211663067 | E14: 0.05147347741 | F14: 0.2850393169 | G14: 0.6055961416 | H14: 1.4875 | I14: 0.4760917181
A15: Urologie | B15: 63 | C15: 0.1173330956 | D15: -0.4558927311 | E15: 0 | F15: 0.102960103 | G15: 0.2130832131 | H15: 0.8998194946 | I15: 0.3434482872
A16: Physikalische und rehabilitative Medizin | B16: 11 | C16: 0.1074740862 | D16: -0.2713178295 | E16: -0.07506702413 | F16: 0.1293103448 | G16: 0.2506596306 | H16: 0.4942196532 | I16: 0.2202566513
A17: Kardiologie | B17: 18 | C17: 0.002382411 | D17: -0.48 | E17: -0.01629072682 | F17: 0.1187535014 | G17: 0.2132132132 | H17: 1.204580153 | I17: 0.3973839337
A18: Innere Medizin | B18: 95 | C18: 0.168441002 | D18: -0.3395061728 | E18: 0 | F18: 0.1020833333 | G18: 0.2538071066 | H18: 1.410434783 | I18: 0.4689236302
A19: Neurologie, Nervenheilkunde und Pyschiatrie | B19: 176 | C19: 0.07563909384 | D19: -0.3975308642 | E19: -0.03827472008 | F19: 0.1027046784 | G19: 0.2131878684 | H19: 0.8659793814 | I19: 0.3251674903
A20: Psychotherapie, Psychosomatische Medizin | B20: 55 | C20: 0.08317511319 | D20: -0.2989690722 | E20: 0 | F20: 0.1018518519 | G20: 0.2007575758 | H20: 0.3333333333 | I20: 0.1568844987
A21: Quelle: Zi-Praxis-Panel, Sondererhebung 2014.

Sheet T20
A1: Tabelle 20: Absolute Veränderung der Beitragshöhe in Euro
A2: Fachgebiet | B2: Anzahl der Teilnehmer | C2: Mittelwert | D2: Perzentil | I2: Standard- abweichung
D3: 0.05 | E3: 0.25 | F3: 0.5 | G3: 0.75 | H3: 0.95
A4: Allgemeinmedizin und Innere Medizin (hausärztlich) | B4: 138 | C4: 49.51449275 | D4: -272 | E4: 0 | F4: 55.5 | G4: 114 | H4: 302 | I4: 163.029899
A5: Kinder und Jugendmedizin | B5: 118 | C5: 70.49152542 | D5: -221 | E5: 12 | F5: 57 | G5: 100 | H5: 444 | I5: 170.7606785
A6: Anästhesiologie | B6: 86 | C6: 180.7674419 | D6: -303 | E6: 47 | F6: 167.5 | G6: 288 | H6: 772 | I6: 399.3771231
A7: Augenheilkunde | B7: 141 | C7: 110.8014184 | D7: -242 | E7: 26 | F7: 91 | G7: 184 | H7: 523 | I7: 317.1012281
A8: Chirurgie (mit Unfallchirurgie) | B8: 130 | C8: 657.0923077 | D8: -986 | E8: 0 | F8: 431 | G8: 951 | H8: 2865 | I8: 1775.405845
A9: Dermatologie | B9: 114 | C9: 158.0350877 | D9: -412 | E9: 21 | F9: 115 | G9: 220 | H9: 641 | I9: 440.5331028
A10: Gynäkologie | B10: 400 | C10: 462.5075 | D10: -537 | E10: 71 | F10: 261.5 | G10: 524 | H10: 1277 | I10: 2465.926511
A11: Hals-Nasen-Ohren-Heilkunde | B11: 172 | C11: 63.61046512 | D11: -771 | E11: 0 | F11: 90 | G11: 256 | H11: 556 | I11: 558.4661371
A12: Orthopädie | B12: 123 | C12: 478.7479675 | D12: -714 | E12: 98 | F12: 300 | G12: 675 | H12: 2050 | I12: 1179.324651
A13: Orthopädie (mit Unfallchirurgie) | B13: 31 | C13: 836.6774194 | D13: -798 | E13: 0 | F13: 512 | G13: 1057 | H13: 1870 | I13: 2307.016463
A14: Radiologie | B14: 12 | C14: 610.6666667 | D14: -196 | E14: 76 | F14: 424 | G14: 719 | H14: 3570 | I14: 982.154342
A15: Urologie | B15: 63 | C15: 146.2063492 | D15: -700 | E15: 0 | F15: 121 | G15: 347 | H15: 1041 | I15: 501.3857944
A16: Physikalische und rehabilitative Medizin | B16: 11 | C16: 53.72727273 | D16: -140 | E16: -28 | F16: 95 | G16: 109 | H16: 171 | I16: 100.939676
A17: Kardiologie | B17: 18 | C17: 1.944444444 | D17: -1200 | E17: -13 | F17: 55.5 | G17: 142 | H17: 789 | I17: 405.7999322
A18: Innere Medizin | B18: 95 | C18: 107.5894737 | D18: -243 | E18: 0 | F18: 50 | G18: 183 | H18: 832 | I18: 358.5686229
A19: Neurologie, Nervenheilkunde und Pyschiatrie | B19: 176 | C19: 33.08522727 | D19: -207 | E19: -15 | F19: 40.5 | G19: 96 | H19: 234 | I19: 148.558593
A20: Psychotherapie, Psychosomatische Medizin | B20: 55 | C20: 20.70909091 | D20: -48 | E20: 0 | F20: 17 | G20: 41 | H20: 106 | I20: 43.00890206
A21: Quelle: Zi-Praxis-Panel, Sondererhebung 2014.

Sheet T21
A1: Tabelle 21: Absolute Beitragsveränderung in Euro nach Fachgebiet und Tarifart
A2: Fachgebiet | B2: Anzahl der Teilnehmer | C2: Mittelwert | D2: Perzentil
D3: 0.05 | E3: 0.25 | F3: 0.5 | G3: 0.75 | H3: 0.95
A4: Allgemeinmedizin und Innere Medizin (hausärztlich) | B4: 138 | C4: 49.51449275 | D4: -272 | E4: 0 | F4: 55.5 | G4: 114 | H4: 302
A5: ambulant-konservativ | B5: 128 | C5: 58.4375 | D5: -260 | E5: 0 | F5: 61 | G5: 115.5 | H5: 302
A6: ambulant-operativ | B6: (wegen zu geringer Besetzung keine weitere Auswertung möglich)
A7: ambulant-stationär | B7: (wegen zu geringer Besetzung keine weitere Auswertung möglich)
A8: Kinder und Jugendmedizin | B8: 118 | C8: 70.49152542 | D8: -221 | E8: 12 | F8: 57 | G8: 100 | H8: 444
A9: ambulant-konservativ | B9: 113 | C9: 79.53097345 | D9: -107 | E9: 13 | F9: 56 | G9: 100 | H9: 444
A10: ambulant-operativ | B10: (wegen zu geringer Besetzung keine weitere Auswertung möglich)
A11: ambulant-stationär | B11: (wegen zu geringer Besetzung keine weitere Auswertung möglich)
A12: Anästhesiologie | B12: 86 | C12: 180.7674419 | D12: -303 | E12: 47 | F12: 167.5 | G12: 288 | H12: 772
A13: ambulant-konservativ | B13: 17 | C13: 68.64705882 | D13: -266 | E13: 42 | F13: 60 | G13: 148 | H13: 458
A14: ambulant-operativ | B14: 46 | C14: 137.7391304 | D14: -333 | E14: 43 | F14: 176.5 | G14: 281 | H14: 573
A15: ambulant-stationär | B15: 23 | C15: 349.6956522 | D15: -100 | E15: 88 | F15: 270 | G15: 515 | H15: 1134
A16: Augenheilkunde | B16: 141 | C16: 110.8014184 | D16: -242 | E16: 26 | F16: 91 | G16: 184 | H16: 523
A17: ambulant-konservativ | B17: 91 | C17: 97.48351648 | D17: -137 | E17: 30 | F17: 77 | G17: 166 | H17: 426
A18: ambulant-operativ | B18: 43 | C18: 118.9069767 | D18: -242 | E18: -40 | F18: 115 | G18: 212 | H18: 396
A19: ambulant-stationär | B19: (wegen zu geringer Besetzung keine weitere Auswertung möglich)
A20: Chirurgie (mit Unfallchirurgie) | B20: 130 | C20: 657.0923077 | D20: -986 | E20: 0 | F20: 431 | G20: 951 | H20: 2865
A21: ambulant-konservativ | B21: (wegen zu geringer Besetzung keine weitere Auswertung möglich)
A22: ambulant-operativ | B22: 107 | C22: 466.1214953 | D22: -914 | E22: 28 | F22: 409 | G22: 797 | H22: 2391
A23: ambulant-stationär | B23: 21 | C23: 1718 | D23: 0 | E23: 0 | F23: 884 | G23: 1459 | H23: 4377
A24: Dermatologie | B24: 114 | C24: 158.0350877 | D24: -412 | E24: 21 | F24: 115 | G24: 220 | H24: 641
A25: ambulant-konservativ | B25: 20 | C25: 62.8 | D25: -488 | E25: 0 | F25: 74 | G25: 194.5 | H25: 423.5
A26: ambulant-operativ | B26: 93 | C26: 179.6236559 | D26: -412 | E26: 50 | F26: 132 | G26: 225 | H26: 703
A27: ambulant-stationär | B27: (wegen zu geringer Besetzung keine weitere Auswertung möglich)
A28: Gynäkologie | B28: 400 | C28: 462.5075 | D28: -537 | E28: 71 | F28: 261.5 | G28: 524 | H28: 1277
A29: ambulant-konservativ | B29: 298 | C29: 257.1812081 | D29: -363 | E29: 75 | F29: 253 | G29: 413 | H29: 953
A30: ambulant-operativ | B30: 75 | C30: 389.6533333 | D30: -1236 | E30: 40 | F30: 359 | G30: 813 | H30: 1404
A31: ambulant-stationär | B31: 27 | C31: 2931.074074 | D31: -11400 | E31: -852 | F31: 786 | G31: 6808 | H31: 19060
A32: Hals-Nasen-Ohren-Heilkunde | B32: 172 | C32: 63.61046512 | D32: -771 | E32: 0 | F32: 90 | G32: 256 | H32: 556
A33: ambulant-konservativ | B33: 65 | C33: 14.58461538 | D33: -351 | E33: 0 | F33: 57 | G33: 92 | H33: 298
A34: ambulant-operativ | B34: 41 | C34: 76.43902439 | D34: -722 | E34: 0 | F34: 104 | G34: 178 | H34: 464
A35: ambulant-stationär | B35: 66 | C35: 103.9242424 | D35: -798 | E35: 0 | F35: 214.5 | G35: 400 | H35: 601
A36: Orthopädie | B36: 123 | C36: 478.7479675 | D36: -714 | E36: 98 | F36: 300 | G36: 675 | H36: 2050
A37: ambulant-konservativ | B37: 84 | C37: 194.9285714 | D37: -714 | E37: 74 | F37: 239 | G37: 490.5 | H37: 1180
A38: ambulant-operativ | B38: 24 | C38: 524.7916667 | D38: -412 | E38: 178 | F38: 464.5 | G38: 874 | H38: 1871
A39: ambulant-stationär | B39: 15 | C39: 1994.466667 | D39: -1081 | E39: 400 | F39: 1500 | G39: 3000 | H39: 7463
A40: Orthopädie (mit Unfallchirurgie) | B40: 31 | C40: 836.6774194 | D40: -798 | E40: 0 | F40: 512 | G40: 1057 | H40: 1870
A41: ambulant-konservativ | B41: 11 | C41: 463 | D41: 0 | E41: 200 | F41: 512 | G41: 642 | H41: 1057
A42: ambulant-operativ | B42: 15 | C42: 169.6 | D42: -1846 | E42: -490 | F42: 200 | G42: 931 | H42: 1870
A43: ambulant-stationär | B43: (wegen zu geringer Besetzung keine weitere Auswertung möglich)
A44: Radiologie | B44: 12 | C44: 610.6666667 | D44: -196 | E44: 76 | F44: 424 | G44: 719 | H44: 3570
B45: (wegen zu geringer Besetzung keine weitere Auswertung möglich)
A46: Urologie | B46: 63 | C46: 146.2063492 | D46: -700 | E46: 0 | F46: 121 | G46: 347 | H46: 1041
A47: ambulant-konservativ | B47: (wegen zu geringer Besetzung keine weitere Auswertung möglich)
A48: ambulant-operativ | B48: 42 | C48: 143.5 | D48: -234 | E48: 0 | F48: 94 | G48: 226 | H48: 1041
A49: ambulant-stationär | B49: 12 | C49: 324.5 | D49: -1235 | E49: 241 | F49: 432 | G49: 567.5 | H49: 2018
A50: Physikalische und rehabilitative Medizin | B50: 11 | C50: 53.72727273 | D50: -140 | E50: -28 | F50: 95 | G50: 109 | H50: 171
B51: (wegen zu geringer Besetzung keine weitere Auswertung möglich)
A52: Kardiologie | B52: 18 | C52: 1.944444444 | D52: -1200 | E52: -13 | F52: 55.5 | G52: 142 | H52: 789
B53: (wegen zu geringer Besetzung keine weitere Auswertung möglich)
A54: Innere Medizin | B54: 95 | C54: 107.5894737 | D54: -243 | E54: 0 | F54: 50 | G54: 183 | H54: 832
A55: ambulant-konservativ | B55: 67 | C55: 41.85074627 | D55: -205 | E55: -7 | F55: 42 | G55: 99 | H55: 599
A56: ambulant-operativ | B56: 20 | C56: 304.1 | D56: -180.5 | E56: 17 | F56: 141.5 | G56: 519 | H56: 1188.5
A57: ambulant-stationär | B57: (wegen zu geringer Besetzung keine weitere Auswertung möglich)
A58: Neurologie, Nervenheilkunde und Pyschiatrie | B58: 176 | C58: 33.08522727 | D58: -207 | E58: -15 | F58: 40.5 | G58: 96 | H58: 234
B59: (wegen zu geringer Besetzung keine weitere Auswertung möglich)
A60: Psychotherapie, Psychosomatische Medizin | B60: 55 | C60: 20.70909091 | D60: -48 | E60: 0 | F60: 17 | G60: 41 | H60: 106
B61: (wegen zu geringer Besetzung keine weitere Auswertung möglich)
A62: Quelle: Zi-Praxis-Panel, Sondererhebung 2014.

Sheet T22
A1: Tabelle 22: Absolute Beitragshöhe in Euro im Jahr 2013
A2: Fachgebiet | B2: Anzahl der Teilnehmer | C2: Mittelwert | D2: Perzentil | I2: Standard- abweichung
D3: 0.05 | E3: 0.25 | F3: 0.5 | G3: 0.75 | H3: 0.95
A4: Allgemeinmedizin und Innere Medizin (hausärztlich) | B4: 138 | C4: 595.1811594 | D4: 313 | E4: 424 | F4: 492 | G4: 663 | H4: 1211 | I4: 331.8637315
A5: Kinder und Jugendmedizin | B5: 118 | C5: 528.0254237 | D5: 301 | E5: 380 | F5: 446.5 | G5: 550 | H5: 1115 | I5: 280.3726904
A6: Anästhesiologie | B6: 86 | C6: 1560.406977 | D6: 724 | E6: 925 | F6: 1357 | G6: 1958 | H6: 3762 | I6: 875.0353321
A7: Augenheilkunde | B7: 141 | C7: 877.9503546 | D7: 362 | E7: 505 | F7: 643 | G7: 883 | H7: 1843 | I7: 1036.357297
A8: Chirurgie (mit Unfallchirurgie) | B8: 130 | C8: 4328.707692 | D8: 2234 | E8: 2973 | F8: 3585 | G8: 4776 | H8: 7900 | I8: 2697.644104
A9: Dermatologie | B9: 114 | C9: 1091.078947 | D9: 572 | E9: 724 | F9: 854 | G9: 1201 | H9: 1902 | I9: 817.4598488
A10: Gynäkologie | B10: 400 | C10: 3086.2175 | D10: 1335 | E10: 1698 | F10: 1986 | G10: 2484 | H10: 7467 | I10: 4765.148231
A11: Hals-Nasen-Ohren-Heilkunde | B11: 172 | C11: 1273.063953 | D11: 361 | E11: 524.5 | F11: 900 | G11: 1683.5 | H11: 3188 | I11: 1116.292942
A12: Orthopädie | B12: 123 | C12: 2941.495935 | D12: 1284 | E12: 1694 | F12: 2301 | G12: 3094 | H12: 7500 | I12: 2270.023573
A13: Orthopädie (mit Unfallchirurgie) | B13: 31 | C13: 4673.870968 | D13: 1831 | E13: 2300 | F13: 3486 | G13: 4863 | H13: 10200 | I13: 5272.3386
A14: Radiologie | B14: 12 | C14: 2654.333333 | D14: 730 | E14: 1313 | F14: 1887.5 | G14: 2715.5 | H14: 9000 | I14: 2427.063071
A15: Urologie | B15: 63 | C15: 1392.285714 | D15: 684 | E15: 824 | F15: 1075 | G15: 1747 | H15: 2904 | I15: 832.1626591
A16: Physikalische und rehabilitative Medizin | B16: 11 | C16: 553.6363636 | D16: 323 | E16: 376 | F16: 517 | G16: 699 | H16: 917 | I16: 185.0525724
A17: Kardiologie | B17: 18 | C17: 818.1111111 | D17: 316 | E17: 480 | F17: 786.5 | G17: 1213 | H17: 1444 | I17: 391.8015537
A18: Innere Medizin | B18: 95 | C18: 746.3263158 | D18: 334 | E18: 433 | F18: 540 | G18: 884 | H18: 1939 | I18: 517.8431834
A19: Neurologie, Nervenheilkunde und Pyschiatrie | B19: 176 | C19: 470.4943182 | D19: 247 | E19: 358 | F19: 434 | G19: 525.5 | H19: 930 | I19: 196.5694351
A20: Psychotherapie, Psychosomatische Medizin | B20: 55 | C20: 269.6909091 | D20: 82 | E20: 130 | F20: 242 | G20: 395 | H20: 630 | I20: 158.2167843
A21: Quelle: Zi-Praxis-Panel, Sondererhebung 2014.

Sheet T23
A1: Tabelle 23: Absolute Beitragshöhe in Euro im Jahr 2013 nach Fachgebiet und Tarifart
A2: Fachgebiet | B2: Anzahl der Teilnehmer | C2: Mittelwert | D2: Perzentil | I2: Standard- abweichung
D3: 0.05 | E3: 0.25 | F3: 0.5 | G3: 0.75 | H3: 0.95
A4: Allgemeinmedizin und Innere Medizin (hausärztlich) | B4: 138 | C4: 595.1811594 | D4: 313 | E4: 424 | F4: 492 | G4: 663 | H4: 1211 | I4: 331.8637315
A5: ambulant-konservativ | B5: 128 | C5: 584.078125 | D5: 313 | E5: 424.5 | F5: 488 | G5: 660.5 | H5: 1031 | I5: 305.1579586
A6: ambulant-operativ | B6: (wegen zu geringer Besetzung keine weitere Auswertung möglich)
A7: ambulant-stationär | B7: (wegen zu geringer Besetzung keine weitere Auswertung möglich)
A8: Kinder und Jugendmedizin | B8: 118 | C8: 528.0254237 | D8: 301 | E8: 380 | F8: 446.5 | G8: 550 | H8: 1115 | I8: 280.3726904
A9: ambulant-konservativ | B9: 113 | C9: 506.3451327 | D9: 301 | E9: 378 | F9: 443 | G9: 515 | H9: 1009 | I9: 249.647386
A10: ambulant-operativ | B10: (wegen zu geringer Besetzung keine weitere Auswertung möglich)
A11: ambulant-stationär | B11: (wegen zu geringer Besetzung keine weitere Auswertung möglich)
A12: Anästhesiologie | B12: 86 | C12: 1560.406977 | D12: 724 | E12: 925 | F12: 1357 | G12: 1958 | H12: 3762 | I12: 875.0353321
A13: ambulant-konservativ | B13: 17 | C13: 906.7647059 | D13: 450 | E13: 724 | F13: 893 | G13: 950 | H13: 1534 | I13: 309.4282084
A14: ambulant-operativ | B14: 46 | C14: 1415.152174 | D14: 786 | E14: 942 | F14: 1154.5 | G14: 1602 | H14: 3453 | I14: 739.8990912
A15: ambulant-stationär | B15: 23 | C15: 2334.043478 | D15: 1359 | E15: 1848 | F15: 2158 | G15: 2554 | H15: 4073 | I15: 876.8898282
A16: Augenheilkunde | B16: 141 | C16: 877.9503546 | D16: 362 | E16: 505 | F16: 643 | G16: 883 | H16: 1843 | I16: 1036.357297
A17: ambulant-konservativ | B17: 91 | C17: 669.6813187 | D17: 335 | E17: 455 | F17: 582 | G17: 758 | H17: 1170 | I17: 400.4559035
A18: ambulant-operativ | B18: 43 | C18: 1104.488372 | D18: 428 | E18: 580 | F18: 681 | G18: 1096 | H18: 2098 | I18: 1566.051562
A19: ambulant-stationär | B19: (wegen zu geringer Besetzung keine weitere Auswertung möglich)
A20: Chirurgie (mit Unfallchirurgie) | B20: 130 | C20: 4328.707692 | D20: 2234 | E20: 2973 | F20: 3585 | G20: 4776 | H20: 7900 | I20: 2697.644104
A21: ambulant-konservativ | B21: (wegen zu geringer Besetzung keine weitere Auswertung möglich)
A22: ambulant-operativ | B22: 107 | C22: 3717.476636 | D22: 2120 | E22: 2883 | F22: 3436 | G22: 4265 | H22: 6309 | I22: 1329.286419
A23: ambulant-stationär | B23: 21 | C23: 7566.857143 | D23: 3490 | E23: 5150 | F23: 6140 | G23: 7239 | H23: 12390 | I23: 4932.805503
A24: Dermatologie | B24: 114 | C24: 1091.078947 | D24: 572 | E24: 724 | F24: 854 | G24: 1201 | H24: 1902 | I24: 817.4598488
A25: ambulant-konservativ | B25: 20 | C25: 754.7 | D25: 319.5 | E25: 650.5 | F25: 748.5 | G25: 873 | H25: 1227.5 | I25: 235.1020159
A26: ambulant-operativ | B26: 93 | C26: 1168.752688 | D26: 595 | E26: 773 | F26: 877 | G26: 1298 | H26: 2100 | I26: 880.9012388
A27: ambulant-stationär | B27: (wegen zu geringer Besetzung keine weitere Auswertung möglich)
A28: Gynäkologie | B28: 400 | C28: 3086.2175 | D28: 1335 | E28: 1698 | F28: 1986 | G28: 2484 | H28: 7467 | I28: 4765.148231
A29: ambulant-konservativ | B29: 298 | C29: 1910.124161 | D29: 1272 | E29: 1571 | F29: 1789.5 | G29: 2148 | H29: 2886 | I29: 526.0816928
A30: ambulant-operativ | B30: 75 | C30: 3062.56 | D30: 1952 | E30: 2336 | F30: 2644 | G30: 3056 | H30: 5378 | I30: 1781.741679
A31: ambulant-stationär | B31: 27 | C31: 16132.51852 | D31: 4133 | E31: 6800 | F31: 13106 | G31: 24000 | H31: 32450 | I31: 11985.62285
A32: Hals-Nasen-Ohren-Heilkunde | B32: 172 | C32: 1273.063953 | D32: 361 | E32: 524.5 | F32: 900 | G32: 1683.5 | H32: 3188 | I32: 1116.292942
A33: ambulant-konservativ | B33: 65 | C33: 714.0307692 | D33: 340 | E33: 440 | F33: 499 | G33: 634 | H33: 1195 | I33: 1069.903164
A34: ambulant-operativ | B34: 41 | C34: 956.804878 | D34: 447 | E34: 675 | F34: 787 | G34: 1100 | H34: 1756 | I34: 501.8229379
A35: ambulant-stationär | B35: 66 | C35: 2020.090909 | D35: 989 | E35: 1471 | F35: 1750 | G35: 2254 | H35: 4330 | I35: 1026.612574
A36: Orthopädie | B36: 123 | C36: 2941.495935 | D36: 1284 | E36: 1694 | F36: 2301 | G36: 3094 | H36: 7500 | I36: 2270.023573
A37: ambulant-konservativ | B37: 84 | C37: 2101.428571 | D37: 1193 | E37: 1629.5 | F37: 1901.5 | G37: 2424 | H37: 3372 | I37: 828.5364697
A38: ambulant-operativ | B38: 24 | C38: 3256.625 | D38: 1700 | E38: 2763.5 | F38: 3094 | G38: 3802 | H38: 4600 | I38: 1058.851955
A39: ambulant-stationär | B39: 15 | C39: 7141.666667 | D39: 1433 | E39: 4496 | F39: 6800 | G39: 10000 | H39: 16037 | I39: 3960.681772
A40: Orthopädie (mit Unfallchirurgie) | B40: 31 | C40: 4673.870968 | D40: 1831 | E40: 2300 | F40: 3486 | G40: 4863 | H40: 10200 | I40: 5272.3386
A41: ambulant-konservativ | B41: 11 | C41: 2397.636364 | D41: 1987 | E41: 2023 | F41: 2300 | G41: 2553 | H41: 3837 | I41: 536.6940046
A42: ambulant-operativ | B42: 15 | C42: 3837.333333 | D42: 1587 | E42: 3350 | F42: 4025 | G42: 4700 | H42: 6224 | I42: 1236.573126
A43: ambulant-stationär | B43: (wegen zu geringer Besetzung keine weitere Auswertung möglich)
A44: Radiologie | B44: 12 | C44: 2654.333333 | D44: 730 | E44: 1313 | F44: 1887.5 | G44: 2715.5 | H44: 9000 | I44: 2427.063071
B45: (wegen zu geringer Besetzung keine weitere Auswertung möglich)
A46: Urologie | B46: 63 | C46: 1392.285714 | D46: 684 | E46: 824 | F46: 1075 | G46: 1747 | H46: 2904 | I46: 832.1626591
A47: ambulant-konservativ | B47: (wegen zu geringer Besetzung keine weitere Auswertung möglich)
A48: ambulant-operativ | B48: 42 | C48: 1238.809524 | D48: 684 | E48: 857 | F48: 1070.5 | G48: 1395 | H48: 2205 | I48: 529.1244604
A49: ambulant-stationär | B49: 12 | C49: 2359.916667 | D49: 709 | E49: 1579 | F49: 2134.5 | G49: 2927.5 | H49: 4719 | I49: 1206.032146
A50: Physikalische und rehabilitative Medizin | B50: 11 | C50: 553.6363636 | D50: 323 | E50: 376 | F50: 517 | G50: 699 | H50: 917 | I50: 185.0525724
B51: (wegen zu geringer Besetzung keine weitere Auswertung möglich)
A52: Kardiologie | B52: 18 | C52: 818.1111111 | D52: 316 | E52: 480 | F52: 786.5 | G52: 1213 | H52: 1444 | I52: 391.8015537
B53: (wegen zu geringer Besetzung keine weitere Auswertung möglich)
A54: Innere Medizin | B54: 95 | C54: 746.3263158 | D54: 334 | E54: 433 | F54: 540 | G54: 884 | H54: 1939 | I54: 517.8431834
A55: ambulant-konservativ | B55: 67 | C55: 583.4477612 | D55: 334 | E55: 409 | F55: 494 | G55: 582 | H55: 1119 | I55: 350.4991801
A56: ambulant-operativ | B56: 20 | C56: 1038.8 | D56: 418.5 | E56: 659 | F56: 884 | G56: 1356 | H56: 2237 | I56: 546.5433579
A57: ambulant-stationär | B57: (wegen zu geringer Besetzung keine weitere Auswertung möglich)
A58: Neurologie, Nervenheilkunde und Pyschiatrie | B58: 176 | C58: 470.4943182 | D58: 247 | E58: 358 | F58: 434 | G58: 525.5 | H58: 930 | I58: 196.5694351
B59: (wegen zu geringer Besetzung keine weitere Auswertung möglich)
A60: Psychotherapie, Psychosomatische Medizin | B60: 55 | C60: 269.6909091 | D60: 82 | E60: 130 | F60: 242 | G60: 395 | H60: 630 | I60: 158.2167843
B61: (wegen zu geringer Besetzung keine weitere Auswertung möglich)
A62: Quelle: Zi-Praxis-Panel, Sondererhebung 2014.

Sheet T24
A1: Tabelle 24: Anteil der Inhaber mit mitversicherten angestellte Ärzten
A2: Fachgebiet | B2: 2009 | C2: 2013 | D2: Veränderung 2013 - 2009
B3: in % | C3: in % | D3: Differenz in Prozentpunkten
A4: Allgemeinmedizin und Innere Medizin (hausärztlich) | B4: 9.420289855 | C4: 14.49275362 | D4: 5.072463768
A5: Kinder und Jugendmedizin | B5: 12.71186441 | C5: 18.6440678 | D5: 5.93220339
A6: Anästhesiologie | B6: 11.62790698 | C6: 13.95348837 | D6: 2.325581395
A7: Augenheilkunde | B7: 11.34751773 | C7: 9.929078014 | D7: -1.418439716
A8: Chirurgie (mit Unfallchirurgie) | B8: 10.76923077 | C8: 14.61538462 | D8: 3.846153846
A9: Dermatologie | B9: 13.15789474 | C9: 15.78947368 | D9: 2.631578947
A10: Gynäkologie | B10: 7.25 | C10: 9.5 | D10: 2.25
A11: Hals-Nasen-Ohren-Heilkunde | B11: 5.813953488 | C11: 8.720930233 | D11: 2.906976744
A12: Orthopädie | B12: 8.130081301 | C12: 8.130081301 | D12: 0
A13: Orthopädie (mit Unfallchirurgie) | B13: 22.58064516 | C13: 16.12903226 | D13: -6.451612903
A14: Radiologie | B14: 41.66666667 | C14: 41.66666667 | D14: 0
A15: Urologie | B15: 9.523809524 | C15: 12.6984127 | D15: 3.174603175
A16: Physikalische und rehabilitative Medizin | B16: 0 | C16: 9.090909091 | D16: 9.090909091
A17: Kardiologie | B17: 5.555555556 | C17: 5.555555556 | D17: 0
A18: Innere Medizin | B18: 10.52631579 | C18: 15.78947368 | D18: 5.263157895
A19: Neurologie, Nervenheilkunde und Pyschiatrie | B19: 9.090909091 | C19: 7.386363636 | D19: -1.704545455
A20: Psychotherapie, Psychosomatische Medizin | B20: 0 | C20: 0 | D20: 0
A21: Quelle: Zi-Praxis-Panel, Sondererhebung 2014.

Sheet T25
A1: Tabelle 25: Schadensmeldungen im Zeitraum 2009 bis 2013 nach Tarifart
A2: Tarifart | B2: Schadensmeldungen im Zeitraum 2009 bis 2013
B3: keine | C3: bis zu 3 | D3: mehr als 3
A4: ambulant-konservativ | B4: 0.8556701031 | C4: 0.1383161512 | D4: 0.006013745704
A5: ambulant-operativ | B5: 0.6679389313 | C5: 0.2958015267 | D5: 0.03625954198
A6: ambulant-stationär | B6: 0.6615384615 | C6: 0.2871794872 | D6: 0.05128205128
A7: Hinweis: Zahlen wurden gerundet.
A8: Quelle: Zi-Praxis-Panel, Sondererhebung 2014.

Sheet T26
A1: Tabelle 26: Teilnehmerzahl, gewichtete Teilnehmerzahl und Grundgesamtheit nach Regionstyp und KV-Bereich im Berichtsjahr 2011
B2: Stichprobe | H2: Grundgesamtheit
B3: ZiPP Teilnehmer | D3: ZiPP Analysefälle | F3: Analysefälle gewichtet
A5: Gesamt | B5: 4739 | C5: 1 | D5: 4154 | E5: 1 | F5: 4154 | G5: 1 | H5: 96483 | I5: 1
A6: Regionstyp | B6: ZiPP Teilnehmer | D6: ZiPP Analysefälle | F6: Analysefälle gewichtet | H6: Grundgesamtheit
A8: Stadt | B8: 1759 | C8: 0.371 | D8: 1529 | E8: 0.368 | F8: 1628 | G8: 0.392 | H8: 38514 | I8: 0.399
A9: Land | B9: 972 | C9: 0.205 | D9: 869 | E9: 0.209 | F9: 697 | G9: 0.168 | H9: 13717 | I9: 0.142
A10: Umland | B10: 2008 | C10: 0.424 | D10: 1756 | E10: 0.423 | F10: 1830 | G10: 0.44 | H10: 44252 | I10: 0.459
A11: KV-Bereich | B11: ZiPP Teilnehmer | D11: ZiPP Analysefälle | F11: Analysefälle gewichtet | H11: Grundgesamtheit
A13: Baden-Württemberg | B13: 683 | C13: 0.141 | D13: 600 | E13: 0.144 | F13: 563 | G13: 0.141 | H13: 12777 | I13: 0.133
A14: Bayerns | B14: 672 | C14: 0.131 | D14: 551 | E14: 0.128 | F14: 609 | G14: 0.139 | H14: 15325 | I14: 0.158
A15: Berlin | B15: 271 | C15: 0.054 | D15: 237 | E15: 0.052 | F15: 262 | G15: 0.057 | H15: 5844 | I15: 0.061
A16: Brandenburg | B16: 179 | C16: 0.036 | D16: 149 | E16: 0.037 | F16: 87 | G16: 0.023 | H16: 2600 | I16: 0.027
A17: Bremen | B17: 36 | C17: 0.011 | D17: 30 | E17: 0.01 | F17: 29 | G17: 0.012 | H17: 1027 | I17: 0.011
A18: Hamburg | B18: 121 | C18: 0.025 | D18: 95 | E18: 0.025 | F18: 116 | G18: 0.033 | H18: 2541 | I18: 0.027
A19: Hessen | B19: 323 | C19: 0.062 | D19: 265 | E19: 0.063 | F19: 294 | G19: 0.077 | H19: 7167 | I19: 0.075
A20: Mecklenburg-Vorpommern | B20: 154 | C20: 0.03 | D20: 129 | E20: 0.029 | F20: 78 | G20: 0.017 | H20: 1910 | I20: 0.02
A21: Niedersachsen | B21: 475 | C21: 0.095 | D21: 394 | E21: 0.096 | F21: 416 | G21: 0.102 | H21: 8133 | I21: 0.084
A22: Nordrhein | B22: 498 | C22: 0.104 | D22: 396 | E22: 0.102 | F22: 424 | G22: 0.102 | H22: 11477 | I22: 0.12
A23: Rheinland-Pfalz | B23: 246 | C23: 0.054 | D23: 193 | E23: 0.053 | F23: 228 | G23: 0.056 | H23: 4345 | I23: 0.045
A24: Saarland | B24: 62 | C24: 0.012 | D24: 55 | E24: 0.012 | F24: 52 | G24: 0.012 | H24: 1229 | I24: 0.013
A25: Sachsen | B25: 257 | C25: 0.053 | D25: 222 | E25: 0.055 | F25: 213 | G25: 0.05 | H25: 5057 | I25: 0.052
A26: Sachsen-Anhalt | B26: 185 | C26: 0.032 | D26: 157 | E26: 0.034 | F26: 134 | G26: 0.03 | H26: 2535 | I26: 0.026
A27: Schleswig-Holstein | B27: 202 | C27: 0.041 | D27: 164 | E27: 0.041 | F27: 137 | G27: 0.03 | H27: 3088 | I27: 0.032
A28: Thüringen | B28: 154 | C28: 0.03 | D28: 130 | E28: 0.031 | F28: 118 | G28: 0.031 | H28: 2537 | I28: 0.026
A29: Westfalen-Lippe | B29: 435 | C29: 0.089 | D29: 352 | E29: 0.088 | F29: 361 | G29: 0.088 | H29: 8730 | I29: 0.09
A30: Hinweis: Die Angaben zu ZiPP-Analysefälle und Analysefälle gewichtet beziehen sich auf die Längsschnittstichprobe für die Jahre 2009, 2010 und 2011 zur Analyse der wirtschaftlichen Entwicklung. Die Angaben zur Grundgesamtheit werden bestimmt aus KV-Abrechnungsdaten und dem Bundesarztregister.
A31: Quelle: Zi-Praxis-Panel 2013 und KV-Abrechnungsdaten/Bundesarztregister.

Sheet T27
A1: Tabelle 27: Kennzahlenvergleich für das Zi-Praxis-Panel mit dem Honorarbericht der KBV im 4. Quartal 2011 – Abweichungen in Prozent
A2: Abrechnungsgruppe | B2: Behandlungsfälle | C2: Honorarumsatz | D2: Honorarumsatz
B3: je Arzt | C3: je Arzt | D3: je Behandlungsfall
A4: Allgemeinmedizin und Innere Medizin (hausärztlich) | B4: 0.02004716981 | C4: -0.004189520128 | D4: -0.02386675824
A5: Anästhesiologie | B5: 0.1115702479 | C5: 0.0834605464 | D5: -0.02246617309
A6: Augenheilkunde | B6: 0.0442804428 | C6: -0.1991259219 | D6: -0.2332253586
A7: Chirurgie | B7: 0.07378129117 | C7: 0.02580692596 | D7: -0.04382414515
A8: Dermatologie | B8: -0.00144092219 | C8: -0.0196394076 | D8: -0.01847437426
A9: Gynäkologie | B9: 0.002754820937 | C9: 0.001243090857 | D9: -0.002174963751
A10: Hals-Nasen-Ohren-Heilkunde* | B10: 0.02633889377 | C10: -0.005062452687 | D10: -0.03018054433
A11: Innere Medizin - Gastroenterologie | B11: 0.05511811024 | C11: 0.02130522262 | D11: -0.03152644457
A12: Innere Medizin - Kardiologie | B12: 0.2681818182 | C12: 0.07556583464 | D12: -0.1512163892
A13: Innere Medizin - Pneumologie | B13: -0.002504173623 | C13: -0.01126560316 | D13: -0.008661758337
A14: Innere Medizin - ohne bzw. mit mehreren Schwerpunkten** | B14: 0.2438356164 | C14: -0.1608176685 | D14: -0.3251000174
A15: Innere Medizin - sonstige Fachgebiete*** | B15: 0.5463917526 | C15: -0.5179950338 | D15: -0.6884770115
A16: Kinder- und Jugendmedizin | B16: 0.02816901408 | C16: 0.00271948086 | D16: -0.02423564504
A17: Kinder- und Jugendpsychiatrie und -psychotherapie | B17: 0.2178571429 | C17: 0.2180510178 | D17: 0.002069026237
A18: Nervenheilkunde | B18: 0.0241343127 | C18: 0.03031617673 | D18: 0.005621693122
A19: Neurologie | B19: 0.2657718121 | C19: 0.2147271499 | D19: -0.03953748601
A20: Nuklearmedizin | B20: 0.232776618 | C20: -0.04791751131 | D20: -0.2275637661
A21: Orthopädie | B21: 0.07481751825 | C21: 0.01311621186 | D21: -0.05687588869 | H21: ,
A22: Physikalische und rehabilitative Medizin | B22: 0.1053484603 | C22: 0.03066063447 | D22: -0.0679334118
A23: Psychiatrie | B23: -0.04106280193 | C23: -0.04616821867 | D23: -0.007230117178
A24: Psychosomatische Medizin und Psychotherapie | B24: 0.1458333333 | C24: 0.1050292651 | D24: -0.02907877801
A25: Psychotherapie | B25: 0.2608695652 | C25: 0.1547080252 | D25: -0.08283796249
A26: Radiologie | B26: -0.12 | C26: -0.1865134608 | D26: -0.07538923791
A27: Urologie | B27: -0.007662835249 | C27: -0.00513626201 | D27: 0.0029455081
A28: Interpretationsbeispiel: Bei der Augenheilkunde liegt die durchschnittliche Zahl der Behandlungsfälle im Zi-Praxis-Panel über der im Honorarbericht der KBV (4,4%). Beim Honorarumsatz je Arzt (-19,8%) und dem Honorarumsatz je Behandlungsfall (-23,3%) liegen die Durchschnittswerte aus dem Zi-Praxis-Panel unterhalb denen aus dem Honorarbericht der KBV.
A29: Hinweis: * Inkl. Phoniatrie und Pädaudiologie. ** Die Abweichungen sind bedingt durch den höheren Anteil von Praxen der Abrechnungsgruppe Innere Medizin - ohne Schwerpunkt im Zi-Praxis-Panel. *** Die hohen Abweichungen sind vorwiegend auf die geringe Teilnahme von Praxen der Abrechnungs- gruppe Innere Medizin - Nephrologie im Zi-Praxis-Panel zurückzuführen.
A30: Quelle: Zi-Praxis-Panel 2013 (KV-Abrechnungsdaten) und Honorarbericht der KBV (http://www.kbv.de/html/honorarbericht.php).

Sheet T28
A1: Tabelle 28: Jahresüberschuss je Inhaber in Tausend Euro nach ZiPP und KSE
B2: Anzahl Praxen | E2: Jahresüberschuss je Inhaber …
B3: KSE | C3: P1 | D3: P2 | E3: KSE | F3: A1 | G3: A2 | H3: A3
A5: Gesamt (ohne Psychotherapie) | B5: 74905 | C5: 3938 | D5: 3698 | E5: 166 | F5: 156 | G5: 156 | H5: 161
A6: Allgemeinmedizin | B6: 29304 | C6: 376 | D6: 373 | E6: 138 | F6: 140 | G6: 139 | H6: 139
A7: Innere Medizin | B7: 11299 | C7: 341 | D7: 338 | E7: 184 | F7: 174 | G7: 174 | H7: 198
A8: Gynäkologie | B8: 7178 | C8: 466 | D8: 462 | E8: 144 | F8: 143 | G8: 142 | H8: 142
A9: Kinder- und Jugendmedizin | B9: 4363 | C9: 385 | D9: 382 | E9: 140 | F9: 155 | G9: 155 | H9: 155
A10: Augenheilkunde | B10: 3466 | C10: 239 | D10: 235 | E10: 229 | F10: 190 | G10: 190 | H10: 190
A11: HNO-Heilkunde | B11: 2785 | C11: 334 | D11: 333 | E11: 148 | F11: 150 | G11: 150 | H11: 150
A12: Orthopädie | B12: 3519 | C12: 290 | D12: 286 | E12: 193 | F12: 182 | G12: 183 | H12: 183
A13: Chirurgie | B13: 3230 | C13: 207 | D13: 214 | E13: 198 | F13: 159 | G13: 161 | H13: 162
A14: Dermatologie | B14: 2818 | C14: 221 | D14: 220 | E14: 185 | F14: 168 | G14: 167 | H14: 167
A15: Radiologie und Nuklearmedizin | B15: 977 | C15: 49 | D15: 52 | E15: 303 | F15: 295 | G15: 287 | H15: 291
A16: Neurologisch-psychiatrischer Bereich (inkl. Psychosomatik) | B16: 4101 | C16: 867 | D16: 640 | E16: 173 | F16: 132 | G16: 134 | H16: 146
A17: Urologie | B17: 1865 | C17: 163 | D17: 163 | E17: 168 | F17: 174 | G17: 174 | H17: 174
A18: Quellen: Zi-Praxis-Panel 2013, Kostenstrukturerhebung des Statistischen Bundesamtes 2013.

Sheet T29
A1: Tabelle 29: Internistische Schwerpunkte im Bundesarztregister und der Ziehungsgesamtheit der KSE
B2: KSE | C2: BAR
A3: Innere Medizin - Angiologie | B3: 62 | C3: 76
A4: Innere Medizin - Endokrinologie | B4: 478 | C4: 58
A5: Innere Medizin - Gastroenterologie | B5: 833 | C5: 350
A6: Innere Medizin - Onkologie | B6: 314 | C6: 196
A7: Innere Medizin - Kardiologie | B7: 1793 | C7: 679
A8: Innere Medizin - Nephrologie | B8: 321 | C8: 319
A9: Innere Medizin - Pneumologie | B9: 695 | C9: 552
A10: Innere Medizin - Rheumatologie | B10: 216 | C10: 187
A11: Innere Medizin - Sonstige | C11: 1051
A12: Summe | B12: =SUM(B3:B10) -> 4712 | C12: =SUM(C3:C11) -> 3468
A13: Hinweis: Die Angaben aus dem Bundesarztregister beziehen sich auf fachärztlich tätige Internisten.
A14: Quelle: Statistisches Bundesamt, Ziehungsgesamtheit ZiPP 2013.

Sheet T30
A1: Tabelle 30: Praxen des neurologisch-psychiatrischen Bereichs
C2: KSE 2011 | F2: BAR
B3: Praxen | C3: mit | D3: ohne | E3: Praxen | F3: mit | G3: ohne
C4: Psychosomatik | F4: Psychosomatik
A5: Neurologie | B5: 457 | C5: =B5/B$11 -> 0.1208674954 | D5: =B5/B$13 -> 0.1114362351 | E5: 288 | F5: =E5/E$11 -> 0.07860262009 | G5: =E5/E$13 -> 0.04879701796
A6: Kinder- und Jugendpsychiatrie und -psychotherapie | B6: 714 | C6: 0.1888389315 | D6: 0.1741038771 | E6: 579 | F6: =E6/E$11 -> 0.1580240175 | G6: =E6/E$13 -> 0.09810233819
A7: Psychiatrie | B7: 560 | C7: 0.1481089659 | D7: 0.1365520605 | E7: 877 | F7: =E7/E$11 -> 0.2393558952 | G7: 0.1485936971
A8: Neurologie und Psychiatrie | B8: 1009 | C8: 0.2668606189 | D8: 0.2460375518 | E8: 1920 | F8: =E8/E$11 -> 0.5240174672 | G8: 0.3253134531
A9: Neurologie, Psychiatrie und Psychotherapie | B9: 313 | C9: 0.08278233272 | D9: 0.07632284809 | E9: - | F9: - | G9: -
A10: ohne Zuordnung | B10: 728 | C10: 0.1925416556 | D10: 0.1775176786 | E10: - | F10: - | G10: -
A11: Summe (ohne Psychosomatik) | B11: =SUM(B5:B10) -> 3781 | C11: =SUM(C5:C10) -> 1 | D11: =SUM(D5:D10) -> 0.9219702512 | E11: =SUM(E5:E9) -> 3664 | F11: =SUM(F5:F9) -> 1 | G11: =SUM(G5:G9) -> 0.6208065063
A12: Psychosomatik | B12: 320 | C12: 0 | D12: =B12/B$13 -> 0.07802974884 | E12: 2238 | F12: 0 | G12: =E12/E$13 -> 0.3791934937
A13: Summe | B13: =SUM(B5:B10,B12) -> 4101 | C13: 1 | D13: 1 | E13: =SUM(E5:E9,E12) -> 5902 | F13: 1 | G13: 1
A14: Quelle: Statistisches Bundesamt 2013. Ziehungsgesamtheit ZiPP (aus dem Bundesarztregister 2011)

Sheet T31
A1: Tabelle 31: Einteilung der Fachgebiete nach Anzahl der KV-Honorarklassen und Regionstypen für das Gewichtungsschema der Fachgebiete
A2: 2 KV-Honorarklassen | B2: 3 KV-Honorarklassen | C2: 4 KV-Honorarklassen
A3: Innere Medizin – sonstige Fachgebiete* | B3: Innere Medizin – Gastroenterologie | C3: Kinder- und Jugendpsychiatrie und -psychotherapie
A4: Nuklearmedizin | B4: Innere Medizin – Kardiologie | C4: Physikalische und rehabilitative Medizin
B5: Innere Medizin – ohne Schwerpunkte /schwerpunktübergreifend
B6: Neurologie
B7: Radiologie
B8: Fachübergreifende Praxen (hausärztlich)
A9: 5 KV-Honorarklassen | B9: 5 KV-Honorarklassen und 3 Regionstypen
A10: Allgemeinmedizin und Innere Medizin (hausärztlich) Bayern | B10: Allgemeinmedizin und Innere Medizin (hausärztlich) ohne Bayern und Baden-Württemberg
A11: Allgemeinmedizin und Innere Medizin (hausärztlich) Baden-Württemberg | B11: Gynäkologie
A12: Anästhesiologie | B12: Hals-Nasen-Ohren-Heilkunde
A13: Augenheilkunde | B13: Kinder- und Jugendmedizin
A14: Chirurgie | B14: Orthopädie
A15: Dermatologie | B15: Psychotherapie
A16: Innere Medizin – Pneumologie
A17: Nervenheilkunde
A18: Psychiatrie
A19: Psychosomatische Medizin und Psychotherapie
A20: Urologie
A21: Fachgruppenübergreifende Praxen (fachärztlich und versorgungsbereichsübergreifend)
A22: Hinweis: Ein Überblick über die fachgebietsspezifischen Klassengrenzen findet sich in Tabelle 59.
A23: Quelle: Eigene Darstellung.

Sheet T32
A1: Tabelle 32: Teilnehmer 2013 nach Erstteilnahme nach Regionstyp, Organisationsform und Fachgebiet
A2: Regionstyp, Organisationsform, Fachgebiet | B2: Teilnahme in 2013 | C2: Erstteilnahme am Panel in …
C3: 2013 | D3: 2012 | E3: 2011 | F3: 2010
B4: Praxen | C4: Praxen | D4: Praxen | E4: Praxen | F4: Praxen
A5: Gesamt | B5: 4739 | C5: 1164 | D5: 1122 | E5: 752 | F5: 1701
A6: Stadt | B6: 1759 | C6: 447 | D6: 414 | E6: 294 | F6: 604
A7: Land | B7: 972 | C7: 211 | D7: 205 | E7: 130 | F7: 426
A8: Umland | B8: 2008 | C8: 506 | D8: 503 | E8: 328 | F8: 671
A9: Einzelpraxis | B9: 3772 | C9: 892 | D9: 923 | E9: 598 | F9: 1359
A10: Gemeinschaftspraxis | B10: 949 | C10: 267 | D10: 196 | E10: 150 | F10: 336
A11: MVZ | B11: 17 | C11: 4 | D11: 3 | E11: 4 | F11: 6
A12: keine Zuordnung möglich | B12: 5 | C12: 5 | D12: 0 | E12: 0 | F12: 0
A13: Allgemeinmedizin und Innere Medizin (hausärztlich) | B13: 514 | C13: 169 | D13: 151 | E13: 83 | F13: 111
A14: Kinder- und Jugendmedizin | B14: 390 | C14: 111 | D14: 75 | E14: 85 | F14: 119
A15: Anästhesiologie | B15: 109 | C15: 27 | D15: 20 | E15: 20 | F15: 42
A16: Augenheilkunde | B16: 256 | C16: 74 | D16: 45 | E16: 63 | F16: 74
A17: Chirurgie | B17: 215 | C17: 48 | D17: 69 | E17: 44 | F17: 54
A18: Dermatologie | B18: 228 | C18: 63 | D18: 61 | E18: 37 | F18: 67
A19: Gynäkologie | B19: 479 | C19: 172 | D19: 134 | E19: 32 | F19: 141
A20: Hals-Nasen-Ohren-Heilkunde | B20: 340 | C20: 82 | D20: 76 | E20: 62 | F20: 120
A21: Phoniatrie und Pädaudiologie | B21: 5 | C21: 1 | D21: 0 | E21: 0 | F21: 4
A22: Orthopädie | B22: 300 | C22: 73 | D22: 83 | E22: 55 | F22: 89
A23: Radiologie | B23: 40 | C23: 12 | D23: 4 | E23: 4 | F23: 20
A24: Nuklearmedizin | B24: 14 | C24: 2 | D24: 7 | E24: 1 | F24: 4
A25: Strahlenmedizin | B25: 5 | C25: 2 | D25: 2 | E25: 0 | F25: 1
A26: Urologie | B26: 169 | C26: 36 | D26: 32 | E26: 37 | F26: 64
A27: Physikalische und rehabilitative Medizin | B27: 39 | C27: 9 | D27: 10 | E27: 4 | F27: 16
A28: Innere Medizin - Angiologie | B28: 12 | C28: 3 | D28: 3 | E28: 1 | F28: 5
A29: Innere Medizin - Endokrinologie | B29: 4 | C29: 0 | D29: 0 | E29: 0 | F29: 4
A30: Innere Medizin - Gastroenterologie | B30: 48 | C30: 16 | D30: 15 | E30: 4 | F30: 13
A31: Innere Medizin - Hämato-/Onkologie | B31: 18 | C31: 3 | D31: 3 | E31: 6 | F31: 6
A32: Innere Medizin - Kardiologie | B32: 33 | C32: 4 | D32: 7 | E32: 7 | F32: 15
A33: Innere Medizin - Nephrologie | B33: 4 | C33: 1 | D33: 1 | E33: 0 | F33: 2
A34: Innere Medizin - Pneumologie | B34: 48 | C34: 13 | D34: 5 | E34: 8 | F34: 22
A35: Innere Medizin - Rheumatologie | B35: 14 | C35: 4 | D35: 3 | E35: 1 | F35: 6
A36: Innere Medizin - ohne bzw. mit mehreren Schwerpunkten | B36: 44 | C36: 6 | D36: 3 | E36: 5 | F36: 30
A37: Kinder- und Jugendpsychiatrie und -psychotherapie | B37: 121 | C37: 27 | D37: 19 | E37: 15 | F37: 60
A38: Neurochirurgie | B38: 8 | C38: 4 | D38: 2 | E38: 0 | F38: 2
A39: Pathologie | B39: 3 | C39: 1 | D39: 1 | E39: 0 | F39: 1
A40: Nervenheilkunde | B40: 150 | C40: 27 | D40: 19 | E40: 31 | F40: 73
A41: Neurologie, Nervenheilkunde, Psychiatrie | B41: 89 | C41: 13 | D41: 14 | E41: 18 | F41: 44
A42: Neurologie | B42: 41 | C42: 10 | D42: 7 | E42: 4 | F42: 20
A43: Psychiatrie | B43: 127 | C43: 26 | D43: 21 | E43: 15 | F43: 65
A44: Psychosomatische Medizin und Psychotherapie | B44: 363 | C44: 65 | D44: 105 | E44: 34 | F44: 160
A45: Psychotherapie | B45: 426 | C45: 45 | D45: 112 | E45: 64 | F45: 205
A46: Übergreifend tätige Praxen | B46: 61 | C46: 6 | D46: 10 | E46: 8 | F46: 37
A47: Hinweis: Bei einigen Praxen war eine Fachgebietszuordnung nicht möglich.
A48: Quelle: Zi-Praxis-Panel 2010, 2011, 2012, 2013.

Sheet T33
A1: Tabelle 33: Fachgebiete, Fachbereiche und ausgeschlossene Fachgebiete
A2: Fachgebiet | B2: Fachbereich | C2: Versorgungsbereich
A3: Allgemeinmedizin und Innere Medizin (hausärztlich) | B3: Hausärztlicher Bereich | C3: Hausärztliche Versorgung
A4: Kinder- und Jugendmedizin
A5: Anästhesiologie | B5: Fachärztlicher Bereich I | C5: Fachärztliche Versorgung
A6: Augenheilkunde
A7: Dermatologie
A8: Gynäkologie
A9: Hals-Nasen-Ohren-Heilkunde*
A10: Physikalische und rehabilitative Medizin
A11: Chirurgie | B11: Fachärztlicher Bereich II
A12: Nuklearmedizin
A13: Orthopädie
A14: Radiologie
A15: Urologie
A16: Innere Medizin - Gastroenterologie | B16: Internistischer Bereich
A17: Innere Medizin - Kardiologie
A18: Innere Medizin - Pneumologie
A19: Innere Medizin - ohne bzw. mit mehreren Schwerpunkten
A20: Innere Medizin - sonstige Fachgebiete**
A21: Kinder- und Jugendpsychiatrie und -psychotherapie | B21: Neurologisch-psychiatrischer Bereich
A22: Neurologie
A23: Nervenheilkunde
A24: Neurologie, Nervenheilkunde, Psychiatrie
A25: Psychiatrie
A26: Psychosomatische Medizin und Psychotherapie | B26: Psychotherapeutischer und psychosomatischer Bereich | C26: Psychotherapeutische und psychosomatische Versorgung
A27: Psychotherapie***
A28: Übergreifend tätige Praxen**** | B28: Übergreifend tätige Praxen | C28: Übergreifend tätige Praxen
A29: Aufgrund geringer Teilnehmerzahl ausgeschlossene Fachgebiete
A30: Humangenetik
A31: Neurochirurgie
A32: Pathologie
A33: Strahlentherapie
A34: Hinweis: * Das Fachgebiet Phoniatrie und Pädaudiologie wurde dem Fachgebiet HNO zugeordnet. ** Dieses Fachgebiet setzt sich zusammen aus: Angiologie, Endokrinologie, Hämato-/Onkologie, Nephrologie und Rheumatologie. *** Das Fachgebiet Psychotherapie beinhaltet ärztliche und psychologische Psychotherapeuten. **** Das Fachgebiet "Übergreifend tätige Praxen" beinhaltet Praxen mit fach- und versorgungsbereichsübergreifendem Leistungssprektrum.
A35: Quelle: Eigene Zusammenstellung.

Sheet T34
A1: Tabelle 34: Praxiseinnahmen je Praxis und je Inhaber nach Fachgebiet im Jahr 2011
A2: Fachgebiet | B2: Praxen | C2: Einnahmen je Praxis in Euro | D2: Einnahmen je Inhaber in Euro | E2: davon aus … | J2: relativer Standardfehler für Einnahmen
E3: GKV | F3: Privat | G3: BG/Unfall | H3: Sonstige
A5: Gesamt | B5: 4152 | C5: 356811.5687 | D5: 281483.8127 | E5: 0.7309078349 | F5: 0.20944939 | G5: 0.009489878445 | H5: 0.05015263526 | J5: 0.01756816145
A6: Allgemeinmedizin und Innere Medizin (hausärztlich) | B6: 464 | C6: 339647.982 | D6: 262783.4837 | E6: 0.8198814481 | F6: 0.1393937763 | G6: 0.004293487422 | H6: 0.03643128817 | J6: 0.02385684425
A7: Anästhesiologie | B7: 99 | C7: 447957.5533 | D7: 309013.8526 | E7: 0.6508168645 | F7: 0.251572518 | G7: 0.007142384899 | H7: 0.09046823264 | J7: 0.1231656553
A8: Augenheilkunde | B8: 220 | C8: 494674.8625 | D8: 393410.2919 | E8: 0.5936425078 | F8: 0.3363912096 | G8: 0.01720893693 | H8: 0.05275734561 | J8: 0.08485881502
A9: Chirurgie | B9: 188 | C9: 488786.6817 | D9: 373937.7665 | E9: 0.6615877279 | F9: 0.1676991588 | G9: 0.09303631178 | H9: 0.07766802651 | J9: 0.05844618563
A10: Dermatologie | B10: 198 | C10: 429799.8188 | D10: 338632.7511 | E10: 0.5956882939 | F10: 0.3374893274 | G10: 0.01080034618 | H10: 0.05602203252 | J10: 0.05611808331
A11: Gynäkologie | B11: 432 | C11: 362672.3491 | D11: 292842.249 | E11: 0.6636187907 | F11: 0.2955018318 | G11: 0.001707617505 | H11: 0.03917175992 | J11: 0.03457654242
A12: Hals-Nasen-Ohren-Heilkunde | B12: 297 | C12: 393686.9381 | D12: 290525.9157 | E12: 0.6565882589 | F12: 0.2896283167 | G12: 0.005153856025 | H12: 0.04862956834 | J12: 0.05030660816
A13: Innere Medizin - Gastroenterologie | B13: 38 | C13: 643635.5713 | D13: 553501.1402 | E13: 0.7011906376 | F13: 0.276482715 | G13: 0.0003512426722 | H13: 0.02197540475 | J13: 0.113615904
A14: Innere Medizin - Kardiologie | B14: 27 | C14: 569567.2303 | D14: 482398.8471 | E14: 0.7758944899 | F14: 0.1984310016 | G14: 0.003056652872 | H14: 0.02261785567 | J14: 0.1423040236
A15: Innere Medizin - Pneumologie | B15: 41 | C15: 611001.4717 | D15: 469717.5656 | E15: 0.7483595416 | F15: 0.1898216736 | G15: 0.01143508057 | H15: 0.05038370427 | J15: 0.1210709898
A16: Innere Medizin - ohne bzw. mit mehreren Schwerpunkten | B16: 40 | C16: 643877.3837 | D16: 449094.8695 | E16: 0.7696431878 | F16: 0.2123979009 | G16: 0.002402664213 | H16: 0.01555624705 | J16: 0.1600871898
A17: Innere Medizin - sonstige Fachgebiete | B17: 46 | C17: 762151.7489 | D17: 568200.5802 | E17: 0.7481207319 | F17: 0.1561231757 | G17: 0.01986100842 | H17: 0.07589508399 | J17: 0.09725679517
A18: Kinder- und Jugendmedizin | B18: 355 | C18: 382899.7752 | D18: 294117.3863 | E18: 0.7976131592 | F18: 0.1803677329 | G18: 0.003249559974 | H18: 0.0187695479 | J18: 0.02731146883
A19: Kinder- und Jugendpsychiatrie und -psychotherapie | B19: 98 | C19: 345641.7378 | D19: 306920.7374 | E19: 0.8988716458 | F19: 0.07906341428 | G19: 0.000655568529 | H19: 0.02140937144 | J19: 0.07281115235
A20: Nervenheilkunde | B20: 138 | C20: 329044.9179 | D20: 286055.1264 | E20: 0.7990801752 | F20: 0.1158183831 | G20: 0.01401600656 | H20: 0.07108543511 | J20: 0.04284144438
A21: Neurologie | B21: 32 | C21: 288494.1581 | D21: 258865.5441 | E21: 0.7313909242 | F21: 0.1727966246 | G21: 0.01230158583 | H21: 0.08351086543 | J21: 0.06702592874
A22: Neurologie, Nervenheilkunde, Psychiatrie | B22: 76 | C22: 591802.0852 | D22: 306410.1066 | E22: 0.7196937696 | F22: 0.161945051 | G22: 0.01387273953 | H22: 0.1044884399 | J22: 0.07154055436
A23: Nuklearmedizin | B23: 11 | C23: 1117028.689 | D23: 643218.8478 | E23: 0.6301902659 | F23: 0.2914287564 | G23: 0.002152459264 | H23: 0.07622851847 | J23: 0.1741407855
A24: Orthopädie | B24: 266 | C24: 523141.2854 | D24: 381433.4179 | E24: 0.6290905854 | F24: 0.2934954056 | G24: 0.01263306226 | H24: 0.06478094666 | J24: 0.05154679279
A25: Physikalische und rehabilitative Medizin | B25: 33 | C25: 265050.8157 | D25: 249047.6068 | E25: 0.6800594659 | F25: 0.2401732399 | G25: 0.005839411067 | H25: 0.07392788311 | J25: 0.1127159659
A26: Psychiatrie | B26: 111 | C26: 189157.6966 | D26: 170740.477 | E26: 0.7869778607 | F26: 0.1331776821 | G26: 0.0125085872 | H26: 0.06733586997 | J26: 0.0516163685
A27: Psychosomatische Medizin und Psychotherapie | B27: 331 | C27: 104768.5148 | D27: 103986.5628 | E27: 0.7258267072 | F27: 0.2284855097 | G27: 0.004739446894 | H27: 0.04094833627 | J27: 0.01947517737
A28: Psychotherapie | B28: 386 | C28: 100416.3637 | D28: 98359.61293 | E28: 0.798881633 | F28: 0.1443562434 | G28: 0.0004980990838 | H28: 0.05626402458 | J28: 0.01864908542
A29: Radiologie | B29: 31 | C29: 2571726.268 | D29: 996392.9775 | E29: 0.5314329796 | F29: 0.3328072786 | G29: 0.01777860296 | H29: 0.1179811389 | J29: 0.1244082104
A30: Urologie | B30: 142 | C30: 495457.4583 | D30: 354192.1902 | E30: 0.5698912333 | F30: 0.3793121146 | G30: 0.003777015322 | H30: 0.04701963672 | J30: 0.05768439093
A31: Übergreifend tätige Praxen | B31: 52 | C31: 731566.9784 | D31: 331123.701 | E31: 0.7753355538 | F31: 0.1835408424 | G31: 0.008868812604 | H31: 0.03225479121 | J31: 0.08785857009
A32: Hinweis: Gewichtete Ergebnisse.
A33: Quelle: Zi-Praxis-Panel 2013.

Sheet T35
A1: Tabelle 35: Praxisaufwendungen nach fünf Aufwandsarten und Jahresüberschuss je Praxis und je Inhaber nach Fachgebiet im Jahr 2011
A2: Fachgebiet | B2: Aufwen- dungen je Praxis in Euro | C2: Aufwen- dungen je Inhaber in Euro | D2: davon für … | I2: Jahresüber-schuss je Praxis in Euro | J2: Jahresüber-schuss je Inhaber in Euro | L2: relativer Standardfehler für Aufwendungen | M2: relativer Standardfehler für Jahresüberschuss
D3: Personal | E3: Material und Labor | F3: Miete einschl. NK für Praxis-räume | G3: Abschrei- bungen | H3: Sonstige
A4: Gesamt | B4: 172839 | C4: 136350.3456 | D4: 0.4749118401 | E4: 0.06008214531 | F4: 0.1205358254 | G4: 0.07319813294 | H4: 0.2712720562 | I4: 183972.5686 | J4: 145133.467 | L4: 0.02329527362 | M4: 0.01457817553
A5: Allgemeinmedizin und Innere Medizin (hausärztlich) | B5: 155966.8501 | C5: 120670.5601 | D5: 0.5359508415 | E5: 0.03729959166 | F5: 0.1100423105 | G5: 0.05874141095 | H5: 0.2579658454 | I5: 183681.1319 | J5: 142112.9236 | L5: 0.02669042428 | M5: 0.02652330816
A6: Anästhesiologie | B6: 207910.2753 | C6: 143422.4174 | D6: 0.4157969178 | E6: 0.07540802304 | F6: 0.1284242187 | G6: 0.07872208849 | H6: 0.301648752 | I6: 240047.278 | J6: 165591.4353 | L6: 0.1634384149 | M6: 0.1020829034
A7: Augenheilkunde | B7: 252193.1487 | C7: 200566.8526 | D7: 0.4494561841 | E7: 0.144529281 | F7: 0.1025284366 | G7: 0.07416500598 | H7: 0.2293210923 | I7: 242481.7138 | J7: 192843.4393 | L7: 0.09606237036 | M7: 0.07941905158
A8: Chirurgie | B8: 276410.103 | C8: 211462.7514 | D8: 0.4611075507 | E8: 0.07394230667 | F8: 0.1343666902 | G8: 0.05867221067 | H8: 0.2719112418 | I8: 212376.5787 | J8: 162475.0151 | L8: 0.06398228771 | M8: 0.05885983962
A9: Dermatologie | B9: 228780.4074 | C9: 180252.6092 | D9: 0.4975821148 | E9: 0.07414823738 | F9: 0.120575457 | G9: 0.06244763301 | H9: 0.2452465578 | I9: 201019.4114 | J9: 158380.1419 | L9: 0.06526152419 | M9: 0.05619706656
A10: Gynäkologie | B10: 182983.69 | C10: 147751.422 | D10: 0.4483274072 | E10: 0.06994600803 | F10: 0.1304352844 | G10: 0.08517439569 | H10: 0.2661169047 | I10: 179688.6592 | J10: 145090.827 | L10: 0.03978581223 | M10: 0.03658232274
A11: Hals-Nasen-Ohren-Heilkunde | B11: 194217.7002 | C11: 143325.2408 | D11: 0.477182738 | E11: 0.02454032851 | F11: 0.1400554472 | G11: 0.09337740355 | H11: 0.2648440827 | I11: 199469.2379 | J11: 147200.6749 | L11: 0.04945231658 | M11: 0.05720752785
A12: Innere Medizin - Gastroenterologie | B12: 326845.9689 | C12: 281074.6088 | D12: 0.4336783148 | E12: 0.09161813232 | F12: 0.1101720152 | G12: 0.1132221357 | H12: 0.2513094019 | I12: 316789.6025 | J12: 272426.5314 | L12: 0.1226956467 | M12: 0.1187271825
A13: Innere Medizin - Kardiologie | B13: 256925.3897 | C13: 217604.7096 | D13: 0.4690776547 | E13: 0.0611951572 | F13: 0.09657658332 | G13: 0.06874323544 | H13: 0.3044073694 | I13: 312641.8406 | J13: 264794.1374 | L13: 0.1466694835 | M13: 0.1562845524
A14: Innere Medizin - Pneumologie | B14: 335061.2517 | C14: 257583.9221 | D14: 0.5000166003 | E14: 0.09528994761 | F14: 0.0989235577 | G14: 0.06591410547 | H14: 0.2398557889 | I14: 275940.22 | J14: 212133.6436 | L14: 0.1488300033 | M14: 0.1054136568
A15: Innere Medizin - ohne bzw. mit mehreren Schwerpunkten | B15: 327375.6791 | C15: 228339.6522 | D15: 0.479828895 | E15: 0.07130233622 | F15: 0.08981074228 | G15: 0.08719716713 | H15: 0.2718608594 | I15: 316501.7046 | J15: 220755.2173 | L15: 0.1978281145 | M15: 0.1305017044
A16: Innere Medizin - sonstige Fachgebiete | B16: 369851.752 | C16: 275732.4645 | D16: 0.4999676835 | E16: 0.08271043373 | F16: 0.1268651527 | G16: 0.06602147229 | H16: 0.2244352578 | I16: 392299.997 | J16: 292468.1157 | L16: 0.1133148801 | M16: 0.09671218393
A17: Kinder- und Jugendmedizin | B17: 179190.0436 | C17: 137641.5205 | D17: 0.5366993883 | E17: 0.05607291232 | F17: 0.128193957 | G17: 0.0487491427 | H17: 0.2302845997 | I17: 203709.7317 | J17: 156475.8658 | L17: 0.0278986529 | M17: 0.03093714956
A18: Kinder- und Jugendpsychiatrie und -psychotherapie | B18: 180317.4167 | C18: 160117.1052 | D18: 0.6218847793 | E18: 0.01342534795 | F18: 0.1269900506 | G18: 0.03614774072 | H18: 0.2015520814 | I18: 165324.3211 | J18: 146803.6322 | L18: 0.08494662108 | M18: 0.07368746511
A19: Nervenheilkunde | B19: 132582.5533 | C19: 115260.6133 | D19: 0.4899332746 | E19: 0.01279021241 | F19: 0.1415221423 | G19: 0.05476930723 | H19: 0.3009850634 | I19: 196462.3646 | J19: 170794.5131 | L19: 0.04640565739 | M19: 0.04743488481
A20: Neurologie | B20: 131031.4542 | C20: 117574.4039 | D20: 0.4580050135 | E20: 0.01618444735 | F20: 0.1751363959 | G20: 0.09482336837 | H20: 0.2558507749 | I20: 157462.7039 | J20: 141291.1401 | L20: 0.0666349321 | M20: 0.08261175546
A21: Neurologie, Nervenheilkunde, Psychiatrie | B21: 253240.186 | C21: 131117.0649 | D21: 0.5459655511 | E21: 0.01459759349 | F21: 0.1255557466 | G21: 0.06492422235 | H21: 0.2489568865 | I21: 338561.8992 | J21: 175293.0418 | L21: 0.08524250039 | M21: 0.06737866771
A22: Nuklearmedizin | B22: 704201.9591 | C22: 405500.7515 | D22: 0.3570613679 | E22: 0.1588731519 | F22: 0.07138082048 | G22: 0.1246969141 | H22: 0.2879877456 | I22: 412826.7296 | J22: 237718.0963 | L22: 0.1953895576 | M22: 0.2019215265
A23: Orthopädie | B23: 274410.3111 | C23: 200078.3838 | D23: 0.45414546 | E23: 0.06806301352 | F23: 0.1397960176 | G23: 0.06787869575 | H23: 0.2701168132 | I23: 248730.9742 | J23: 181355.0341 | L23: 0.05092234892 | M23: 0.06071415398
A24: Physikalische und rehabilitative Medizin | B24: 142373.983 | C24: 133777.7424 | D24: 0.4115719147 | E24: 0.03512441822 | F24: 0.1749793822 | G24: 0.06158959175 | H24: 0.3167346932 | I24: 122676.8327 | J24: 115269.8644 | L24: 0.1104758514 | M24: 0.1264252806
A25: Psychiatrie | B25: 68182.36829 | C25: 61543.83508 | D25: 0.3706190075 | E25: 0.00638666537 | F25: 0.1882590607 | G25: 0.06078288213 | H25: 0.3739523843 | I25: 120975.3283 | J25: 109196.6419 | L25: 0.06512534808 | M25: 0.05353830215
A26: Psychosomatische Medizin und Psychotherapie | B26: 28470.37902 | C26: 28257.88702 | D26: 0.1295919627 | E26: 0.01036491907 | F26: 0.2320306288 | G26: 0.08696363899 | H26: 0.5410488504 | I26: 76298.13577 | J26: 75728.67574 | L26: 0.03140172749 | M26: 0.02234562052
A27: Psychotherapie | B27: 30417.15146 | C27: 29794.14045 | D27: 0.1400911537 | E27: 0.007567731054 | F27: 0.2458779442 | G27: 0.08793320739 | H27: 0.5185299636 | I27: 69999.21226 | J27: 68565.47248 | L27: 0.02728395213 | M27: 0.0206059035
A28: Radiologie | B28: 1781279.712 | C28: 690141.3337 | D28: 0.3958040902 | E28: 0.08521603872 | F28: 0.08862406221 | G28: 0.1255391014 | H28: 0.3048167075 | I28: 790446.5554 | J28: 306251.6438 | L28: 0.1402436354 | M28: 0.119121498
A29: Urologie | B29: 248571.4642 | C29: 177698.5488 | D29: 0.4233313027 | E29: 0.1154923316 | F29: 0.1227883028 | G29: 0.08577373024 | H29: 0.2526143326 | I29: 246885.9941 | J29: 176493.6414 | L29: 0.05990970779 | M29: 0.0655135489
A30: Übergreifend tätige Praxen | B30: 363930.593 | C30: 164723.1879 | D30: 0.5057774052 | E30: 0.06975400766 | F30: 0.114152942 | G30: 0.06823771 | H30: 0.2420779351 | I30: 367636.3855 | J30: 166400.5131 | L30: 0.08938701497 | M30: 0.09541115368
A31: Hinweis: Gewichtete Ergebnisse.
A32: Quelle: Zi-Praxis-Panel 2013.

Sheet T36
A1: Tabelle 36: Praxiseinnahmen je Praxis und je Inhaber nach Fachgebiet und Größenklasse der Praxiseinnahmen im Jahr 2011
A2: Fachgebiet und Größenklasse der Praxiseinnahmen (Eges) | B2: Praxen | C2: Einnahmen je Praxis in Euro | D2: Einnahmen je Inhaber in Euro | E2: davon aus … | J2: relativer Standardfehler je Praxis | K2: relativer Standardfehler je Inhaber
E4: GKV | F4: Privat | G4: BG/Unfall | H4: Sonstige
A5: Gesamt | B5: 4152 | C5: 356811.5687 | D5: 281483.8127 | E5: 0.7309078349 | F5: 0.20944939 | G5: 0.009489878445 | H5: 0.05015263526 | J5: 0.01756816145 | K5: 0.01141139365
A6: Allgemeinmedizin und Innere Medizin (hausärztlich) | B6: 464 | C6: 339647.982 | D6: 262783.4837 | E6: 0.8198814481 | F6: 0.1393937763 | G6: 0.004293487422 | H6: 0.03643128817 | J6: 0.02385684425 | K6: 0.01981448045
A7: - Eges ≤ 250T€ | B7: 148 | C7: 189298.8768 | D7: 182770.9337 | E7: 0.8314949579 | F7: 0.1257835659 | G7: 0.004361655073 | H7: 0.03835982113 | J7: 0.01805805596 | K7: 0.02046051752
A8: - 250T€ < Eges ≤ 300T€ | B8: 85 | C8: 274755.2551 | D8: 229943.3717 | E8: 0.8350403541 | F8: 0.1308863459 | G8: 0.002862439332 | H8: 0.0312108607 | J8: 0.006075450167 | K8: 0.03537819868
A9: - 300T€ < Eges ≤ 425T€ | B9: 130 | C9: 351314.4206 | D9: 281970.2216 | E9: 0.8194933607 | F9: 0.1389087354 | G9: 0.003764483015 | H9: 0.03783342095 | J9: 0.008670796088 | K9: 0.02692724353
A10: - 425T€ < Eges | B10: 101 | C10: 603004.8626 | D10: 332219.3438 | E10: 0.8094246223 | F10: 0.1491656917 | G10: 0.005133166857 | H10: 0.03627651913 | J10: 0.02669778514 | K10: 0.0406829626
A11: Anästhesiologie | B11: 99 | C11: 447957.5533 | D11: 309013.8526 | E11: 0.6508168645 | F11: 0.251572518 | G11: 0.007142384899 | H11: 0.09046823264 | J11: 0.1231656553 | K11: 0.05446015425
A12: - Eges ≤ 225T€ | B12: 29 | C12: 178056.7906 | D12: 173497.4921 | E12: 0.6206775562 | F12: 0.2378371424 | G12: 0.01890930039 | H12: 0.122576001 | J12: 0.03507755017 | K12: 0.04522367875
A13: - 225T€ < Eges ≤ 325T€ | B13: 24 | C13: 276644.594 | D13: 231436.8858 | E13: 0.6244223949 | F13: 0.1818083686 | G13: 0.007781911603 | H13: 0.1859873249 | J13: 0.01912237538 | K13: 0.05625492811
A14: - 325T€ < Eges ≤ 625T€ | B14: 22 | C14: 419797.1228 | D14: 331830.7602 | E14: 0.7399678384 | F14: 0.2048831922 | G14: 0.00294490979 | H14: 0.05220405958 | J14: 0.03567848419 | K14: 0.07337453934
A15: - 625T€ < Eges | B15: 24 | C15: 1354470.809 | D15: 442597.1618 | E15: 0.6264154379 | F15: 0.2970309952 | G15: 0.005300805849 | H15: 0.07125276109 | J15: 0.1381400137 | K15: 0.08766874314
A16: Augenheilkunde | B16: 220 | C16: 494674.8625 | D16: 393410.2919 | E16: 0.5936425078 | F16: 0.3363912096 | G16: 0.01720893693 | H16: 0.05275734561 | J16: 0.08485881502 | K16: 0.05378307471
A17: - Eges ≤ 225T€ | B17: 60 | C17: 172695.6879 | D17: 172695.6879 | E17: 0.6564265452 | F17: 0.2598624292 | G17: 0.01772157823 | H17: 0.06598944736 | J17: 0.03129747193 | K17: 0.03129747193
A18: - 225T€ < Eges ≤ 300T€ | B18: 48 | C18: 259226.4626 | D18: 249999.4128 | E18: 0.6319198821 | F18: 0.2998239403 | G18: 0.01348543468 | H18: 0.05477074296 | J18: 0.01328160961 | K18: 0.02312162764
A19: - 300T€ < Eges ≤ 450T€ | B19: 58 | C19: 353535.6808 | D19: 325304.9237 | E19: 0.5865941289 | F19: 0.3307436055 | G19: 0.009436142552 | H19: 0.07322612308 | J19: 0.01598378019 | K19: 0.0282915773
A20: - 450T€ < Eges | B20: 54 | C20: 971882.1773 | D20: 572580.2731 | E20: 0.581179295 | F20: 0.3537049275 | G20: 0.01967296288 | H20: 0.04544281455 | J20: 0.1273938825 | K20: 0.09385220536
A21: Chirurgie | B21: 188 | C21: 488786.6817 | D21: 373937.7665 | E21: 0.6615877279 | F21: 0.1676991588 | G21: 0.09303631178 | H21: 0.07766802651 | J21: 0.05844618563 | K21: 0.03751274645
A22: - Eges ≤ 275T€ | B22: 46 | C22: 221218.9672 | D22: 221218.9672 | E22: 0.689966694 | F22: 0.1505865623 | G22: 0.1291926788 | H22: 0.03018349604 | J22: 0.0296066167 | K22: 0.0296066167
A23: - 275T€ < Eges ≤ 450T€ | B23: 51 | C23: 342037.1579 | D23: 324259.8181 | E23: 0.6696256267 | F23: 0.1535764593 | G23: 0.09726809417 | H23: 0.07952981977 | J23: 0.0143631531 | K23: 0.02745703608
A24: - 450T€ < Eges ≤ 575T€ | B24: 47 | C24: 475986.2985 | D24: 364016.6595 | E24: 0.6701637639 | F24: 0.1641171475 | G24: 0.09662210676 | H24: 0.0690969818 | J24: 0.01557127311 | K24: 0.04845334441
A25: - 575T€ < Eges | B25: 44 | C25: 922263.4222 | D25: 493818.068 | E25: 0.6474839486 | F25: 0.1786020146 | G25: 0.08058744579 | H25: 0.09332659104 | J25: 0.09150785557 | K25: 0.07511446861
A26: Dermatologie | B26: 198 | C26: 429799.8188 | D26: 338632.7511 | E26: 0.5956882939 | F26: 0.3374893274 | G26: 0.01080034618 | H26: 0.05602203252 | J26: 0.05611808331 | K26: 0.04050748586
A27: - Eges ≤ 250T€ | B27: 51 | C27: 191403.3808 | D27: 187743.6616 | E27: 0.7225574864 | F27: 0.2214473083 | G27: 0.01380675602 | H27: 0.04218844927 | J27: 0.02806763276 | K27: 0.02926057929
A28: - 250T€ < Eges ≤ 350T€ | B28: 53 | C28: 300407.3296 | D28: 262406.6192 | E28: 0.6889230082 | F28: 0.2644753348 | G28: 0.01454868445 | H28: 0.0320529725 | J28: 0.01301044937 | K28: 0.03520267993
A29: - 350T€ < Eges ≤ 500T€ | B29: 47 | C29: 410322.4883 | D29: 363075.994 | E29: 0.6238170006 | F29: 0.317378208 | G29: 0.01230999481 | H29: 0.04649479662 | J29: 0.01412641539 | K29: 0.03680110363
A30: - 500T€ < Eges | B30: 47 | C30: 843728.7762 | D30: 469282.849 | E30: 0.5187765679 | F30: 0.4012178969 | G30: 0.00808722919 | H30: 0.07191830597 | J30: 0.07836798664 | K30: 0.07727090943
A31: Gynäkologie | B31: 432 | C31: 362672.3491 | D31: 292842.249 | E31: 0.6636187907 | F31: 0.2955018318 | G31: 0.001707617505 | H31: 0.03917175992 | J31: 0.03457654242 | K31: 0.02720180141
A32: - Eges ≤ 225T€ | B32: 117 | C32: 179494.8542 | D32: 177647.895 | E32: 0.7160942028 | F32: 0.2361456752 | G32: 0.001519071516 | H32: 0.04624105054 | J32: 0.01599103624 | K32: 0.01704083762
A33: - 225T€ < Eges ≤ 300T€ | B33: 107 | C33: 262086.3094 | D33: 251829.0458 | E33: 0.7179046653 | F33: 0.2446672186 | G33: 0.002642338955 | H33: 0.03478577711 | J33: 0.007671319799 | K33: 0.01497358472
A34: - 300T€ < Eges ≤ 425T€ | B34: 112 | C34: 352010.466 | D34: 292832.3604 | E34: 0.6607380593 | F34: 0.3004697805 | G34: 0.003607231945 | H34: 0.0351849283 | J34: 0.009296894257 | K34: 0.02843103218
A35: - 425T€ < Eges | B35: 96 | C35: 701698.0226 | D35: 399947.4702 | E35: 0.6284359858 | F35: 0.3305858964 | G35: 0.0004683578885 | H35: 0.04050975993 | J35: 0.05009163712 | K35: 0.05896226576
A36: Hals-Nasen-Ohren-Heilkunde | B36: 297 | C36: 393686.9381 | D36: 290525.9157 | E36: 0.6565882589 | F36: 0.2896283167 | G36: 0.005153856025 | H36: 0.04862956834 | J36: 0.05030660816 | K36: 0.02697239035
A37: - Eges ≤ 200T€ | B37: 72 | C37: 163287.3837 | D37: 163287.3837 | E37: 0.7414472902 | F37: 0.2146090113 | G37: 0.01100934148 | H37: 0.03293435698 | J37: 0.02031915938 | K37: 0.02031915938
A38: - 200T€ < Eges ≤ 300T€ | B38: 101 | C38: 257328.3634 | D38: 245821.1802 | E38: 0.6892260481 | F38: 0.2637053901 | G38: 0.00516161188 | H38: 0.04190694994 | J38: 0.01127544815 | K38: 0.01733622091
A39: - 300T€ < Eges ≤ 425T€ | B39: 51 | C39: 347614.8927 | D39: 288272.6112 | E39: 0.6582634645 | F39: 0.266715973 | G39: 0.0064672566 | H39: 0.06855330593 | J39: 0.01309947083 | K39: 0.0434903217
A40: - 425T€ < Eges | B40: 73 | C40: 777897.8532 | D40: 367909.599 | E40: 0.6283512748 | F40: 0.3194612609 | G40: 0.003759976291 | H40: 0.04842748808 | J40: 0.06900633168 | K40: 0.05055474236
A41: Innere Medizin - Gastroenterologie | B41: 38 | C41: 643635.5713 | D41: 553501.1402 | E41: 0.7011906376 | F41: 0.276482715 | G41: 0.0003512426722 | H41: 0.02197540475 | J41: 0.113615904 | K41: 0.06506813024
A42: - Eges ≤ 425T€ | B42: 10 | C42: 374207.1691 | D42: 374207.1691 | E42: 0.8127809149 | F42: 0.1576673666 | G42: 0.0008680741785 | H42: 0.02868364435 | J42: 0.03821608315 | K42: 0.03821608315
A43: - 425T€ < Eges ≤ 500T€ | B43: 9 | C43: 462383.1752 | D43: 380610.1169 | E43: 0.7590970385 | F43: 0.2189050224 | G43: 0.0005000393658 | H43: 0.02149789978 | J43: 0.01695703704 | K43: 0.1009058278
A44: - 500T€ < Eges ≤ 650T€ | B44: 11 | C44: 560939.625 | D44: 496711.0044 | E44: 0.8124878653 | F44: 0.1546682738 | G44: 0.0005629230273 | H44: 0.0322809379 | J44: 0.02910078479 | K44: 0.06813296757
A45: - 650€ < Eges | B45: 8 | C45: 1096791.122 | D45: 846482.3308 | E45: 0.5863405693 | F45: 0.3994045399 | G45: 3.504916139e-05 | H45: 0.01421984169 | J45: 0.2269738029 | K45: 0.041672776
A46: Innere Medizin - Kardiologie | B46: 27 | C46: 569567.2303 | D46: 482398.8471 | E46: 0.7758944899 | F46: 0.1984310016 | G46: 0.003056652872 | H46: 0.02261785567 | J46: 0.1423040236 | K46: 0.08279805336
A47: - Eges ≤ 325T€ | B47: 8 | C47: 286634.6043 | D47: 286634.6043 | E47: 0.8284388494 | F47: 0.1388282607 | G47: 0.002220267892 | H47: 0.03051262197 | J47: 0.05623793048 | K47: 0.05623793048
A48: - 325T€ < Eges ≤ 375T€ | B48: 6 | C48: 342253.8322 | D48: 342253.8322 | E48: 0.8400190576 | F48: 0.1360535013 | G48: 0.001124985558 | H48: 0.02280245557 | J48: 0.009380818713 | K48: 0.009380818713
A49: - 375T€ < Eges ≤ 475T€ | B49: 7 | C49: 427450.0638 | D49: 427450.0638 | E49: 0.7007516528 | F49: 0.2136811337 | G49: 0.014435971 | H49: 0.07113124252 | J49: 0.02528215853 | K49: 0.02528215853
A50: - 475T€ < Eges | B50: 6 | C50: 931810.8404 | D50: 632572.884 | E50: 0.7733455531 | F50: 0.2166324589 | G50: 0.0007836243756 | H50: 0.009238363651 | J50: 0.2287685376 | K50: 0.1392225499
A51: Innere Medizin - Pneumologie | B51: 41 | C51: 611001.4717 | D51: 469717.5656 | E51: 0.7483595416 | F51: 0.1898216736 | G51: 0.01143508057 | H51: 0.05038370427 | J51: 0.1210709898 | K51: 0.06530183313
A52: - Eges ≤ 325T€ | B52: 10 | C52: 272357.307 | D52: 272357.307 | E52: 0.8521289392 | F52: 0.1187768113 | G52: 0.01150414708 | H52: 0.01759010236 | J52: 0.05086099017 | K52: 0.05086099017
A53: - 325T€ < Eges ≤ 475T€ | B53: 14 | C53: 424851.6845 | D53: 395400.1646 | E53: 0.7812842146 | F53: 0.1412363235 | G53: 0.01671848231 | H53: 0.06076097962 | J53: 0.02598855455 | K53: 0.05995236261
A54: - 475T€ < Eges ≤ 650T€ | B54: 7 | C54: 573723.031 | D54: 442528.8669 | E54: 0.7550753244 | F54: 0.1959933929 | G54: 0.008506200615 | H54: 0.04042508218 | J54: 0.02998637054 | K54: 0.1345410073
A55: - 650T€ < Eges | B55: 10 | C55: 1215766.171 | D55: 640090.4914 | E55: 0.7081214179 | F55: 0.2260139613 | G55: 0.009902475799 | H55: 0.05596214497 | J55: 0.1601135043 | K55: 0.09431408366
A56: Innere Medizin - ohne bzw. mit mehreren Schwerpunkten | B56: 40 | C56: 643877.3837 | D56: 449094.8695 | E56: 0.7696431878 | F56: 0.2123979009 | G56: 0.002402664213 | H56: 0.01555624705 | J56: 0.1600871898 | K56: 0.05265918902
A57: - Eges ≤ 300T€ | B57: 11 | C57: 236445.9954 | D57: 236445.9954 | E57: 0.8444775735 | F57: 0.1364190431 | G57: 0.002226712741 | H57: 0.01687667061 | J57: 0.04277467368 | K57: 0.04277467368
A58: - 300T€ < Eges ≤ 375T€ | B58: 13 | C58: 342719.7427 | D58: 342719.7427 | E58: 0.7822983585 | F58: 0.1927416478 | G58: 0.004153845807 | H58: 0.02080614789 | J58: 0.01547657734 | K58: 0.01547657734
A59: - 375T€ < Eges ≤ 500T€ | B59: 7 | C59: 453183.2857 | D59: 396535.375 | E59: 0.7310189539 | F59: 0.230721534 | G59: 0.001541161365 | H59: 0.03671835079 | J59: 0.03260380642 | K59: 0.1045687293
A60: - 500T€ < Eges | B60: 9 | C60: 1055177.44 | D60: 539279.6034 | E60: 0.7634034413 | F60: 0.2221925516 | G60: 0.002194859295 | H60: 0.0122091478 | J60: 0.2676638979 | K60: 0.07138446982
A61: Innere Medizin - sonstige Fachgebiete | B61: 46 | C61: 762151.7489 | D61: 568200.5802 | E61: 0.7481207319 | F61: 0.1561231757 | G61: 0.01986100842 | H61: 0.07589508399 | J61: 0.09725679517 | K61: 0.07211167899
A62: - Eges ≤ 300T€ | B62: 15 | C62: 230913.6 | D62: 230913.6 | E62: 0.7197442391 | F62: 0.1847810898 | G62: 0.006016680409 | H62: 0.08945799064 | J62: 0.05278422697 | K62: 0.05278422697
A63: - 300T€ < Eges ≤ 450T€ | B63: 10 | C63: 377689.5 | D63: 377689.5 | E63: 0.7883777547 | F63: 0.1514447714 | G63: 0.001268237534 | H63: 0.05890923629 | J63: 0.04814907446 | K63: 0.04814907446
A64: - 450T€ < Eges ≤ 675T€ | B64: 10 | C64: 594489.7208 | D64: 551362.135 | E64: 0.6926379822 | F64: 0.2038331759 | G64: 0.00731635672 | H64: 0.09621248523 | J64: 0.03891310617 | K64: 0.07358650075
A65: - 675T€ < Eges | B65: 11 | C65: 1112134.759 | D65: 678259.9427 | E65: 0.7564166443 | F65: 0.1461073725 | G65: 0.0246754058 | H65: 0.0728005774 | J65: 0.1283409954 | K65: 0.1255233315
A66: Kinder- und Jugendmedizin | B66: 355 | C66: 382899.7752 | D66: 294117.3863 | E66: 0.7976131592 | F66: 0.1803677329 | G66: 0.003249559974 | H66: 0.0187695479 | J66: 0.02731146883 | K66: 0.01946344536
A67: - Eges ≤ 275T€ | B67: 95 | C67: 208376.4846 | D67: 205507.666 | E67: 0.8474817999 | F67: 0.1303257274 | G67: 0.005004092227 | H67: 0.01718838041 | J67: 0.02326541141 | K67: 0.02382225067
A68: - 275T€ < Eges ≤ 350T€ | B68: 82 | C68: 305911.2239 | D68: 279492.048 | E68: 0.8073313661 | F68: 0.1636230544 | G68: 0.003523606663 | H68: 0.02552197276 | J68: 0.00803397075 | K68: 0.02471746455
A69: - 350T€ < Eges ≤ 475T€ | B69: 95 | C69: 411791.6558 | D69: 312948.3172 | E69: 0.7872143183 | F69: 0.1962753306 | G69: 0.00211096956 | H69: 0.01439938152 | J69: 0.008061718273 | K69: 0.03425506347
A70: - 475T€ < Eges | B70: 83 | C70: 660082.892 | D70: 351533.9171 | E70: 0.7793666396 | F70: 0.1981978995 | G70: 0.003171252983 | H70: 0.01926420794 | J70: 0.03480378614 | K70: 0.03738404342
A71: Kinder- und Jugendpsychiatrie und -psychotherapie | B71: 98 | C71: 345641.7378 | D71: 306920.7374 | E71: 0.8988716458 | F71: 0.07906341428 | G71: 0.000655568529 | H71: 0.02140937144 | J71: 0.07281115235 | K71: 0.06196104137
A72: - Eges ≤ 300T€ | B72: 25 | C72: 148916.5811 | D72: 148916.5811 | E72: 0.880148933 | F72: 0.104387822 | G72: 0.001044017212 | H72: 0.01441922779 | J72: 0.09721441348 | K72: 0.09721441348
A73: - 300T€ < Eges ≤ 425T€ | B73: 25 | C73: 358444.1879 | D73: 344162.6868 | E73: 0.9150528053 | F73: 0.07039248382 | G73: 0.0004010780531 | H73: 0.01415363284 | J73: 0.02141673489 | K73: 0.03195501807
A74: - 425T€ < Eges ≤ 550T€ | B74: 27 | C74: 476380.6219 | D74: 426956.3003 | E74: 0.8999504902 | F74: 0.07373223519 | G74: 0.0004511903623 | H74: 0.02586608423 | J74: 0.01462942414 | K74: 0.04505399049
A75: - 550T€ < Eges | B75: 21 | C75: 775578.619 | D75: 479033.8529 | E75: 0.9004408444 | F75: 0.0727227248 | G75: 0.0007111127047 | H75: 0.02612531805 | J75: 0.06424624967 | K75: 0.1008425017
A76: Nervenheilkunde | B76: 138 | C76: 329044.9179 | D76: 286055.1264 | E76: 0.7990801752 | F76: 0.1158183831 | G76: 0.01401600656 | H76: 0.07108543511 | J76: 0.04284144438 | K76: 0.03260127416
A77: - Eges ≤ 250T€ | B77: 39 | C77: 187711.6199 | D77: 187711.6199 | E77: 0.8302432521 | F77: 0.0912603346 | G77: 0.01708653071 | H77: 0.0614098826 | J77: 0.03765223927 | K77: 0.03765223927
A78: - 250T€ < Eges ≤ 300T€ | B78: 30 | C78: 275534.6276 | D78: 267608.5182 | E78: 0.8368357428 | F78: 0.09148712818 | G78: 0.01895855468 | H78: 0.05271857437 | J78: 0.01014742424 | K78: 0.02502367032
A79: - 300T€ < Eges ≤ 400T€ | B79: 37 | C79: 342825.1448 | D79: 312712.3889 | E79: 0.8152259027 | F79: 0.09381354204 | G79: 0.01122675687 | H79: 0.0797337984 | J79: 0.0134157313 | K79: 0.03789550762
A80: - 400T€ < Eges | B80: 32 | C80: 571194.312 | D80: 371776.1885 | E80: 0.7577589501 | F80: 0.1521952987 | G80: 0.01229255768 | H80: 0.07775319354 | J80: 0.05030749871 | K80: 0.0601709093
A81: Neurologie | B81: 32 | C81: 288494.1581 | D81: 258865.5441 | E81: 0.7313909242 | F81: 0.1727966246 | G81: 0.01230158583 | H81: 0.08351086543 | J81: 0.06702592874 | K81: 0.06710932335
A82: - Eges ≤ 275T€ | B82: 10 | C82: 195638.9914 | D82: 195638.9914 | E82: 0.8030325501 | F82: 0.1544454183 | G82: 0.008959328514 | H82: 0.03356270315 | J82: 0.07954808649 | K82: 0.07954808649
A83: - 275T€ < Eges ≤ 300T€ | B83: 11 | C83: 316348.152 | D83: 274009.1749 | E83: 0.7587268386 | F83: 0.1782346246 | G83: 0.01515081257 | H83: 0.04788772417 | J83: 0.02357817238 | K83: 0.08195286738
A84: - 300T€ < Eges | B84: 11 | C84: 431519.4993 | D84: 335701.8811 | E84: 0.6536579908 | F84: 0.1842251106 | G84: 0.01311548736 | H84: 0.1490014113 | J84: 0.03368496724 | K84: 0.1004091676
A85: Neurologie, Nervenheilkunde, Psychiatrie | B85: 76 | C85: 591802.0852 | D85: 306410.1066 | E85: 0.7196937696 | F85: 0.161945051 | G85: 0.01387273953 | H85: 0.1044884399 | J85: 0.07154055436 | K85: 0.07070309304
A86: - Eges ≤ 300T€ | B86: 20 | C86: 231914.6486 | D86: 211078.8393 | E86: 0.8307270805 | F86: 0.1057106807 | G86: 0.0129248037 | H86: 0.05063743511 | J86: 0.05000206096 | K86: 0.07071040727
A87: - 300T€ < Eges ≤ 475T€ | B87: 20 | C87: 379097.4787 | D87: 279829.9831 | E87: 0.7332388138 | F87: 0.1242172766 | G87: 0.009650320329 | H87: 0.1328935893 | J87: 0.0337398822 | K87: 0.0708002225
A88: - 475T€ < Eges ≤ 675T€ | B88: 18 | C88: 584250.884 | D88: 259209.003 | E88: 0.7557091281 | F88: 0.163259214 | G88: 0.01330471167 | H88: 0.06772694621 | J88: 0.01845619923 | K88: 0.06982549553
A89: - 675T€ < Eges | B89: 18 | C89: 1026784.235 | D89: 382839.0625 | E89: 0.6781953462 | F89: 0.1814038272 | G89: 0.01556439929 | H89: 0.1248364274 | J89: 0.0885277739 | K89: 0.1657529703
A90: Orthopädie | B90: 266 | C90: 523141.2854 | D90: 381433.4179 | E90: 0.6290905854 | F90: 0.2934954056 | G90: 0.01263306226 | H90: 0.06478094666 | J90: 0.05154679279 | K90: 0.02579428933
A91: - Eges ≤ 300T€ | B91: 70 | C91: 220045.5809 | D91: 207771.1037 | E91: 0.750541812 | F91: 0.1654258507 | G91: 0.008763562625 | H91: 0.0752687747 | J91: 0.02626440199 | K91: 0.03365577402
A92: - 300T€ < Eges ≤ 400T€ | B92: 64 | C92: 351112.586 | D92: 325892.6356 | E92: 0.6891173481 | F92: 0.2265098606 | G92: 0.01449540189 | H92: 0.06987738946 | J92: 0.0103201071 | K92: 0.02446789749
A93: - 400T€ < Eges ≤ 600T€ | B93: 69 | C93: 480367.9613 | D93: 410933.3876 | E93: 0.6310593291 | F93: 0.2930172074 | G93: 0.01181499948 | H93: 0.06410846407 | J93: 0.01444085625 | K93: 0.03367185248
A94: - 600T€ < Eges | B94: 63 | C94: 1022884.862 | D94: 479823.6362 | E94: 0.5838588859 | F94: 0.341527649 | G94: 0.01334172316 | H94: 0.06127174188 | J94: 0.07411116598 | K94: 0.04239053854
A95: Physikalische und rehabilitative Medizin | B95: 33 | C95: 265050.8157 | D95: 249047.6068 | E95: 0.6800594659 | F95: 0.2401732399 | G95: 0.005839411067 | H95: 0.07392788311 | J95: 0.1127159659 | K95: 0.1023594531
A96: - Eges ≤ 175T€ | B96: 16 | C96: 131017.0832 | D96: 131017.0832 | E96: 0.69968227 | F96: 0.2422830956 | G96: 0.004242604505 | H96: 0.0537920299 | J96: 0.09047949594 | K96: 0.09047949594
A97: - 175T€ < Eges ≤ 300T€ | B97: 8 | C97: 250707.0353 | D97: 250707.0353 | E97: 0.7015023222 | F97: 0.2150730363 | G97: 0.01146170873 | H97: 0.07196293269 | J97: 0.05417829457 | K97: 0.05417829457
A98: - 300T€ < Eges | B98: 9 | C98: 467608.0481 | D98: 384252.1213 | E98: 0.66118789 | F98: 0.252372387 | G98: 0.003550255261 | H98: 0.08288946769 | J98: 0.1211808847 | K98: 0.1411537504
A99: Psychiatrie | B99: 111 | C99: 189157.6966 | D99: 170740.477 | E99: 0.7869778607 | F99: 0.1331776821 | G99: 0.0125085872 | H99: 0.06733586997 | J99: 0.0516163685 | K99: 0.04101464383
A100: - Eges ≤ 125T€ | B100: 35 | C100: 96018.88364 | D100: 92814.27419 | E100: 0.8214447858 | F100: 0.145174721 | G100: 0.005460302584 | H100: 0.02792019062 | J100: 0.03322909087 | K100: 0.03686122028
A101: - 125T€ < Eges ≤ 175T€ | B101: 27 | C101: 151013.2138 | D101: 151013.2138 | E101: 0.7902331152 | F101: 0.1476314769 | G101: 0.002809726457 | H101: 0.05932568146 | J101: 0.01990879724 | K101: 0.01990879724
A102: - 175T€ < Eges ≤ 225T€ | B102: 22 | C102: 202225.0906 | D102: 189528.0788 | E102: 0.7946554533 | F102: 0.1419991847 | G102: 0.003505953576 | H102: 0.05983940847 | J102: 0.01627941149 | K102: 0.0393364609
A103: - 225T€ < Eges | B103: 27 | C103: 324339.2876 | D103: 242382.5379 | E103: 0.7683249283 | F103: 0.117064825 | G103: 0.02490935108 | H103: 0.08970089568 | J103: 0.06719964383 | K103: 0.06097060893
A104: Psychosomatische Medizin und Psychotherapie | B104: 331 | C104: 104768.5148 | D104: 103986.5628 | E104: 0.7258267072 | F104: 0.2284855097 | G104: 0.004739446894 | H104: 0.04094833627 | J104: 0.01947517737 | K104: 0.01898541455
A105: - Eges ≤ 100T€ | B105: 151 | C105: 75197.92095 | D105: 75197.92095 | E105: 0.8332976887 | F105: 0.1418332475 | G105: 0.002962381238 | H105: 0.02190668252 | J105: 0.01780319608 | K105: 0.01780319608
A106: - 100T€ < Eges ≤ 125T€ | B106: 95 | C106: 111024.2342 | D106: 111024.2342 | E106: 0.7671020377 | F106: 0.1878609175 | G106: 0.0009155405862 | H106: 0.04412150421 | J106: 0.006670205961 | K106: 0.006670205961
A107: - 125T€ < Eges ≤ 150T€ | B107: 43 | C107: 139215.9523 | D107: 137192.9169 | E107: 0.5307562337 | F107: 0.435131905 | G107: 0.0002756618119 | H107: 0.03383619953 | J107: 0.008015528555 | K107: 0.01599389255
A108: - 150T€ < Eges | B108: 42 | C108: 174852.1037 | D108: 166649.1625 | E108: 0.7014264243 | F108: 0.1934751165 | G108: 0.02002910106 | H108: 0.08506935819 | J108: 0.02525081954 | K108: 0.0271155461
A109: Psychotherapie | B109: 386 | C109: 100416.3637 | D109: 98359.61293 | E109: 0.798881633 | F109: 0.1443562434 | G109: 0.0004980990838 | H109: 0.05626402458 | J109: 0.01864908542 | K109: 0.01865500429
A110: - Eges ≤ 75T€ | B110: 62 | C110: 59845.30099 | D110: 58087.17568 | E110: 0.8410552057 | F110: 0.1018931973 | G110: 0.0007550469722 | H110: 0.05629655007 | J110: 0.02639164964 | K110: 0.02870572717
A111: - 75T€ < Eges ≤ 100T€ | B111: 123 | C111: 88218.73006 | D111: 88041.02443 | E111: 0.8323848077 | F111: 0.1213460821 | G111: 0.0002847212258 | H111: 0.04598438899 | J111: 0.007469746833 | K111: 0.007905413042
A112: - 100T€ < Eges ≤ 125T€ | B112: 100 | C112: 111378.3021 | D112: 111148.8396 | E112: 0.7797496416 | F112: 0.1504564266 | G112: 0.0005038813166 | H112: 0.06929005047 | J112: 0.005863796543 | K112: 0.006602304447
A113: - 125T€ < Eges | B113: 101 | C113: 153924.4353 | D113: 145523.7664 | E113: 0.7653982788 | F113: 0.1785217847 | G113: 0.0005633064032 | H113: 0.05551663005 | J113: 0.01955234924 | K113: 0.02347901372
A114: Radiologie | B114: 31 | C114: 2571726.268 | D114: 996392.9775 | E114: 0.5314329796 | F114: 0.3328072786 | G114: 0.01777860296 | H114: 0.1179811389 | J114: 0.1244082104 | K114: 0.1036525774
A115: - Eges ≤ 550T€ | B115: 6 | C115: 363299.0377 | D115: 363299.0377 | E115: 0.6883553692 | F115: 0.1920992791 | G115: 0.0247527806 | H115: 0.09479257109 | J115: 0.1950318868 | K115: 0.1950318868
A116: - 550T€ < Eges ≤ 2500T€ | B116: 11 | C116: 1497517.77 | D116: 853067.1647 | E116: 0.5993930525 | F116: 0.2284939551 | G116: 0.02601510264 | H116: 0.1460978898 | J116: 0.1234979706 | K116: 0.08930574196
A117: - 2500T€ < Eges | B117: 14 | C117: 4071726.98 | D117: 1102437.922 | E117: 0.5095482634 | F117: 0.3632869311 | G117: 0.01550045181 | H117: 0.1116643537 | J117: 0.07630973947 | K117: 0.15443923
A118: Urologie | B118: 142 | C118: 495457.4583 | D118: 354192.1902 | E118: 0.5698912333 | F118: 0.3793121146 | G118: 0.003777015322 | H118: 0.04701963672 | J118: 0.05768439093 | K118: 0.03466321463
A119: - Eges ≤ 300T€ | B119: 40 | C119: 231240.104 | D119: 231240.104 | E119: 0.6994055995 | F119: 0.2740673781 | G119: 0.001651676193 | H119: 0.02487534617 | J119: 0.03418163733 | K119: 0.03418163733
A120: - 300T€ < Eges ≤ 400T€ | B120: 37 | C120: 346007.3436 | D120: 328263.5314 | E120: 0.6221113592 | F120: 0.3183191725 | G120: 0.007041364961 | H120: 0.05252810331 | J120: 0.01338920034 | K120: 0.02887743256
A121: - 400T€ < Eges ≤ 625T€ | B121: 32 | C121: 521543.2856 | D121: 371255.3479 | E121: 0.5490100132 | F121: 0.3963212088 | G121: 0.001335638528 | H121: 0.05333313953 | J121: 0.02265883255 | K121: 0.07197936733
A122: - 625T€ < Eges | B122: 33 | C122: 985435.0559 | D122: 426117.1382 | E122: 0.5202461033 | F122: 0.4273228998 | G122: 0.004360108616 | H122: 0.04807088824 | J122: 0.06931683305 | K122: 0.06785587126
A123: Übergreifend tätige Praxen | B123: 52 | C123: 731566.9784 | D123: 331123.701 | E123: 0.7753355538 | F123: 0.1835408424 | G123: 0.008868812604 | H123: 0.03225479121 | J123: 0.08785857009 | K123: 0.06290377472
A124: - Eges ≤ 275T€ | B124: 13 | C124: 164194.0246 | D124: 152541.5497 | E124: 0.6722799526 | F124: 0.1874989739 | G124: 0.002210406478 | H124: 0.138010667 | J124: 0.09288420196 | K124: 0.07903182638
A125: - 275T€ < Eges ≤ 575T€ | B125: 13 | C125: 446472.3341 | D125: 230700.5345 | E125: 0.8394565241 | F125: 0.1400881214 | G125: 0.003133007526 | H125: 0.01732234695 | J125: 0.04452181712 | K125: 0.06094673159
A126: - 575T€ < Eges ≤ 925T€ | B126: 14 | C126: 760707.4768 | D126: 345916.2178 | E126: 0.8293230209 | F126: 0.1479190461 | G126: 0.002733183258 | H126: 0.02002474971 | J126: 0.03881498051 | K126: 0.08126316813
A127: - 925T€ < Eges | B127: 12 | C127: 1401273.921 | D127: 447176.8364 | E127: 0.7119394834 | F127: 0.2289922656 | G127: 0.01611294196 | H127: 0.04295530898 | J127: 0.08492011612 | K127: 0.1098639186
A128: Hinweis: Für die Darstellung der Tabelle wurden für jedes Fachgebiet die Gesamteinnahmen je Praxis (Eges) so klassiert, dass vier Klassen ausreichend besetzt sind. Bei kleinen Fachgebieten wurde die Zahl der Klassen entsprechend reduziert. Die Klassengrenzen orientieren sich allein an der Verteilung im ZiPP und müssen nicht die Größenklassen der Grundgesamtheit wiederspiegeln. Die Klassen entsprechen zudem nicht den KV-Honorarklassen, die zur Gewichtung herangezogen werden, da hier alle Einnahmen einbezogen werden. Gewichtete Ergebnisse.
A129: Quelle: Zi-Praxis-Panel 2013.

Sheet T37
A1: Tabelle 37: Praxisaufwendungen und Jahresüberschuss je Praxis und je Inhaber nach Fachgebiet und Größenklasse der Praxiseinnahmen im Jahr 2011
A2: Fachgebiet und Größenklasse der Praxiseinnahmen (Eges) | B2: Aufwen- dungen je Praxis in Euro | C2: Aufwen- dungen je Inhaber in Euro | D2: davon für … | I2: Jahresüber-schuss je Praxis in Euro | J2: Jahresüber-schuss je Inhaber in Euro | L2: relativer Standardfehler für Aufwendungen je Praxis | M2: relativer Standardfehler für Aufwendungen je Inhaber | N2: relativer Standardfehler für Jahresüberschuss je Praxis | O2: relativer Standardfehler für Jahresüberschuss je Inhaber
D3: Personal | E3: Material und Labor | F3: Miete einschl. NK für Praxis-räume | G3: Abschrei- bungen | H3: Sonstige
A5: Gesamt | B5: 172839 | C5: 136350.3456 | D5: 0.4749118401 | E5: 0.06008214531 | F5: 0.1205358254 | G5: 0.07319813294 | H5: 0.2712720562 | I5: 183972.5686 | J5: 145133.467 | L5: 0.02329527362 | M5: 0.0158561077 | N5: 0.01457817553 | O5: 0.009667737575
A6: Allgemeinmedizin und Innere Medizin (hausärztlich) | B6: 155966.8501 | C6: 120670.5601 | D6: 0.5359508415 | E6: 0.03729959166 | F6: 0.1100423105 | G6: 0.05874141095 | H6: 0.2579658454 | I6: 183681.1319 | J6: 142112.9236 | L6: 0.02669042428 | M6: 0.02552521847 | N6: 0.02652330816 | O6: 0.02100955984
A7: - Eges ≤ 250T€ | B7: 89600.30134 | C7: 86510.44853 | D7: 0.4874851952 | E7: 0.03338028205 | F7: 0.1465274142 | G7: 0.06301639733 | H7: 0.2695907112 | I7: 99698.57544 | J7: 96260.48519 | L7: 0.0262334684 | M7: 0.028347588 | N7: 0.02703221655 | O7: 0.02852420292
A8: - 250T€ < Eges ≤ 300T€ | B8: 124895.3606 | C8: 104525.2449 | D8: 0.507036027 | E8: 0.03558258546 | F8: 0.1178525412 | G8: 0.05563824796 | H8: 0.2838905984 | I8: 149859.8946 | J8: 125418.1269 | L8: 0.02854836234 | M8: 0.04669031679 | N8: 0.02331329192 | O8: 0.04215885859
A9: - 300T€ < Eges ≤ 425T€ | B9: 165302.2642 | C9: 132674.0758 | D9: 0.5244978648 | E9: 0.04037099997 | F9: 0.1084935181 | G9: 0.06509850132 | H9: 0.2615391158 | I9: 186012.1563 | J9: 149296.1458 | L9: 0.0204350641 | M9: 0.03665251684 | N9: 0.01960764147 | O9: 0.02928330325
A10: - 425T€ < Eges | B10: 268831.8607 | C10: 148110.1561 | D10: 0.5794079259 | E10: 0.03754063611 | F10: 0.08996779952 | G10: 0.05278967491 | H10: 0.2402939635 | I10: 334173.0019 | J10: 184109.1877 | L10: 0.04090858576 | M10: 0.05944400887 | N10: 0.03117615525 | O10: 0.03945448797
A11: Anästhesiologie | B11: 207910.2753 | C11: 143422.4174 | D11: 0.4157969178 | E11: 0.07540802304 | F11: 0.1284242187 | G11: 0.07872208849 | H11: 0.301648752 | I11: 240047.278 | J11: 165591.4353 | L11: 0.1634384149 | M11: 0.0862091136 | N11: 0.1020829034 | O11: 0.0460119746
A12: - Eges ≤ 225T€ | B12: 57774.42384 | C12: 56295.05962 | D12: 0.2680806263 | E12: 0.06555137982 | F12: 0.1030596445 | G12: 0.06283011949 | H12: 0.5004782299 | I12: 120282.3667 | J12: 117202.4324 | L12: 0.07250241589 | M12: 0.07697594742 | N12: 0.04486638868 | O12: 0.0541024777
A13: - 225T€ < Eges ≤ 325T€ | B13: 89687.48083 | C13: 75031.25564 | D13: 0.3376965822 | E13: 0.04705226756 | F13: 0.09093424265 | G13: 0.1032562882 | H13: 0.4210606194 | I13: 186957.1132 | J13: 156405.6301 | L13: 0.07300215102 | M13: 0.08480981737 | N13: 0.039120249 | O13: 0.07225988873
A14: - 325T€ < Eges ≤ 625T€ | B14: 202851.1645 | C14: 160344.7296 | D14: 0.4412735253 | E14: 0.07098232351 | F14: 0.1142798606 | G14: 0.09479837013 | H14: 0.2786659205 | I14: 216945.9583 | J14: 171486.0307 | L14: 0.09663331915 | M14: 0.1302018943 | N14: 0.09455830293 | O14: 0.1073520436
A15: - 625T€ < Eges | B15: 728178.7786 | C15: 237945.2245 | D15: 0.4458129043 | E15: 0.08389872793 | F15: 0.1453586471 | G15: 0.07080592421 | H15: 0.2541237964 | I15: 626292.0303 | J15: 204651.9373 | L15: 0.1680020048 | M15: 0.1235505247 | N15: 0.1334622679 | O15: 0.08176171174
A16: Augenheilkunde | B16: 252193.1487 | C16: 200566.8526 | D16: 0.4494561841 | E16: 0.144529281 | F16: 0.1025284366 | G16: 0.07416500598 | H16: 0.2293210923 | I16: 242481.7138 | J16: 192843.4393 | L16: 0.09606237036 | M16: 0.06347479663 | N16: 0.07941905158 | O16: 0.04988935587
A17: - Eges ≤ 225T€ | B17: 87552.02515 | C17: 87552.02515 | D17: 0.4539851065 | E17: 0.02771742921 | F17: 0.1731259843 | G17: 0.07637040482 | H17: 0.2688010751 | I17: 85143.66271 | J17: 85143.66271 | L17: 0.04563766469 | M17: 0.04563766469 | N17: 0.05589873784 | O17: 0.05589873784
A18: - 225T€ < Eges ≤ 300T€ | B18: 137774.2783 | C18: 132870.2645 | D18: 0.4984108 | E18: 0.02077187598 | F18: 0.1437538385 | G18: 0.08580438913 | H18: 0.2512590963 | I18: 121452.1844 | J18: 117129.1482 | L18: 0.03986417024 | M18: 0.04423596712 | N18: 0.03982109787 | O18: 0.04517617475
A19: - 300T€ < Eges ≤ 450T€ | B19: 175067.2844 | C19: 161087.6997 | D19: 0.4935364662 | E19: 0.03254631764 | F19: 0.1212566087 | G19: 0.08521434532 | H19: 0.2674462622 | I19: 178468.3964 | J19: 164217.2239 | L19: 0.03588522135 | M19: 0.04794939974 | N19: 0.03734130347 | O19: 0.03910586166
A20: - 450T€ < Eges | B20: 496339.2914 | C20: 292416.1937 | D20: 0.4303697859 | E20: 0.2071660751 | F20: 0.08196329913 | G20: 0.06933395345 | H20: 0.2111668864 | I20: 475542.8859 | J20: 280164.0794 | L20: 0.1500324948 | M20: 0.1156155892 | N20: 0.1147981472 | O20: 0.08223864792
A21: Chirurgie | B21: 276410.103 | C21: 211462.7514 | D21: 0.4611075507 | E21: 0.07394230667 | F21: 0.1343666902 | G21: 0.05867221067 | H21: 0.2719112418 | I21: 212376.5787 | J21: 162475.0151 | L21: 0.06398228771 | M21: 0.04160883258 | N21: 0.05885983962 | O21: 0.04185875059
A22: - Eges ≤ 275T€ | B22: 137389.3975 | C22: 137389.3975 | D22: 0.4503910837 | E22: 0.04118087465 | F22: 0.1794450485 | G22: 0.05249945236 | H22: 0.2764835408 | I22: 83829.5697 | J22: 83829.5697 | L22: 0.03840383698 | M22: 0.03840383698 | N22: 0.04979131999 | O22: 0.04979131999
A23: - 275T€ < Eges ≤ 450T€ | B23: 196585.8715 | C23: 186368.3447 | D23: 0.4374210728 | E23: 0.05785274099 | F23: 0.1511158043 | G23: 0.05602144381 | H23: 0.2975889381 | I23: 145451.2864 | J23: 137891.4735 | L23: 0.02503588594 | M23: 0.03446206491 | N23: 0.03606509497 | O23: 0.04343413408
A24: - 450T€ < Eges ≤ 575T€ | B24: 255772.8602 | C24: 195605.5929 | D24: 0.4595546939 | E24: 0.05288828864 | F24: 0.1395995418 | G24: 0.07626159456 | H24: 0.2716958811 | I24: 220213.4383 | J24: 168411.0665 | L24: 0.03692491477 | M24: 0.06089162721 | N24: 0.04551234654 | O24: 0.06641314331
A25: - 575T€ < Eges | B25: 517752.0467 | C25: 277225.9088 | D25: 0.4731040575 | E25: 0.09842301779 | F25: 0.1133237338 | G25: 0.05337443259 | H25: 0.2617747583 | I25: 404511.3756 | J25: 216592.1592 | L25: 0.1090689357 | M25: 0.08809653258 | N25: 0.08347887303 | O25: 0.07635233956
A26: Dermatologie | B26: 228780.4074 | C26: 180252.6092 | D26: 0.4975821148 | E26: 0.07414823738 | F26: 0.120575457 | G26: 0.06244763301 | H26: 0.2452465578 | I26: 201019.4114 | J26: 158380.1419 | L26: 0.06526152419 | M26: 0.05129881459 | N26: 0.05619706656 | O26: 0.03960039467
A27: - Eges ≤ 250T€ | B27: 108933.613 | C27: 106850.7532 | D27: 0.4882244299 | E27: 0.04696731743 | F27: 0.1560192661 | G27: 0.06075911062 | H27: 0.248029876 | I27: 82469.7677 | J27: 80892.90849 | L27: 0.04461173202 | M27: 0.04675705455 | N27: 0.05744887803 | O27: 0.05701451507
A28: - 250T€ < Eges ≤ 350T€ | B28: 153809.0713 | C28: 134352.6419 | D28: 0.488690465 | E28: 0.0621073052 | F28: 0.1347939348 | G28: 0.06917471405 | H28: 0.2452335809 | I28: 146598.2583 | J28: 128053.9772 | L28: 0.03456914081 | M28: 0.04879264796 | N28: 0.04320355237 | O28: 0.05523919752
A29: - 350T€ < Eges ≤ 500T€ | B29: 203592.192 | C29: 180149.613 | D29: 0.4807000597 | E29: 0.07105135429 | F29: 0.1409605055 | G29: 0.07386884717 | H29: 0.2334192333 | I29: 206730.2964 | J29: 182926.381 | L29: 0.0278939232 | M29: 0.04426167092 | N29: 0.02518566044 | O29: 0.0430943798
A30: - 500T€ < Eges | B30: 460101.6515 | C30: 255909.0314 | D30: 0.5096206193 | E30: 0.08658479635 | F30: 0.0983879102 | G30: 0.05624588097 | H30: 0.2491607932 | I30: 383627.1246 | J30: 213373.8176 | L30: 0.09896992553 | M30: 0.1049235572 | N30: 0.08034959994 | O30: 0.06961362414
A31: Gynäkologie | B31: 182983.69 | C31: 147751.422 | D31: 0.4483274072 | E31: 0.06994600803 | F31: 0.1304352844 | G31: 0.08517439569 | H31: 0.2661169047 | I31: 179688.6592 | J31: 145090.827 | L31: 0.03978581223 | M31: 0.0355927461 | N31: 0.03658232274 | O31: 0.026949314
A32: - Eges ≤ 225T€ | B32: 104963.6758 | C32: 103883.6246 | D32: 0.4171255401 | E32: 0.04106301854 | F32: 0.1578879533 | G32: 0.08922668293 | H32: 0.2946968051 | I32: 74531.1784 | J32: 73764.27033 | L32: 0.02224928567 | M32: 0.02332515545 | N32: 0.03534072159 | O32: 0.03570628678
A33: - 225T€ < Eges ≤ 300T€ | B33: 135649.1393 | C33: 130340.2432 | D33: 0.4499159512 | E33: 0.05753552987 | F33: 0.1377622878 | G33: 0.08085436043 | H33: 0.2739318707 | I33: 126437.1701 | J33: 121488.8026 | L33: 0.02373906551 | M33: 0.02665555934 | N33: 0.02400683454 | O33: 0.02770144181
A34: - 300T€ < Eges ≤ 425T€ | B34: 171356.2157 | C34: 142548.7307 | D34: 0.4367837369 | E34: 0.06394243169 | F34: 0.1309004756 | G34: 0.09318383439 | H34: 0.2751895214 | I34: 180654.2503 | J34: 150283.6297 | L34: 0.02362497669 | M34: 0.03372253335 | N34: 0.02315568981 | O34: 0.03867768674
A35: - 425T€ < Eges | B35: 338898.1775 | C35: 193162.1073 | D35: 0.4657308643 | E35: 0.08908877804 | F35: 0.116652617 | G35: 0.08120490464 | H35: 0.2473228361 | I35: 362799.8451 | J35: 206785.3629 | L35: 0.07343902894 | M35: 0.09047023197 | N35: 0.04455732542 | O35: 0.04443948053
A36: Hals-Nasen-Ohren-Heilkunde | B36: 194217.7002 | C36: 143325.2408 | D36: 0.477182738 | E36: 0.02454032851 | F36: 0.1400554472 | G36: 0.09337740355 | H36: 0.2648440827 | I36: 199469.2379 | J36: 147200.6749 | L36: 0.04945231658 | M36: 0.02715843212 | N36: 0.05720752785 | O36: 0.03561867632
A37: - Eges ≤ 200T€ | B37: 94330.47569 | C37: 94330.47569 | D37: 0.4520562852 | E37: 0.01720270531 | F37: 0.1818512566 | G37: 0.0576282659 | H37: 0.291261487 | I37: 68956.90798 | J37: 68956.90798 | L37: 0.03091643165 | M37: 0.03091643165 | N37: 0.03896338632 | O37: 0.03896338632
A38: - 200T€ < Eges ≤ 300T€ | B38: 137061.7555 | C38: 130932.6421 | D38: 0.468092323 | E38: 0.02118923668 | F38: 0.141911121 | G38: 0.07842161437 | H38: 0.290385705 | I38: 120266.6079 | J38: 114888.5381 | L38: 0.01959004022 | M38: 0.02160010928 | N38: 0.02875367023 | O38: 0.03335019062
A39: - 300T€ < Eges ≤ 425T€ | B39: 172170.8916 | C39: 142779.1315 | D39: 0.4721617 | E39: 0.0222240586 | F39: 0.1454925686 | G39: 0.08294812112 | H39: 0.2771735516 | I39: 175444.0012 | J39: 145493.4797 | L39: 0.03601636543 | M39: 0.05619139434 | N39: 0.03560583845 | O39: 0.05499832013
A40: - 425T€ < Eges | B40: 359738.8598 | C40: 170139.7929 | D40: 0.4883302653 | E40: 0.02837078878 | F40: 0.1284627358 | G40: 0.1111540941 | H40: 0.243682116 | I40: 418158.9934 | J40: 197769.8061 | L40: 0.07855363802 | M40: 0.05754867561 | N40: 0.07359080004 | O40: 0.06331110876
A41: Innere Medizin - Gastroenterologie | B41: 326845.9689 | C41: 281074.6088 | D41: 0.4336783148 | E41: 0.09161813232 | F41: 0.1101720152 | G41: 0.1132221357 | H41: 0.2513094019 | I41: 316789.6025 | J41: 272426.5314 | L41: 0.1226956467 | M41: 0.06766126159 | N41: 0.1187271825 | O41: 0.08721808917
A42: - Eges ≤ 425T€ | B42: 205685.1756 | C42: 205685.1756 | D42: 0.4062324015 | E42: 0.06431958733 | F42: 0.1306670676 | G42: 0.1535579386 | H42: 0.245223005 | I42: 168521.9935 | J42: 168521.9935 | L42: 0.08717368681 | M42: 0.08717368681 | N42: 0.1118815827 | O42: 0.1118815827
A43: - 425T€ < Eges ≤ 500T€ | B43: 269773.5078 | C43: 222063.7165 | D43: 0.4158219901 | E43: 0.07310086642 | F43: 0.1307260833 | G43: 0.1259822544 | H43: 0.2543688058 | I43: 192609.6674 | J43: 158546.4004 | L43: 0.06661717316 | M43: 0.1174756843 | N43: 0.1056470619 | O43: 0.1590217634
A44: - 500T€ < Eges ≤ 650T€ | B44: 270270.8969 | C44: 239324.3812 | D44: 0.4652453079 | E44: 0.07125898463 | F44: 0.124132251 | G44: 0.08287762361 | H44: 0.2564858328 | I44: 290668.7281 | J44: 257386.6231 | L44: 0.0757428108 | M44: 0.1107934264 | N44: 0.09590229982 | O44: 0.1089252655
A45: - 650€ < Eges | B45: 534308.1317 | C45: 412368.758 | D45: 0.4309264982 | E45: 0.119105034 | F45: 0.08776091806 | G45: 0.1131347921 | H45: 0.2490727576 | I45: 562482.9901 | J45: 434113.5728 | L45: 0.2749886865 | M45: 0.07638604534 | N45: 0.2014857527 | O45: 0.1026074585
A46: Innere Medizin - Kardiologie | B46: 256925.3897 | C46: 217604.7096 | D46: 0.4690776547 | E46: 0.0611951572 | F46: 0.09657658332 | G46: 0.06874323544 | H46: 0.3044073694 | I46: 312641.8406 | J46: 264794.1374 | L46: 0.1466694835 | M46: 0.1081168082 | N46: 0.1562845524 | O46: 0.08940750589
A47: - Eges ≤ 325T€ | B47: 148504.9302 | C47: 148504.9302 | D47: 0.4768254641 | E47: 0.03949131694 | F47: 0.08829769676 | G47: 0.09993252491 | H47: 0.2954529973 | I47: 138129.6741 | J47: 138129.6741 | L47: 0.1066644285 | M47: 0.1066644285 | N47: 0.101014902 | O47: 0.101014902
A48: - 325T€ < Eges ≤ 375T€ | B48: 162549.978 | C48: 162549.978 | D48: 0.5187455202 | E48: 0.02725063627 | F48: 0.1395031988 | G48: 0.06275816687 | H48: 0.2517424779 | I48: 179703.8543 | J48: 179703.8543 | L48: 0.08185192262 | M48: 0.08185192262 | N48: 0.0629657026 | O48: 0.0629657026
A49: - 375T€ < Eges ≤ 475T€ | B49: 198037.1046 | C49: 198037.1046 | D49: 0.4278933307 | E49: 0.1193785193 | F49: 0.1234421141 | G49: 0.08888081804 | H49: 0.2404052178 | I49: 229412.9592 | J49: 229412.9592 | L49: 0.1088129185 | M49: 0.1088129185 | N49: 0.09335963381 | O49: 0.09335963381
A50: - 475T€ < Eges | B50: 400906.6657 | C50: 272161.1241 | D50: 0.4698107353 | E50: 0.05719750159 | F50: 0.08495816744 | G50: 0.05637496008 | H50: 0.3316586356 | I50: 530904.1747 | J50: 360411.7599 | L50: 0.2716905229 | M50: 0.2433844925 | N50: 0.2386536607 | O50: 0.1216752515
A51: Innere Medizin - Pneumologie | B51: 335061.2517 | C51: 257583.9221 | D51: 0.5000166003 | E51: 0.09528994761 | F51: 0.0989235577 | G51: 0.06591410547 | H51: 0.2398557889 | I51: 275940.22 | J51: 212133.6436 | L51: 0.1488300033 | M51: 0.07122001771 | N51: 0.1054136568 | O51: 0.0862198063
A52: - Eges ≤ 325T€ | B52: 162755.2949 | C52: 162755.2949 | D52: 0.4691956361 | E52: 0.05507232594 | F52: 0.1508203605 | G52: 0.09503140671 | H52: 0.2298802708 | I52: 109602.0121 | J52: 109602.0121 | L52: 0.07768707121 | M52: 0.07768707121 | N52: 0.1343852467 | O52: 0.1343852467
A53: - 325T€ < Eges ≤ 475T€ | B53: 228122.3659 | C53: 212308.4934 | D53: 0.4794785017 | E53: 0.08405002785 | F53: 0.1176499684 | G53: 0.07104744643 | H53: 0.2477740557 | I53: 196729.3186 | J53: 183091.6713 | L53: 0.05314772666 | M53: 0.07611189812 | N53: 0.08110994601 | O53: 0.1003148982
A54: - 475T€ < Eges ≤ 650T€ | B54: 277971.5625 | C54: 214407.3602 | D54: 0.4705372094 | E54: 0.09046212531 | F54: 0.1115555876 | G54: 0.05285592942 | H54: 0.2745891483 | I54: 295751.4685 | J54: 228121.5067 | L54: 0.03771036088 | M54: 0.1426041226 | N54: 0.06873301675 | O54: 0.1463704938
A55: - 650T€ < Eges | B55: 684604.8487 | C55: 360438.5978 | D55: 0.5243396535 | E55: 0.1109735056 | F55: 0.07507302334 | G55: 0.06040534547 | H55: 0.2292084721 | I55: 531161.3225 | J55: 279651.8936 | L55: 0.2298619415 | M55: 0.1062939993 | N55: 0.1008683416 | O55: 0.1615190938
A56: Innere Medizin - ohne bzw. mit mehreren Schwerpunkten | B56: 327375.6791 | C56: 228339.6522 | D56: 0.479828895 | E56: 0.07130233622 | F56: 0.08981074228 | G56: 0.08719716713 | H56: 0.2718608594 | I56: 316501.7046 | J56: 220755.2173 | L56: 0.1978281145 | M56: 0.06368912043 | N56: 0.1305017044 | O56: 0.07348014085
A57: - Eges ≤ 300T€ | B57: 136787.6152 | C57: 136787.6152 | D57: 0.4656271854 | E57: 0.05571668525 | F57: 0.1445330936 | G57: 0.09802455338 | H57: 0.2360984824 | I57: 99658.38022 | J57: 99658.38022 | L57: 0.1000911157 | M57: 0.1000911157 | N57: 0.1297385708 | O57: 0.1297385708
A58: - 300T€ < Eges ≤ 375T€ | B58: 157205.7792 | C58: 157205.7792 | D58: 0.4589420361 | E58: 0.07667352915 | F58: 0.1487553397 | G58: 0.06446590667 | H58: 0.2511631884 | I58: 185513.9634 | J58: 185513.9634 | L58: 0.07481535154 | M58: 0.07481535154 | N58: 0.06952573529 | O58: 0.06952573529
A59: - 375T€ < Eges ≤ 500T€ | B59: 207844.1429 | C59: 181863.625 | D59: 0.4708569402 | E59: 0.0593260472 | F59: 0.1106460954 | G59: 0.09690846644 | H59: 0.2622624508 | I59: 245339.1429 | J59: 214671.75 | L59: 0.1164762898 | M59: 0.1101771627 | N59: 0.1163932697 | O59: 0.1815363257
A60: - 500T€ < Eges | B60: 543680.3173 | C60: 277863.8878 | D60: 0.4857732407 | E60: 0.07344857691 | F60: 0.07169176644 | G60: 0.08864939919 | H60: 0.2804370168 | I60: 511497.1231 | J60: 261415.7156 | L60: 0.3486719119 | M60: 0.100771491 | N60: 0.1925543624 | O60: 0.130348401
A61: Innere Medizin - sonstige Fachgebiete | B61: 369851.752 | C61: 275732.4645 | D61: 0.4999676835 | E61: 0.08271043373 | F61: 0.1268651527 | G61: 0.06602147229 | H61: 0.2244352578 | I61: 392299.997 | J61: 292468.1157 | L61: 0.1133148801 | M61: 0.09768522082 | N61: 0.09671218393 | O61: 0.0667928961
A62: - Eges ≤ 300T€ | B62: 114279.5333 | C62: 114279.5333 | D62: 0.4636152405 | E62: 0.03527899134 | F62: 0.1411252992 | G62: 0.08289965016 | H62: 0.2770808188 | I62: 116634.0667 | J62: 116634.0667 | L62: 0.07740039901 | M62: 0.07740039901 | N62: 0.09412830577 | O62: 0.09412830577
A63: - 300T€ < Eges ≤ 450T€ | B63: 188254 | C63: 188254 | D63: 0.4784700458 | E63: 0.08241046671 | F63: 0.1136703603 | G63: 0.08161792047 | H63: 0.2438312068 | I63: 189435.5 | J63: 189435.5 | L63: 0.1076811857 | M63: 0.1076811857 | N63: 0.09072129963 | O63: 0.09072129963
A64: - 450T€ < Eges ≤ 675T€ | B64: 274292.4074 | C64: 254393.7129 | D64: 0.5044204252 | E64: 0.07742005434 | F64: 0.1656089812 | G64: 0.04976530064 | H64: 0.2027852386 | I64: 320197.3134 | J64: 296968.4221 | L64: 0.0598649478 | M64: 0.09571135823 | N64: 0.08556372568 | O64: 0.1007845382
A65: - 675T€ < Eges | B65: 542157.6633 | C65: 330646.8237 | D65: 0.5039996008 | E65: 0.08735529774 | F65: 0.1205994005 | G65: 0.06596188578 | H65: 0.2220838152 | I65: 569977.0958 | J65: 347613.119 | L65: 0.1714036815 | M65: 0.1908195669 | N65: 0.1247313791 | O65: 0.1041355837
A66: Kinder- und Jugendmedizin | B66: 179190.0436 | C66: 137641.5205 | D66: 0.5366993883 | E66: 0.05607291232 | F66: 0.128193957 | G66: 0.0487491427 | H66: 0.2302845997 | I66: 203709.7317 | J66: 156475.8658 | L66: 0.0278986529 | M66: 0.02319898333 | N66: 0.03093714956 | O66: 0.02146108325
A67: - Eges ≤ 275T€ | B67: 101360.9334 | C67: 99965.44901 | D67: 0.5005779607 | E67: 0.0361329645 | F67: 0.1595128045 | G67: 0.04353793206 | H67: 0.2602383383 | I67: 107015.5512 | J67: 105542.2169 | L67: 0.03557746318 | M67: 0.03525489878 | N67: 0.03463859231 | O67: 0.03564131208
A68: - 275T€ < Eges ≤ 350T€ | B68: 152102.8173 | C68: 138966.8786 | D68: 0.5231777688 | E68: 0.03242878291 | F68: 0.1318904787 | G68: 0.0575666666 | H68: 0.254936303 | I68: 153808.4066 | J68: 140525.1694 | L68: 0.02725901561 | M68: 0.03546045278 | N68: 0.024852505 | O68: 0.0348747995
A69: - 350T€ < Eges ≤ 475T€ | B69: 193323.8769 | C69: 146919.8831 | D69: 0.5310569179 | E69: 0.06749090579 | F69: 0.1230366485 | G69: 0.05108235585 | H69: 0.2273331719 | I69: 218467.779 | J69: 166028.4341 | L69: 0.02129308119 | M69: 0.04039940529 | N69: 0.01844723566 | O69: 0.03814528882
A70: - 475T€ < Eges | B70: 294074.4255 | C70: 156612.3527 | D70: 0.5643612279 | E70: 0.06929043438 | F70: 0.1157079576 | G70: 0.04480964529 | H70: 0.2058307348 | I70: 366008.4666 | J70: 194921.5644 | L70: 0.04168120594 | M70: 0.05042406881 | N70: 0.03859342853 | O70: 0.03456731483
A71: Kinder- und Jugendpsychiatrie und -psychotherapie | B71: 180317.4167 | C71: 160117.1052 | D71: 0.6218847793 | E71: 0.01342534795 | F71: 0.1269900506 | G71: 0.03614774072 | H71: 0.2015520814 | I71: 165324.3211 | J71: 146803.6322 | L71: 0.08494662108 | M71: 0.07761895467 | N71: 0.07368746511 | O71: 0.06090450704
A72: - Eges ≤ 300T€ | B72: 66606.22108 | C72: 66606.22108 | D72: 0.4725403491 | E72: 0.01331521969 | F72: 0.1882082186 | G72: 0.04151196226 | H72: 0.2844242503 | I72: 82310.36007 | J72: 82310.36007 | L72: 0.1608438653 | M72: 0.1608438653 | N72: 0.07428123184 | O72: 0.07428123184
A73: - 300T€ < Eges ≤ 425T€ | B73: 185922.9825 | C73: 178515.2482 | D73: 0.6229245188 | E73: 0.007368199019 | F73: 0.127353728 | G73: 0.02766821104 | H73: 0.2146853432 | I73: 172521.2055 | J73: 165647.4386 | L73: 0.05993381269 | M73: 0.05140955973 | N73: 0.06289723907 | O73: 0.07514330081
A74: - 425T€ < Eges ≤ 550T€ | B74: 262497.5464 | C74: 235263.5185 | D74: 0.6464558587 | E74: 0.01602267257 | F74: 0.1134276688 | G74: 0.0337343341 | H74: 0.1903594659 | I74: 213883.0755 | J74: 191692.7818 | L74: 0.04616967334 | M74: 0.06812814798 | N74: 0.06273198938 | O74: 0.0667370661
A75: - 550T€ < Eges | B75: 423131.8571 | C75: 261346.1471 | D75: 0.6749397829 | E75: 0.01464138894 | F75: 0.1073848532 | G75: 0.03961334129 | H75: 0.1634206336 | I75: 352446.7619 | J75: 217687.7059 | L75: 0.07885065752 | M75: 0.129027965 | N75: 0.09263254025 | O75: 0.11116756
A76: Nervenheilkunde | B76: 132582.5533 | C76: 115260.6133 | D76: 0.4899332746 | E76: 0.01279021241 | F76: 0.1415221423 | G76: 0.05476930723 | H76: 0.3009850634 | I76: 196462.3646 | J76: 170794.5131 | L76: 0.04640565739 | M76: 0.04048847605 | N76: 0.04743488481 | O76: 0.03551556973
A77: - Eges ≤ 250T€ | B77: 82197.57993 | C77: 82197.57993 | D77: 0.4530162299 | E77: 0.01175152845 | F77: 0.1763255402 | G77: 0.04882870718 | H77: 0.3100779943 | I77: 105514.0399 | J77: 105514.0399 | L77: 0.0598758045 | M77: 0.0598758045 | N77: 0.05077370359 | O77: 0.05077370359
A78: - 250T€ < Eges ≤ 300T€ | B78: 111314.5422 | C78: 108112.4356 | D78: 0.5011449107 | E78: 0.00750635448 | F78: 0.1461328138 | G78: 0.05626968578 | H78: 0.2889462352 | I78: 164220.0854 | J78: 159496.0825 | L78: 0.04319657025 | M78: 0.05411554227 | N78: 0.03068169978 | O78: 0.02764203946
A79: - 300T€ < Eges ≤ 400T€ | B79: 132481.2113 | C79: 120844.45 | D79: 0.4826406019 | E79: 0.01187176726 | F79: 0.1384504641 | G79: 0.05555973993 | H79: 0.3114774268 | I79: 210343.9335 | J79: 191867.9389 | L79: 0.04097273055 | M79: 0.04848849355 | N79: 0.03191939385 | O79: 0.05225510582
A80: - 400T€ < Eges | B80: 226206.3438 | C80: 147232.0899 | D80: 0.5099540032 | E80: 0.01614918742 | F80: 0.1226098698 | G80: 0.05687140955 | H80: 0.29441553 | I80: 344987.9682 | J80: 224544.0985 | L80: 0.06610739242 | M80: 0.08913904054 | N80: 0.05974490067 | O80: 0.0570288844
A81: Neurologie | B81: 131031.4542 | C81: 117574.4039 | D81: 0.4580050135 | E81: 0.01618444735 | F81: 0.1751363959 | G81: 0.09482336837 | H81: 0.2558507749 | I81: 157462.7039 | J81: 141291.1401 | L81: 0.0666349321 | M81: 0.06976601501 | N81: 0.08261175546 | O81: 0.0807421452
A82: - Eges ≤ 275T€ | B82: 96279.90758 | C82: 96279.90758 | D82: 0.3876573961 | E82: 0.009146659066 | F82: 0.2260440467 | G82: 0.1230859086 | H82: 0.2540659895 | I82: 99359.08381 | J82: 99359.08381 | L82: 0.1190458024 | M82: 0.1190458024 | N82: 0.08929836316 | O82: 0.08929836316
A83: - 275T€ < Eges ≤ 300T€ | B83: 144342.7547 | C83: 125024.4038 | D83: 0.4862175326 | E83: 0.02086570812 | F83: 0.1445895095 | G83: 0.07881473786 | H83: 0.2695125119 | I83: 172005.3974 | J83: 148984.7711 | L83: 0.05783476645 | M83: 0.07277294156 | N83: 0.05465201774 | O83: 0.112208604
A84: - 300T€ < Eges | B84: 181874.2679 | C84: 141489.629 | D84: 0.5049305562 | E84: 0.01950682884 | F84: 0.1486569384 | G84: 0.07942126612 | H84: 0.2474844105 | I84: 249645.2313 | J84: 194212.2521 | L84: 0.0580555596 | M84: 0.1255463068 | N84: 0.06607761784 | O84: 0.108485126
A85: Neurologie, Nervenheilkunde, Psychiatrie | B85: 253240.186 | C85: 131117.0649 | D85: 0.5459655511 | E85: 0.01459759349 | F85: 0.1255557466 | G85: 0.06492422235 | H85: 0.2489568865 | I85: 338561.8992 | J85: 175293.0418 | L85: 0.08524250039 | M85: 0.0899188919 | N85: 0.06737866771 | O85: 0.0627336383
A86: - Eges ≤ 300T€ | B86: 110200.2162 | C86: 100299.545 | D86: 0.4558531089 | E86: 0.02005476124 | F86: 0.1547817229 | G86: 0.08296113338 | H86: 0.2863492736 | I86: 121714.4324 | J86: 110779.2944 | L86: 0.06498139671 | M86: 0.07784945847 | N86: 0.0630391943 | O86: 0.08529443208
A87: - 300T€ < Eges ≤ 475T€ | B87: 141582.5445 | C87: 104508.8487 | D87: 0.5125257327 | E87: 0.01037377166 | F87: 0.1321152406 | G87: 0.05616779312 | H87: 0.2888174619 | I87: 237514.9342 | J87: 175321.1345 | L87: 0.06032417319 | M87: 0.08856924383 | N87: 0.06165059902 | O87: 0.09255136859
A88: - 475T€ < Eges ≤ 675T€ | B88: 237125.6636 | C88: 105203.2757 | D88: 0.545463838 | E88: 0.01477174508 | F88: 0.1548824103 | G88: 0.06174790739 | H88: 0.2231340991 | I88: 347125.2204 | J88: 154005.7272 | L88: 0.05649438982 | M88: 0.07213394418 | N88: 0.03777345732 | O88: 0.0871729539
A89: - 675T€ < Eges | B89: 459967.5988 | C89: 171500.0663 | D89: 0.5699284025 | E89: 0.01459427623 | F89: 0.1045646594 | G89: 0.06548355078 | H89: 0.245429111 | I89: 566816.6359 | J89: 211338.9963 | L89: 0.116284002 | M89: 0.2072403464 | N89: 0.0789608935 | O89: 0.139462653
A90: Orthopädie | B90: 274410.3111 | C90: 200078.3838 | D90: 0.45414546 | E90: 0.06806301352 | F90: 0.1397960176 | G90: 0.06787869575 | H90: 0.2701168132 | I90: 248730.9742 | J90: 181355.0341 | L90: 0.05092234892 | M90: 0.03056875605 | N90: 0.06071415398 | O90: 0.0329007228
A91: - Eges ≤ 300T€ | B91: 132139.4535 | C91: 124768.5138 | D91: 0.4537547765 | E91: 0.05106326542 | F91: 0.1745313615 | G91: 0.05593676504 | H91: 0.2647138315 | I91: 87906.1274 | J91: 83002.58992 | L91: 0.035957518 | M91: 0.04106215653 | N91: 0.05118602421 | O91: 0.05662086424
A92: - 300T€ < Eges ≤ 400T€ | B92: 191661.8736 | C92: 177895.056 | D92: 0.4400617991 | E92: 0.05818468899 | F92: 0.1504753677 | G92: 0.06621576616 | H92: 0.2850623781 | I92: 159450.7124 | J92: 147997.5796 | L92: 0.02802878145 | M92: 0.03877119484 | N92: 0.03286813928 | O92: 0.03718689109
A93: - 400T€ < Eges ≤ 600T€ | B93: 270217.5586 | C93: 231159.0816 | D93: 0.4328291036 | E93: 0.0653876935 | F93: 0.1321063106 | G93: 0.08559039 | H93: 0.2840865023 | I93: 210150.4027 | J93: 179774.306 | L93: 0.03276942889 | M93: 0.04907616903 | N93: 0.04312308656 | O93: 0.04825920412
A94: - 600T€ < Eges | B94: 495690.5594 | C94: 232522.7945 | D94: 0.4696648129 | E94: 0.07733148629 | F94: 0.1306272967 | G94: 0.06266596478 | H94: 0.2597104393 | I94: 527194.3028 | J94: 247300.8417 | L94: 0.08623113318 | M94: 0.06203194772 | N94: 0.07976091204 | O94: 0.04887729833
A95: Physikalische und rehabilitative Medizin | B95: 142373.983 | C95: 133777.7424 | D95: 0.4115719147 | E95: 0.03512441822 | F95: 0.1749793822 | G95: 0.06158959175 | H95: 0.3167346932 | I95: 122676.8327 | J95: 115269.8644 | L95: 0.1104758514 | M95: 0.1027363931 | N95: 0.1264252806 | O95: 0.1149357884
A96: - Eges ≤ 175T€ | B96: 69954.54322 | C96: 69954.54322 | D96: 0.3914653793 | E96: 0.0192294403 | F96: 0.2101590347 | G96: 0.05866140456 | H96: 0.3204847411 | I96: 61062.54001 | J96: 61062.54001 | L96: 0.09182136802 | M96: 0.09182136802 | N96: 0.1295673654 | O96: 0.1295673654
A97: - 175T€ < Eges ≤ 300T€ | B97: 137894.9726 | C97: 137894.9726 | D97: 0.4062254633 | E97: 0.02462732994 | F97: 0.1660857308 | G97: 0.06915689551 | H97: 0.3339045804 | I97: 112812.0627 | J97: 112812.0627 | L97: 0.09594594542 | M97: 0.09594594542 | N97: 0.07911336948 | O97: 0.07911336948
A98: - 300T€ < Eges | B98: 248649.7307 | C98: 204325.3679 | D98: 0.4224055142 | E98: 0.04705613958 | F98: 0.165823731 | G98: 0.05868545414 | H98: 0.306029161 | I98: 218958.3174 | J98: 179926.7533 | L98: 0.1098866981 | M98: 0.1390005843 | N98: 0.156686931 | O98: 0.1698240805
A99: Psychiatrie | B99: 68182.36829 | C99: 61543.83508 | D99: 0.3706190075 | E99: 0.00638666537 | F99: 0.1882590607 | G99: 0.06078288213 | H99: 0.3739523843 | I99: 120975.3283 | J99: 109196.6419 | L99: 0.06512534808 | M99: 0.06105621464 | N99: 0.05353830215 | O99: 0.04100473341
A100: - Eges ≤ 125T€ | B100: 29513.93383 | C100: 28528.91268 | D100: 0.1498145589 | E100: 0.003030142217 | F100: 0.2936933311 | G100: 0.09949900884 | H100: 0.453962959 | I100: 66504.94981 | J100: 64285.36151 | L100: 0.1001749479 | M100: 0.1004048258 | N100: 0.04360008063 | O100: 0.04869630976
A101: - 125T€ < Eges ≤ 175T€ | B101: 43581.73975 | C101: 43581.73975 | D101: 0.250834921 | E101: 0.007694232855 | F101: 0.2438494029 | G101: 0.04747937812 | H101: 0.4501420652 | I101: 107431.4741 | J101: 107431.4741 | L101: 0.06974606006 | M101: 0.06974606006 | N101: 0.02963564088 | O101: 0.02963564088
A102: - 175T€ < Eges ≤ 225T€ | B102: 85860.1783 | C102: 80469.31559 | D102: 0.38952855 | E102: 0.003301083067 | F102: 0.1685004705 | G102: 0.04452158276 | H102: 0.3941483136 | I102: 116364.9123 | J102: 109058.7632 | L102: 0.08534716241 | M102: 0.09817288002 | N102: 0.05966324208 | O102: 0.06743220864
A103: - 225T€ < Eges | B103: 119983.9743 | C103: 89665.42546 | D103: 0.4631132661 | E103: 0.009189600814 | F103: 0.1524169786 | G103: 0.06547600268 | H103: 0.3098041518 | I103: 204355.3133 | J103: 152717.1125 | L103: 0.07134226112 | M103: 0.08544277335 | N103: 0.07913390977 | O103: 0.06263838375
A104: Psychosomatische Medizin und Psychotherapie | B104: 28470.37902 | C104: 28257.88702 | D104: 0.1295919627 | E104: 0.01036491907 | F104: 0.2320306288 | G104: 0.08696363899 | H104: 0.5410488504 | I104: 76298.13577 | J104: 75728.67574 | L104: 0.03140172749 | M104: 0.03161052852 | N104: 0.02234562052 | O104: 0.02159600138
A105: - Eges ≤ 100T€ | B105: 21806.62094 | C105: 21806.62094 | D105: 0.06998476169 | E105: 0.007830639985 | F105: 0.2653107175 | G105: 0.09137108389 | H105: 0.5655027969 | I105: 53391.30001 | J105: 53391.30001 | L105: 0.03384929894 | M105: 0.03384929894 | N105: 0.02678932865 | O105: 0.02678932865
A106: - 100T€ < Eges ≤ 125T€ | B106: 29236.13337 | C106: 29236.13337 | D106: 0.108204256 | E106: 0.01200538221 | F106: 0.2378560141 | G106: 0.0867942374 | H106: 0.5551401103 | I106: 81788.10084 | J106: 81788.10084 | L106: 0.0371884219 | M106: 0.0371884219 | N106: 0.01482256112 | O106: 0.01482256112
A107: - 125T€ < Eges ≤ 150T€ | B107: 32831.48303 | C107: 32354.3879 | D107: 0.1654794349 | E107: 0.009560183631 | F107: 0.2198349433 | G107: 0.07900724463 | H107: 0.5261181935 | I107: 106384.4693 | J107: 104838.529 | L107: 0.05200001632 | M107: 0.0542769343 | N107: 0.01990285472 | O107: 0.02426802811
A108: - 150T€ < Eges | B108: 51448.3221 | C108: 49034.69623 | D108: 0.2413210611 | E108: 0.01420652653 | F108: 0.1694316048 | G108: 0.08667858866 | H108: 0.488362219 | I108: 123403.7816 | J108: 117614.4662 | L108: 0.09393961413 | M108: 0.1006839536 | N108: 0.03964151579 | O108: 0.03454926881
A109: Psychotherapie | B109: 30417.15146 | C109: 29794.14045 | D109: 0.1400911537 | E109: 0.007567731054 | F109: 0.2458779442 | G109: 0.08793320739 | H109: 0.5185299636 | I109: 69999.21226 | J109: 68565.47248 | L109: 0.02728395213 | M109: 0.02679508116 | N109: 0.0206059035 | O109: 0.02085338817
A110: - Eges ≤ 75T€ | B110: 18891.94672 | C110: 18336.94225 | D110: 0.04154149686 | E110: 0.002547483585 | F110: 0.3015921448 | G110: 0.08784076744 | H110: 0.5664781073 | I110: 40953.35427 | J110: 39750.23343 | L110: 0.04821242367 | M110: 0.05130599027 | N110: 0.03851647821 | O110: 0.03956434991
A111: - 75T€ < Eges ≤ 100T€ | B111: 26645.05203 | C111: 26591.37889 | D111: 0.1124229576 | E111: 0.007120094105 | F111: 0.2654461258 | G111: 0.09004642555 | H111: 0.524964397 | I111: 61573.67804 | J111: 61449.64554 | L111: 0.04135834307 | M111: 0.04150088801 | N111: 0.02003373007 | O111: 0.0201971605
A112: - 100T€ < Eges ≤ 125T€ | B112: 33576.66141 | C112: 33507.4865 | D112: 0.1025866791 | E112: 0.0151437624 | F112: 0.2443935293 | G112: 0.09789585909 | H112: 0.5399801701 | I112: 77801.64069 | J112: 77641.35312 | L112: 0.03206799945 | M112: 0.03226759329 | N112: 0.01584632122 | O112: 0.01612579137
A113: - 125T€ < Eges | B113: 46032.08742 | C113: 43519.81364 | D113: 0.2381159135 | E113: 0.00469553225 | F113: 0.2038619209 | G113: 0.07875767501 | H113: 0.4745689583 | I113: 107892.3478 | J113: 102003.9528 | L113: 0.04407267289 | M113: 0.04350213971 | N113: 0.02191653359 | O113: 0.02706029741
A114: Radiologie | B114: 1781279.712 | C114: 690141.3337 | D114: 0.3958040902 | E114: 0.08521603872 | F114: 0.08862406221 | G114: 0.1255391014 | H114: 0.3048167075 | I114: 790446.5554 | J114: 306251.6438 | L114: 0.1402436354 | M114: 0.1263396457 | N114: 0.119121498 | O114: 0.09054220129
A115: - Eges ≤ 550T€ | B115: 224947.6264 | C115: 224947.6264 | D115: 0.3311940462 | E115: 0.0759347755 | F115: 0.0888295621 | G115: 0.09883795431 | H115: 0.4052036619 | I115: 138351.4114 | J115: 138351.4114 | L115: 0.2387235644 | M115: 0.2387235644 | N115: 0.1780041598 | O115: 0.1780041598
A116: - 550T€ < Eges ≤ 2500T€ | B116: 923483.5612 | C116: 526066.2136 | D116: 0.4506512895 | E116: 0.07043000812 | F116: 0.09507852284 | G116: 0.07955787254 | H116: 0.304282307 | I116: 574034.209 | J116: 327000.9511 | L116: 0.1301269544 | M116: 0.1080522502 | N116: 0.1509702937 | O116: 0.1097020244
A117: - 2500T€ < Eges | B117: 2906946.408 | C117: 787068.4782 | D117: 0.3856876138 | E117: 0.08866270355 | F117: 0.08722313918 | G117: 0.1361992126 | H117: 0.3022273309 | I117: 1164780.572 | J117: 315369.4438 | L117: 0.09931806759 | M117: 0.1841293484 | N117: 0.09741400942 | O117: 0.1400875455
A118: Urologie | B118: 248571.4642 | C118: 177698.5488 | D118: 0.4233313027 | E118: 0.1154923316 | F118: 0.1227883028 | G118: 0.08577373024 | H118: 0.2526143326 | I118: 246885.9941 | J118: 176493.6414 | L118: 0.05990970779 | M118: 0.03419226413 | N118: 0.0655135489 | O118: 0.04791873001
A119: - Eges ≤ 300T€ | B119: 130557.6225 | C119: 130557.6225 | D119: 0.4215714056 | E119: 0.08789454243 | F119: 0.1368750612 | G119: 0.07847563416 | H119: 0.2751833566 | I119: 100682.4815 | J119: 100682.4815 | L119: 0.03740579081 | M119: 0.03740579081 | N119: 0.07982857936 | O119: 0.07982857936
A120: - 300T€ < Eges ≤ 400T€ | B120: 175568.8694 | C120: 166565.4158 | D120: 0.3957227175 | E120: 0.1063118185 | F120: 0.152225459 | G120: 0.09152611646 | H120: 0.2542138885 | I120: 170438.4742 | J120: 161698.1156 | L120: 0.0341544545 | M120: 0.04547363937 | N120: 0.03397762475 | O120: 0.04044726414
A121: - 400T€ < Eges ≤ 625T€ | B121: 275508.5356 | C121: 196117.983 | D121: 0.4045665118 | E121: 0.1383141436 | F121: 0.1169037367 | G121: 0.07367863014 | H121: 0.2665369777 | I121: 246034.75 | J121: 175137.3649 | L121: 0.04759025852 | M121: 0.08209115386 | N121: 0.05924299101 | O121: 0.09890382049
A122: - 625T€ < Eges | B122: 459483.9998 | C122: 198687.885 | D122: 0.4476966362 | E122: 0.1160055459 | F122: 0.1079021745 | G122: 0.0931119012 | H122: 0.2352837422 | I122: 525951.0561 | J122: 227429.2532 | L122: 0.09597771001 | M122: 0.06657911458 | N122: 0.06829150689 | O122: 0.09016760216
A123: Übergreifend tätige Praxen | B123: 363930.593 | C123: 164723.1879 | D123: 0.5057774052 | E123: 0.06975400766 | F123: 0.114152942 | G123: 0.06823771 | H123: 0.2420779351 | I123: 367636.3855 | J123: 166400.5131 | L123: 0.08938701497 | M123: 0.07463477177 | N123: 0.09541115368 | O123: 0.06388478638
A124: - Eges ≤ 275T€ | B124: 70368.79123 | C124: 65374.87882 | D124: 0.3615282164 | E124: 0.01983048635 | F124: 0.1396781364 | G124: 0.06642508867 | H124: 0.4125380722 | I124: 93825.2334 | J124: 87166.67085 | L124: 0.1466556141 | M124: 0.1421242783 | N124: 0.1274691769 | O124: 0.1199253742
A125: - 275T€ < Eges ≤ 575T€ | B125: 217223.8462 | C125: 112243.5896 | D125: 0.4999138185 | E125: 0.0694801213 | F125: 0.1192021622 | G125: 0.040511639 | H125: 0.270892259 | I125: 229248.4879 | J125: 118456.9449 | L125: 0.06041277923 | M125: 0.08165198133 | N125: 0.05066132602 | O125: 0.05953555005
A126: - 575T€ < Eges ≤ 925T€ | B126: 404432.8612 | C126: 183907.5991 | D126: 0.5508428882 | E126: 0.07489110549 | F126: 0.1161292876 | G126: 0.06172528182 | H126: 0.1964114368 | I126: 356274.6156 | J126: 162008.6187 | L126: 0.07981417658 | M126: 0.1315787895 | N126: 0.05875519833 | O126: 0.06742150281
A127: - 925T€ < Eges | B127: 679479.74 | C127: 216836.6912 | D127: 0.4836540307 | E127: 0.06841381051 | F127: 0.1090268428 | G127: 0.08762343078 | H127: 0.2512818852 | I127: 721794.1812 | J127: 230340.1452 | L127: 0.08517888748 | M127: 0.1274190496 | N127: 0.1090156481 | O127: 0.1156637405
A128: Hinweis: Für die Darstellung der Tabelle wurden für jede Fachgebiet die Gesamteinnahmen je Praxis (Eges) so klassiert, dass vier Klassen ausreichend besetzt sind. Bei kleinen Fachgebiete wurde die Zahl der Klassen entsprechend reduziert. Die Klassengrenzen orientieren sich allein an der Verteilung im ZiPP und müssen nicht die Größenklassen der Grundgesamtheit wiederspiegeln. Die Klassen entsprechen zudem nicht den KV-Honorarklassen, die zur Gewichtung herangezogen werden, da hier alle Einnahmen einbezogen werden. Gewichtete Ergebnisse.
A129: Quelle: Zi-Praxis-Panel 2013.

Sheet T38
A1: Tabelle 38: Praxiseinnahmen je Praxis und je Inhaber nach Fachgebiet und Organisationsform im Jahr 2011
A2: Fachgebiet und Organisationsform | B2: Praxen | C2: Einnahmen je Praxis in Euro | D2: Einnahmen je Inhaber in Euro | E2: davon aus … | J2: relativer Standarfehler je Praxis | K2: relativer Standarfehler je Inhaber
E4: GKV | F4: Privat | G4: BG/Unfall | H4: Sonstige
A5: Gesamt | B5: 4152 | C5: 356811.5687 | D5: 281483.8127 | E5: 0.7309078349 | F5: 0.20944939 | G5: 0.009489878445 | H5: 0.05015263526 | J5: 0.01756816145 | K5: 0.01141139365
A6: Einzelpraxis | B6: 3350 | C6: 259537.3126 | D6: 259537.3126 | E6: 0.7469138971 | F6: 0.1919761071 | G6: 0.008973137848 | H6: 0.05213640395 | J6: 0.01349099816 | K6: 0.01349099816
A7: Gemeinschaftspraxis | B7: 802 | C7: 726782.8604 | D7: 318006.8774 | E7: 0.7091683257 | F7: 0.2331816851 | G7: 0.01019171796 | H7: 0.04745827127 | J7: 0.03277366347 | K7: 0.02321069897
A8: Allgemeinmedizin und Innere Medizin (hausärztlich) | B8: 464 | C8: 339647.982 | D8: 262783.4837 | E8: 0.8198814481 | F8: 0.1393937763 | G8: 0.004293487422 | H8: 0.03643128817 | J8: 0.02385684425 | K8: 0.01981448045
A9: Einzelpraxis | B9: 350 | C9: 283400.6577 | D9: 283400.6577 | E9: 0.8212568173 | F9: 0.1331927777 | G9: 0.00456806645 | H9: 0.04098233854 | J9: 0.02268472864 | K9: 0.02268472864
A10: Gemeinschaftspraxis | B10: 114 | C10: 510505.3639 | D10: 234068.7883 | E10: 0.8175621758 | F10: 0.1498504621 | G10: 0.003830467384 | H10: 0.02875689463 | J10: 0.03691113832 | K10: 0.03711830862
A11: Anästhesiologie | B11: 99 | C11: 447957.5533 | D11: 309013.8526 | E11: 0.6508168645 | F11: 0.251572518 | G11: 0.007142384899 | H11: 0.09046823264 | J11: 0.1231656553 | K11: 0.05446015425
A12: Einzelpraxis | B12: 67 | C12: 278511.7521 | D12: 278511.7521 | E12: 0.6423333479 | F12: 0.2112828877 | G12: 0.009829015018 | H12: 0.1365547493 | J12: 0.06273711599 | K12: 0.06273711599
A13: Gemeinschaftspraxis | B13: 32 | C13: 968777.1371 | D13: 342122.7161 | E13: 0.6583132524 | F13: 0.2871741101 | G13: 0.004768366841 | H13: 0.04974427064 | J13: 0.1651782615 | K13: 0.09666267825
A14: Augenheilkunde | B14: 220 | C14: 494674.8625 | D14: 393410.2919 | E14: 0.5936425078 | F14: 0.3363912096 | G14: 0.01720893693 | H14: 0.05275734561 | J14: 0.08485881502 | K14: 0.05378307471
A15: Einzelpraxis | B15: 184 | C15: 353263.4699 | D15: 353263.4699 | E15: 0.5952516634 | F15: 0.3225244393 | G15: 0.02680632052 | H15: 0.05541757678 | J15: 0.06077360338 | K15: 0.06077360338
A16: Gemeinschaftspraxis | B16: 36 | C16: 1008756.242 | D16: 459957.5496 | E16: 0.5915939039 | F16: 0.3540448914 | G16: 0.004990579583 | H16: 0.04937062517 | J16: 0.1793152403 | K16: 0.123888249
A17: Chirurgie | B17: 188 | C17: 488786.6817 | D17: 373937.7665 | E17: 0.6615877279 | F17: 0.1676991588 | G17: 0.09303631178 | H17: 0.07766802651 | J17: 0.05844618563 | K17: 0.03751274645
A18: Einzelpraxis | B18: 141 | C18: 369985.1087 | D18: 369985.1087 | E18: 0.6642725199 | F18: 0.1647129643 | G18: 0.09177933831 | H18: 0.07921952512 | J18: 0.03971404802 | K18: 0.03971404802
A19: Gemeinschaftspraxis | B19: 47 | C19: 828031.4899 | D19: 379105.4198 | E19: 0.6581621088 | F19: 0.1715093477 | G19: 0.09464012771 | H19: 0.07568841577 | J19: 0.104846898 | K19: 0.08281136202
A20: Dermatologie | B20: 198 | C20: 429799.8188 | D20: 338632.7511 | E20: 0.5956882939 | F20: 0.3374893274 | G20: 0.01080034618 | H20: 0.05602203252 | J20: 0.05611808331 | K20: 0.04050748586
A21: Einzelpraxis | B21: 157 | C21: 337962.3657 | D21: 337962.3657 | E21: 0.630751968 | F21: 0.295562121 | G21: 0.01358819052 | H21: 0.06009772046 | J21: 0.04556044511 | K21: 0.04556044511
A22: Gemeinschaftspraxis | B22: 41 | C22: 759969.7129 | D22: 339710.095 | E22: 0.5396290652 | F22: 0.4045218592 | G22: 0.006343186268 | H22: 0.0495058893 | J22: 0.1049222463 | K22: 0.08976666939
A23: Gynäkologie | B23: 432 | C23: 362672.3491 | D23: 292842.249 | E23: 0.6636187907 | F23: 0.2955018318 | G23: 0.001707617505 | H23: 0.03917175992 | J23: 0.03457654242 | K23: 0.02720180141
A24: Einzelpraxis | B24: 354 | C24: 295745.1073 | D24: 295745.1073 | E24: 0.6697047195 | F24: 0.2849419339 | G24: 0.002387144182 | H24: 0.0429662024 | J24: 0.03247504564 | K24: 0.03247504564
A25: Gemeinschaftspraxis | B25: 78 | C25: 635346.9163 | D25: 287490.689 | E25: 0.6520769463 | F25: 0.3155284708 | G25: 0.000418908516 | H25: 0.03197567431 | J25: 0.06178139513 | K25: 0.05272889811
A26: Hals-Nasen-Ohren-Heilkunde | B26: 297 | C26: 393686.9381 | D26: 290525.9157 | E26: 0.6565882589 | F26: 0.2896283167 | G26: 0.005153856025 | H26: 0.04862956834 | J26: 0.05030660816 | K26: 0.02697239035
A27: Einzelpraxis | B27: 232 | C27: 279796.6695 | D27: 279796.6695 | E27: 0.6432488958 | F27: 0.2904497763 | G27: 0.006794774005 | H27: 0.05950655387 | J27: 0.03338151461 | K27: 0.03338151461
A28: Gemeinschaftspraxis | B28: 65 | C28: 743415.8244 | D28: 303998.5919 | E28: 0.672004934 | F28: 0.2886789329 | G28: 0.003257401205 | H28: 0.03605873184 | J28: 0.08383658188 | K28: 0.05097612756
A29: Innere Medizin - Gastroenterologie | B29: 38 | C29: 643635.5713 | D29: 553501.1402 | E29: 0.7011906376 | F29: 0.276482715 | G29: 0.0003512426722 | H29: 0.02197540475 | J29: 0.113615904 | K29: 0.06506813024
A30: Einzelpraxis | B30: . | C30: 561445.7518 | D30: 561445.7518 | E30: 0.776943714 | F30: 0.1965422589 | G30: 0.0004281058555 | H30: 0.02608592125 | J30: 0.05660240336 | K30: 0.05660240336
A31: Gemeinschaftspraxis | B31: . | C31: . | D31: . | E31: . | F31: . | G31: . | H31: . | J31: 0.4647948736 | K31: 0.3312666463
A32: Innere Medizin - Kardiologie | B32: 27 | C32: 569567.2303 | D32: 482398.8471 | E32: 0.7758944899 | F32: 0.1984310016 | G32: 0.003056652872 | H32: 0.02261785567 | J32: 0.1423040236 | K32: 0.08279805336
A33: Einzelpraxis | B33: . | C33: 409564.5343 | D33: 409564.5343 | E33: 0.7789331395 | F33: 0.1856140347 | G33: 0.005023782579 | H33: 0.03042904319 | J33: 0.06703523709 | K33: 0.06703523709
A34: Gemeinschaftspraxis | B34: . | C34: . | D34: . | E34: . | F34: . | G34: . | H34: . | J34: 0.3628733101 | K34: 0.3628733101
A35: Innere Medizin - Pneumologie | B35: 41 | C35: 611001.4717 | D35: 469717.5656 | E35: 0.7483595416 | F35: 0.1898216736 | G35: 0.01143508057 | H35: 0.05038370427 | J35: 0.1210709898 | K35: 0.06530183313
A36: Einzelpraxis | B36: 33 | C36: 467702.851 | D36: 467702.851 | E36: 0.7487225063 | F36: 0.1838735077 | G36: 0.01225320721 | H36: 0.05515077878 | J36: 0.07825397219 | K36: 0.07825397219
A37: Gemeinschaftspraxis | B37: 8 | C37: 1182529.219 | D37: 472931.1886 | E37: 0.7477869858 | F37: 0.1992045612 | G37: 0.01014453311 | H37: 0.04286391991 | J37: 0.2287926913 | K37: 0.1367401082
A38: Innere Medizin - ohne bzw. mit mehreren Schwerpunkten | B38: 40 | C38: 643877.3837 | D38: 449094.8695 | E38: 0.7696431878 | F38: 0.2123979009 | G38: 0.002402664213 | H38: 0.01555624705 | J38: 0.1600871898 | K38: 0.05265918902
A39: Einzelpraxis | B39: . | C39: 403580.1615 | D39: 403580.1615 | E39: 0.7950164244 | F39: 0.1804105227 | G39: 0.003483642319 | H39: 0.02108941059 | J39: 0.06683664584 | K39: 0.06683664584
A40: Gemeinschaftspraxis | B40: . | C40: . | D40: . | E40: . | F40: . | G40: . | H40: . | J40: 0.3501664418 | K40: 0.1185568448
A41: Innere Medizin - sonstige Fachgebiete | B41: 46 | C41: 762151.7489 | D41: 568200.5802 | E41: 0.7481207319 | F41: 0.1561231757 | G41: 0.01986100842 | H41: 0.07589508399 | J41: 0.09725679517 | K41: 0.07211167899
A42: Einzelpraxis | B42: 39 | C42: 579331.2818 | D42: 579331.2818 | E42: 0.7147438324 | F42: 0.1731734231 | G42: 0.001544904686 | H42: 0.1105378398 | J42: 0.08470393814 | K42: 0.08470393814
A43: Gemeinschaftspraxis | B43: 7 | C43: 1223147.012 | D43: 555454.8623 | E43: 0.7879833629 | F43: 0.1357597588 | G43: 0.04173626037 | H43: 0.03452061794 | J43: 0.1955254327 | K43: 0.1754324353
A44: Kinder- und Jugendmedizin | B44: 355 | C44: 382899.7752 | D44: 294117.3863 | E44: 0.7976131592 | F44: 0.1803677329 | G44: 0.003249559974 | H44: 0.0187695479 | J44: 0.02731146883 | K44: 0.01946344536
A45: Einzelpraxis | B45: 255 | C45: 311165.6592 | D45: 311165.6592 | E45: 0.7883990558 | F45: 0.1883109568 | G45: 0.003285580443 | H45: 0.0200044069 | J45: 0.02317254048 | K45: 0.02317254048
A46: Gemeinschaftspraxis | B46: 100 | C46: 580728.4021 | D46: 272089.0466 | E46: 0.8112287052 | F46: 0.168630147 | G46: 0.003196333052 | H46: 0.01694481479 | J46: 0.04085652014 | K46: 0.03438580629
A47: Kinder- und Jugendpsychiatrie und -psychotherapie | B47: 98 | C47: 345641.7378 | D47: 306920.7374 | E47: 0.8988716458 | F47: 0.07906341428 | G47: 0.000655568529 | H47: 0.02140937144 | J47: 0.07281115235 | K47: 0.06196104137
A48: Einzelpraxis | B48: 86 | C48: 305789.4912 | D48: 305789.4912 | E48: 0.8910118628 | F48: 0.08286969984 | G48: 0.0007869371864 | H48: 0.02533150019 | J48: 0.07182861028 | K48: 0.07182861028
A49: Gemeinschaftspraxis | B49: 12 | C49: 754932.3787 | D49: 311717.9603 | E49: 0.9315683563 | F49: 0.06322925988 | G49: 0.0001090746907 | H49: 0.005093309147 | J49: 0.1180800989 | K49: 0.0963267416
A50: Nervenheilkunde | B50: 138 | C50: 329044.9179 | D50: 286055.1264 | E50: 0.7990801752 | F50: 0.1158183831 | G50: 0.01401600656 | H50: 0.07108543511 | J50: 0.04284144438 | K50: 0.03260127416
A51: Einzelpraxis | B51: 118 | C51: 287757.8888 | D51: 287757.8888 | E51: 0.7873670096 | F51: 0.119924939 | G51: 0.01523762228 | H51: 0.07747042909 | J51: 0.03755033306 | K51: 0.03755033306
A52: Gemeinschaftspraxis | B52: 20 | C52: 576146.5802 | D52: 281083.2757 | E52: 0.8340932755 | F52: 0.1035430291 | G52: 0.01036434183 | H52: 0.05199935356 | J52: 0.07674094615 | K52: 0.0672276754
A53: Neurologie | B53: 32 | C53: 288494.1581 | D53: 258865.5441 | E53: 0.7313909242 | F53: 0.1727966246 | G53: 0.01230158583 | H53: 0.08351086543 | J53: 0.06702592874 | K53: 0.06710932335
A54: Einzelpraxis | B54: . | C54: 273118.7504 | D54: 273118.7504 | E54: 0.745176375 | F54: 0.1674924457 | G54: 0.01296514793 | H54: 0.07436603139 | J54: 0.07374197389 | K54: 0.07374197389
A55: Gemeinschaftspraxis | B55: . | C55: . | D55: . | E55: . | F55: . | G55: . | H55: . | J55: 0.07456712408 | K55: 0.07456712408
A56: Neurologie, Nervenheilkunde, Psychiatrie | B56: 76 | C56: 591802.0852 | D56: 306410.1066 | E56: 0.7196937696 | F56: 0.161945051 | G56: 0.01387273953 | H56: 0.1044884399 | J56: 0.07154055436 | K56: 0.07070309304
A57: Einzelpraxis | B57: 36 | C57: 424667.6997 | D57: 424667.6997 | E57: 0.7680595738 | F57: 0.1553130072 | G57: 0.01159323269 | H57: 0.06503418632 | J57: 0.1441631751 | K57: 0.1441631751
A58: Gemeinschaftspraxis | B58: 40 | C58: 705349.4162 | D58: 275077.8635 | E58: 0.6999106648 | F58: 0.1646577613 | G58: 0.01480512809 | H58: 0.1206264458 | J58: 0.07348479474 | K58: 0.04150131198
A59: Nuklearmedizin | B59: 11 | C59: 1117028.689 | D59: 643218.8478 | E59: 0.6301902659 | F59: 0.2914287564 | G59: 0.002152459264 | H59: 0.07622851847 | J59: 0.1741407855 | K59: 0.1551752694
A60: Einzelpraxis | B60: . | C60: 805983.8333 | D60: 805983.8333 | E60: 0.5280141062 | F60: 0.3214446195 | G60: 0.004172333481 | H60: 0.1463689408 | J60: 0.2873660705 | K60: 0.2873660705
A61: Gemeinschaftspraxis | B61: . | C61: . | D61: . | E61: . | F61: . | G61: . | H61: . | J61: 0.2165108342 | K61: 0.1577496062
A62: Orthopädie | B62: 266 | C62: 523141.2854 | D62: 381433.4179 | E62: 0.6290905854 | F62: 0.2934954056 | G62: 0.01263306226 | H62: 0.06478094666 | J62: 0.05154679279 | K62: 0.02579428933
A63: Einzelpraxis | B63: 201 | C63: 375386.2831 | D63: 375386.2831 | E63: 0.6145706656 | F63: 0.3001413102 | G63: 0.01359344836 | H63: 0.07169457583 | J63: 0.0302045378 | K63: 0.0302045378
A64: Gemeinschaftspraxis | B64: 65 | C64: 927370.3573 | D64: 388361.5801 | E64: 0.6451701676 | F64: 0.2861356289 | G64: 0.01156951593 | H64: 0.05712468757 | J64: 0.08801971714 | K64: 0.05139253207
A65: Physikalische und rehabilitative Medizin | B65: 33 | C65: 265050.8157 | D65: 249047.6068 | E65: 0.6800594659 | F65: 0.2401732399 | G65: 0.005839411067 | H65: 0.07392788311 | J65: 0.1127159659 | K65: 0.1023594531
A66: Einzelpraxis | B66: . | C66: 250418.7344 | D66: 250418.7344 | E66: 0.6884542915 | F66: 0.226307586 | G66: 0.006385778007 | H66: 0.07885234445 | J66: 0.1084064311 | K66: 0.1084064311
A67: Gemeinschaftspraxis | B67: . | C67: . | D67: . | E67: . | F67: . | G67: . | H67: . | J67: 0 | K67: 0
A68: Psychiatrie | B68: 111 | C68: 189157.6966 | D68: 170740.477 | E68: 0.7869778607 | F68: 0.1331776821 | G68: 0.0125085872 | H68: 0.06733586997 | J68: 0.0516163685 | K68: 0.04101464383
A69: Einzelpraxis | B69: 100 | C69: 173408.1731 | D69: 173408.1731 | E69: 0.77983418 | F69: 0.1342299853 | G69: 0.0122996689 | H69: 0.07363616578 | J69: 0.04343054245 | K69: 0.04343054245
A70: Gemeinschaftspraxis | B70: 11 | C70: 344258.0345 | D70: 158634.6192 | E70: 0.8224145255 | F70: 0.1279576676 | G70: 0.01354493919 | H70: 0.03608286764 | J70: 0.1642072404 | K70: 0.1293987459
A71: Psychosomatische Medizin und Psychotherapie | B71: 331 | C71: 104768.5148 | D71: 103986.5628 | E71: 0.7258267072 | F71: 0.2284855097 | G71: 0.004739446894 | H71: 0.04094833627 | J71: 0.01947517737 | K71: 0.01898541455
A72: Einzelpraxis | B72: . | C72: 104071.8169 | D72: 104071.8169 | E72: 0.7231777317 | F72: 0.2309063397 | G72: 0.00441753846 | H72: 0.0414983901 | J72: 0.01908998324 | K72: 0.01908998324
A73: Gemeinschaftspraxis | B73: . | C73: . | D73: . | E73: . | F73: . | G73: . | H73: . | J73: 0.222410259 | K73: 0.222410259
A74: Psychotherapie | B74: 386 | C74: 100416.3637 | D74: 98359.61293 | E74: 0.798881633 | F74: 0.1443562434 | G74: 0.0004980990838 | H74: 0.05626402458 | J74: 0.01864908542 | K74: 0.01865500429
A75: Einzelpraxis | B75: 377 | C75: 99583.02413 | D75: 99583.02413 | E75: 0.7999732394 | F75: 0.1421238841 | G75: 0.0005129942994 | H75: 0.05738988219 | J75: 0.01855937619 | K75: 0.01855937619
A76: Gemeinschaftspraxis | B76: 9 | C76: 139435.669 | D76: 69717.83452 | E76: 0.762378089 | F76: 0.2190067972 | G76: 0 | H76: 0.01861511373 | J76: 0.1359855353 | K76: 0.1359855353
A77: Radiologie | B77: 31 | C77: 2571726.268 | D77: 996392.9775 | E77: 0.5314329796 | F77: 0.3328072786 | G77: 0.01777860296 | H77: 0.1179811389 | J77: 0.1244082104 | K77: 0.1036525774
A78: Einzelpraxis | B78: 13 | C78: 1234269.828 | D78: 1234269.828 | E78: 0.597055066 | F78: 0.2689005075 | G78: 0.02025338817 | H78: 0.1137910383 | J78: 0.3129317102 | K78: 0.3129317102
A79: Gemeinschaftspraxis | B79: 18 | C79: 3427361.817 | D79: 954032.1523 | E79: 0.5163144565 | F79: 0.347530614 | G79: 0.01720844283 | H79: 0.1189464866 | J79: 0.1004202492 | K79: 0.05470899543
A80: Urologie | B80: 142 | C80: 495457.4583 | D80: 354192.1902 | E80: 0.5698912333 | F80: 0.3793121146 | G80: 0.003777015322 | H80: 0.04701963672 | J80: 0.05768439093 | K80: 0.03466321463
A81: Einzelpraxis | B81: 101 | C81: 360453.8011 | D81: 360453.8011 | E81: 0.5763133382 | F81: 0.3679896901 | G81: 0.003262524696 | H81: 0.05243444705 | J81: 0.04612587034 | K81: 0.04612587034
A82: Gemeinschaftspraxis | B82: 41 | C82: 845029.078 | D82: 347524.273 | E82: 0.5627979717 | F82: 0.3918178152 | G82: 0.004345273973 | H82: 0.0410389392 | J82: 0.07769536911 | K82: 0.05452723461
A83: Übergreifend tätige Praxen | B83: 52 | C83: 731566.9784 | D83: 331123.701 | E83: 0.7753355538 | F83: 0.1835408424 | G83: 0.008868812604 | H83: 0.03225479121 | J83: 0.08785857009 | K83: 0.06290377472
A84: Einzelpraxis | B84: 19 | C84: 292032.8738 | D84: 292032.8738 | E84: 0.7225285551 | F84: 0.1884866181 | G84: 0.008171501375 | H84: 0.08081332543 | J84: 0.1766658472 | K84: 0.1766658472
A85: Gemeinschaftspraxis | B85: 33 | C85: 804281.2804 | D85: 333807.7509 | E85: 0.7785076221 | F85: 0.1832437542 | G85: 0.008910699454 | H85: 0.02933792432 | J85: 0.09838675058 | K85: 0.07534784654
A86: Hinweis: Gewichtete Ergebnisse.
A87: Quelle: Zi-Praxis-Panel 2013.

Sheet T39
A1: Tabelle 39: Praxisaufwendungen (Teil I) je Praxis und je Inhaber nach Fachgebiet und Organisationsform im Jahr 2011
A2: Fachgebiet und Organisationsform | B2: Aufwen- dungen je Praxis in Euro | C2: Aufwen- dungen je Inhaber in Euro | D2: davon für … | L2: relativer Standardfehler je Praxis | M2: relativer Standardfehler je Inhaber
D3: Personal | E3: Material und Labor | F3: Miete einschl. Nk. für Praxis-räume | G3: Versiche- rungen, Beiträge und Gebühren | H3: Kfz | I3: Abschrei- bungen | J3: Leasing und Mieten von Geräten
A6: Gesamt | B6: 172839 | C6: 136350.3456 | D6: 0.4749118401 | E6: 0.06008214531 | F6: 0.1205358254 | G6: 0.0502104253 | H6: 0.02814393736 | I6: 0.07319813294 | J6: 0.01556572733 | L6: 0.02329527362 | M6: 0.0158561077
A7: Einzelpraxis | B7: 124196.3891 | C7: 124196.3891 | D7: 0.4549271979 | E7: 0.04974365528 | F7: 0.1319498997 | G7: 0.05416963283 | H7: 0.03751860258 | I7: 0.07159445158 | J7: 0.01421411934 | L7: 0.01874650586 | M7: 0.01874650586
A8: Gemeinschaftspraxis | B8: 357845.4995 | C8: 156576.7936 | D8: 0.5012921501 | E8: 0.07372925339 | F8: 0.1054689148 | G8: 0.04498415601 | H8: 0.01576910611 | I8: 0.07531503906 | J8: 0.01734988927 | L8: 0.04535136807 | M8: 0.03256505229
A9: Allgemeinmedizin und Innere Medizin (hausärztlich) | B9: 155966.8501 | C9: 120670.5601 | D9: 0.5359508415 | E9: 0.03729959166 | F9: 0.1100423105 | G9: 0.05173367138 | H9: 0.03885341564 | I9: 0.05874141095 | J9: 0.009340742589 | L9: 0.02669042428 | M9: 0.02552521847
A10: Einzelpraxis | B10: 134614.57 | C10: 134614.57 | D10: 0.5112303451 | E10: 0.03679965424 | F10: 0.1156187745 | G10: 0.05188021656 | H10: 0.0430436134 | I10: 0.06339208535 | J10: 0.009870756829 | L10: 0.02913964948 | M10: 0.02913964948
A11: Gemeinschaftspraxis | B11: 220826.7296 | C11: 101249.9548 | D11: 0.581725962 | E11: 0.03822532936 | F11: 0.09971633205 | G11: 0.05146231261 | H11: 0.03109439643 | I11: 0.05012972385 | J11: 0.008359311422 | L11: 0.04363406875 | M11: 0.04535827919
A12: Anästhesiologie | B12: 207910.2753 | C12: 143422.4174 | D12: 0.4157969178 | E12: 0.07540802304 | F12: 0.1284242187 | G12: 0.04705457985 | H12: 0.03953940458 | I12: 0.07872208849 | J12: 0.009269673288 | L12: 0.1634384149 | M12: 0.0862091136
A13: Einzelpraxis | B13: 113686.1729 | C13: 113686.1729 | D13: 0.3912923075 | E13: 0.05918214787 | F13: 0.1010083926 | G13: 0.05589732069 | H13: 0.06421805706 | I13: 0.09024121092 | J13: 0.01039905484 | L13: 0.11751746 | M13: 0.11751746
A14: Gemeinschaftspraxis | B14: 497523.576 | C14: 175699.9733 | D14: 0.4330076075 | E14: 0.08680418483 | F14: 0.1476795862 | G14: 0.0408439253 | H14: 0.02220647717 | I14: 0.07063169081 | J14: 0.008476457836 | L14: 0.2021576128 | M14: 0.1311291159
A15: Augenheilkunde | B15: 252193.1487 | C15: 200566.8526 | D15: 0.4494561841 | E15: 0.144529281 | F15: 0.1025284366 | G15: 0.03885714399 | H15: 0.01359073723 | I15: 0.07416500598 | J15: 0.01818344155 | L15: 0.09606237036 | M15: 0.06347479663
A16: Einzelpraxis | B16: 181928.6687 | C16: 181928.6687 | D16: 0.46692907 | E16: 0.0811028024 | F16: 0.1181873323 | G16: 0.04746544615 | H16: 0.01817900515 | I16: 0.08148575873 | J16: 0.01889439318 | L16: 0.0670676063 | M16: 0.0670676063
A17: Gemeinschaftspraxis | B17: 507629.8582 | C17: 231461.4532 | D17: 0.4266912658 | E17: 0.227165808 | F17: 0.08212691361 | G17: 0.02764163572 | H17: 0.007612815472 | I17: 0.06462700864 | J17: 0.01725716321 | L17: 0.2141354028 | M17: 0.1593948393
A18: Chirurgie | B18: 276410.103 | C18: 211462.7514 | D18: 0.4611075507 | E18: 0.07394230667 | F18: 0.1343666902 | G18: 0.05752921082 | H18: 0.02204227947 | I18: 0.05867221067 | J18: 0.01267215327 | L18: 0.06398228771 | M18: 0.04160883258
A19: Einzelpraxis | B19: 209734.7778 | C19: 209734.7778 | D19: 0.4420610731 | E19: 0.05042823715 | F19: 0.1493078227 | G19: 0.05533627066 | H19: 0.0311902207 | I19: 0.06314169576 | J19: 0.01329287178 | L19: 0.0392662662 | M19: 0.0392662662
A20: Gemeinschaftspraxis | B20: 466805.376 | C20: 213721.8816 | D20: 0.4855441231 | E20: 0.1041107859 | F20: 0.115197263 | G20: 0.06034274634 | H20: 0.01030549888 | I20: 0.05293787498 | J20: 0.01187577333 | L20: 0.1221031524 | M20: 0.09992791951
A21: Dermatologie | B21: 228780.4074 | C21: 180252.6092 | D21: 0.4975821148 | E21: 0.07414823738 | F21: 0.120575457 | G21: 0.04243682915 | H21: 0.01663462953 | I21: 0.06244763301 | J21: 0.01293849966 | L21: 0.06526152419 | M21: 0.05129881459
A22: Einzelpraxis | B22: 179743.0657 | C22: 179743.0657 | D22: 0.4795843377 | E22: 0.06707390053 | F22: 0.131190365 | G22: 0.04785358531 | H22: 0.02383733648 | I22: 0.0673271451 | J22: 0.01385166297 | L22: 0.05441103176 | M22: 0.05441103176
A23: Gemeinschaftspraxis | B23: 405077.2601 | C23: 181071.4719 | D23: 0.5262932781 | E23: 0.08543365554 | F23: 0.1036419016 | G23: 0.03379568588 | H23: 0.005144427472 | I23: 0.05466353459 | J23: 0.01148176528 | L23: 0.1285301872 | M23: 0.1232835085
A24: Gynäkologie | B24: 182983.69 | C24: 147751.422 | D24: 0.4483274072 | E24: 0.06994600803 | F24: 0.1304352844 | G24: 0.06147702084 | H24: 0.02529346615 | I24: 0.08517439569 | J24: 0.01416566536 | L24: 0.03978581223 | M24: 0.0355927461
A25: Einzelpraxis | B25: 155067.6948 | C25: 155067.6948 | D25: 0.4359009437 | E25: 0.06406251418 | F25: 0.1374444571 | G25: 0.06489735783 | H25: 0.02960761453 | I25: 0.08755271288 | J25: 0.01426690962 | L25: 0.04233801883 | M25: 0.04233801883
A26: Gemeinschaftspraxis | B26: 296718.87 | C26: 134263.5184 | D26: 0.4747859195 | E26: 0.08247318386 | F26: 0.1155113051 | G26: 0.05419441562 | H26: 0.01610775155 | I26: 0.08011046625 | J26: 0.01395009539 | L26: 0.07468218634 | M26: 0.06330974395
A27: Hals-Nasen-Ohren-Heilkunde | B27: 194217.7002 | C27: 143325.2408 | D27: 0.477182738 | E27: 0.02454032851 | F27: 0.1400554472 | G27: 0.04834782181 | H27: 0.02274716312 | I27: 0.09337740355 | J27: 0.009486949944 | L27: 0.04945231658 | M27: 0.02715843212
A28: Einzelpraxis | B28: 143973.6606 | C28: 143973.6606 | D28: 0.4555586976 | E28: 0.02663650324 | F28: 0.1501976287 | G28: 0.04874896316 | H28: 0.030298576 | I28: 0.08078825875 | J28: 0.009354995237 | L28: 0.03299131482 | M28: 0.03299131482
A29: Gemeinschaftspraxis | B29: 348504.7367 | C29: 142511.0224 | D29: 0.5046146509 | E29: 0.02188115467 | F29: 0.1271892375 | G29: 0.0478389403 | H29: 0.01316756112 | I29: 0.1093477919 | J29: 0.009654345582 | L29: 0.0904485795 | M29: 0.05241476657
A30: Innere Medizin - Gastroenterologie | B30: 326845.9689 | C30: 281074.6088 | D30: 0.4336783148 | E30: 0.09161813232 | F30: 0.1101720152 | G30: 0.0478986295 | H30: 0.01832351622 | I30: 0.1132221357 | J30: 0.01192563161 | L30: 0.1226956467 | M30: 0.06766126159
A31: Einzelpraxis | B31: 280668.6215 | C31: 280668.6215 | D31: 0.4369825519 | E31: 0.08650804666 | F31: 0.111101511 | G31: 0.04530529009 | H31: 0.02388344633 | I31: 0.1203603425 | J31: 0.01110481157 | L31: 0.05656892147 | M31: 0.05656892147
A32: Gemeinschaftspraxis | B32: . | C32: . | D32: . | E32: . | F32: . | G32: . | H32: . | I32: . | J32: . | L32: 0.4828191539 | M32: 0.3476928029
A33: Innere Medizin - Kardiologie | B33: 256925.3897 | C33: 217604.7096 | D33: 0.4690776547 | E33: 0.0611951572 | F33: 0.09657658332 | G33: 0.05186117525 | H33: 0.01057808721 | I33: 0.06874323544 | J33: 0.01820523102 | L33: 0.1466694835 | M33: 0.1081168082
A34: Einzelpraxis | B34: 202515.2698 | C34: 202515.2698 | D34: 0.501244533 | E34: 0.05723806991 | F34: 0.1133491867 | G34: 0.04960155759 | H34: 0.01637993753 | I34: 0.0820269216 | J34: 0.01478900666 | L34: 0.1071969789 | M34: 0.1071969789
A35: Gemeinschaftspraxis | B35: . | C35: . | D35: . | E35: . | F35: . | G35: . | H35: . | I35: . | J35: . | L35: 0.5572175015 | M35: 0.5572175015
A36: Innere Medizin - Pneumologie | B36: 335061.2517 | C36: 257583.9221 | D36: 0.5000166003 | E36: 0.09528994761 | F36: 0.0989235577 | G36: 0.04748095464 | H36: 0.01282289218 | I36: 0.06591410547 | J36: 0.009188898422 | L36: 0.1488300033 | M36: 0.07122001771
A37: Einzelpraxis | B37: 241459.3837 | C37: 241459.3837 | D37: 0.4575985542 | E37: 0.07831671903 | F37: 0.1129466725 | G37: 0.04723229679 | H37: 0.01963074195 | I37: 0.07484387453 | J37: 0.009487872629 | L37: 0.06553137826 | M37: 0.06553137826
A38: Gemeinschaftspraxis | B38: 708380.0211 | C38: 283303.7865 | D38: 0.5576831215 | E38: 0.1183647268 | F38: 0.07985940172 | G38: 0.04781900024 | H38: 0.003567750824 | I38: 0.05377425547 | J38: 0.008782448714 | L38: 0.2872947212 | M38: 0.1936946352
A39: Innere Medizin - ohne bzw. mit mehreren Schwerpunkten | B39: 327375.6791 | C39: 228339.6522 | D39: 0.479828895 | E39: 0.07130233622 | F39: 0.08981074228 | G39: 0.05262349344 | H39: 0.01830968789 | I39: 0.08719716713 | J39: 0.0103568512 | L39: 0.1978281145 | M39: 0.06368912043
A40: Einzelpraxis | B40: 176342.1059 | C40: 176342.1059 | D40: 0.4379976787 | E40: 0.05491864182 | F40: 0.1215787636 | G40: 0.06716294552 | H40: 0.02999520183 | I40: 0.08367047 | J40: 0.01318291899 | L40: 0.05733812264 | M40: 0.05733812264
A41: Gemeinschaftspraxis | B41: . | C41: . | D41: . | E41: . | F41: . | G41: . | H41: . | I41: . | J41: . | L41: 0.3950653996 | M41: 0.1502323037
A42: Innere Medizin - sonstige Fachgebiete | B42: 369851.752 | C42: 275732.4645 | D42: 0.4999676835 | E42: 0.08271043373 | F42: 0.1268651527 | G42: 0.0462371106 | H42: 0.01158512791 | I42: 0.06602147229 | J42: 0.01230746958 | L42: 0.1133148801 | M42: 0.09768522082
A43: Einzelpraxis | B43: 298987.3822 | C43: 298987.3822 | D43: 0.4600540745 | E43: 0.1117781426 | F43: 0.1363668594 | G43: 0.0522663438 | H43: 0.01351878788 | I43: 0.06592319817 | J43: 0.0138439319 | L43: 0.1039547856 | M43: 0.1039547856
A44: Gemeinschaftspraxis | B44: 548541.4758 | C44: 249103.3596 | D44: 0.5548251868 | E44: 0.04275960065 | F44: 0.11380595 | G44: 0.03795049639 | H44: 0.008927494073 | I44: 0.06615654082 | J44: 0.01019574657 | L44: 0.2796448263 | M44: 0.2676289261
A45: Kinder- und Jugendmedizin | B45: 179190.0436 | C45: 137641.5205 | D45: 0.5366993883 | E45: 0.05607291232 | F45: 0.128193957 | G45: 0.04770392792 | H45: 0.02342588757 | I45: 0.0487491427 | J45: 0.006998996651 | L45: 0.0278986529 | M45: 0.02319898333
A46: Einzelpraxis | B46: 150846.237 | C46: 150846.237 | D46: 0.5193850009 | E46: 0.05766186627 | F46: 0.1310690418 | G46: 0.04865510998 | H46: 0.02978719202 | I46: 0.04834884239 | J46: 0.006915662765 | L46: 0.02703245192 | M46: 0.02703245192
A47: Gemeinschaftspraxis | B47: 257356.7045 | C47: 120579.5 | D47: 0.5646872365 | E47: 0.05350444711 | F47: 0.123546525 | G47: 0.04616638931 | H47: 0.01314315452 | I47: 0.04939620829 | J47: 0.007133701744 | L47: 0.0449902834 | M47: 0.03996994203
A48: Kinder- und Jugendpsychiatrie und -psychotherapie | B48: 180317.4167 | C48: 160117.1052 | D48: 0.6218847793 | E48: 0.01342534795 | F48: 0.1269900506 | G48: 0.0434503571 | H48: 0.0175271368 | I48: 0.03614774072 | J48: 0.00371080469 | L48: 0.08494662108 | M48: 0.07761895467
A49: Einzelpraxis | B49: 160491.4885 | C49: 160491.4885 | D49: 0.6089195052 | E49: 0.01256029871 | F49: 0.1305747661 | G49: 0.04521676703 | H49: 0.01999028366 | I49: 0.03457553456 | J49: 0.003943731524 | L49: 0.08990718334 | M49: 0.08990718334
A50: Gemeinschaftspraxis | B50: 383933.7129 | C50: 158529.4753 | D50: 0.6775464788 | E50: 0.01713912297 | F50: 0.1116003754 | G50: 0.03586691707 | H50: 0.006952509568 | I50: 0.04289743736 | J50: 0.002710817851 | L50: 0.1342808672 | M50: 0.1119679284
A51: Nervenheilkunde | B51: 132582.5533 | C51: 115260.6133 | D51: 0.4899332746 | E51: 0.01279021241 | F51: 0.1415221423 | G51: 0.06263415476 | H51: 0.03699682536 | I51: 0.05476930723 | J51: 0.007587450034 | L51: 0.04640565739 | M51: 0.04048847605
A52: Einzelpraxis | B52: 118881.1597 | C52: 118881.1597 | D52: 0.4787917819 | E52: 0.01352119457 | F52: 0.1426821241 | G52: 0.05968361896 | H52: 0.04165101092 | I52: 0.05376404441 | J52: 0.007104026692 | L52: 0.04430525143 | M52: 0.04430525143
A53: Gemeinschaftspraxis | B53: 214584.9933 | C53: 104689.0755 | D53: 0.5268751637 | E53: 0.01036649215 | F53: 0.1376759863 | G53: 0.07241725735 | H53: 0.02156492489 | I53: 0.05810246092 | J53: 0.009190338617 | L53: 0.101144526 | M53: 0.09965672013
A54: Neurologie | B54: 131031.4542 | C54: 117574.4039 | D54: 0.4580050135 | E54: 0.01618444735 | F54: 0.1751363959 | G54: 0.05200656179 | H54: 0.01676904896 | I54: 0.09482336837 | J54: 0.01161532291 | L54: 0.0666349321 | M54: 0.06976601501
A55: Einzelpraxis | B55: 125122.104 | C55: 125122.104 | D55: 0.4545312349 | E55: 0.01580235471 | F55: 0.1762712764 | G55: 0.05358894832 | H55: 0.01907209571 | I55: 0.09488602116 | J55: 0.01269948442 | L55: 0.07568507109 | M55: 0.07568507109
A56: Gemeinschaftspraxis | B56: . | C56: . | D56: . | E56: . | F56: . | G56: . | H56: . | I56: . | J56: . | L56: 0.04451004739 | M56: 0.04451004739
A57: Neurologie, Nervenheilkunde, Psychiatrie | B57: 253240.186 | C57: 131117.0649 | D57: 0.5459655511 | E57: 0.01459759349 | F57: 0.1255557466 | G57: 0.05303870489 | H57: 0.01627772083 | I57: 0.06492422235 | J57: 0.007536344768 | L57: 0.08524250039 | M57: 0.0899188919
A58: Einzelpraxis | B58: 196901.6548 | C58: 196901.6548 | D58: 0.5198246274 | E58: 0.01675950886 | F58: 0.1166349664 | G58: 0.0425167664 | H58: 0.02225098597 | I58: 0.07857256706 | J58: 0.00656326811 | L58: 0.1694150444 | M58: 0.1694150444
A59: Gemeinschaftspraxis | B59: 291515.3131 | C59: 113687.4968 | D59: 0.5579610977 | E59: 0.0136055338 | F59: 0.1296493141 | G59: 0.05786701186 | H59: 0.01353670903 | I59: 0.05866127015 | J59: 0.007982870169 | L59: 0.09291426034 | M59: 0.05303837095
A60: Nuklearmedizin | B60: 704201.9591 | C60: 405500.7515 | D60: 0.3570613679 | E60: 0.1588731519 | F60: 0.07138082048 | G60: 0.03642748371 | H60: 0.00572580566 | I60: 0.1246969141 | J60: 0.0267230587 | L60: 0.1953895576 | M60: 0.1275297404
A61: Einzelpraxis | B61: 381406.3333 | C61: 381406.3333 | D61: 0.2623763458 | E61: 0.1227776326 | F61: 0.07390237358 | G61: 0.0146964873 | H61: 0.01503296135 | I61: 0.03142536525 | J61: 0.03862154011 | L61: 0.2456586287 | M61: 0.2456586287
A62: Gemeinschaftspraxis | B62: . | C62: . | D62: . | E62: . | F62: . | G62: . | H62: . | I62: . | J62: . | L62: 0.2164761388 | M62: 0.1755223297
A63: Orthopädie | B63: 274410.3111 | C63: 200078.3838 | D63: 0.45414546 | E63: 0.06806301352 | F63: 0.1397960176 | G63: 0.05476114886 | H63: 0.02350722817 | I63: 0.06787869575 | J63: 0.01728700801 | L63: 0.05092234892 | M63: 0.03056875605
A64: Einzelpraxis | B64: 213953.107 | C64: 213953.107 | D64: 0.4263599948 | E64: 0.06439839619 | F64: 0.1433144551 | G64: 0.05129956439 | H64: 0.03058892036 | I64: 0.07310929243 | J64: 0.01966746859 | L64: 0.03364706163 | M64: 0.03364706163
A65: Gemeinschaftspraxis | B65: 439809.5133 | C65: 184182.2053 | D65: 0.4911246166 | E65: 0.07294018427 | F65: 0.1351133949 | G65: 0.05936810696 | H65: 0.01408233631 | I65: 0.06091739231 | J65: 0.01411889749 | L65: 0.1015223089 | M65: 0.06410505825
A66: Physikalische und rehabilitative Medizin | B66: 142373.983 | C66: 133777.7424 | D66: 0.4115719147 | E66: 0.03512441822 | F66: 0.1749793822 | G66: 0.04739257398 | H66: 0.02555544193 | I66: 0.06158959175 | J66: 0.01843982166 | L66: 0.1104758514 | M66: 0.1027363931
A67: Einzelpraxis | B67: 135297.7646 | C67: 135297.7646 | D67: 0.4154044117 | E67: 0.03188364576 | F67: 0.1727885747 | G67: 0.04505931703 | H67: 0.02778470874 | I67: 0.05906512114 | J67: 0.0185348089 | L67: 0.1080167811 | M67: 0.1080167811
A68: Gemeinschaftspraxis | B68: . | C68: . | D68: . | E68: . | F68: . | G68: . | H68: . | I68: . | J68: . | L68: 0 | M68: 0
A69: Psychiatrie | B69: 68182.36829 | C69: 61543.83508 | D69: 0.3706190075 | E69: 0.00638666537 | F69: 0.1882590607 | G69: 0.06717681855 | H69: 0.04860234056 | I69: 0.06078288213 | J69: 0.004853581937 | L69: 0.06512534808 | M69: 0.06105621464
A70: Einzelpraxis | B70: 63270.06938 | C70: 63270.06938 | D70: 0.3594158808 | E70: 0.005353686037 | F70: 0.1908857573 | G70: 0.06454740144 | H70: 0.05263351124 | I70: 0.06340860349 | J70: 0.005052175407 | L70: 0.06648883395 | M70: 0.06648883395
A71: Gemeinschaftspraxis | B71: 116558.3855 | C71: 53710.27906 | D71: 0.4305069451 | E71: 0.01190860616 | F71: 0.1742176735 | G71: 0.08123274891 | H71: 0.02705313324 | I71: 0.04674670791 | J71: 0.003791971749 | L71: 0.1649538956 | M71: 0.1413212991
A72: Psychosomatische Medizin und Psychotherapie | B72: 28470.37902 | C72: 28257.88702 | D72: 0.1295919627 | E72: 0.01036491907 | F72: 0.2320306288 | G72: 0.105335025 | H72: 0.06629491475 | I72: 0.08696363899 | J72: 0.001131389847 | L72: 0.03140172749 | M72: 0.03161052852
A73: Einzelpraxis | B73: 28425.33326 | C73: 28425.33326 | D73: 0.1299374073 | E73: 0.0104600009 | F73: 0.2336622106 | G73: 0.1045243215 | H73: 0.06594633669 | I73: 0.08597694356 | J73: 0.00114176857 | L73: 0.0316901412 | M73: 0.0316901412
A74: Gemeinschaftspraxis | B74: . | C74: . | D74: . | E74: . | F74: . | G74: . | H74: . | I74: . | J74: . | L74: 0.08987435692 | M74: 0.08987435692
A75: Psychotherapie | B75: 30417.15146 | C75: 29794.14045 | D75: 0.1400911537 | E75: 0.007567731054 | F75: 0.2458779442 | G75: 0.08501246165 | H75: 0.09550797843 | I75: 0.08793320739 | J75: 0.001736946315 | L75: 0.02728395213 | M75: 0.02679508116
A76: Einzelpraxis | B76: 30005.01493 | C76: 30005.01493 | D76: 0.1381535826 | E76: 0.007709801131 | F76: 0.2435076809 | G76: 0.08589268409 | H76: 0.09654735723 | I76: 0.08839490291 | J76: 0.001798409985 | L76: 0.02700354539 | M76: 0.02700354539
A77: Gemeinschaftspraxis | B77: 49714.54386 | C77: 24857.27193 | D77: 0.1948463783 | E77: 0.003552869945 | F77: 0.3128609305 | G77: 0.0601376187 | H77: 0.06613542066 | I77: 0.07488581942 | J77: 0 | L77: 0.1938104986 | M77: 0.1938104986
A78: Radiologie | B78: 1781279.712 | C78: 690141.3337 | D78: 0.3958040902 | E78: 0.08521603872 | F78: 0.08862406221 | G78: 0.02840361092 | H78: 0.004844145841 | I78: 0.1255391014 | J78: 0.06196449531 | L78: 0.1402436354 | M78: 0.1263396457
A79: Einzelpraxis | B79: 895653.1363 | C79: 895653.1363 | D79: 0.3830719012 | E79: 0.07567369447 | F79: 0.09140161692 | G79: 0.03758773063 | H79: 0.008441135708 | I79: 0.09479354118 | J79: 0.1097669435 | L79: 0.3587699008 | M79: 0.3587699008
A80: Gemeinschaftspraxis | B80: 2347857.852 | C80: 653544.0376 | D80: 0.3989113695 | E80: 0.08754483933 | F80: 0.08794620246 | G80: 0.02616223469 | H80: 0.003966303671 | I80: 0.1330425279 | J80: 0.05029835043 | L80: 0.124581754 | M80: 0.07345555051
A81: Urologie | B81: 248571.4642 | C81: 177698.5488 | D81: 0.4233313027 | E81: 0.1154923316 | F81: 0.1227883028 | G81: 0.04372282338 | H81: 0.02552456848 | I81: 0.08577373024 | J81: 0.01694044876 | L81: 0.05990970779 | M81: 0.03419226413
A82: Einzelpraxis | B82: 185992.1059 | C82: 185992.1059 | D82: 0.3979838022 | E82: 0.1182370095 | F82: 0.1327886175 | G82: 0.04344953536 | H82: 0.03922851446 | I82: 0.07709962511 | J82: 0.01823043588 | L82: 0.0440391425 | M82: 0.0440391425
A83: Gemeinschaftspraxis | B83: 410611.2791 | C83: 168866.8355 | D83: 0.4530609262 | E83: 0.1122731487 | F83: 0.1110591151 | G83: 0.04404335794 | H83: 0.009451458806 | I83: 0.09594743081 | J83: 0.01542744626 | L83: 0.09310909366 | M83: 0.05501688766
A84: Übergreifend tätige Praxen | B84: 363930.593 | C84: 164723.1879 | D84: 0.5057774052 | E84: 0.06975400766 | F84: 0.114152942 | G84: 0.0450729597 | H84: 0.0118722539 | I84: 0.06823771 | J84: 0.01346477175 | L84: 0.08938701497 | M84: 0.07463477177
A85: Einzelpraxis | B85: 164257.4223 | C85: 164257.4223 | D85: 0.5070255728 | E85: 0.03402494075 | F85: 0.1086738988 | G85: 0.04851029709 | H85: 0.03319780388 | I85: 0.05460525627 | J85: 0.01304879531 | L85: 0.2506576363 | M85: 0.2506576363
A86: Gemeinschaftspraxis | B86: 396963.5137 | C86: 164755.1682 | D86: 0.5056919626 | E86: 0.07219982121 | F86: 0.1145280069 | G86: 0.04483765867 | H86: 0.01041242515 | I86: 0.06917091209 | J86: 0.01349324718 | L86: 0.09974045552 | M86: 0.08409301253
A87: Hinweis: Gewichtete Ergebnisse.
A88: Quelle: Zi-Praxis-Panel 2013.

Sheet T40
A1: Tabelle 40: Praxisaufwendungen (Teil II) und Jahresüberschuss je Praxis und je Inhaber nach Fachgebiet und Organisationsform im Jahr 2011
A2: Fachgebiet und Organisationsform | B2: Aufwen- dungen je Praxis in Euro | C2: Aufwen- dungen je Inhaber in Euro | D2: davon für … | I2: Jahresüber-schuss je Praxis in Euro | J2: Jahresüber-schuss je Inhaber in Euro | L2: relativer Standardfehler für Aufwendungen je Praxis | M2: relativer Standardfehler für Aufwendungen je Inhaber | N2: relativer Standardfehler für Jahresüberschuss je Praxis | O2: relativer Standardfehler für Jahresüberschuss je Inhaber
D3: Fremd- kapital- zinsen | E3: Fort- bildungen | F3: Wartung und Instand- haltung | G3: Nutzung externer Infra- struktur | H3: Sonstige
A6: Gesamt | B6: 172839 | C6: 136350.3456 | D6: 0.02556030402 | E6: 0.009401079549 | F6: 0.02742166461 | G6: 0.007862618414 | H6: 0.1071062996 | I6: 183972.5686 | J6: 145133.467 | L6: 0.02329527362 | M6: 0.0158561077 | N6: 0.01457817553 | O6: 0.009667737575
A7: Einzelpraxis | B7: 124196.3891 | C7: 124196.3891 | D7: 0.03089009582 | E7: 0.011900841 | F7: 0.02172935863 | G7: 0.006804816816 | H7: 0.1145573285 | I7: 135340.9235 | J7: 135340.9235 | L7: 0.01874650586 | M7: 0.01874650586 | N7: 0.01167463308 | O7: 0.01167463308
A8: Gemeinschaftspraxis | B8: 357845.4995 | C8: 156576.7936 | D8: 0.01852482354 | E8: 0.006101321591 | F8: 0.03493567435 | G8: 0.009258947346 | H8: 0.09727072448 | I8: 368937.3609 | J8: 161430.0838 | L8: 0.04535136807 | M8: 0.03256505229 | N8: 0.02504968554 | O8: 0.01887004488
A9: Allgemeinmedizin und Innere Medizin (hausärztlich) | B9: 155966.8501 | C9: 120670.5601 | D9: 0.02402144912 | E9: 0.006547382845 | F9: 0.01673825949 | G9: 0.001801757685 | H9: 0.1089291666 | I9: 183681.1319 | J9: 142112.9236 | L9: 0.02669042428 | M9: 0.02552521847 | N9: 0.02652330816 | O9: 0.02100955984
A10: Einzelpraxis | B10: 134614.57 | C10: 134614.57 | D10: 0.02945849368 | E10: 0.006498029167 | F10: 0.01748300818 | G10: 0.002633669743 | H10: 0.1120913533 | I10: 148786.0877 | J10: 148786.0877 | L10: 0.02913964948 | M10: 0.02913964948 | N10: 0.0252015148 | O10: 0.0252015148
A11: Gemeinschaftspraxis | B11: 220826.7296 | C11: 101249.9548 | D11: 0.01395363475 | E11: 0.006638771404 | F11: 0.01535920299 | G11: 0.000261300165 | H11: 0.103073723 | I11: 289678.6343 | J11: 132818.8335 | L11: 0.04363406875 | M11: 0.04535827919 | N11: 0.03914596463 | O11: 0.03809913929
A12: Anästhesiologie | B12: 207910.2753 | C12: 143422.4174 | D12: 0.0214836075 | E12: 0.009546826608 | F12: 0.02248467115 | G12: 0.02356767658 | H12: 0.1287023124 | I12: 240047.278 | J12: 165591.4353 | L12: 0.1634384149 | M12: 0.0862091136 | N12: 0.1020829034 | O12: 0.0460119746
A13: Einzelpraxis | B13: 113686.1729 | C13: 113686.1729 | D13: 0.02859357011 | E13: 0.014558744 | F13: 0.02512368405 | G13: 0.03166043703 | H13: 0.1278250733 | I13: 164825.5792 | J13: 164825.5792 | L13: 0.11751746 | M13: 0.11751746 | N13: 0.05231665677 | O13: 0.05231665677
A14: Gemeinschaftspraxis | B14: 497523.576 | C14: 175699.9733 | D14: 0.01648996103 | E14: 0.00602673164 | F14: 0.02063117371 | G14: 0.017883767 | H14: 0.129318437 | I14: 166422.7428 | J14: 166422.7428 | L14: 0.2021576128 | M14: 0.1311291159 | N14: 0.4232258327 | O14: 0.08724948865
A15: Augenheilkunde | B15: 252193.1487 | C15: 200566.8526 | D15: 0.02246374277 | E15: 0.005946411822 | F15: 0.019062955 | G15: 0.01896404751 | H15: 0.09225261247 | I15: 242481.7138 | J15: 192843.4393 | L15: 0.09606237036 | M15: 0.06347479663 | N15: 0.07941905158 | O15: 0.04988935587
A16: Einzelpraxis | B16: 181928.6687 | C16: 181928.6687 | D16: 0.02692392108 | E16: 0.00730087337 | F16: 0.02268224776 | G16: 0.01194983084 | H16: 0.09889931901 | I16: 171334.8012 | J16: 171334.8012 | L16: 0.0670676063 | M16: 0.0670676063 | N16: 0.06103381461 | O16: 0.06103381461
A17: Gemeinschaftspraxis | B17: 507629.8582 | C17: 231461.4532 | D17: 0.01665270526 | E17: 0.004181722991 | F17: 0.01434748299 | G17: 0.02810266784 | H17: 0.0835928105 | I17: 228496.0964 | J17: 228496.0964 | L17: 0.2141354028 | M17: 0.1593948393 | N17: 0.3457314697 | O17: 0.1010575962
A18: Chirurgie | B18: 276410.103 | C18: 211462.7514 | D18: 0.03001952945 | E18: 0.006297567081 | F18: 0.02602682213 | G18: 0.01014801471 | H18: 0.1071756649 | I18: 212376.5787 | J18: 162475.0151 | L18: 0.06398228771 | M18: 0.04160883258 | N18: 0.05885983962 | O18: 0.04185875059
A19: Einzelpraxis | B19: 209734.7778 | C19: 209734.7778 | D19: 0.04126901717 | E19: 0.007244174477 | F19: 0.02347677374 | G19: 0.01271219449 | H19: 0.1105396483 | I19: 160250.3309 | J19: 160250.3309 | L19: 0.0392662662 | M19: 0.0392662662 | N19: 0.05114105288 | O19: 0.05114105288
A20: Gemeinschaftspraxis | B20: 466805.376 | C20: 213721.8816 | D20: 0.01558647114 | E20: 0.005083072689 | F20: 0.02929852641 | G20: 0.006858179908 | H20: 0.1028596844 | I20: 165383.5382 | J20: 165383.5382 | L20: 0.1221031524 | M20: 0.09992791951 | N20: 0.2107766112 | O20: 0.07797226584
A21: Dermatologie | B21: 228780.4074 | C21: 180252.6092 | D21: 0.01872128191 | E21: 0.007414768837 | F21: 0.02812710523 | G21: 0.01122165299 | H21: 0.1077517905 | I21: 201019.4114 | J21: 158380.1419 | L21: 0.06526152419 | M21: 0.05129881459 | N21: 0.05619706656 | O21: 0.03960039467
A22: Einzelpraxis | B22: 179743.0657 | C22: 179743.0657 | D22: 0.02626675861 | E22: 0.008604893601 | F22: 0.02281123967 | G22: 0.001912205933 | H22: 0.1096865692 | I22: 158219.3 | J22: 158219.3 | L22: 0.05441103176 | M22: 0.05441103176 | N22: 0.04771356663 | O22: 0.04771356663
A23: Gemeinschaftspraxis | B23: 405077.2601 | C23: 181071.4719 | D23: 0.006684272431 | E23: 0.005516208462 | F23: 0.03660730159 | G23: 0.02607265671 | H23: 0.1046653123 | I23: 158638.6231 | J23: 158638.6231 | L23: 0.1285301872 | M23: 0.1232835085 | N23: 0.2300995745 | O23: 0.07665713751
A24: Gynäkologie | B24: 182983.69 | C24: 147751.422 | D24: 0.03026622043 | E24: 0.009051667485 | F24: 0.01984011824 | G24: 0.006106480697 | H24: 0.09991626551 | I24: 179688.6592 | J24: 145090.827 | L24: 0.03978581223 | M24: 0.0355927461 | N24: 0.03658232274 | O24: 0.026949314
A25: Einzelpraxis | B25: 155067.6948 | C25: 155067.6948 | D25: 0.03444367665 | E25: 0.009504639709 | F25: 0.01959117043 | G25: 0.005497071806 | H25: 0.09723093156 | I25: 140677.4125 | J25: 140677.4125 | L25: 0.04233801883 | M25: 0.04233801883 | N25: 0.03155881713 | O25: 0.03155881713
A26: Gemeinschaftspraxis | B26: 296718.87 | C26: 134263.5184 | D26: 0.02137155173 | E26: 0.008087195888 | F26: 0.02037017963 | G26: 0.007404038325 | H26: 0.1056338972 | I26: 153227.1706 | J26: 153227.1706 | L26: 0.07468218634 | M26: 0.06330974395 | N26: 0.1477202176 | O26: 0.1477202176
A27: Hals-Nasen-Ohren-Heilkunde | B27: 194217.7002 | C27: 143325.2408 | D27: 0.0320033673 | E27: 0.008532202464 | F27: 0.02637078188 | G27: 0.005901691849 | H27: 0.1114541044 | I27: 199469.2379 | J27: 147200.6749 | L27: 0.04945231658 | M27: 0.02715843212 | N27: 0.05720752785 | O27: 0.03561867632
A28: Einzelpraxis | B28: 143973.6606 | C28: 143973.6606 | D28: 0.04012329653 | E28: 0.00951348799 | F28: 0.02545793046 | G28: 0.002387048943 | H28: 0.1209346134 | I28: 135823.009 | J28: 135823.009 | L28: 0.03299131482 | M28: 0.03299131482 | N28: 0.04588480261 | O28: 0.04588480261
A29: Gemeinschaftspraxis | B29: 348504.7367 | C29: 142511.0224 | D29: 0.02170255452 | E29: 0.007287359289 | F29: 0.02752881065 | G29: 0.01036031181 | H29: 0.09942728175 | I29: 161487.5694 | J29: 161487.5694 | L29: 0.0904485795 | M29: 0.05241476657 | N29: 0.2171667794 | O29: 0.06346175249
A30: Innere Medizin - Gastroenterologie | B30: 326845.9689 | C30: 281074.6088 | D30: 0.02701803204 | E30: 0.005363564023 | F30: 0.05062787731 | G30: 0.06968143933 | H30: 0.0569024007 | I30: 316789.6025 | J30: 272426.5314 | L30: 0.1226956467 | M30: 0.06766126159 | N30: 0.1187271825 | O30: 0.08721808917
A31: Einzelpraxis | B31: 280668.6215 | C31: 280668.6215 | D31: 0.02789685578 | E31: 0.006447375747 | F31: 0.04613597734 | G31: 0 | H31: 0.08427379101 | I31: 280777.1302 | J31: 280777.1302 | L31: 0.05656892147 | M31: 0.05656892147 | N31: 0.09058377852 | O31: 0.09058377852
A32: Gemeinschaftspraxis | B32: . | C32: . | D32: . | E32: . | F32: . | G32: . | H32: . | I32: . | J32: . | L32: 0.4828191539 | M32: 0.3476928029 | N32: 1.041026414 | O32: 0.3191386656
A33: Innere Medizin - Kardiologie | B33: 256925.3897 | C33: 217604.7096 | D33: 0.03034667422 | E33: 0.004695137051 | F33: 0.02521585661 | G33: 0.0900057877 | H33: 0.07349942032 | I33: 312641.8406 | J33: 264794.1374 | L33: 0.1466694835 | M33: 0.1081168082 | N33: 0.1562845524 | O33: 0.08940750589
A34: Einzelpraxis | B34: 202515.2698 | C34: 202515.2698 | D34: 0.04642648744 | E34: 0.005878501948 | F34: 0.02886133889 | G34: 8.037294004e-06 | H34: 0.08419642153 | I34: 207049.2645 | J34: 207049.2645 | L34: 0.1071969789 | M34: 0.1071969789 | N34: 0.07734485789 | O34: 0.07734485789
A35: Gemeinschaftspraxis | B35: . | C35: . | D35: . | E35: . | F35: . | G35: . | H35: . | I35: . | J35: . | L35: 0.5572175015 | M35: 0.5572175015 | N35: 0.4783983513 | O35: 0.2391991756
A36: Innere Medizin - Pneumologie | B36: 335061.2517 | C36: 257583.9221 | D36: 0.02693910573 | E36: 0.008054406483 | F36: 0.02557391567 | G36: 0.018698798 | H36: 0.09109681779 | I36: 275940.22 | J36: 212133.6436 | L36: 0.1488300033 | M36: 0.07122001771 | N36: 0.1054136568 | O36: 0.0862198063
A37: Einzelpraxis | B37: 241459.3837 | C37: 241459.3837 | D37: 0.03573781483 | E37: 0.007627188648 | F37: 0.03085159644 | G37: 0.02559122822 | H37: 0.1001354403 | I37: 226243.4673 | J37: 226243.4673 | L37: 0.06553137826 | M37: 0.06553137826 | N37: 0.110533269 | O37: 0.110533269
A38: Gemeinschaftspraxis | B38: 708380.0211 | C38: 283303.7865 | D38: 0.01497742923 | E38: 0.008635200948 | F38: 0.01839900976 | G38: 0.009328671134 | H38: 0.07880898365 | I38: 189627.4021 | J38: 189627.4021 | L38: 0.2872947212 | M38: 0.1936946352 | N38: 0.3980168363 | O38: 0.08870291268
A39: Innere Medizin - ohne bzw. mit mehreren Schwerpunkten | B39: 327375.6791 | C39: 228339.6522 | D39: 0.02345838543 | E39: 0.003415789012 | F39: 0.03217052501 | G39: 0.02048787961 | H39: 0.1110382478 | I39: 316501.7046 | J39: 220755.2173 | L39: 0.1978281145 | M39: 0.06368912043 | N39: 0.1305017044 | O39: 0.07348014085
A40: Einzelpraxis | B40: 176342.1059 | C40: 176342.1059 | D40: 0.02752438227 | E40: 0.00575074773 | F40: 0.041129661 | G40: 0.02066853029 | H40: 0.09642005822 | I40: 227238.0555 | J40: 227238.0555 | L40: 0.05733812264 | M40: 0.05733812264 | N40: 0.0996081001 | O40: 0.0996081001
A41: Gemeinschaftspraxis | B41: . | C41: . | D41: . | E41: . | F41: . | G41: . | H41: . | I41: . | J41: . | L41: 0.3950653996 | M41: 0.1502323037 | N41: 0.8059620517 | O41: 0.1149221037
A42: Innere Medizin - sonstige Fachgebiete | B42: 369851.752 | C42: 275732.4645 | D42: 0.022929536 | E42: 0.008034953458 | F42: 0.02027541353 | G42: 0.00123132068 | H42: 0.101834326 | I42: 392299.997 | J42: 292468.1157 | L42: 0.1133148801 | M42: 0.09768522082 | N42: 0.09671218393 | O42: 0.0667928961
A43: Einzelpraxis | B43: 298987.3822 | C43: 298987.3822 | D43: 0.02903093596 | E43: 0.01059817186 | F43: 0.02281623918 | G43: 0.002127213664 | H43: 0.08167610112 | I43: 280343.8996 | J43: 280343.8996 | L43: 0.1039547856 | M43: 0.1039547856 | N43: 0.09349573466 | O43: 0.09349573466
A44: Gemeinschaftspraxis | B44: 548541.4758 | C44: 249103.3596 | D44: 0.01454373535 | E44: 0.004512050744 | F44: 0.01678328753 | G44: 0 | H44: 0.129539911 | I44: 306351.5028 | J44: 306351.5028 | L44: 0.2796448263 | M44: 0.2676289261 | N44: 0.07388490272 | O44: 0.07388490272
A45: Kinder- und Jugendmedizin | B45: 179190.0436 | C45: 137641.5205 | D45: 0.02220778583 | E45: 0.008868558625 | F45: 0.01543921769 | G45: 0.0007978187359 | H45: 0.1048424067 | I45: 203709.7317 | J45: 156475.8658 | L45: 0.0278986529 | M45: 0.02319898333 | N45: 0.03093714956 | O45: 0.02146108325
A46: Einzelpraxis | B46: 150846.237 | C46: 150846.237 | D46: 0.02715027516 | E46: 0.00890373338 | F46: 0.01618573902 | G46: 0.0009725585531 | H46: 0.1049649778 | I46: 160319.4221 | J46: 160319.4221 | L46: 0.02703245192 | M46: 0.02703245192 | N46: 0.02624303822 | O46: 0.02624303822
A47: Gemeinschaftspraxis | B47: 257356.7045 | C47: 120579.5 | D47: 0.01421849706 | E47: 0.008811700379 | F47: 0.014232503 | G47: 0.0005153604908 | H47: 0.1046442766 | I47: 151509.5466 | J47: 151509.5466 | L47: 0.0449902834 | M47: 0.03996994203 | N47: 0.09595553726 | O47: 0.03809001868
A48: Kinder- und Jugendpsychiatrie und -psychotherapie | B48: 180317.4167 | C48: 160117.1052 | D48: 0.01201282096 | E48: 0.01474067491 | F48: 0.01116496918 | G48: 0.008374079588 | H48: 0.09057123821 | I48: 165324.3211 | J48: 146803.6322 | L48: 0.08494662108 | M48: 0.07761895467 | N48: 0.07368746511 | O48: 0.06090450704
A49: Einzelpraxis | B49: 160491.4885 | C49: 160491.4885 | D49: 0.01344209886 | E49: 0.01537339338 | F49: 0.01147909441 | G49: 0.01032465311 | H49: 0.09359987346 | I49: 145298.0027 | J49: 145298.0027 | L49: 0.08990718334 | M49: 0.08990718334 | N49: 0.06935112413 | O49: 0.06935112413
A50: Gemeinschaftspraxis | B50: 383933.7129 | C50: 158529.4753 | D50: 0.005876734904 | E50: 0.01202432776 | F50: 0.009816386528 | G50: 0 | H50: 0.07756889177 | I50: 153188.485 | J50: 153188.485 | L50: 0.1342808672 | M50: 0.1119679284 | N50: 0.3245063617 | O50: 0.1242896306
A51: Nervenheilkunde | B51: 132582.5533 | C51: 115260.6133 | D51: 0.02502701794 | E51: 0.009980948999 | F51: 0.02058958835 | G51: 0.0003051101278 | H51: 0.1378639679 | I51: 196462.3646 | J51: 170794.5131 | L51: 0.04640565739 | M51: 0.04048847605 | N51: 0.04743488481 | O51: 0.03551556973
A52: Einzelpraxis | B52: 118881.1597 | C52: 118881.1597 | D52: 0.02527173466 | E52: 0.01087193819 | F52: 0.02110862652 | G52: 0.0003971298471 | H52: 0.1451527692 | I52: 168876.7291 | J52: 168876.7291 | L52: 0.04430525143 | M52: 0.04430525143 | N52: 0.04175885684 | O52: 0.04175885684
A53: Gemeinschaftspraxis | B53: 214584.9933 | C53: 104689.0755 | D53: 0.0242156098 | E53: 0.007026692797 | F53: 0.01886861156 | G53: 0 | H53: 0.1136964619 | I53: 176394.2002 | J53: 176394.2002 | L53: 0.101144526 | M53: 0.09965672013 | N53: 0.1669152079 | O53: 0.06792691783
A54: Neurologie | B54: 131031.4542 | C54: 117574.4039 | D54: 0.02497012309 | E54: 0.009812500409 | F54: 0.01749480157 | G54: 0.0004386257478 | H54: 0.1227437904 | I54: 157462.7039 | J54: 141291.1401 | L54: 0.0666349321 | M54: 0.06976601501 | N54: 0.08261175546 | O54: 0.0807421452
A55: Einzelpraxis | B55: 125122.104 | C55: 125122.104 | D55: 0.02758303343 | E55: 0.01033151599 | F55: 0.01776581402 | G55: 0.0005187108212 | H55: 0.1169495101 | I55: 147996.6465 | J55: 147996.6465 | L55: 0.07568507109 | M55: 0.07568507109 | N55: 0.08964335271 | O55: 0.08964335271
A56: Gemeinschaftspraxis | B56: . | C56: . | D56: . | E56: . | F56: . | G56: . | H56: . | I56: . | J56: . | L56: 0.04451004739 | M56: 0.04451004739 | N56: 0.2864591303 | O56: 0.1432295652
A57: Neurologie, Nervenheilkunde, Psychiatrie | B57: 253240.186 | C57: 131117.0649 | D57: 0.01582381649 | E57: 0.006438388928 | F57: 0.02053601614 | G57: 0.0003735016834 | H57: 0.1289323928 | I57: 338561.8992 | J57: 175293.0418 | L57: 0.08524250039 | M57: 0.0899188919 | N57: 0.06737866771 | O57: 0.0627336383
A58: Einzelpraxis | B58: 196901.6548 | C58: 196901.6548 | D58: 0.02410966991 | E58: 0.007137922152 | F58: 0.02900079974 | G58: 0.0007779005117 | H58: 0.1358510175 | I58: 227766.0449 | J58: 227766.0449 | L58: 0.1694150444 | M58: 0.1694150444 | N58: 0.131907428 | O58: 0.131907428
A59: Gemeinschaftspraxis | B59: 291515.3131 | C59: 113687.4968 | D59: 0.01202160421 | E59: 0.006117387133 | F59: 0.01665169638 | G59: 0.0001879311556 | H59: 0.1257575743 | I59: 161390.3667 | J59: 161390.3667 | L59: 0.09291426034 | M59: 0.05303837095 | N59: 0.1720640977 | O59: 0.04631956351
A60: Nuklearmedizin | B60: 704201.9591 | C60: 405500.7515 | D60: 0.01670861694 | E60: 0.003134392998 | F60: 0.05560985863 | G60: 0.07691905827 | H60: 0.06673947067 | I60: 412826.7296 | J60: 237718.0963 | L60: 0.1953895576 | M60: 0.1275297404 | N60: 0.2019215265 | O60: 0.2675168547
A61: Einzelpraxis | B61: 381406.3333 | C61: 381406.3333 | D61: 0.01505481031 | E61: 0.0006777548704 | F61: 0.02505770311 | G61: 0.3367755648 | H61: 0.06360146091 | I61: 424577.5 | J61: 424577.5 | L61: 0.2456586287 | M61: 0.2456586287 | N61: 0.3522979915 | O61: 0.3522979915
A62: Gemeinschaftspraxis | B62: . | C62: . | D62: . | E62: . | F62: . | G62: . | H62: . | I62: . | J62: . | L62: 0.2164761388 | M62: 0.1755223297 | N62: 0.5518937077 | O62: 0.1546210114
A63: Orthopädie | B63: 274410.3111 | C63: 200078.3838 | D63: 0.03191562785 | E63: 0.008083271471 | F63: 0.02818362381 | G63: 0.00946991587 | H63: 0.09690898913 | I63: 248730.9742 | J63: 181355.0341 | L63: 0.05092234892 | M63: 0.03056875605 | N63: 0.06071415398 | O63: 0.0329007228
A64: Einzelpraxis | B64: 213953.107 | C64: 213953.107 | D64: 0.0406865898 | E64: 0.009088537423 | F64: 0.02439603368 | G64: 0.008157400093 | H64: 0.1089333472 | I64: 161433.1761 | J64: 161433.1761 | L64: 0.03364706163 | M64: 0.03364706163 | N64: 0.04106630211 | O64: 0.04106630211
A65: Gemeinschaftspraxis | B65: 439809.5133 | C65: 184182.2053 | D65: 0.02024251841 | E65: 0.006745381791 | F65: 0.03322445676 | G65: 0.0112167186 | H65: 0.08090599558 | I65: 204179.3748 | J65: 204179.3748 | L65: 0.1015223089 | M65: 0.06410505825 | N65: 0.215436987 | O65: 0.0587117448
A66: Physikalische und rehabilitative Medizin | B66: 142373.983 | C66: 133777.7424 | D66: 0.02931779996 | E66: 0.01761670791 | F66: 0.02069323442 | G66: 0.000536153834 | H66: 0.1571829595 | I66: 122676.8327 | J66: 115269.8644 | L66: 0.1104758514 | M66: 0.1027363931 | N66: 0.1264252806 | O66: 0.1149357884
A67: Einzelpraxis | B67: 135297.7646 | C67: 135297.7646 | D67: 0.02870067991 | E67: 0.0187547644 | F67: 0.02224098597 | G67: 0.0005829239096 | H67: 0.1592000578 | I67: 115120.9698 | J67: 115120.9698 | L67: 0.1080167811 | M67: 0.1080167811 | N67: 0.1226074227 | O67: 0.1226074227
A68: Gemeinschaftspraxis | B68: . | C68: . | D68: . | E68: . | F68: . | G68: . | H68: . | I68: . | J68: . | L68: 0 | M68: 0 | N68: 0 | O68: 0
A69: Psychiatrie | B69: 68182.36829 | C69: 61543.83508 | D69: 0.02127890858 | E69: 0.02620744492 | F69: 0.01886778611 | G69: 0.00113967047 | H69: 0.1858258332 | I69: 120975.3283 | J69: 109196.6419 | L69: 0.06512534808 | M69: 0.06105621464 | N69: 0.05353830215 | O69: 0.04100473341
A70: Einzelpraxis | B70: 63270.06938 | C70: 63270.06938 | D70: 0.02188827414 | E70: 0.02455914016 | F70: 0.01960630326 | G70: 0.001352866534 | H70: 0.1912964002 | I70: 110138.1037 | J70: 110138.1037 | L70: 0.06648883395 | M70: 0.06648883395 | N70: 0.04329982952 | O70: 0.04329982952
A71: Gemeinschaftspraxis | B71: 116558.3855 | C71: 53710.27906 | D71: 0.01802145661 | E71: 0.035018697 | F71: 0.01491993561 | G71: 0 | H71: 0.1565821241 | I71: 104924.3401 | J71: 104924.3401 | L71: 0.1649538956 | M71: 0.1413212991 | N71: 0.3732436947 | O71: 0.1338862714
A72: Psychosomatische Medizin und Psychotherapie | B72: 28470.37902 | C72: 28257.88702 | D72: 0.03023029487 | E72: 0.0918624575 | F72: 0.02121663445 | G72: 0.002460925937 | H72: 0.2225172081 | I72: 76298.13577 | J72: 75728.67574 | L72: 0.03140172749 | M72: 0.03161052852 | N72: 0.02234562052 | O72: 0.02159600138
A73: Einzelpraxis | B73: 28425.33326 | C73: 28425.33326 | D73: 0.02994785947 | E73: 0.09195677313 | F73: 0.02113796315 | G73: 0.002483501062 | H73: 0.2228249141 | I73: 75646.48366 | J73: 75646.48366 | L73: 0.0316901412 | M73: 0.0316901412 | N73: 0.02169927402 | O73: 0.02169927402
A74: Gemeinschaftspraxis | B74: . | C74: . | D74: . | E74: . | F74: . | G74: . | H74: . | I74: . | J74: . | L74: 0.08987435692 | M74: 0.08987435692 | N74: 0.5386404663 | O74: 0.2693202331
A75: Psychotherapie | B75: 30417.15146 | C75: 29794.14045 | D75: 0.02302193761 | E75: 0.06844211359 | F75: 0.01729390771 | G75: 0.005437650155 | H75: 0.2220769682 | I75: 69999.21226 | J75: 68565.47248 | L75: 0.02728395213 | M75: 0.02679508116 | N75: 0.0206059035 | O75: 0.02085338817
A76: Einzelpraxis | B76: 30005.01493 | C76: 30005.01493 | D76: 0.02311396697 | E76: 0.06988874024 | F76: 0.0175909011 | G76: 0.005630067115 | H76: 0.2217719057 | I76: 69578.0092 | J76: 69578.0092 | L76: 0.02700354539 | M76: 0.02700354539 | N76: 0.02072371631 | O76: 0.02072371631
A77: Gemeinschaftspraxis | B77: 49714.54386 | C77: 24857.27193 | D77: 0.02042121325 | E77: 0.02756084391 | F77: 0.008900956479 | G77: 0 | H77: 0.2306979488 | I77: 44860.56259 | J77: 44860.56259 | L77: 0.1938104986 | M77: 0.1938104986 | N77: 0.2847001795 | O77: 0.1423500897
A78: Radiologie | B78: 1781279.712 | C78: 690141.3337 | D78: 0.03041579581 | E78: 0.003627637974 | F78: 0.0959232083 | G78: 0.009507792261 | H78: 0.0701300211 | I78: 790446.5554 | J78: 306251.6438 | L78: 0.1402436354 | M78: 0.1263396457 | N78: 0.119121498 | O78: 0.09054220129
A79: Einzelpraxis | B79: 895653.1363 | C79: 895653.1363 | D79: 0.03234439205 | E79: 0.003556395939 | F79: 0.06154055877 | G79: 0.02970159607 | H79: 0.07212049354 | I79: 338616.692 | J79: 338616.692 | L79: 0.3587699008 | M79: 0.3587699008 | N79: 0.251734191 | O79: 0.251734191
A80: Gemeinschaftspraxis | B80: 2347857.852 | C80: 653544.0376 | D80: 0.02994512362 | E80: 0.003645024529 | F80: 0.1043142633 | G80: 0.004579512444 | H80: 0.06964424807 | I80: 300488.1147 | J80: 300488.1147 | L80: 0.124581754 | M80: 0.07345555051 | N80: 0.3290486455 | O80: 0.08628104074
A81: Urologie | B81: 248571.4642 | C81: 177698.5488 | D81: 0.02984985705 | E81: 0.008053442288 | F81: 0.01818614366 | G81: 0.003964150909 | H81: 0.1063728981 | I81: 246885.9941 | J81: 176493.6414 | L81: 0.05990970779 | M81: 0.03419226413 | N81: 0.0655135489 | O81: 0.04791873001
A82: Einzelpraxis | B82: 185992.1059 | C82: 185992.1059 | D82: 0.0401598064 | E82: 0.009425770589 | F82: 0.01920140946 | G82: 0.00301453397 | H82: 0.1011809395 | I82: 174461.6952 | J82: 174461.6952 | L82: 0.0440391425 | M82: 0.0440391425 | N82: 0.06320594255 | O82: 0.06320594255
A83: Gemeinschaftspraxis | B83: 410611.2791 | C83: 168866.8355 | D83: 0.01775750447 | E83: 0.006443863316 | F83: 0.01699535682 | G83: 0.005077939392 | H83: 0.1124624522 | I83: 178657.4375 | J83: 178657.4375 | L83: 0.09310909366 | M83: 0.05501688766 | N83: 0.2021342988 | O83: 0.07849894196
A84: Übergreifend tätige Praxen | B84: 363930.593 | C84: 164723.1879 | D84: 0.02388105092 | E84: 0.008414085519 | F84: 0.02952444247 | G84: 0.008262306659 | H84: 0.1015860642 | I84: 367636.3855 | J84: 166400.5131 | L84: 0.08938701497 | M84: 0.07463477177 | N84: 0.09541115368 | O84: 0.06388478638
A85: Einzelpraxis | B85: 164257.4223 | C85: 164257.4223 | D85: 0.04440359591 | E85: 0.01391577783 | F85: 0.01742637968 | G85: 0 | H85: 0.1251676817 | I85: 127775.4515 | J85: 127775.4515 | L85: 0.2506576363 | M85: 0.2506576363 | N85: 0.1178646218 | O85: 0.1178646218
A86: Gemeinschaftspraxis | B86: 396963.5137 | C86: 164755.1682 | D86: 0.02247619143 | E86: 0.008037470208 | F86: 0.03035260868 | G86: 0.008827898301 | H86: 0.09997179762 | I86: 169052.5826 | J86: 169052.5826 | L86: 0.09974045552 | M86: 0.08409301253 | N86: 0.2590309251 | O86: 0.07942621863
A87: Hinweis: Gewichtete Ergebnisse.
A88: Quelle: Zi-Praxis-Panel 2013.

Sheet T41
A1: Tabelle 41: Praxiseinnahmen je Praxis und je Inhaber nach Fachgebiet und Organisationsform im Jahr 2010
A2: Fachgebiet und Organisationsform | B2: Praxen | C2: Einnahmen je Praxis in Euro | D2: Einnahmen je Inhaber in Euro | E2: davon aus … | J2: relativer Standardfehler je Praxis | K2: relativer Standardfehler je Inhaber
E4: GKV | F4: Privat | G4: BG/Unfall | H4: Sonstige
A6: Gesamt | B6: 4152 | C6: 349009.3547 | D6: 276103.0111 | E6: 0.7303951496 | F6: 0.210184567 | G6: 0.009680867322 | H6: 0.04973789224 | J6: 0.01727565775 | K6: 0.01084241395
A7: Einzelpraxis | B7: 3352 | C7: 254306.6421 | D7: 254306.6421 | E7: 0.745012789 | F7: 0.194591151 | G7: 0.009552341943 | H7: 0.05084107967 | J7: 0.01179102023 | K7: 0.01179102023
A8: Gemeinschaftspraxis | B8: 800 | C8: 710988.4194 | D8: 312750.1606 | E8: 0.7104106418 | F8: 0.231503108 | G8: 0.009856580811 | H8: 0.04822966941 | J8: 0.03327547446 | K8: 0.02450941506
A9: Allgemeinmedizin und Innere Medizin (hausärztlich) | B9: 464 | C9: 333487.8863 | D9: 259403.6356 | E9: 0.8159025362 | F9: 0.1417988164 | G9: 0.0046286527 | H9: 0.03766999472 | J9: 0.02415697448 | K9: 0.01968834469
A10: Einzelpraxis | B10: 351 | C10: 277833.0228 | D10: 277833.0228 | E10: 0.8152084535 | F10: 0.1371138291 | G10: 0.004994868233 | H10: 0.04268284923 | J10: 0.0221028906 | K10: 0.0221028906
A11: Gemeinschaftspraxis | B11: 113 | C11: 505441.4311 | D11: 233139.4558 | E11: 0.8170813149 | F11: 0.1497554518 | G11: 0.00400669937 | H11: 0.029156534 | J11: 0.03875321072 | K11: 0.03909392978
A12: Anästhesiologie | B12: 99 | C12: 458103.4469 | D12: 315355.0342 | E12: 0.6443670649 | F12: 0.250896031 | G12: 0.006894837764 | H12: 0.09784206628 | J12: 0.123120371 | K12: 0.05398178871
A13: Einzelpraxis | B13: 68 | C13: 287091.8009 | D13: 287091.8009 | E13: 0.6283418237 | F13: 0.2289046929 | G13: 0.00933620869 | H13: 0.1334172747 | J13: 0.06063987847 | K13: 0.06063987847
A14: Gemeinschaftspraxis | B14: 31 | C14: 1013767.821 | D14: 346768.0224 | E14: 0.659113048 | F14: 0.2711318511 | G14: 0.004648355872 | H14: 0.06510674508 | J14: 0.1665231461 | K14: 0.09923028723
A15: Augenheilkunde | B15: 220 | C15: 468130.953 | D15: 368333.0154 | E15: 0.6089843065 | F15: 0.3191865531 | G15: 0.01790124122 | H15: 0.05392789912 | J15: 0.07922816711 | K15: 0.05897178185
A16: Einzelpraxis | B16: 183 | C16: 340245.7086 | D16: 340245.7086 | E16: 0.6017126481 | F16: 0.3125175625 | G16: 0.02686260635 | H16: 0.05890718304 | J16: 0.05808875952 | K16: 0.05808875952
A17: Gemeinschaftspraxis | B17: 37 | C17: 921805.2225 | D17: 412972.1088 | E17: 0.6185059227 | F17: 0.3279190274 | G17: 0.00616709825 | H17: 0.04740795171 | J17: 0.1670778092 | K17: 0.1569844551
A18: Chirurgie | B18: 188 | C18: 487510.4162 | D18: 374672.8895 | E18: 0.666370822 | F18: 0.164048229 | G18: 0.09341586109 | H18: 0.07611493046 | J18: 0.05789826263 | K18: 0.03737519849
A19: Einzelpraxis | B19: 141 | C19: 369662.2662 | D19: 369662.2662 | E19: 0.6706072962 | F19: 0.1592603477 | G19: 0.09156467655 | H19: 0.07847836732 | J19: 0.03858206603 | K19: 0.03858206603
A20: Gemeinschaftspraxis | B20: 47 | C20: 824032.6697 | D20: 381293.4955 | E20: 0.6609438663 | F20: 0.1701815412 | G20: 0.09578724257 | H20: 0.07308734986 | J20: 0.104361006 | K20: 0.0842038107
A21: Dermatologie | B21: 198 | C21: 419611.5582 | D21: 331887.6067 | E21: 0.5827938335 | F21: 0.3557547129 | G21: 0.009742554812 | H21: 0.05170889877 | J21: 0.05604302218 | K21: 0.0405504878
A22: Einzelpraxis | B22: 158 | C22: 332006.1526 | D22: 332006.1526 | E22: 0.6187095366 | F22: 0.3124697575 | G22: 0.01302427789 | H22: 0.055796428 | J22: 0.04559753781 | K22: 0.04559753781
A23: Gemeinschaftspraxis | B23: 40 | C23: 743844.9696 | D23: 331691.9631 | E23: 0.5234637533 | F23: 0.4272582518 | G23: 0.004321391467 | H23: 0.04495660337 | J23: 0.1066522348 | K23: 0.09055658465
A24: Gynäkologie | B24: 432 | C24: 368121.4192 | D24: 299092.9491 | E24: 0.6729190474 | F24: 0.2868363408 | G24: 0.001743759274 | H24: 0.03850085252 | J24: 0.03499432654 | K24: 0.02675877854
A25: Einzelpraxis | B25: 355 | C25: 300121.7692 | D25: 300121.7692 | E25: 0.6805934383 | F25: 0.2763424828 | G25: 0.002413564417 | H25: 0.04065051447 | J25: 0.03161118789 | K25: 0.03161118789
A26: Gemeinschaftspraxis | B26: 77 | C26: 649563.8233 | D26: 297145.0389 | E26: 0.6582432252 | F26: 0.3069038609 | G26: 0.000462883533 | H26: 0.03439003034 | J26: 0.0654423061 | K26: 0.05396824728
A27: Hals-Nasen-Ohren-Heilkunde | B27: 297 | C27: 382882.6207 | D27: 285720.2751 | E27: 0.6541160207 | F27: 0.2930347228 | G27: 0.004749987563 | H27: 0.04809926896 | J27: 0.04984652825 | K27: 0.0269136535
A28: Einzelpraxis | B28: 233 | C28: 276095.8995 | D28: 276095.8995 | E28: 0.6347795525 | F28: 0.2992806417 | G28: 0.006122266579 | H28: 0.05981753924 | J28: 0.03323089848 | K28: 0.03323089848
A29: Gemeinschaftspraxis | B29: 64 | C29: 717516.3882 | D29: 298256.994 | E29: 0.677432222 | F29: 0.2855033007 | G29: 0.003095273091 | H29: 0.03396920416 | J29: 0.08544033024 | K29: 0.05101611772
A30: Innere Medizin - Gastroenterologie | B30: 38 | C30: 646370.3215 | D30: 544596.1272 | E30: 0.7110420589 | F30: 0.2604665272 | G30: 0.0002164936032 | H30: 0.0282749203 | J30: 0.1135513668 | K30: 0.065779742
A31: Einzelpraxis | B31: . | C31: 556187.6155 | D31: 556187.6155 | E31: 0.7860644812 | F31: 0.1812494993 | G31: 0.0002628313013 | H31: 0.03242318826 | J31: 0.05926614804 | K31: 0.05926614804
A32: Gemeinschaftspraxis | B32: . | C32: . | D32: . | E32: . | F32: . | G32: . | H32: . | J32: 0.3902840992 | K32: 0.2723996395
A33: Innere Medizin - Kardiologie | B33: 27 | C33: 555867.423 | D33: 470795.7019 | E33: 0.784120171 | F33: 0.1817811673 | G33: 0.005432885547 | H33: 0.02866577613 | J33: 0.1382794718 | K33: 0.07234903634
A34: Einzelpraxis | B34: . | C34: 389885.4175 | D34: 389885.4175 | E34: 0.7698175976 | F34: 0.1761532202 | G34: 0.009380853978 | H34: 0.04464832825 | J34: 0.05004549478 | K34: 0.05004549478
A35: Gemeinschaftspraxis | B35: . | C35: . | D35: . | E35: . | F35: . | G35: . | H35: . | J35: 0.2618615809 | K35: 0.2618615809
A36: Innere Medizin - Pneumologie | B36: 41 | C36: 579665.1979 | D36: 445627.2828 | E36: 0.7510034519 | F36: 0.190557801 | G36: 0.01117300272 | H36: 0.04726574438 | J36: 0.1117398106 | K36: 0.06816319855
A37: Einzelpraxis | B37: 33 | C37: 459604.5294 | D37: 459604.5294 | E37: 0.7495900139 | F37: 0.182205693 | G37: 0.01253137197 | H37: 0.05567292111 | J37: 0.08308860771 | K37: 0.08308860771
A38: Gemeinschaftspraxis | B38: 8 | C38: 1058511.421 | D38: 423332.5119 | E38: 0.7534511668 | F38: 0.2050215262 | G38: 0.008820652906 | H38: 0.03270665413 | J38: 0.2154939597 | K38: 0.1279294873
A39: Innere Medizin - ohne bzw. mit mehreren Schwerpunkten | B39: 40 | C39: 637124.3272 | D39: 444384.7133 | E39: 0.7516627866 | F39: 0.225867085 | G39: 0.002769443611 | H39: 0.01970068477 | J39: 0.1560297452 | K39: 0.05484129417
A40: Einzelpraxis | B40: . | C40: 414922.3629 | D40: 414922.3629 | E40: 0.7926753522 | F40: 0.177188367 | G40: 0.003790265186 | H40: 0.02634601554 | J40: 0.0706409914 | K40: 0.0706409914
A41: Gemeinschaftspraxis | B41: . | C41: . | D41: . | E41: . | F41: . | G41: . | H41: . | J41: 0.3600843038 | K41: 0.1270763226
A42: Innere Medizin - sonstige Fachgebiete | B42: 46 | C42: 692984.7148 | D42: 539722.8691 | E42: 0.724648661 | F42: 0.16960178 | G42: 0.02213601452 | H42: 0.08361354447 | J42: 0.09014393037 | K42: 0.07658738711
A43: Einzelpraxis | B43: 40 | C43: 580664.0204 | D43: 580664.0204 | E43: 0.6788217323 | F43: 0.1891959365 | G43: 0.02547882358 | H43: 0.1065035077 | J43: 0.08603335877 | K43: 0.08603335877
A44: Gemeinschaftspraxis | B44: 6 | C44: 1076374.783 | D44: 477702.4011 | E44: 0.8090332682 | F44: 0.1335215704 | G44: 0.01598064611 | H44: 0.04146451532 | J44: 0.2088702439 | K44: 0.1861539177
A45: Kinder- und Jugendmedizin | B45: 355 | C45: 362214.2623 | D45: 278792.4326 | E45: 0.7860128361 | F45: 0.1921340815 | G45: 0.003451250508 | H45: 0.01840183183 | J45: 0.0272852674 | K45: 0.01978673526
A46: Einzelpraxis | B46: 255 | C46: 294739.1079 | D46: 294739.1079 | E46: 0.7759629125 | F46: 0.2009658165 | G46: 0.003517524617 | H46: 0.01955374644 | J46: 0.02375158796 | K46: 0.02375158796
A47: Gemeinschaftspraxis | B47: 100 | C47: 548297.5079 | D47: 258091.4534 | E47: 0.8009115109 | F47: 0.1790413307 | G47: 0.003353001362 | H47: 0.01669415706 | J47: 0.04033588356 | K47: 0.03447742418
A48: Kinder- und Jugendpsychiatrie und -psychotherapie | B48: 98 | C48: 335132.0841 | D48: 299579.8638 | E48: 0.8908122978 | F48: 0.08462005172 | G48: 0.0005036758566 | H48: 0.0240639746 | J48: 0.06906965761 | K48: 0.05835961316
A49: Einzelpraxis | B49: 87 | C49: 300692.5248 | D49: 300692.5248 | E49: 0.8833223112 | F49: 0.08766153147 | G49: 0.0006098388822 | H49: 0.02840631841 | J49: 0.06620370105 | K49: 0.06620370105
A50: Gemeinschaftspraxis | B50: 11 | C50: 724597.7336 | D50: 294466.4229 | E50: 0.9259617267 | F50: 0.07034682506 | G50: 5.468058584e-06 | H50: 0.003685980142 | J50: 0.13035378 | K50: 0.1033125798
A51: Nervenheilkunde | B51: 138 | C51: 302079.8688 | D51: 264741.1245 | E51: 0.7882389656 | F51: 0.1248561374 | G51: 0.01477885325 | H51: 0.07212604372 | J51: 0.04105871524 | K51: 0.03081109961
A52: Einzelpraxis | B52: 119 | C52: 266125.678 | D52: 266125.678 | E52: 0.7770685994 | F52: 0.1305175467 | G52: 0.01634737472 | H52: 0.07606647921 | J52: 0.03551024418 | K52: 0.03551024418
A53: Gemeinschaftspraxis | B53: 19 | C53: 534604.3584 | D53: 260379.9449 | E53: 0.8242007205 | F53: 0.1066298583 | G53: 0.009729172387 | H53: 0.05944024875 | J53: 0.07216938514 | K53: 0.0614562681
A54: Neurologie | B54: 32 | C54: 258414.0693 | D54: 231874.7079 | E54: 0.7115968378 | F54: 0.18749364 | G54: 0.01219691651 | H54: 0.08871260574 | J54: 0.07265721244 | K54: 0.06777821619
A55: Einzelpraxis | B55: . | C55: 240448.2341 | D55: 240448.2341 | E55: 0.7207552902 | F55: 0.1846173854 | G55: 0.01342131571 | H55: 0.0812060087 | J55: 0.07753089325 | K55: 0.07753089325
A56: Gemeinschaftspraxis | B56: . | C56: . | D56: . | E56: . | F56: . | G56: . | H56: . | J56: 0.07706089453 | K56: 0.07706089453
A57: Neurologie, Nervenheilkunde, Psychiatrie | B57: 76 | C57: 552569.5557 | D57: 288257.0241 | E57: 0.7007757493 | F57: 0.1765873391 | G57: 0.0145157938 | H57: 0.1081211178 | J57: 0.07255084395 | K57: 0.07352353348
A58: Einzelpraxis | B58: 36 | C58: 396522.201 | D58: 396522.201 | E58: 0.7467328815 | F58: 0.1746509532 | G58: 0.01256515362 | H58: 0.06605101166 | J58: 0.1533481483 | K58: 0.1533481483
A59: Gemeinschaftspraxis | B59: 40 | C59: 658584.608 | D59: 259297.7853 | E59: 0.6819773888 | F59: 0.1773794007 | G59: 0.015313686 | H59: 0.1253295245 | J59: 0.07160365295 | K59: 0.03959243282
A60: Nuklearmedizin | B60: 11 | C60: 1131687.002 | D60: 651659.547 | E60: 0.6303761208 | F60: 0.291852662 | G60: 0.002615173772 | H60: 0.07515604341 | J60: 0.181488344 | K60: 0.1680009226
A61: Einzelpraxis | B61: . | C61: 866576.5 | D61: 866576.5 | E61: 0.5035381566 | F61: 0.3743275983 | G61: 0.00421274598 | H61: 0.1179214991 | J61: 0.3084673112 | K61: 0.3084673112
A62: Gemeinschaftspraxis | B62: . | C62: . | D62: . | E62: . | F62: . | G62: . | H62: . | J62: 0.2332460778 | K62: 0.1351788696
A63: Orthopädie | B63: 266 | C63: 528067.0149 | D63: 383285.4951 | E63: 0.6309785088 | F63: 0.293040129 | G63: 0.01246308136 | H63: 0.06351828082 | J63: 0.04954807833 | K63: 0.02620366978
A64: Einzelpraxis | B64: 200 | C64: 377868.4679 | D64: 377868.4679 | E64: 0.6196243286 | F64: 0.2994107981 | G64: 0.01303181248 | H64: 0.06793306082 | J64: 0.03104512855 | K64: 0.03104512855
A65: Gemeinschaftspraxis | B65: 66 | C65: 935455.6929 | D65: 389401.6548 | E65: 0.6434183959 | F65: 0.2860602853 | G65: 0.01183996715 | H65: 0.05868135173 | J65: 0.08087582098 | K65: 0.05128315951
A66: Physikalische und rehabilitative Medizin | B66: 33 | C66: 256124.9742 | D66: 240660.6888 | E66: 0.6977755241 | F66: 0.2385555259 | G66: 0.007594140887 | H66: 0.05607480904 | J66: 0.1224462871 | K66: 0.113976945
A67: Einzelpraxis | B67: . | C67: 242161.22 | D67: 242161.22 | E67: 0.7020233196 | F67: 0.2287379421 | G67: 0.008298668587 | H67: 0.06094006978 | J67: 0.1206208287 | K67: 0.1206208287
A68: Gemeinschaftspraxis | B68: . | C68: . | D68: . | E68: . | F68: . | G68: . | H68: . | J68: 0 | K68: 0
A69: Psychiatrie | B69: 111 | C69: 184541.8099 | D69: 167812.6179 | E69: 0.7794040462 | F69: 0.1388053473 | G69: 0.01256118457 | H69: 0.06922942195 | J69: 0.05006534334 | K69: 0.03763983504
A70: Einzelpraxis | B70: 101 | C70: 168712.0657 | D70: 168712.0657 | E70: 0.771155526 | F70: 0.1414579982 | G70: 0.01205200689 | H70: 0.07533446887 | J70: 0.03893698972 | K70: 0.03893698972
A71: Gemeinschaftspraxis | B71: 10 | C71: 357147.0833 | D71: 163327.5558 | E71: 0.8218909648 | F71: 0.1251419312 | G71: 0.01518388417 | H71: 0.03778321987 | J71: 0.1674682096 | K71: 0.1403672074
A72: Psychosomatische Medizin und Psychotherapie | B72: 331 | C72: 105610.7689 | D72: 104822.5306 | E72: 0.7223199091 | F72: 0.2286682319 | G72: 0.004395481241 | H72: 0.04461637781 | J72: 0.02077882448 | K72: 0.02027714991
A73: Einzelpraxis | B73: . | C73: 104875.111 | D73: 104875.111 | E73: 0.719651446 | F73: 0.2309711612 | G73: 0.004107631662 | H73: 0.04526976115 | J73: 0.02040356488 | K73: 0.02040356488
A74: Gemeinschaftspraxis | B74: . | C74: . | D74: . | E74: . | F74: . | G74: . | H74: . | J74: 0.2265682115 | K74: 0.2265682115
A75: Psychotherapie | B75: 386 | C75: 101801.4587 | D75: 99288.21049 | E75: 0.8046644192 | F75: 0.1453402223 | G75: 0.001117063752 | H75: 0.0488782947 | J75: 0.01839762524 | K75: 0.01872370678
A76: Einzelpraxis | B76: 376 | C76: 101183.4951 | D76: 101183.4951 | E76: 0.8061564972 | F76: 0.1429894774 | G76: 0.001153073407 | H76: 0.04970095203 | J76: 0.01828329528 | K76: 0.01828329528
A77: Gemeinschaftspraxis | B77: 10 | C77: 125596.7231 | D77: 62798.36154 | E77: 0.7583783277 | F77: 0.2182632192 | G77: 0 | H77: 0.02335845313 | J77: 0.1536873849 | K77: 0.1536873849
A78: Radiologie | B78: 31 | C78: 2458366.03 | D78: 903967.0512 | E78: 0.5397683156 | F78: 0.3363143715 | G78: 0.01774293802 | H78: 0.1061743748 | J78: 0.1295052844 | K78: 0.06923305273
A79: Einzelpraxis | B79: 10 | C79: 760533.6709 | D79: 760533.6709 | E79: 0.6127597346 | F79: 0.3176416396 | G79: 0.00930928983 | H79: 0.060289336 | J79: 0.2097243553 | K79: 0.2097243553
A80: Gemeinschaftspraxis | B80: 21 | C80: 3153791.907 | D80: 921126.0645 | E80: 0.5325586809 | F80: 0.3381587469 | G80: 0.0185759609 | H80: 0.1107066113 | J80: 0.1127346356 | K80: 0.07730629188
A81: Urologie | B81: 142 | C81: 495810.3809 | D81: 352623.7067 | E81: 0.5915808412 | F81: 0.3683654456 | G81: 0.003461541679 | H81: 0.03659217151 | J81: 0.0539603029 | K81: 0.0355971338
A82: Einzelpraxis | B82: 100 | C82: 364650.6685 | D82: 364650.6685 | E82: 0.5936506658 | F82: 0.3604008136 | G82: 0.002882445971 | H82: 0.04306607462 | J82: 0.04582349133 | K82: 0.04582349133
A83: Gemeinschaftspraxis | B83: 42 | C83: 823980.8116 | D83: 340199.422 | E83: 0.5892889582 | F83: 0.3771845528 | G83: 0.004102764917 | H83: 0.02942372411 | J83: 0.06926390108 | K83: 0.05862368654
A84: Übergreifend tätige Praxen | B84: 52 | C84: 674129.1647 | D84: 317049.1713 | E84: 0.7843445657 | F84: 0.1687496797 | G84: 0.008369004723 | H84: 0.03853674993 | J84: 0.08835509673 | K84: 0.06643875218
A85: Einzelpraxis | B85: 20 | C85: 302361.9608 | D85: 302361.9608 | E85: 0.6687822034 | F85: 0.2480957899 | G85: 0.007172123759 | H85: 0.07594988295 | J85: 0.1622760781 | K85: 0.1622760781
A86: Gemeinschaftspraxis | B86: 32 | C86: 741401.5703 | D86: 318189.7833 | E86: 0.7928727376 | F86: 0.1628941636 | G86: 0.008457331116 | H86: 0.03577576769 | J86: 0.1015901171 | K86: 0.08143889012
A87: Hinweis: Gewichtete Ergebnisse.
A88: Quelle: Zi-Praxis-Panel 2013.

Sheet T42
A1: Tabelle 42: Praxisaufwendungen (Teil I) je Praxis und je Inhaber nach Fachgebiet und Organisationsform im Jahr 2010
A2: Fachgebiet und Organisationsform | B2: Aufwen- dungen je Praxis in Euro | C2: Aufwen- dungen je Inhaber in Euro | D2: davon für … | L2: relativer Standardfehler je Praxis | M2: relativer Standardfehler je Inhaber
D3: Personal | E3: Material und Labor | F3: Miete einschl. Nk. für Praxis-räume | G3: Versiche- rungen, Beiträge und Gebühren | H3: Kfz | I3: Abschrei- bungen | J3: Leasing und Mieten von Geräten
A6: Gesamt | B6: 168067.6371 | C6: 132959.1315 | D6: 0.4666816683 | E6: 0.05807007066 | F6: 0.1209488019 | G6: 0.04986584627 | H6: 0.02825847143 | I6: 0.07747795311 | J6: 0.01703867609 | L6: 0.02279262831 | M6: 0.01433314806
A7: Einzelpraxis | B7: 120529.915 | C7: 120529.915 | D7: 0.4466115392 | E7: 0.04896610537 | F7: 0.131863266 | G7: 0.05410895359 | H7: 0.03752021851 | I7: 0.07686084341 | J7: 0.01242884372 | L7: 0.01453780927 | M7: 0.01453780927
A8: Gemeinschaftspraxis | B8: 349769.5096 | C8: 153856.8946 | D8: 0.4931169597 | E8: 0.07006132268 | F8: 0.1065728587 | G8: 0.04427705418 | H8: 0.01605939776 | I8: 0.07829077671 | J8: 0.02311049864 | L8: 0.04665397543 | M8: 0.0344348266
A9: Allgemeinmedizin und Innere Medizin (hausärztlich) | B9: 151893.678 | C9: 118150.5354 | D9: 0.5293615191 | E9: 0.03639256821 | F9: 0.1094932253 | G9: 0.05222420265 | H9: 0.03858715777 | I9: 0.0615997617 | J9: 0.00953434601 | L9: 0.02484805843 | M9: 0.02376817677
A10: Einzelpraxis | B10: 132664.1778 | C10: 132664.1778 | D10: 0.5044292085 | E10: 0.03659084849 | F10: 0.1136962752 | G10: 0.05215438446 | H10: 0.04230164875 | I10: 0.06751713429 | J10: 0.009861403175 | L10: 0.02605132686 | M10: 0.02605132686
A11: Gemeinschaftspraxis | B11: 211305.9292 | C11: 97466.78112 | D11: 0.5777244403 | E11: 0.03600795029 | F11: 0.1013402797 | G11: 0.0523596338 | H11: 0.03138190359 | I11: 0.05012142624 | J11: 0.008899930685 | L11: 0.04331928684 | M11: 0.04515010428
A12: Anästhesiologie | B12: 201753.9201 | C12: 138885.9106 | D12: 0.4164588744 | E12: 0.06995681042 | F12: 0.1280131896 | G12: 0.04805008239 | H12: 0.04166414522 | I12: 0.08346578924 | J12: 0.009116226076 | L12: 0.1568326613 | M12: 0.08702998691
A13: Einzelpraxis | B13: 113569.2902 | C13: 113569.2902 | D13: 0.3778859332 | E13: 0.05550811038 | F13: 0.09920944577 | G13: 0.05225809817 | H13: 0.06306261394 | I13: 0.09823917105 | J13: 0.01018631759 | L13: 0.1150219444 | M13: 0.1150219444
A14: Gemeinschaftspraxis | B14: 488290.2955 | C14: 167023.9049 | D14: 0.4456098061 | E14: 0.08087620249 | F14: 0.1497811944 | G14: 0.0448699365 | H14: 0.02549256793 | I14: 0.07230102371 | J14: 0.008307520188 | L14: 0.1951502068 | M14: 0.1383555073
A15: Augenheilkunde | B15: 233276.9267 | C15: 183546.0639 | D15: 0.4463970298 | E15: 0.1269904041 | F15: 0.1086580672 | G15: 0.04028089345 | H15: 0.01604093368 | I15: 0.0766787767 | J15: 0.01828194096 | L15: 0.08399699719 | M15: 0.0650374197
A16: Einzelpraxis | B16: 176577.9866 | C16: 176577.9866 | D16: 0.4514454393 | E16: 0.08214056865 | F16: 0.1229165116 | G16: 0.04766782241 | H16: 0.0220355902 | I16: 0.08151144356 | J16: 0.02161914709 | L16: 0.06111495809 | M16: 0.06111495809
A17: Gemeinschaftspraxis | B17: 434417.0217 | C17: 194620.4135 | D17: 0.4391174215 | E17: 0.1916621062 | F17: 0.08809795013 | G17: 0.02962923188 | H17: 0.0073968743 | I17: 0.0697102608 | J17: 0.01346982072 | L17: 0.1938591029 | M17: 0.1854988706
A18: Chirurgie | B18: 271618.8876 | C18: 208750.8904 | D18: 0.4531029279 | E18: 0.07383678299 | F18: 0.1345830789 | G18: 0.05620612039 | H18: 0.02083550949 | I18: 0.06767849981 | J18: 0.0127860188 | L18: 0.06456483292 | M18: 0.04239571858
A19: Einzelpraxis | B19: 206489.3006 | C19: 206489.3006 | D19: 0.4297622309 | E19: 0.04948850354 | F19: 0.149931813 | G19: 0.05526291347 | H19: 0.0281349507 | I19: 0.0744554554 | J19: 0.0136349018 | L19: 0.03760875984 | M19: 0.03760875984
A20: Gemeinschaftspraxis | B20: 457600.2152 | C20: 211739.1604 | D20: 0.4831786576 | E20: 0.1052108363 | F20: 0.1148054185 | G20: 0.05742149267 | H20: 0.01142979121 | I20: 0.05894603202 | J20: 0.0116921879 | L20: 0.1251750939 | M20: 0.1052095255
A21: Dermatologie | B21: 223891.6959 | C21: 177084.9197 | D21: 0.4882774213 | E21: 0.07179878936 | F21: 0.1219259637 | G21: 0.04122779168 | H21: 0.01830877417 | I21: 0.06874030701 | J21: 0.01310625992 | L21: 0.06530912703 | M21: 0.05231057319
A22: Einzelpraxis | B22: 178124.8221 | C22: 178124.8221 | D22: 0.469101877 | E22: 0.06708490842 | F22: 0.1323256958 | G22: 0.0466689494 | H22: 0.02576721029 | I22: 0.07052588262 | J22: 0.0145635432 | L22: 0.0558448379 | M22: 0.0558448379
A23: Gemeinschaftspraxis | B23: 393277.9283 | C23: 175368.7037 | D23: 0.5204213853 | E23: 0.07970066773 | F23: 0.1044928934 | G23: 0.03210677929 | H23: 0.005806198115 | I23: 0.0657471467 | J23: 0.01066341604 | L23: 0.1313497158 | M23: 0.1263913873
A24: Gynäkologie | B24: 181992.4158 | C24: 147866.0179 | D24: 0.4343915849 | E24: 0.06977559386 | F24: 0.129153026 | G24: 0.06124039906 | H24: 0.02519561483 | I24: 0.09248263674 | J24: 0.01419728023 | L24: 0.03934071469 | M24: 0.03467696618
A25: Einzelpraxis | B25: 154204.0983 | C25: 154204.0983 | D25: 0.4229553464 | E25: 0.06464534185 | F25: 0.1356803672 | G25: 0.0631880192 | H25: 0.02968150624 | I25: 0.09547357866 | J25: 0.0146704353 | L25: 0.04100786418 | M25: 0.04100786418
A26: Gemeinschaftspraxis | B26: 297004.9325 | C26: 135865.8519 | D26: 0.4589668557 | E26: 0.08079996454 | F26: 0.1151264578 | G26: 0.05705516871 | H26: 0.01555590714 | I26: 0.08605541789 | J26: 0.01318051989 | L26: 0.07580501643 | M26: 0.06410385141
A27: Hals-Nasen-Ohren-Heilkunde | B27: 193081.0987 | C27: 144083.8044 | D27: 0.4723433203 | E27: 0.02380153378 | F27: 0.1388712106 | G27: 0.0480591686 | H27: 0.02359075322 | I27: 0.09604728968 | J27: 0.009487167036 | L27: 0.04921224117 | M27: 0.02752424324
A28: Einzelpraxis | B28: 145527.503 | C28: 145527.503 | D28: 0.4495103363 | E28: 0.02623705714 | F28: 0.1472834449 | G28: 0.04872008199 | H28: 0.03169827213 | I28: 0.08471670723 | J28: 0.009311148638 | L28: 0.03323901779 | M28: 0.03323901779
A29: Gemeinschaftspraxis | B29: 342098.1181 | C29: 142203.2417 | D29: 0.5027808622 | E29: 0.0205548559 | F29: 0.1276572698 | G29: 0.04717813705 | H29: 0.01278301358 | I29: 0.1111515388 | J29: 0.009721808614 | L29: 0.09329132754 | M29: 0.05346821166
A30: Innere Medizin - Gastroenterologie | B30: 316955.4659 | C30: 267049.2649 | D30: 0.419793011 | E30: 0.09495425153 | F30: 0.1061552254 | G30: 0.04797007145 | H30: 0.01428992588 | I30: 0.1217042257 | J30: 0.01244332532 | L30: 0.1232104644 | M30: 0.06621751444
A31: Einzelpraxis | B31: 269404.0994 | C31: 269404.0994 | D31: 0.4188890483 | E31: 0.08408316948 | F31: 0.1102740863 | G31: 0.04531190919 | H31: 0.01917535216 | I31: 0.1384598479 | J31: 0.01294004373 | L31: 0.05050565084 | M31: 0.05050565084
A32: Gemeinschaftspraxis | B32: . | C32: . | D32: . | E32: . | F32: . | G32: . | H32: . | I32: . | J32: . | L32: 0.430326231 | M32: 0.3084607216
A33: Innere Medizin - Kardiologie | B33: 257860.1307 | C33: 218396.3949 | D33: 0.4150271409 | E33: 0.07227269138 | F33: 0.09541306255 | G33: 0.04442944024 | H33: 0.01325580938 | I33: 0.06932513642 | J33: 0.02920686372 | L33: 0.157928592 | M33: 0.1027145935
A34: Einzelpraxis | B34: 191826.8178 | C34: 191826.8178 | D34: 0.4472616308 | E34: 0.06455371699 | F34: 0.1178123626 | G34: 0.04423724842 | H34: 0.02174888393 | I34: 0.07699247456 | J34: 0.02012263263 | L34: 0.07216829593 | M34: 0.07216829593
A35: Gemeinschaftspraxis | B35: . | C35: . | D35: . | E35: . | F35: . | G35: . | H35: . | I35: . | J35: . | L35: 0.590697015 | M35: 0.590697015
A36: Innere Medizin - Pneumologie | B36: 320129.0154 | C36: 246104.5166 | D36: 0.4939437849 | E36: 0.09332278611 | F36: 0.1012410246 | G36: 0.04183565836 | H36: 0.0131749048 | I36: 0.07659152583 | J36: 0.01048739616 | L36: 0.1349585428 | M36: 0.06500366936
A37: Einzelpraxis | B37: 237254.4034 | C37: 237254.4034 | D37: 0.453263702 | E37: 0.07740684323 | F37: 0.1110834337 | G37: 0.04376663454 | H37: 0.01879637945 | I37: 0.08672554824 | J37: 0.01198150149 | L37: 0.06587341113 | M37: 0.06587341113
A38: Gemeinschaftspraxis | B38: 650663.5319 | C38: 260221.1198 | D38: 0.5531047098 | E38: 0.116469295 | F38: 0.08692723799 | G38: 0.03902744539 | H38: 0.004999610763 | I38: 0.06185364688 | J38: 0.008314523184 | L38: 0.2627727554 | M38: 0.170467461
A39: Innere Medizin - ohne bzw. mit mehreren Schwerpunkten | B39: 319784.2822 | C39: 223044.7661 | D39: 0.4572379296 | E39: 0.06588040887 | F39: 0.09110259253 | G39: 0.05467881124 | H39: 0.02341608902 | I39: 0.09261165541 | J39: 0.01495316673 | L39: 0.1973407721 | M39: 0.06275130089
A40: Einzelpraxis | B40: 173706.9593 | C40: 173706.9593 | D40: 0.4199945751 | E40: 0.05519923935 | F40: 0.1218694912 | G40: 0.07014805591 | H40: 0.02735704158 | I40: 0.0832325861 | J40: 0.008733652575 | L40: 0.05781306904 | M40: 0.05781306904
A41: Gemeinschaftspraxis | B41: . | C41: . | D41: . | E41: . | F41: . | G41: . | H41: . | I41: . | J41: . | L41: 0.3981970716 | M41: 0.1481106221
A42: Innere Medizin - sonstige Fachgebiete | B42: 343542.024 | C42: 267563.6027 | D42: 0.5099401424 | E42: 0.07743060513 | F42: 0.1273723999 | G42: 0.04434257149 | H42: 0.01236801102 | I42: 0.0649245677 | J42: 0.01309562758 | L42: 0.1108175263 | M42: 0.09815472552
A43: Einzelpraxis | B43: 290593.7105 | C43: 290593.7105 | D43: 0.4720944837 | E43: 0.09512565664 | F43: 0.1283070718 | G43: 0.05146288335 | H43: 0.01303511392 | I43: 0.07123135113 | J43: 0.01351848796 | L43: 0.1016244114 | M43: 0.1016244114
A44: Gemeinschaftspraxis | B44: 524273.2568 | C44: 232676.0135 | D44: 0.5815422248 | E44: 0.04395245786 | F44: 0.1256040475 | G44: 0.03087129964 | H44: 0.01110588589 | I44: 0.05299245072 | J44: 0.01229559701 | L44: 0.306986292 | M44: 0.3009163415
A45: Kinder- und Jugendmedizin | B45: 173829.7385 | C45: 133794.8853 | D45: 0.527357195 | E45: 0.05772433587 | F45: 0.1309903737 | G45: 0.04697235979 | H45: 0.0232867899 | I45: 0.05576348164 | J45: 0.007138058654 | L45: 0.02688808045 | M45: 0.0228013261
A46: Einzelpraxis | B46: 147120.7125 | C46: 147120.7125 | D46: 0.5068929359 | E46: 0.0594316981 | F46: 0.1350491055 | G46: 0.04795734192 | H46: 0.02898545489 | I46: 0.05907934694 | J46: 0.007166824742 | L46: 0.02638854213 | M46: 0.02638854213
A47: Gemeinschaftspraxis | B47: 247487.9955 | C47: 116496.1276 | D47: 0.5609061572 | E47: 0.05492529826 | F47: 0.1243365175 | G47: 0.04535758703 | H47: 0.01394443863 | I47: 0.05032747539 | J47: 0.007090899732 | L47: 0.04280391273 | M47: 0.03926989635
A48: Kinder- und Jugendpsychiatrie und -psychotherapie | B48: 173330.4176 | C48: 154942.7983 | D48: 0.6105950181 | E48: 0.01489789654 | F48: 0.1320341903 | G48: 0.04236413949 | H48: 0.01556846075 | I48: 0.03833160094 | J48: 0.003757281184 | L48: 0.08196440143 | M48: 0.07314155637
A49: Einzelpraxis | B49: 154754.5057 | C49: 154754.5057 | D49: 0.6039423283 | E49: 0.01368154378 | F49: 0.1339655359 | G49: 0.04401029358 | H49: 0.0173638086 | I49: 0.03481549773 | J49: 0.00354708547 | L49: 0.0838857088 | M49: 0.0838857088
A50: Gemeinschaftspraxis | B50: 383399.2964 | C50: 155808.1321 | D50: 0.6409619445 | E50: 0.02045007106 | F50: 0.1232183534 | G50: 0.03485009004 | H50: 0.007373400147 | I50: 0.05438123662 | J50: 0.004716742391 | L50: 0.1405851437 | M50: 0.113068451
A51: Nervenheilkunde | B51: 126359.365 | C51: 110740.6479 | D51: 0.4899462598 | E51: 0.01341469573 | F51: 0.150798851 | G51: 0.05910671886 | H51: 0.03604165733 | I51: 0.05514700408 | J51: 0.007045747656 | L51: 0.04771540713 | M51: 0.0412530259
A52: Einzelpraxis | B52: 113271.4343 | C52: 113271.4343 | D52: 0.4811834271 | E52: 0.01474415135 | F52: 0.1498517406 | G52: 0.05731893936 | H52: 0.04137696315 | I52: 0.05502117137 | J52: 0.006237657209 | L52: 0.04496710827 | M52: 0.04496710827
A53: Gemeinschaftspraxis | B53: 211002.1937 | C53: 102768.9706 | D53: 0.5203689163 | E53: 0.008799113905 | F53: 0.1540870129 | G53: 0.0653135019 | H53: 0.01751863171 | I53: 0.05558386797 | J53: 0.009851262574 | L53: 0.1066671911 | M53: 0.1060681843
A54: Neurologie | B54: 125130.9902 | C54: 112279.9231 | D54: 0.4446084707 | E54: 0.01496383363 | F54: 0.1781556699 | G54: 0.04875375013 | H54: 0.01574940469 | I54: 0.1147303634 | J54: 0.008624807907 | L54: 0.0639195559 | M54: 0.06966890048
A55: Einzelpraxis | B55: 120749.5242 | C55: 120749.5242 | D55: 0.4423917172 | E55: 0.014779112 | F55: 0.1780073453 | G55: 0.04951338603 | H55: 0.01780908832 | I55: 0.1174582266 | J55: 0.0096127612 | L55: 0.07271153173 | M55: 0.07271153173
A56: Gemeinschaftspraxis | B56: . | C56: . | D56: . | E56: . | F56: . | G56: . | H56: . | I56: . | J56: . | L56: 0.07185870999 | M56: 0.07185870999
A57: Neurologie, Nervenheilkunde, Psychiatrie | B57: 247390.8187 | C57: 129055.5017 | D57: 0.5383589263 | E57: 0.01551480658 | F57: 0.1244623248 | G57: 0.05194158515 | H57: 0.01611913548 | I57: 0.07396770921 | J57: 0.01009636724 | L57: 0.08896564408 | M57: 0.08387334138
A58: Einzelpraxis | B58: 186848.5234 | C58: 186848.5234 | D58: 0.5173136949 | E58: 0.01937138654 | F58: 0.1172746869 | G58: 0.04259358552 | H58: 0.02050933793 | I58: 0.07845653374 | J58: 0.01382958795 | L58: 0.1628940638 | M58: 0.1628940638
A59: Gemeinschaftspraxis | B59: 288521.8884 | C59: 113596.7737 | D59: 0.5476181746 | E59: 0.01381803115 | F59: 0.1276246622 | G59: 0.0560544147 | H59: 0.01418758273 | I59: 0.07199276581 | J59: 0.00845386605 | L59: 0.1035377507 | M59: 0.05146210751
A60: Nuklearmedizin | B60: 664198.5661 | C60: 382465.59 | D60: 0.3888876152 | E60: 0.1482802033 | F60: 0.07352214533 | G60: 0.03590392181 | H60: 0.00706260372 | I60: 0.09617587082 | J60: 0.03687249632 | L60: 0.1867130973 | M60: 0.09097479172
A61: Einzelpraxis | B61: 379722.5 | C61: 379722.5 | D61: 0.3264129287 | E61: 0.1270129283 | F61: 0.07484149609 | G61: 0.01545997406 | H61: 0.01462208148 | I61: 0.06020493035 | J61: 0.08324368453 | L61: 0.1612237408 | M61: 0.1612237408
A62: Gemeinschaftspraxis | B62: . | C62: . | D62: . | E62: . | F62: . | G62: . | H62: . | I62: . | J62: . | L62: 0.2231461812 | M62: 0.1303767714
A63: Orthopädie | B63: 273484.304 | C63: 198502.3944 | D63: 0.4515887722 | E63: 0.07125141306 | F63: 0.1392409783 | G63: 0.05122832757 | H63: 0.02124616312 | I63: 0.07265081896 | J63: 0.01823782967 | L63: 0.0493051075 | M63: 0.03131344579
A64: Einzelpraxis | B64: 213052.9158 | C64: 213052.9158 | D64: 0.4241396996 | E64: 0.06642752256 | F64: 0.1443110088 | G64: 0.04844399739 | H64: 0.02682145178 | I64: 0.07852436056 | J64: 0.0213472342 | L64: 0.03471533887 | M64: 0.03471533887
A65: Gemeinschaftspraxis | B65: 437394.4339 | C65: 182073.9535 | D65: 0.4878535591 | E65: 0.07762457413 | F65: 0.1325426255 | G65: 0.0549068905 | H65: 0.01388028019 | I65: 0.06489089434 | J65: 0.0141297895 | L65: 0.0951453476 | M65: 0.06462225179
A66: Physikalische und rehabilitative Medizin | B66: 140996.7638 | C66: 132483.6768 | D66: 0.4249863214 | E66: 0.03429094254 | F66: 0.1634361321 | G66: 0.04715549789 | H66: 0.02459734869 | I66: 0.0693918532 | J66: 0.02020301089 | L66: 0.1164141832 | M66: 0.1173459781
A67: Einzelpraxis | B67: 136631.0374 | C67: 136631.0374 | D67: 0.4264630807 | E67: 0.03160621163 | F67: 0.1642358149 | G67: 0.04373066409 | H67: 0.02622590696 | I67: 0.06841181259 | J67: 0.02004182972 | L67: 0.1198631235 | M67: 0.1198631235
A68: Gemeinschaftspraxis | B68: . | C68: . | D68: . | E68: . | F68: . | G68: . | H68: . | I68: . | J68: . | L68: 0 | M68: 0
A69: Psychiatrie | B69: 66195.95965 | C69: 60195.12481 | D69: 0.3504870598 | E69: 0.009728612774 | F69: 0.1902698298 | G69: 0.0659754392 | H69: 0.04600773092 | I69: 0.06602847642 | J69: 0.005585037942 | L69: 0.0639767285 | M69: 0.05852153747
A70: Einzelpraxis | B70: 61153.45792 | C70: 61153.45792 | D70: 0.3347993623 | E70: 0.008475180402 | F70: 0.1922390968 | G70: 0.06390019272 | H70: 0.0515022486 | I70: 0.06935348655 | J70: 0.005382116918 | L70: 0.06366914818 | M70: 0.06366914818
A71: Gemeinschaftspraxis | B71: 121178.6791 | C71: 55416.43319 | D71: 0.4368115799 | E71: 0.01662586126 | F71: 0.1794335659 | G71: 0.07739487513 | H71: 0.01577310912 | I71: 0.04773197984 | J71: 0.006701649224 | L71: 0.1662832629 | M71: 0.1454698705
A72: Psychosomatische Medizin und Psychotherapie | B72: 28075.61165 | C72: 27866.06605 | D72: 0.1293405238 | E72: 0.01256726338 | F72: 0.2320219864 | G72: 0.1019119766 | H72: 0.06659600345 | I72: 0.08528089338 | J72: 0.0009208987812 | L72: 0.03349259448 | M72: 0.03326933054
A73: Einzelpraxis | B73: 27892.63607 | C73: 27892.63607 | D73: 0.1303931736 | E73: 0.01274554779 | F73: 0.2349567041 | G73: 0.1016535723 | H73: 0.06639218355 | I73: 0.08474571733 | J73: 0.0009339630336 | L73: 0.0335415062 | M73: 0.0335415062
A74: Gemeinschaftspraxis | B74: . | C74: . | D74: . | E74: . | F74: . | G74: . | H74: . | I74: . | J74: . | L74: 0.2839964465 | M74: 0.2839964465
A75: Psychotherapie | B75: 30019.90107 | C75: 29278.77749 | D75: 0.1257221853 | E75: 0.007786313329 | F75: 0.2405143172 | G75: 0.08784419902 | H75: 0.09500696455 | I75: 0.09357573495 | J75: 0.001456781166 | L75: 0.02839033005 | M75: 0.02803952519
A76: Einzelpraxis | B76: 29651.99178 | C76: 29651.99178 | D76: 0.123543257 | E76: 0.008016552258 | F76: 0.2379978308 | G76: 0.08890797873 | H76: 0.09642293301 | I76: 0.09369871321 | J76: 0.001513158341 | L76: 0.02801150641 | M76: 0.02801150641
A77: Gemeinschaftspraxis | B77: 44186.59119 | C77: 22093.29559 | D77: 0.1820254961 | E77: 0.001836959968 | F77: 0.3055401002 | G77: 0.06035622611 | H77: 0.05841846599 | I77: 0.0903979879 | J77: 0 | L77: 0.2238124067 | M77: 0.2238124067
A78: Radiologie | B78: 1712545.595 | C78: 629721.0312 | D78: 0.3822215213 | E78: 0.08068464019 | F78: 0.09023268159 | G78: 0.02748077552 | H78: 0.004725467889 | I78: 0.1332190976 | J78: 0.07377631521 | L78: 0.1421106779 | M78: 0.07322236695
A79: Einzelpraxis | B79: 482702.8463 | C79: 482702.8463 | D79: 0.3278888418 | E79: 0.0623353649 | F79: 0.08965338535 | G79: 0.03812768937 | H79: 0.007120193153 | I79: 0.1240420588 | J79: 0.05463368418 | L79: 0.1989838322 | M79: 0.1989838322
A80: Gemeinschaftspraxis | B80: 2216284.652 | C80: 647308.8966 | D80: 0.3870685042 | E80: 0.08232156705 | F80: 0.09028436023 | G80: 0.02653097129 | H80: 0.004511836011 | I80: 0.1340377752 | J80: 0.07548401682 | L80: 0.1275167404 | M80: 0.08361189017
A81: Urologie | B81: 240587.5478 | C81: 171107.4963 | D81: 0.4155472881 | E81: 0.1162828334 | F81: 0.1234877548 | G81: 0.04442629518 | H81: 0.02456433628 | I81: 0.09249294515 | J81: 0.01782986677 | L81: 0.05077545075 | M81: 0.03352138749
A82: Einzelpraxis | B82: 186297.2728 | C82: 186297.2728 | D82: 0.3896396589 | E82: 0.1143189031 | F82: 0.1342619332 | G82: 0.04306310959 | H82: 0.03732049597 | I82: 0.08959792028 | J82: 0.01849513304 | L82: 0.04320359686 | M82: 0.04320359686
A83: Gemeinschaftspraxis | B83: 376425.4709 | C83: 155415.9099 | D83: 0.4476287506 | E83: 0.1187147716 | F83: 0.1101460708 | G83: 0.04611433029 | H83: 0.008768361429 | I83: 0.09607785952 | J83: 0.01700606637 | L83: 0.07400198107 | M83: 0.04841068237
A84: Übergreifend tätige Praxen | B84: 349169.7981 | C84: 164217.7804 | D84: 0.4956908162 | E84: 0.06684532039 | F84: 0.1147373118 | G84: 0.04143141771 | H84: 0.01236165754 | I84: 0.06875901428 | J84: 0.01363963607 | L84: 0.08864354912 | M84: 0.07797219098
A85: Einzelpraxis | B85: 162077.1858 | C85: 162077.1858 | D85: 0.4557238124 | E85: 0.03758417775 | F85: 0.1164380247 | G85: 0.05064351713 | H85: 0.03281201504 | I85: 0.06058761957 | J85: 0.01327165235 | L85: 0.2250947006 | M85: 0.2250947006
A86: Gemeinschaftspraxis | B86: 383024.775 | C86: 164384.0195 | D86: 0.4987511056 | E86: 0.06908585772 | F86: 0.1146070876 | G86: 0.04072604359 | H86: 0.01079576553 | I86: 0.06938470122 | J86: 0.01366781273 | L86: 0.100179648 | M86: 0.09171729493
A87: Hinweis: Gewichtete Ergebnisse.
A88: Quelle: Zi-Praxis-Panel 2013.

Sheet T43
A1: Tabelle 43: Praxisaufwendungen (Teil II) und Jahresüberschuss je Praxis und je Praxisinhaber nach Fachgebiet und Organisationsform im Jahr 2010
A2: Fachgebiet und Organisationsform | B2: Aufwen- dungen je Praxis in Euro | C2: Aufwen- dungen je Inhaber in Euro | D2: davon für … | I2: Jahresüber-schuss je Praxis in Euro | J2: Jahresüber-schuss je Inhaber in Euro | L2: relativer Standardfehler für Aufwendungen je Praxis | M2: relativer Standardfehler für Aufwendungen je Inhaber | N2: relativer Standardfehler für Jahresüberschuss je Praxis | O2: relativer Standardfehler für Jahresüberschuss je Inhaber
D3: Fremd- kapital- zinsen | E3: Fort- bildungen | F3: Wartung und Instand- haltung | G3: Nutzung externer Infra- struktur | H3: Sonstige
A6: Gesamt | B6: 168067.6371 | C6: 132959.1315 | D6: 0.02901511004 | E6: 0.010045698 | F6: 0.02765188185 | G6: 0.007969536362 | H6: 0.1069762859 | I6: 180941.7176 | J6: 143143.8796 | L6: 0.02279262831 | M6: 0.01433314806 | N6: 0.01455470349 | O6: 0.009950890457
A7: Einzelpraxis | B7: 120529.915 | C7: 120529.915 | D7: 0.03372435803 | E7: 0.01300272319 | F7: 0.02225779138 | G7: 0.006679013066 | H7: 0.1159763446 | I7: 133776.7272 | J7: 133776.7272 | L7: 0.01453780927 | M7: 0.01453780927 | N7: 0.01185727976 | O7: 0.01185727976
A8: Gemeinschaftspraxis | B8: 349769.5096 | C8: 153856.8946 | D8: 0.02281234261 | E8: 0.006150863925 | F8: 0.03475668686 | G8: 0.009669344036 | H8: 0.0951218942 | I8: 361218.9098 | J8: 158893.266 | L8: 0.04665397543 | M8: 0.0344348266 | N8: 0.02508491669 | O8: 0.01992777539
A9: Allgemeinmedizin und Innere Medizin (hausärztlich) | B9: 151893.678 | C9: 118150.5354 | D9: 0.02781307542 | E9: 0.007193539323 | F9: 0.01815178588 | G9: 0.001906876888 | H9: 0.1077419418 | I9: 181594.2083 | J9: 141253.1002 | L9: 0.02484805843 | M9: 0.02376817677 | N9: 0.02828328119 | O9: 0.02204855051
A10: Einzelpraxis | B10: 132664.1778 | C10: 132664.1778 | D10: 0.03257774413 | E10: 0.007224552468 | F10: 0.01894031503 | G10: 0.002632389032 | H10: 0.1120740965 | I10: 145168.845 | J10: 145168.845 | L10: 0.02605132686 | M10: 0.02605132686 | N10: 0.02642879469 | O10: 0.02642879469
A11: Gemeinschaftspraxis | B11: 211305.9292 | C11: 97466.78112 | D11: 0.01857071912 | E11: 0.007133380987 | F11: 0.01662222154 | G11: 0.0004995509778 | H11: 0.09933856268 | I11: 294135.5019 | J11: 135672.6746 | L11: 0.04331928684 | M11: 0.04515010428 | N11: 0.04221336158 | O11: 0.04117954255
A12: Anästhesiologie | B12: 201753.9201 | C12: 138885.9106 | D12: 0.02274281214 | E12: 0.01130838935 | F12: 0.02330179838 | G12: 0.02120049607 | H12: 0.1247213867 | I12: 256349.5267 | J12: 176469.1236 | L12: 0.1568326613 | M12: 0.08702998691 | N12: 0.1097908593 | O12: 0.04494159213
A13: Einzelpraxis | B13: 113569.2902 | C13: 113569.2902 | D13: 0.02948226835 | E13: 0.01563537575 | F13: 0.02721616338 | G13: 0.03037346379 | H13: 0.1409430386 | I13: 173522.5107 | J13: 173522.5107 | L13: 0.1150219444 | M13: 0.1150219444 | N13: 0.04941937062 | O13: 0.04941937062
A14: Gemeinschaftspraxis | B14: 488290.2955 | C14: 167023.9049 | D14: 0.01764956746 | E14: 0.008038333157 | F14: 0.02034357473 | G14: 0.01426816094 | H14: 0.1124621124 | I14: 179744.1175 | J14: 179744.1175 | L14: 0.1951502068 | M14: 0.1383555073 | N14: 0.4754909765 | O14: 0.08807414411
A15: Augenheilkunde | B15: 233276.9267 | C15: 183546.0639 | D15: 0.02564312933 | E15: 0.005992769746 | F15: 0.01911027564 | G15: 0.02035721744 | H15: 0.09556856194 | I15: 234854.0264 | J15: 184786.9515 | L15: 0.08399699719 | M15: 0.0650374197 | N15: 0.07840074248 | O15: 0.05799272663
A16: Einzelpraxis | B16: 176577.9866 | C16: 176577.9866 | D16: 0.02993507646 | E16: 0.0077120978 | F16: 0.02064770992 | G16: 0.01255402858 | H16: 0.09981456442 | I16: 163667.722 | J16: 163667.722 | L16: 0.06111495809 | M16: 0.06111495809 | N16: 0.06395620344 | O16: 0.06395620344
A17: Gemeinschaftspraxis | B17: 434417.0217 | C17: 194620.4135 | D17: 0.01945431005 | E17: 0.003513566185 | F17: 0.01689335576 | G17: 0.03160910945 | H17: 0.08944599305 | I17: 218351.6953 | J17: 218351.6953 | L17: 0.1938591029 | M17: 0.1854988706 | N17: 0.3284351756 | O17: 0.1356677642
A18: Chirurgie | B18: 271618.8876 | C18: 208750.8904 | D18: 0.03259591094 | E18: 0.006000756902 | F18: 0.02704665232 | G18: 0.01181802207 | H18: 0.1035097195 | I18: 215891.5286 | J18: 165921.9991 | L18: 0.06456483292 | M18: 0.04239571858 | N18: 0.05820676055 | O18: 0.04168312491
A19: Einzelpraxis | B19: 206489.3006 | C19: 206489.3006 | D19: 0.04485709387 | E19: 0.007021718036 | F19: 0.0239688989 | G19: 0.01437126157 | H19: 0.1091102588 | I19: 163172.9656 | J19: 163172.9656 | L19: 0.03760875984 | M19: 0.03760875984 | N19: 0.0506148389 | O19: 0.0506148389
A20: Gemeinschaftspraxis | B20: 457600.2152 | C20: 211739.1604 | D20: 0.01679672449 | E20: 0.004685194172 | F20: 0.03101250132 | G20: 0.008528037151 | H20: 0.0962931267 | I20: 169554.3352 | J20: 169554.3352 | L20: 0.1251750939 | M20: 0.1052095255 | N20: 0.2057550677 | O20: 0.07837182848
A21: Dermatologie | B21: 223891.6959 | C21: 177084.9197 | D21: 0.0203092779 | E21: 0.008786686806 | F21: 0.02716195874 | G21: 0.01166720422 | H21: 0.1086895651 | I21: 195719.8624 | J21: 154802.687 | L21: 0.06530912703 | M21: 0.05231057319 | N21: 0.05757595267 | O21: 0.0396569905
A22: Einzelpraxis | B22: 178124.8221 | C22: 178124.8221 | D22: 0.02790365632 | E22: 0.01038757366 | F22: 0.02152323036 | G22: 0.002503784829 | H22: 0.1116436881 | I22: 153881.3305 | J22: 153881.3305 | L22: 0.0558448379 | M22: 0.0558448379 | N22: 0.04632617514 | O22: 0.04632617514
A23: Gemeinschaftspraxis | B23: 393277.9283 | C23: 175368.7037 | D23: 0.007578821756 | E23: 0.006103120255 | F23: 0.03661415884 | G23: 0.02702784366 | H23: 0.1037375689 | I23: 156323.2594 | J23: 156323.2594 | L23: 0.1313497158 | M23: 0.1263913873 | N23: 0.2458769798 | O23: 0.08262421756
A24: Gynäkologie | B24: 181992.4158 | C24: 147866.0179 | D24: 0.03254781077 | E24: 0.009369738664 | F24: 0.0236499085 | G24: 0.005812774484 | H24: 0.1021836319 | I24: 186129.0034 | J24: 151226.9312 | L24: 0.03934071469 | M24: 0.03467696618 | N24: 0.03772643308 | O24: 0.027443747
A25: Einzelpraxis | B25: 154204.0983 | C25: 154204.0983 | D25: 0.03686783486 | E25: 0.01027998108 | F25: 0.02150843573 | G25: 0.004857275196 | H25: 0.1001918782 | I25: 145917.6709 | J25: 145917.6709 | L25: 0.04100786418 | M25: 0.04100786418 | N25: 0.03212061169 | O25: 0.03212061169
A26: Gemeinschaftspraxis | B26: 297004.9325 | C26: 135865.8519 | D26: 0.02326453445 | E26: 0.007413723681 | F26: 0.02825170773 | G26: 0.007866041715 | H26: 0.1064637008 | I26: 161279.187 | J26: 161279.187 | L26: 0.07580501643 | M26: 0.06410385141 | N26: 0.1468551767 | O26: 0.05778702848
A27: Hals-Nasen-Ohren-Heilkunde | B27: 193081.0987 | C27: 144083.8044 | D27: 0.03551786217 | E27: 0.008615911525 | F27: 0.02253295241 | G27: 0.006790088758 | H27: 0.1143427419 | I27: 189801.522 | J27: 141636.4707 | L27: 0.04921224117 | M27: 0.02752424324 | N27: 0.05709235131 | O27: 0.03576658701
A28: Einzelpraxis | B28: 145527.503 | C28: 145527.503 | D28: 0.04275322834 | E28: 0.009616201737 | F28: 0.02124977468 | G28: 0.002666843562 | H28: 0.1262369034 | I28: 130568.3965 | J28: 130568.3965 | L28: 0.03323901779 | M28: 0.03323901779 | N28: 0.04567125248 | O28: 0.04567125248
A29: Gemeinschaftspraxis | B29: 342098.1181 | C29: 142203.2417 | D29: 0.02587274698 | E29: 0.007282473233 | F29: 0.02424349432 | G29: 0.01228658664 | H29: 0.09848721296 | I29: 156053.7523 | J29: 156053.7523 | L29: 0.09329132754 | M29: 0.05346821166 | N29: 0.2171943737 | O29: 0.06447215746
A30: Innere Medizin - Gastroenterologie | B30: 316955.4659 | C30: 267049.2649 | D30: 0.02906675171 | E30: 0.006586446789 | F30: 0.05659613893 | G30: 0.07591461351 | H30: 0.07857421571 | I30: 329414.8556 | J30: 277546.8623 | L30: 0.1232104644 | M30: 0.06621751444 | N30: 0.1225401885 | O30: 0.0951229326
A31: Einzelpraxis | B31: 269404.0994 | C31: 269404.0994 | D31: 0.02941928254 | E31: 0.008107209765 | F31: 0.04918720709 | G31: 0 | H31: 0.08415284359 | I31: 286783.5162 | J31: 286783.5162 | L31: 0.05050565084 | M31: 0.05050565084 | N31: 0.106015574 | O31: 0.106015574
A32: Gemeinschaftspraxis | B32: . | C32: . | D32: . | E32: . | F32: . | G32: . | H32: . | I32: . | J32: . | L32: 0.430326231 | M32: 0.3084607216 | N32: 0.8038159677 | O32: 0.2438294431
A33: Innere Medizin - Kardiologie | B33: 257860.1307 | C33: 218396.3949 | D33: 0.03499372701 | E33: 0.005069639468 | F33: 0.0321016844 | G33: 0.09282635705 | H33: 0.09607844743 | I33: 298007.2922 | J33: 252399.3069 | L33: 0.157928592 | M33: 0.1027145935 | N33: 0.1464812052 | O33: 0.0787797326
A34: Einzelpraxis | B34: 191826.8178 | C34: 191826.8178 | D34: 0.05696946346 | E34: 0.005966570888 | F34: 0.02821044898 | G34: 1.264450183e-05 | H34: 0.1161119223 | I34: 198058.5997 | J34: 198058.5997 | L34: 0.07216829593 | M34: 0.07216829593 | N34: 0.07393782773 | O34: 0.07393782773
A35: Gemeinschaftspraxis | B35: . | C35: . | D35: . | E35: . | F35: . | G35: . | H35: . | I35: . | J35: . | L35: 0.590697015 | M35: 0.590697015 | N35: 0.03583404887 | O35: 0.01791702443
A36: Innere Medizin - Pneumologie | B36: 320129.0154 | C36: 246104.5166 | D36: 0.02870868923 | E36: 0.00680246884 | F36: 0.02561720138 | G36: 0.02539477743 | H36: 0.08287978237 | I36: 259536.1824 | J36: 199522.7662 | L36: 0.1349585428 | M36: 0.06500366936 | N36: 0.105531666 | O36: 0.09964841759
A37: Einzelpraxis | B37: 237254.4034 | C37: 237254.4034 | D37: 0.03676832184 | E37: 0.006752567729 | F37: 0.02685087682 | G37: 0.03591423278 | H37: 0.09068995823 | I37: 222350.126 | J37: 222350.126 | L37: 0.06587341113 | M37: 0.06587341113 | N37: 0.1203638522 | O37: 0.1203638522
A38: Gemeinschaftspraxis | B38: 650663.5319 | C38: 260221.1198 | D38: 0.01698758925 | E38: 0.00687503988 | F38: 0.02382307083 | G38: 0.01009636448 | H38: 0.07152146661 | I38: 163111.3921 | J38: 163111.3921 | L38: 0.2627727554 | M38: 0.170467461 | N38: 0.4064070423 | O38: 0.1115383431
A39: Innere Medizin - ohne bzw. mit mehreren Schwerpunkten | B39: 319784.2822 | C39: 223044.7661 | D39: 0.02563194744 | E39: 0.005335396099 | F39: 0.02758658712 | G39: 0.01911089343 | H39: 0.1224545225 | I39: 317340.045 | J39: 221339.9472 | L39: 0.1973407721 | M39: 0.06275130089 | N39: 0.1248515845 | O39: 0.07980691213
A40: Einzelpraxis | B40: 173706.9593 | C40: 173706.9593 | D40: 0.03102753301 | E40: 0.009228758643 | F40: 0.04272952471 | G40: 0.02036354625 | H40: 0.1101159956 | I40: 241215.4036 | J40: 241215.4036 | L40: 0.05781306904 | M40: 0.05781306904 | N40: 0.101010316 | O40: 0.101010316
A41: Gemeinschaftspraxis | B41: . | C41: . | D41: . | E41: . | F41: . | G41: . | H41: . | I41: . | J41: . | L41: 0.3981970716 | M41: 0.1481106221 | N41: 0.8476068534 | O41: 0.1274654096
